Workbook

Sheet Cellular proteome
A1: Supplementary Table S2. Cellular proteome of Alcanivorax sp. 24 exposed to different polyesters
A2: Protein IDs | B2: Amino-acid sequence | C2: Sequence length | D2: Average % Relative abundance | E2: Log2(LFQ BHET/LFQ Succ) | F2: Log10(p-value (LFQ BHET/LFQ Succ)) | G2: Student's T-test Significant BHET_Succ | H2: Average % Relative abundance | I2: Log2(LFQ PESu/LFQ Succ) | J2: Log10(p-value (LFQ PESu/LFQ Succ)) | K2: Student's T-test Significant PESu_Succ | L2: Average % Relative abundance | M2: Log2(LFQ PHB/LFQ Succ) | N2: Log10(p-value (LFQ PHB/LFQ Succ)) | O2: Student's T-test Significant PHB_Succ | P2: Average % Relative abundance | Q2: Log2(LFQ PHBV/LFQ Succ) | R2: Log10(p-value (LFQ PHBV/LFQ Succ)) | S2: Student's T-test Significant PHBV_Succ | T2: LFQ intensity BHET_1 | U2: Intensity BHET_1 | V2: Normalization intensity/Seq. length | W2: % Relative abundance | X2: LFQ intensity BHET_2 | Y2: Intensity BHET_2 | Z2: Normalization intensity/Seq. length | AA2: % Relative abundance | AB2: LFQ intensity BHET_3 | AC2: Intensity BHET_3 | AD2: Normalization intensity/Seq. length | AE2: % Relative abundance | AF2: LFQ intensity PESu_1 | AG2: Intensity PESu_1 | AH2: Normalization intensity/Seq. length | AI2: % Relative abundance | AJ2: LFQ intensity PESu_2 | AK2: Intensity PESu_2 | AL2: Normalization intensity/Seq. length | AM2: % Relative abundance | AN2: LFQ intensity PESu_3 | AO2: Intensity PESu_3 | AP2: Normalization intensity/Seq. length | AQ2: % Relative abundance | AR2: LFQ intensity PHB_1 | AS2: Intensity PHB_1 | AT2: Normalization intensity/Seq. length | AU2: % Relative abundance | AV2: LFQ intensity PHB_2 | AW2: Intensity PHB_2 | AX2: Normalization intensity/Seq. length | AY2: % Relative abundance | AZ2: LFQ intensity PHB_3 | BA2: Intensity PHB_3 | BB2: Normalization intensity/Seq. length | BC2: % Relative abundance | BD2: LFQ intensity PHBV_1 | BE2: Intensity PHBV_1 | BF2: Normalization intensity/Seq. length | BG2: % Relative abundance | BH2: LFQ intensity PHBV_2 | BI2: Intensity PHBV_2 | BJ2: Normalization intensity/Seq. length | BK2: % Relative abundance | BL2: LFQ intensity PHBV_3 | BM2: Intensity PHBV_3 | BN2: Normalization intensity/Seq. length | BO2: % Relative abundance | BP2: LFQ intensity Succ_1 | BQ2: Intensity Succ_1 | BR2: Normalization intensity/Seq. length | BS2: % Relative abundance | BT2: LFQ intensity Succ_2 | BU2: Intensity Succ_2 | BV2: Normalization intensity/Seq. length | BW2: % Relative abundance | BX2: LFQ intensity Succ_3 | BY2: Intensity Succ_3 | BZ2: Normalization intensity/Seq. length | CA2: % Relative abundance | CB2: LFQ intensity Succ_4 | CC2: Intensity Succ_4 | CD2: Normalization intensity/Seq. length | CE2: % Relative abundance | CF2: LFQ intensity Succ_5 | CG2: Intensity Succ_5 | CH2: Normalization intensity/Seq. length | CI2: % Relative abundance | CJ2: LFQ intensity Succ_6 | CK2: Intensity Succ_6 | CL2: Normalization intensity/Seq. length | CM2: % Relative abundance | CN2: Student's T-test significant | CO2: Peptides | CP2: Razor + unique peptides | CQ2: Unique peptides | CR2: Sequence coverage [%] | CS2: Unique + razor sequence coverage [%] | CT2: Unique sequence coverage [%] | CU2: Mol. weight [kDa] | CV2: Q-value | CW2: Score | CX2: Intensity | CY2: MS/MS count | CZ2: id | DA2: Peptide counts (all) | DB2: Peptide counts (razor+unique) | DC2: Peptide counts (unique) | DD2: Number of proteins | DE2: Peptides BHET_1 | DF2: Peptides BHET_2 | DG2: Peptides BHET_3 | DH2: Peptides PESu_1 | DI2: Peptides PESu_2 | DJ2: Peptides PESu_3 | DK2: Peptides PHB_1 | DL2: Peptides PHB_2 | DM2: Peptides PHB_3 | DN2: Peptides PHBV_1 | DO2: Peptides PHBV_2 | DP2: Peptides PHBV_3 | DQ2: Peptides Succ_1 | DR2: Peptides Succ_2 | DS2: Peptides Succ_3 | DT2: Peptides Succ_4 | DU2: Peptides Succ_5 | DV2: Peptides Succ_6 | DW2: Razor + unique peptides BHET_1 | DX2: Razor + unique peptides BHET_2 | DY2: Razor + unique peptides BHET_3 | DZ2: Razor + unique peptides PESu_1 | EA2: Razor + unique peptides PESu_2 | EB2: Razor + unique peptides PESu_3 | EC2: Razor + unique peptides PHB_1 | ED2: Razor + unique peptides PHB_2 | EE2: Razor + unique peptides PHB_3 | EF2: Razor + unique peptides PHBV_1 | EG2: Razor + unique peptides PHBV_2 | EH2: Razor + unique peptides PHBV_3 | EI2: Razor + unique peptides Succ_1 | EJ2: Razor + unique peptides Succ_2 | EK2: Razor + unique peptides Succ_3 | EL2: Razor + unique peptides Succ_4 | EM2: Razor + unique peptides Succ_5 | EN2: Razor + unique peptides Succ_6 | EO2: Unique peptides BHET_1 | EP2: Unique peptides BHET_2 | EQ2: Unique peptides BHET_3 | ER2: Unique peptides PESu_1 | ES2: Unique peptides PESu_2 | ET2: Unique peptides PESu_3 | EU2: Unique peptides PHB_1 | EV2: Unique peptides PHB_2 | EW2: Unique peptides PHB_3 | EX2: Unique peptides PHBV_1 | EY2: Unique peptides PHBV_2 | EZ2: Unique peptides PHBV_3 | FA2: Unique peptides Succ_1 | FB2: Unique peptides Succ_2 | FC2: Unique peptides Succ_3 | FD2: Unique peptides Succ_4 | FE2: Unique peptides Succ_5 | FF2: Unique peptides Succ_6 | FG2: Sequence length | FH2: Sequence lengths | FI2: Fraction average | FJ2: Fraction 1 | FK2: Sequence coverage BHET_1 [%] | FL2: Sequence coverage BHET_2 [%] | FM2: Sequence coverage BHET_3 [%] | FN2: Sequence coverage PESu_1 [%] | FO2: Sequence coverage PESu_2 [%] | FP2: Sequence coverage PESu_3 [%] | FQ2: Sequence coverage PHB_1 [%] | FR2: Sequence coverage PHB_2 [%] | FS2: Sequence coverage PHB_3 [%] | FT2: Sequence coverage PHBV_1 [%] | FU2: Sequence coverage PHBV_2 [%] | FV2: Sequence coverage PHBV_3 [%] | FW2: Sequence coverage Succ_1 [%] | FX2: Sequence coverage Succ_2 [%] | FY2: Sequence coverage Succ_3 [%] | FZ2: Sequence coverage Succ_4 [%] | GA2: Sequence coverage Succ_5 [%] | GB2: Sequence coverage Succ_6 [%] | GC2: MS/MS count BHET_1 | GD2: MS/MS count BHET_2 | GE2: MS/MS count BHET_3 | GF2: MS/MS count PESu_1 | GG2: MS/MS count PESu_2 | GH2: MS/MS count PESu_3 | GI2: MS/MS count PHB_1 | GJ2: MS/MS count PHB_2 | GK2: MS/MS count PHB_3 | GL2: MS/MS count PHBV_1 | GM2: MS/MS count PHBV_2 | GN2: MS/MS count PHBV_3 | GO2: MS/MS count Succ_1 | GP2: MS/MS count Succ_2 | GQ2: MS/MS count Succ_3 | GR2: MS/MS count Succ_4 | GS2: MS/MS count Succ_5 | GT2: MS/MS count Succ_6 | GU2: Student's T-test q-value BHET_Succ | GV2: Student's T-test Test statistic BHET_Succ | GW2: Student's T-test q-value PESu_Succ | GX2: Student's T-test Test statistic PESu_Succ | GY2: Student's T-test q-value PHB_Succ | GZ2: Student's T-test Test statistic PHB_Succ | HA2: Student's T-test q-value PHBV_Succ | HB2: Student's T-test Test statistic PHBV_Succ | HC2: Majority protein IDs | HD2: Identification type BHET_1 | HE2: Identification type BHET_2 | HF2: Identification type BHET_3 | HG2: Identification type PESu_1 | HH2: Identification type PESu_2 | HI2: Identification type PESu_3 | HJ2: Identification type PHB_1 | HK2: Identification type PHB_2 | HL2: Identification type PHB_3 | HM2: Identification type PHBV_1 | HN2: Identification type PHBV_2 | HO2: Identification type PHBV_3 | HP2: Identification type Succ_1 | HQ2: Identification type Succ_2 | HR2: Identification type Succ_3 | HS2: Identification type Succ_4 | HT2: Identification type Succ_5 | HU2: Identification type Succ_6
A3: ALC24_0001_GTPase Der | B3: MTTAPRFAVVGHPNKGKSSIVATLSQNDAVAIALEPGTTRDSERYPLSVDGHLLYELIDTPGFQRPRRVLAWLQAHSHSASDRPDTVRAFVNQHRDDPRFHDECELLTPILDGAGIIYVVDGSVPYHQEHEAEMEILRWTGQPSLALINRIGDDDHGEQWRTALGQYFRIVRDFNPVTAPFETHLRLLRSFGQLAPQWETALDQAVEHLRDQRRHRRKRAWALIADALGDMLGHAESARLGEDASRSVLEVRLRQSWQDWQRKRELRLRREVEQLYQHHHLQRQEQHLEWEPGHDLFSERERRAWGVSRAYLATAGFGAGALGGAGVDALTAGHTLGAGALIGGVLGAAGSLYYSSKLDRLNLGPLSSGGREARFGPLRDPQFGYVVLGRALQHWYLITDRNHAGRDPLALDNADSHWLDTLPRGQRHALQKALQQSTRHQDEKRRQALREAVAQAGDAFLQWRRK | C3: =LEN(B3) -> 466 | D3: =AVERAGE(W3,AA3,AE3) -> 0.0029 | E3: 1.024851455 | F3: -0.3022534053 | H3: =AVERAGE(AI3,AM3,AQ3) -> 0.0030 | I3: 0.4906034664 | J3: 0.1801398595 | L3: =AVERAGE(AU3,AY3,BC3) -> 0.0029 | M3: 0.1709355052 | N3: -0.08680947622 | P3: =AVERAGE(BG3,BK3,BO3) -> 0.0013 | Q3: 2.259982396 | R3: -0.8292481105 | T3: -1.129951 | U3: 13768000.00 | V3: =U3/C3 -> 29545.06 | W3: =V3*100/SUM(V:V) -> 0.0033 | X3: -1.080191 | Y3: 12273000 | Z3: =Y3/C3 -> 26336.91 | AA3: =Z3*100/SUM(Z:Z) -> 0.0028 | AB3: -0.9814892 | AC3: 8022200 | AD3: =AC3/C3 -> 17215.02146 | AE3: =AD3*100/SUM(AD:AD) -> 0.0026 | AF3: -0.484129 | AG3: 157570000 | AH3: =AG3/C3 -> 338133.05 | AI3: =AH3*100/SUM(AH:AH) -> 0.0034 | AJ3: -0.4609718 | AK3: 132540000 | AL3: =AK3/C3 -> 284420.60 | AM3: =AL3*100/SUM(AL:AL) -> 0.0031 | AN3: -0.7993507 | AO3: 92519000 | AP3: =AO3/C3 -> 198538.63 | AQ3: =AP3*100/SUM(AP:AP) -> 0.0025 | AR3: -0.6639824 | AS3: 54355000 | AT3: =AS3/C3 -> 116641.63 | AU3: =AT3*100/SUM(AT:AT) -> 0.0026 | AV3: -1.230791 | AW3: 5336100 | AX3: =AW3/C3 -> 11450.86 | AY3: =AX3*100/SUM(AX:AX) -> 0.0031 | AZ3: -0.650526 | BA3: 44746000 | BB3: =BA3/C3 -> 96021.46 | BC3: =BB3*100/SUM(BB:BB) -> 0.0032 | BD3: -1.422344 | BE3: 17875000 | BF3: =BE3/C3 -> 38358.37 | BG3: =BF3*100/SUM(BF:BF) -> 0.0016 | BH3: -2.02306 | BI3: 11262000 | BJ3: =BI3/C3 -> 24167.38 | BK3: =BJ3*100/SUM(BJ:BJ) -> 0.0010 | BL3: -1.327211 | BM3: 15159000 | BN3: =BM3/C3 -> 32530.04 | BO3: =BN3*100/SUM(BN:BN) -> 0.0013 | BP3: -0.4084396 | BQ3: 172530000 | BR3: =BQ3/C3 -> 370236.05 | BS3: =BR3*100/SUM(BR:BR) -> 0.0046 | BT3: -0.7585869 | BU3: 90698000 | BV3: =BU3/C3 -> 194630.90 | BW3: =BV3*100/SUM(BV:BV) -> 0.0035 | BX3: -0.6960583 | BY3: 119250000 | BZ3: =BY3/C3 -> 255901.29 | CA3: =BZ3*100/SUM(BZ:BZ) -> 0.0040 | CB3: -1.186939 | CC3: 169730000 | CD3: =CC3/C3 -> 364227.47 | CE3: =CD3*100/SUM(CD:CD) -> 0.0045 | CF3: -0.6579609 | CG3: 67835000 | CH3: =CG3/C3 -> 145568.67 | CI3: =CH3*100/SUM(CH:CH) -> 0.0043 | CJ3: -0.8617573 | CK3: 48274000 | CL3: =CK3/C3 -> 103592.27 | CM3: =CL3*100/SUM(CL:CL) -> 0.0043 | CO3: 17 | CP3: 17 | CQ3: 17 | CR3: 46.4 | CS3: 46.4 | CT3: 46.4 | CU3: 52.698 | CV3: 0 | CW3: 107.2 | CX3: 1233700000 | CY3: 100 | CZ3: 0 | DA3: 17 | DB3: 17 | DC3: 17 | DD3: 1 | DE3: 6 | DF3: 6 | DG3: 5 | DH3: 13 | DI3: 11 | DJ3: 10 | DK3: 9 | DL3: 10 | DM3: 9 | DN3: 7 | DO3: 4 | DP3: 6 | DQ3: 13 | DR3: 11 | DS3: 14 | DT3: 9 | DU3: 7 | DV3: 7 | DW3: 6 | DX3: 6 | DY3: 5 | DZ3: 13 | EA3: 11 | EB3: 10 | EC3: 9 | ED3: 10 | EE3: 9 | EF3: 7 | EG3: 4 | EH3: 6 | EI3: 13 | EJ3: 11 | EK3: 14 | EL3: 9 | EM3: 7 | EN3: 7 | EO3: 6 | EP3: 6 | EQ3: 5 | ER3: 13 | ES3: 11 | ET3: 10 | EU3: 9 | EV3: 10 | EW3: 9 | EX3: 7 | EY3: 4 | EZ3: 6 | FA3: 13 | FB3: 11 | FC3: 14 | FD3: 9 | FE3: 7 | FF3: 7 | FG3: 466 | FH3: 466 | FI3: 1 | FJ3: 185 | FK3: 17.2 | FL3: 15.9 | FM3: 11.6 | FN3: 38.2 | FO3: 27.9 | FP3: 27.7 | FQ3: 25.5 | FR3: 29 | FS3: 26.2 | FT3: 23.4 | FU3: 9.4 | FV3: 13.5 | FW3: 39.9 | FX3: 29.6 | FY3: 42.9 | FZ3: 25.1 | GA3: 18.7 | GB3: 17.6 | GC3: 3 | GD3: 5 | GE3: 3 | GF3: 8 | GG3: 9 | GH3: 6 | GI3: 8 | GJ3: 4 | GK3: 7 | GL3: 4 | GM3: 0 | GN3: 1 | GO3: 11 | GP3: 6 | GQ3: 9 | GR3: 3 | GS3: 7 | GT3: 6 | GU3: 0.5680596125 | GV3: -0.1401705025 | GW3: 0.7314170115 | GX3: 0.08303324172 | GY3: 0.9264149933 | GZ3: -0.03949072811 | HA3: 0.3630471063 | HB3: -0.3752826767 | HC3: AX24.00001_GTPase | HD3: By MS/MS | HE3: By MS/MS | HF3: By MS/MS | HG3: By MS/MS | HH3: By MS/MS | HI3: By MS/MS | HJ3: By MS/MS | HK3: By MS/MS | HL3: By MS/MS | HM3: By MS/MS | HN3: By matching | HO3: By MS/MS | HP3: By MS/MS | HQ3: By MS/MS | HR3: By MS/MS | HS3: By MS/MS | HT3: By MS/MS | HU3: By MS/MS
A4: ALC24_0002_hypothetical protein | B4: LPYSPLRLLLDFDDQYQRDQRQSPDFLHRRDRQLALQARQRDGATPLPEDWLRTLGADRASGGHDPRLRSWRRARVLFVLGGAVLGVLTMLGLLYYDGSQRINVTLLLGFAALQLALAVLTTVQAGIGWRPWGRLLDQAGATPSALHDLQPPLAARVAHSGGLAFAIAALLTLLVQVVVRDLAFGWSTTLQTSAPGYHELTHALAWPWRQWLPVAVPSLELVEQSRFFRISDQTPADPARLGAWWAFLAMVWLVYVVLPRLVFLALGRAQLRWRAKRLLARHPGMAALRQRFEQPWVDTGASNATPAPALDQGKAADGVLPESGTVIHWAGAGLADDALFGALVGGERAPLRLEAGGSASLDHDRAVLEQAGQRREPVLVLTQGWEPPTGELADFLDDARQQWGEDTVIALVPLTTDPGGTLSDTTLAQWRRFVDRRQHPHLRLCRVPEVPS | C4: 452 | D4: 0.0000 | E4: 1.847065084 | F4: -1.36867555 | H4: 0.0006 | I4: 0.001245033319 | J4: 0.0008862813314 | L4: 0.0002 | M4: 0.5287248449 | N4: -0.4419662952 | P4: 0.0001 | Q4: 1.327307983 | R4: -1.040283203 | T4: -3.352097 | U4: 0.00 | V4: 0.00 | W4: 0.0000 | X4: -4.841781 | Y4: 0 | Z4: 0.00 | AA4: 0.0000 | AB4: -5.078859 | AC4: 240010 | AD4: 530.9955752 | AE4: 0.0001 | AF4: -2.882885 | AG4: 38394000 | AH4: 84942.48 | AI4: 0.0009 | AJ4: -3.203396 | AK4: 13284000 | AL4: 29389.38 | AM4: 0.0003 | AN4: -3.07777 | AO4: 27003000 | AP4: 59741.15 | AQ4: 0.0008 | AR4: -3.45544 | AS4: 663940 | AT4: 1468.89 | AU4: 0.0000 | AV4: -4.354743 | AW4: 0 | AX4: 0.00 | AY4: 0.0000 | AZ4: -2.682426 | BA4: 8643300 | BB4: 19122.35 | BC4: 0.0006 | BD4: -4.300174 | BE4: 306400 | BF4: 677.88 | BG4: 0.0000 | BH4: -3.041945 | BI4: 360180 | BJ4: 796.86 | BK4: 0.0000 | BL4: -4.94544 | BM4: 1954800 | BN4: 4324.78 | BO4: 0.0002 | BP4: -3.535892 | BQ4: 5016900 | BR4: 11099.34 | BS4: 0.0001 | BT4: -3.019316 | BU4: 6239200 | BV4: 13803.54 | BW4: 0.0002 | BX4: -2.499691 | BY4: 8010500 | BZ4: 17722.35 | CA4: 0.0003 | CB4: -3.255857 | CC4: 51329000 | CD4: 113559.73 | CE4: 0.0014 | CF4: -2.729942 | CG4: 29808000 | CH4: 65946.90 | CI4: 0.0019 | CJ4: -3.292721 | CK4: 15854000 | CL4: 35075.22 | CM4: 0.0014 | CO4: 6 | CP4: 6 | CQ4: 6 | CR4: 17 | CS4: 17 | CT4: 17 | CU4: 49.857 | CV4: 0 | CW4: 12.257 | CX4: 207110000 | CY4: 14 | CZ4: 1 | DA4: 6 | DB4: 6 | DC4: 6 | DD4: 1 | DE4: 0 | DF4: 0 | DG4: 1 | DH4: 5 | DI4: 4 | DJ4: 5 | DK4: 1 | DL4: 0 | DM4: 2 | DN4: 1 | DO4: 1 | DP4: 2 | DQ4: 3 | DR4: 4 | DS4: 4 | DT4: 3 | DU4: 4 | DV4: 3 | DW4: 0 | DX4: 0 | DY4: 1 | DZ4: 5 | EA4: 4 | EB4: 5 | EC4: 1 | ED4: 0 | EE4: 2 | EF4: 1 | EG4: 1 | EH4: 2 | EI4: 3 | EJ4: 4 | EK4: 4 | EL4: 3 | EM4: 4 | EN4: 3 | EO4: 0 | EP4: 0 | EQ4: 1 | ER4: 5 | ES4: 4 | ET4: 5 | EU4: 1 | EV4: 0 | EW4: 2 | EX4: 1 | EY4: 1 | EZ4: 2 | FA4: 3 | FB4: 4 | FC4: 4 | FD4: 3 | FE4: 4 | FF4: 3 | FG4: 452 | FH4: 452 | FI4: 1 | FJ4: 44 | FK4: 0 | FL4: 0 | FM4: 1.8 | FN4: 14.2 | FO4: 9.3 | FP4: 14.2 | FQ4: 2.2 | FR4: 0 | FS4: 7.1 | FT4: 2.2 | FU4: 2.2 | FV4: 6 | FW4: 7.5 | FX4: 10.4 | FY4: 10.4 | FZ4: 8.8 | GA4: 11.7 | GB4: 8.8 | GC4: 0 | GD4: 0 | GE4: 0 | GF4: 1 | GG4: 0 | GH4: 1 | GI4: 0 | GJ4: 0 | GK4: 0 | GL4: 0 | GM4: 0 | GN4: 0 | GO4: 0 | GP4: 1 | GQ4: 3 | GR4: 1 | GS4: 3 | GT4: 4 | GU4: 0.2251203931 | GV4: -0.5650501263 | GW4: 0.9986604507 | GX4: 0.0003959469423 | GY4: 0.6771368103 | GZ4: -0.1848171491 | HA4: 0.3295272727 | HB4: -0.4276761512 | HC4: AX24.00002_hypothetical | HF4: By matching | HG4: By MS/MS | HH4: By matching | HI4: By MS/MS | HJ4: By matching | HL4: By matching | HM4: By matching | HN4: By matching | HO4: By matching | HP4: By matching | HQ4: By MS/MS | HR4: By MS/MS | HS4: By MS/MS | HT4: By MS/MS | HU4: By MS/MS
A5: ALC24_0010_putative GTP-binding protein EngB | B5: MPFIDARDRTAMPLHPAQRLLHQAAFLKSAQIVDQCPPDEGLEVAFAGRSNAGKSSAINRLTGQRSLARTSKTPGRTQLLNFFTLDEQRRLVDLPGYGYAKVDKAVRMQWQEHLDDYLARRECLAGLVLLMDIRHPLREFDQLMLEWSARSGMPLLILLTKADKLKFGAAKSALMQVTKTLKDHRAPLRVQLFSATSGQGCEQAWDQLAEWLRIEDDASSGI | C5: 222 | D5: 0.0028 | E5: 1.185996537 | F5: -1.643208186 | H5: 0.0063 | I5: 0.7319052649 | J5: 0.8630873362 | L5: 0.0044 | M5: 0.07114395978 | N5: -0.1160869598 | P5: 0.0064 | Q5: 0.435634488 | R5: 0.5680179596 | T5: -2.311407 | U5: 6396000.00 | V5: 28810.81 | W5: 0.0032 | X5: -4.553808 | Y5: 4000400 | Z5: 18019.82 | AA5: 0.0019 | AB5: -2.434034 | AC5: 5001600 | AD5: 22529.72973 | AE5: 0.0034 | AF5: -0.4207878 | AG5: 151540000 | AH5: 682612.61 | AI5: 0.0069 | AJ5: -0.8400364 | AK5: 108690000 | AL5: 489594.59 | AM5: 0.0054 | AN5: -0.5195389 | AO5: 115090000 | AP5: 518423.42 | AQ5: 0.0065 | AR5: -1.353689 | AS5: 55981000 | AT5: 252166.67 | AU5: 0.0055 | AV5: -1.771067 | AW5: 3472400 | AX5: 15641.44 | AY5: 0.0042 | AZ5: -1.59313 | BA5: 24101000 | BB5: 108563.06 | BC5: 0.0036 | BD5: -0.6583939 | BE5: 37024000 | BF5: 166774.77 | BG5: 0.0071 | BH5: -0.8751335 | BI5: 34629000 | BJ5: 155986.49 | BK5: 0.0063 | BL5: -1.132044 | BM5: 33417000 | BN5: 150527.03 | BO5: 0.0059 | BP5: -0.9485359 | BQ5: 124430000 | BR5: 560495.50 | BS5: 0.0070 | BT5: -0.5555439 | BU5: 98172000 | BV5: 442216.22 | BW5: 0.0080 | BX5: -0.6501255 | BY5: 99427000 | BZ5: 447869.37 | CA5: 0.0070 | CB5: -2.711195 | CC5: 25733000 | CD5: 115914.41 | CE5: 0.0014 | CF5: -1.235676 | CG5: 47497000 | CH5: 213950.45 | CI5: 0.0063 | CJ5: -2.638174 | CK5: 14710000 | CL5: 66261.26 | CM5: 0.0027 | CO5: 9 | CP5: 9 | CQ5: 9 | CR5: 52.3 | CS5: 52.3 | CT5: 52.3 | CU5: 24.956 | CV5: 0 | CW5: 23.659 | CX5: 989310000 | CY5: 71 | CZ5: 3 | DA5: 9 | DB5: 9 | DC5: 9 | DD5: 1 | DE5: 3 | DF5: 1 | DG5: 2 | DH5: 6 | DI5: 5 | DJ5: 5 | DK5: 6 | DL5: 4 | DM5: 4 | DN5: 7 | DO5: 6 | DP5: 6 | DQ5: 6 | DR5: 7 | DS5: 6 | DT5: 4 | DU5: 5 | DV5: 3 | DW5: 3 | DX5: 1 | DY5: 2 | DZ5: 6 | EA5: 5 | EB5: 5 | EC5: 6 | ED5: 4 | EE5: 4 | EF5: 7 | EG5: 6 | EH5: 6 | EI5: 6 | EJ5: 7 | EK5: 6 | EL5: 4 | EM5: 5 | EN5: 3 | EO5: 3 | EP5: 1 | EQ5: 2 | ER5: 6 | ES5: 5 | ET5: 5 | EU5: 6 | EV5: 4 | EW5: 4 | EX5: 7 | EY5: 6 | EZ5: 6 | FA5: 6 | FB5: 7 | FC5: 6 | FD5: 4 | FE5: 5 | FF5: 3 | FG5: 222 | FH5: 222 | FI5: 1 | FJ5: 109 | FK5: 18.9 | FL5: 6.3 | FM5: 11.3 | FN5: 40.5 | FO5: 29.7 | FP5: 29.7 | FQ5: 34.2 | FR5: 20.3 | FS5: 20.3 | FT5: 45 | FU5: 40.5 | FV5: 34.2 | FW5: 36.9 | FX5: 36.9 | FY5: 36.9 | FZ5: 20.7 | GA5: 30.2 | GB5: 16.2 | GC5: 2 | GD5: 0 | GE5: 1 | GF5: 9 | GG5: 4 | GH5: 10 | GI5: 1 | GJ5: 1 | GK5: 2 | GL5: 3 | GM5: 3 | GN5: 2 | GO5: 7 | GP5: 9 | GQ5: 6 | GR5: 6 | GS5: 3 | GT5: 2 | GU5: 0.2076694215 | GV5: -0.597083048 | GW5: 0.3125787546 | GX5: 0.3335347972 | GY5: 0.9128562358 | GZ5: -0.04486989204 | HA5: 0.5377352716 | HB5: 0.2194228128 | HC5: AX24.00010_putative | HD5: By MS/MS | HE5: By matching | HF5: By MS/MS | HG5: By MS/MS | HH5: By MS/MS | HI5: By MS/MS | HJ5: By MS/MS | HK5: By MS/MS | HL5: By MS/MS | HM5: By MS/MS | HN5: By MS/MS | HO5: By MS/MS | HP5: By MS/MS | HQ5: By MS/MS | HR5: By MS/MS | HS5: By MS/MS | HT5: By MS/MS | HU5: By MS/MS
A6: ALC24_0012_Cytochrome c4 precursor | B6: MKCLKLFVLLAATAVSHAMAAGDVDAGKEKSQPCAACHGPDGNSPSGEWPSLAGQGEKYLVEQIQAFKAGDRQNALMAPMVANLSEQDMADLAAYFSAQTIKVGQADPELVEEGERIYRGGVIADGIPACSGCHGPAGEGVDAAGFPSLAGQHAQYLEIQLKAFRAAGRGDLGDNVVKRTNDPQEMMRTVAAKMSDAEIKAVASFLNGLSTGE | C6: 213 | D6: 0.0163 | E6: 1.010407764 | F6: -0.6397686005 | H6: 0.0292 | I6: 0.94751706 | J6: 0.5829060872 | L6: 0.0178 | M6: 0.3681094333 | N6: -0.2778676351 | P6: 0.0113 | Q6: 0.5609276414 | R6: -0.3830897013 | T6: 0.1960945 | U6: 34830000.00 | V6: 163521.13 | W6: 0.0183 | X6: 0.2273216 | Y6: 40787000 | Z6: 191488.26 | AA6: 0.0206 | AB6: -0.2239819 | AC6: 14009000 | AD6: 65769.95305 | AE6: 0.0099 | AF6: 1.338013 | AG6: 657370000 | AH6: 3086244.13 | AI6: 0.0313 | AJ6: 1.300579 | AK6: 578400000 | AL6: 2715492.96 | AM6: 0.0301 | AN6: 1.228867 | AO6: 441410000 | AP6: 2072347.42 | AQ6: 0.0261 | AR6: 0.6491604 | AS6: 173140000 | AT6: 812863.85 | AU6: 0.0179 | AV6: 0.2313309 | AW6: 15482000 | AX6: 72685.45 | AY6: 0.0194 | AZ6: 0.4046459 | BA6: 104120000 | BB6: 488826.29 | BC6: 0.0161 | BD6: 0.3061428 | BE6: 59944000 | BF6: 281427.23 | BG6: 0.0119 | BH6: 0.2280769 | BI6: 52340000 | BJ6: 245727.70 | BK6: 0.0099 | BL6: 0.4352512 | BM6: 65495000 | BN6: 307488.26 | BO6: 0.0120 | BP6: 1.006186 | BQ6: 415590000 | BR6: 1951126.76 | BS6: 0.0244 | BT6: 1.107439 | BU6: 319960000 | BV6: 1502159.62 | BW6: 0.0271 | BX6: 1.103767 | BY6: 356160000 | BZ6: 1672112.68 | CA6: 0.0262 | CB6: 0.8089848 | CC6: 388600000 | CD6: 1824413.15 | CE6: 0.0225 | CF6: 0.4935665 | CG6: 105390000 | CH6: 494788.73 | CI6: 0.0145 | CJ6: -0.2824631 | CK6: 64265000 | CL6: 301713.62 | CM6: 0.0124 | CO6: 10 | CP6: 10 | CQ6: 10 | CR6: 39.4 | CS6: 39.4 | CT6: 39.4 | CU6: 22.153 | CV6: 0 | CW6: 102.68 | CX6: 3887300000 | CY6: 163 | CZ6: 5 | DA6: 10 | DB6: 10 | DC6: 10 | DD6: 1 | DE6: 6 | DF6: 7 | DG6: 5 | DH6: 9 | DI6: 9 | DJ6: 9 | DK6: 9 | DL6: 8 | DM6: 9 | DN6: 9 | DO6: 8 | DP6: 9 | DQ6: 9 | DR6: 9 | DS6: 10 | DT6: 8 | DU6: 7 | DV6: 6 | DW6: 6 | DX6: 7 | DY6: 5 | DZ6: 9 | EA6: 9 | EB6: 9 | EC6: 9 | ED6: 8 | EE6: 9 | EF6: 9 | EG6: 8 | EH6: 9 | EI6: 9 | EJ6: 9 | EK6: 10 | EL6: 8 | EM6: 7 | EN6: 6 | EO6: 6 | EP6: 7 | EQ6: 5 | ER6: 9 | ES6: 9 | ET6: 9 | EU6: 9 | EV6: 8 | EW6: 9 | EX6: 9 | EY6: 8 | EZ6: 9 | FA6: 9 | FB6: 9 | FC6: 10 | FD6: 8 | FE6: 7 | FF6: 6 | FG6: 213 | FH6: 213 | FI6: 1 | FJ6: 217 | FK6: 22.1 | FL6: 38 | FM6: 15.5 | FN6: 39.4 | FO6: 39.4 | FP6: 39.4 | FQ6: 39.4 | FR6: 39.4 | FS6: 39.4 | FT6: 39.4 | FU6: 38 | FV6: 38 | FW6: 39.4 | FX6: 38 | FY6: 39.4 | FZ6: 38 | GA6: 22.1 | GB6: 22.1 | GC6: 5 | GD6: 7 | GE6: 3 | GF6: 10 | GG6: 13 | GH6: 12 | GI6: 10 | GJ6: 8 | GK6: 10 | GL6: 8 | GM6: 10 | GN6: 9 | GO6: 14 | GP6: 9 | GQ6: 12 | GR6: 9 | GS6: 8 | GT6: 6 | GU6: 0.363888651 | GV6: -0.2740138076 | GW6: 0.4066958982 | GX6: 0.2510739808 | GY6: 0.7661758499 | GZ6: -0.1192243411 | HA6: 0.6254754308 | HB6: -0.164883661 | HC6: AX24.00012_Cytochrome | HD6: By MS/MS | HE6: By MS/MS | HF6: By MS/MS | HG6: By MS/MS | HH6: By MS/MS | HI6: By MS/MS | HJ6: By MS/MS | HK6: By MS/MS | HL6: By MS/MS | HM6: By MS/MS | HN6: By MS/MS | HO6: By MS/MS | HP6: By MS/MS | HQ6: By MS/MS | HR6: By MS/MS | HS6: By MS/MS | HT6: By MS/MS | HU6: By MS/MS
A7: ALC24_0013_Thiol:disulfide interchange protein DsbA precursor | B7: MLRMVSALLMSLGLMMSATVMAQEGQPQYKEGVHYRVLDNPGTTSVPSGKVEVREFFSYMCPHCYSLEPTVDSWLKNKPEAAAYVRTPVLFMQHAEPLARAYFIEESQGLTGEIHRPLFDAIHMHRERLFDADALAGFFEKYGVERDKFNSLYGSFAVSTKVREADALTREYQIRGVPSLVVAGKYAVMRDNLKNNAEMFDVVDFLIKKESEK | C7: 213 | D7: 0.0923 | E7: 1.504107746 | F7: -0.8107611338 | H7: 0.1239 | I7: 0.7359586806 | J7: 0.4309883118 | L7: 0.0740 | M7: 1.135505539 | N7: -0.6041520437 | P7: 0.1020 | Q7: 0.0612927573 | R7: 0.04875564575 | T7: 2.251431 | U7: 175890000.00 | V7: 825774.65 | W7: 0.0925 | X7: 2.37252 | Y7: 203780000 | Z7: 956713.62 | AA7: 0.1027 | AB7: 1.806181 | AC7: 115590000 | AD7: 542676.0563 | AE7: 0.0816 | AF7: 3.331705 | AG7: 2518700000 | AH7: 11824882.63 | AI7: 0.1201 | AJ7: 3.626118 | AK7: 2918000000 | AL7: 13699530.52 | AM7: 0.1517 | AN7: 3.197557 | AO7: 1694100000 | AP7: 7953521.13 | AQ7: 0.1000 | AR7: 2.451008 | AS7: 842680000 | AT7: 3956244.13 | AU7: 0.0869 | AV7: 2.436752 | AW7: 61641000 | AX7: 289394.37 | AY7: 0.0772 | AZ7: 2.162199 | BA7: 373700000 | BB7: 1754460.09 | BC7: 0.0578 | BD7: 3.11762 | BE7: 534570000 | BF7: 2509718.31 | BG7: 0.1062 | BH7: 2.884377 | BI7: 528770000 | BJ7: 2482488.26 | BK7: 0.1003 | BL7: 3.006685 | BM7: 544960000 | BN7: 2558497.65 | BO7: 0.0997 | BP7: 3.097908 | BQ7: 1625400000 | BR7: 7630985.92 | BS7: 0.0953 | BT7: 3.458784 | BU7: 1396500000 | BV7: 6556338.03 | BW7: 0.1184 | BX7: 3.200415 | BY7: 1373300000 | BZ7: 6447417.84 | CA7: 0.1010 | CB7: 3.227821 | CC7: 3051700000 | CD7: 14327230.05 | CE7: 0.1766 | CF7: 2.422253 | CG7: 754140000 | CH7: 3540563.38 | CI7: 0.1035 | CJ7: 2.31765 | CK7: 538570000 | CL7: 2528497.65 | CM7: 0.1038 | CO7: 19 | CP7: 19 | CQ7: 19 | CR7: 81.2 | CS7: 81.2 | CT7: 81.2 | CU7: 24.205 | CV7: 0 | CW7: 192.34 | CX7: 19252000000 | CY7: 460 | CZ7: 6 | DA7: 19 | DB7: 19 | DC7: 19 | DD7: 1 | DE7: 15 | DF7: 14 | DG7: 15 | DH7: 17 | DI7: 18 | DJ7: 17 | DK7: 18 | DL7: 17 | DM7: 16 | DN7: 17 | DO7: 17 | DP7: 17 | DQ7: 16 | DR7: 16 | DS7: 17 | DT7: 15 | DU7: 16 | DV7: 14 | DW7: 15 | DX7: 14 | DY7: 15 | DZ7: 17 | EA7: 18 | EB7: 17 | EC7: 18 | ED7: 17 | EE7: 16 | EF7: 17 | EG7: 17 | EH7: 17 | EI7: 16 | EJ7: 16 | EK7: 17 | EL7: 15 | EM7: 16 | EN7: 14 | EO7: 15 | EP7: 14 | EQ7: 15 | ER7: 17 | ES7: 18 | ET7: 17 | EU7: 18 | EV7: 17 | EW7: 16 | EX7: 17 | EY7: 17 | EZ7: 17 | FA7: 16 | FB7: 16 | FC7: 17 | FD7: 15 | FE7: 16 | FF7: 14 | FG7: 213 | FH7: 213 | FI7: 1 | FJ7: 609 | FK7: 72.3 | FL7: 70 | FM7: 72.3 | FN7: 74.6 | FO7: 80.3 | FP7: 74.6 | FQ7: 78.9 | FR7: 78.9 | FS7: 66.7 | FT7: 78.9 | FU7: 78.9 | FV7: 78.9 | FW7: 74.6 | FX7: 72.3 | FY7: 77.9 | FZ7: 74.6 | GA7: 74.6 | GB7: 70 | GC7: 24 | GD7: 21 | GE7: 16 | GF7: 29 | GG7: 33 | GH7: 31 | GI7: 28 | GJ7: 17 | GK7: 19 | GL7: 34 | GM7: 25 | GN7: 25 | GO7: 28 | GP7: 28 | GQ7: 27 | GR7: 33 | GS7: 19 | GT7: 23 | GU7: 0.3184750499 | GV7: -0.3521996862 | GW7: 0.5077097345 | GX7: 0.1880269522 | GY7: 0.5840801688 | GZ7: -0.2641859955 | HA7: 0.9370115132 | HB7: 0.02135019225 | HC7: AX24.00013_Thiol:disulfide | HD7: By MS/MS | HE7: By MS/MS | HF7: By MS/MS | HG7: By MS/MS | HH7: By MS/MS | HI7: By MS/MS | HJ7: By MS/MS | HK7: By MS/MS | HL7: By MS/MS | HM7: By MS/MS | HN7: By MS/MS | HO7: By MS/MS | HP7: By MS/MS | HQ7: By MS/MS | HR7: By MS/MS | HS7: By MS/MS | HT7: By MS/MS | HU7: By MS/MS
A8: ALC24_0014_Endonuclease/Exonuclease/phosphatase family protein | B8: MLLERARNAYQNWKIRPSGFSLAREGHRRTRRVREVSVPNDTLKILSFNIQAGIGTSRFRDYVTGSWKHLVAHPRSVEIIEQIADVVRHFDVVGLQEVDGGSLRSRNLNQLVHLASLADFPFWHQQLNRNLGRLGQFSNGLLSRMPPYAVEDHILPGLPGRGAIVIKFGHPVEPLVVAVCHLALGEKIRNTQLSYLAGLLQPYRYSLIMGDFNCRPEHLIASPLTDLGLELVEGDLQTYPSWAPDRHIDHILATPELQVRHSRVLEDCLLSDHLPLATEIRIPDAVRAASLEHRLPLIE | C8: 299 | D8: 0.0051 | E8: 0.2060267458 | F8: 0.6132605871 | H8: 0.0033 | I8: 0.09600629602 | J8: 0.3061329524 | L8: 0.0052 | M8: 0.3032109202 | N8: 0.8378928502 | P8: 0.0031 | Q8: 0.09972399057 | R8: 0.3158864975 | T8: -0.2947445 | U8: 22455000.00 | V8: 75100.33 | W8: 0.0084 | X8: -1.329407 | Y8: 12434000 | Z8: 41585.28 | AA8: 0.0045 | AB8: -1.355623 | AC8: 5000100 | AD8: 16722.74247 | AE8: 0.0025 | AF8: -0.970108 | AG8: 93563000 | AH8: 312919.73 | AI8: 0.0032 | AJ8: -1.524017 | AK8: 89758000 | AL8: 300193.98 | AM8: 0.0033 | AN8: -1.407032 | AO8: 83385000 | AP8: 278879.60 | AQ8: 0.0035 | AR8: -0.5359974 | AS8: 80243000 | AT8: 268371.24 | AU8: 0.0059 | AV8: -0.9812489 | AW8: 4490000 | AX8: 15016.72 | AY8: 0.0040 | AZ8: -0.7886314 | BA8: 51727000 | BB8: 173000.00 | BC8: 0.0057 | BD8: -1.21899 | BE8: 19971000 | BF8: 66792.64 | BG8: 0.0028 | BH8: -1.201815 | BI8: 25597000 | BJ8: 85608.70 | BK8: 0.0035 | BL8: -1.451092 | BM8: 23047000 | BN8: 77080.27 | BO8: 0.0030 | BP8: 0.1458721 | BQ8: 222570000 | BR8: 744381.27 | BS8: 0.0093 | BT8: -0.3085938 | BU8: 93518000 | BV8: 312769.23 | BW8: 0.0056 | BX8: -0.02021027 | BY8: 145460000 | BZ8: 486488.29 | CA8: 0.0076 | CB8: -2.94524 | CC8: 142820000 | CD8: 477658.86 | CE8: 0.0059 | CF8: -4.772085 | CG8: 27349000 | CH8: 91468.23 | CI8: 0.0027 | CJ8: -1.738855 | CK8: 32322000 | CL8: 108100.33 | CM8: 0.0044 | CO8: 16 | CP8: 16 | CQ8: 16 | CR8: 68.2 | CS8: 68.2 | CT8: 68.2 | CU8: 33.773 | CV8: 0 | CW8: 92.47 | CX8: 1175700000 | CY8: 74 | CZ8: 7 | DA8: 16 | DB8: 16 | DC8: 16 | DD8: 1 | DE8: 4 | DF8: 3 | DG8: 3 | DH8: 9 | DI8: 9 | DJ8: 11 | DK8: 11 | DL8: 8 | DM8: 12 | DN8: 8 | DO8: 9 | DP8: 8 | DQ8: 13 | DR8: 12 | DS8: 11 | DT8: 7 | DU8: 2 | DV8: 3 | DW8: 4 | DX8: 3 | DY8: 3 | DZ8: 9 | EA8: 9 | EB8: 11 | EC8: 11 | ED8: 8 | EE8: 12 | EF8: 8 | EG8: 9 | EH8: 8 | EI8: 13 | EJ8: 12 | EK8: 11 | EL8: 7 | EM8: 2 | EN8: 3 | EO8: 4 | EP8: 3 | EQ8: 3 | ER8: 9 | ES8: 9 | ET8: 11 | EU8: 11 | EV8: 8 | EW8: 12 | EX8: 8 | EY8: 9 | EZ8: 8 | FA8: 13 | FB8: 12 | FC8: 11 | FD8: 7 | FE8: 2 | FF8: 3 | FG8: 299 | FH8: 299 | FI8: 1 | FJ8: 181 | FK8: 20.4 | FL8: 16.1 | FM8: 12.4 | FN8: 45.2 | FO8: 40.5 | FP8: 47.5 | FQ8: 52.8 | FR8: 39.5 | FS8: 52.8 | FT8: 30.1 | FU8: 40.1 | FV8: 34.8 | FW8: 58.9 | FX8: 53.8 | FY8: 50.5 | FZ8: 40.1 | GA8: 9.7 | GB8: 19.1 | GC8: 3 | GD8: 3 | GE8: 2 | GF8: 4 | GG8: 3 | GH8: 5 | GI8: 7 | GJ8: 0 | GK8: 4 | GL8: 2 | GM8: 2 | GN8: 1 | GO8: 11 | GP8: 7 | GQ8: 11 | GR8: 6 | GS8: 2 | GT8: 1 | GU8: 0.473308078 | GV8: 0.1922280946 | GW8: 0.694686821 | GX8: 0.09647151524 | GY8: 0.5846420275 | GZ8: 0.2642241947 | HA8: 0.7376273292 | HB8: 0.0996712753 | HC8: AX24.00014_Endonuclease/Exonuclease/phosphatase | HD8: By MS/MS | HE8: By MS/MS | HF8: By MS/MS | HG8: By MS/MS | HH8: By MS/MS | HI8: By MS/MS | HJ8: By MS/MS | HK8: By matching | HL8: By MS/MS | HM8: By MS/MS | HN8: By MS/MS | HO8: By MS/MS | HP8: By MS/MS | HQ8: By MS/MS | HR8: By MS/MS | HS8: By MS/MS | HT8: By MS/MS | HU8: By MS/MS
A9: ALC24_0015_Putative electron transport protein YccM | B9: MSLFSRWKGGWLTLLCLVGTWLCSPALADLDRQRVEALFPGADWSEPEGDFQVRTLSRNGGLLGYLFYSQDVVNIPAYSGKPINVQIVMDPESVILDAHVVEHHEPILLVGIPEQKLHDFSAHYAGVGAGQRVVVGRSRDAGTVAIDAVSGATVTVMVVNETIMGAARKVAVSLGLIEAPSARRQPARIRAGKATVAGWEQLAGKGALRRLYLTRGQVDEAFRGTEAEGMARTAPDQRDDVFIELYTGLLNPPEVGVSLLGEPGYEALMGELGEGEYAIAVLADGRYSFKGSGYVRGGIFDRVQLRQNGAIISFRDLDYQRLSDVYAAGMPDFPEMAIFIIRPEHRFDPGSPWTLELLVRRQTGPVSGIFTSFELPYSTPEAYLERPEPLAAPEEAPVWVRIWYQKQFQVAVIAAALGLLLVILFLQDRLARHPRQLHWLRRAYLLFTVVFIGWYALGQLSVVNVLTFAHAVMEDFHWGLFLSDPVIFVLWAFTAASVLLWGRGVFCGWLCPFGALQELLNEAARKLRVPQYELPFALHERLWAVKYLILLALFGLSLESMATAERFAEIEPFKTAFTLHFDRQWWFVLYAVALLVMNLFTRKVYCRYLCPLGAALAVPSKLRLFDWLKRRKECGNPCQLCAKECEIQAIHPDGRINVNECHYCLDCQMTYHNEEKCPPLILKKKRAGGRRRSIPEVERIPALQLEEG | C9: 708 | D9: 0.0000 | E9: -4.34E-08 | F9: 0 | H9: 0.0015 | I9: 4.92545091 | J9: 3.480364561 | K9: + | L9: 0.0000 | M9: -4.34E-08 | N9: 0 | P9: 0.0018 | Q9: 5.044327607 | R9: 3.734740655 | S9: + | T9: -3.791737 | U9: 0.00 | V9: 0.00 | W9: 0.0000 | X9: -4.49943 | Y9: 0 | Z9: 0.00 | AA9: 0.0000 | AB9: -4.753569 | AC9: 0 | AD9: 0 | AE9: 0.0000 | AF9: -1.083105 | AG9: 103870000 | AH9: 146709.04 | AI9: 0.0015 | AJ9: -1.254028 | AK9: 99188000 | AL9: 140096.05 | AM9: 0.0016 | AN9: -0.9252815 | AO9: 87540000 | AP9: 123644.07 | AQ9: 0.0016 | AR9: -3.79102 | AS9: 0 | AT9: 0.00 | AU9: 0.0000 | AV9: -4.448624 | AW9: 0 | AX9: 0.00 | AY9: 0.0000 | AZ9: -4.461007 | BA9: 0 | BB9: 0.00 | BC9: 0.0000 | BD9: -0.5320301 | BE9: 36054000 | BF9: 50923.73 | BG9: 0.0022 | BH9: -1.030313 | BI9: 24275000 | BJ9: 34286.72 | BK9: 0.0014 | BL9: -0.9369431 | BM9: 36442000 | BN9: 51471.75 | BO9: 0.0020 | BP9: -4.966834 | BQ9: 14881000 | BR9: 21018.36 | BS9: 0.0003 | BT9: -4.275378 | BU9: 0 | BV9: 0.00 | BW9: 0.0000 | BX9: -5.292357 | BY9: 0 | BZ9: 0.00 | CA9: 0.0000 | CB9: -4.487827 | CC9: 0 | CD9: 0.00 | CE9: 0.0000 | CF9: -3.800244 | CG9: 0 | CH9: 0.00 | CI9: 0.0000 | CJ9: -4.584377 | CK9: 0 | CL9: 0.00 | CM9: 0.0000 | CN9: PESu_Succ;PHBV_Succ | CO9: 11 | CP9: 11 | CQ9: 11 | CR9: 20.5 | CS9: 20.5 | CT9: 20.5 | CU9: 79.406 | CV9: 0 | CW9: 23.075 | CX9: 402250000 | CY9: 36 | CZ9: 8 | DA9: 11 | DB9: 11 | DC9: 11 | DD9: 1 | DE9: 0 | DF9: 0 | DG9: 0 | DH9: 8 | DI9: 8 | DJ9: 7 | DK9: 0 | DL9: 0 | DM9: 0 | DN9: 7 | DO9: 6 | DP9: 7 | DQ9: 2 | DR9: 0 | DS9: 0 | DT9: 0 | DU9: 0 | DV9: 0 | DW9: 0 | DX9: 0 | DY9: 0 | DZ9: 8 | EA9: 8 | EB9: 7 | EC9: 0 | ED9: 0 | EE9: 0 | EF9: 7 | EG9: 6 | EH9: 7 | EI9: 2 | EJ9: 0 | EK9: 0 | EL9: 0 | EM9: 0 | EN9: 0 | EO9: 0 | EP9: 0 | EQ9: 0 | ER9: 8 | ES9: 8 | ET9: 7 | EU9: 0 | EV9: 0 | EW9: 0 | EX9: 7 | EY9: 6 | EZ9: 7 | FA9: 2 | FB9: 0 | FC9: 0 | FD9: 0 | FE9: 0 | FF9: 0 | FG9: 708 | FH9: 708 | FI9: 1 | FJ9: 59 | FK9: 0 | FL9: 0 | FM9: 0 | FN9: 11.9 | FO9: 11.9 | FP9: 13.1 | FQ9: 0 | FR9: 0 | FS9: 0 | FT9: 16.8 | FU9: 13.3 | FV9: 16.8 | FW9: 3.1 | FX9: 0 | FY9: 0 | FZ9: 0 | GA9: 0 | GB9: 0 | GC9: 0 | GD9: 0 | GE9: 0 | GF9: 6 | GG9: 6 | GH9: 7 | GI9: 0 | GJ9: 0 | GK9: 0 | GL9: 6 | GM9: 5 | GN9: 6 | GO9: 0 | GP9: 0 | GQ9: 0 | GR9: 0 | GS9: 0 | GT9: 0 | GU9: 1 | GV9: 0 | GW9: 0.001754385965 | GX9: 1.501170611 | GY9: 1 | GZ9: 0 | HA9: 0 | HB9: 1.604294185 | HC9: AX24.00015_Putative | HG9: By MS/MS | HH9: By MS/MS | HI9: By MS/MS | HM9: By MS/MS | HN9: By MS/MS | HO9: By MS/MS | HP9: By matching
A10: ALC24_0016_Nitrous-oxide reductase precursor | B10: MTHDQFNDDNGSAPGGGLTRRGFLGAGTLGGAALAGAATLGGVVMTRETWAASVKEAMARTHVGPGELDEYYGFWSGGHSGEVRVLGVPSMRELLRIPVFNVDSATGWGLTNESKQVLGDSARYLNGDSHHPHISMTDGRYDGKYLFINDKANSRVARVRLDIMKCDRILTVPNVQAIHGLRLQKVPHTKYVFANAEFIIPHPNDGSSFDIQDDGSYTMFNAIDAERMEMAFQVIVDGNLDNTDADYTGKYAASTCYNSEKATDLGGMMRNERDWVVVFNIPRIEAAIKAGKFTTLGDSKVPVVDGRHGSDLTRYIPVPKNPHGLNTSPDGRYFIANGKLSPTCTIIEIARLDQLFGGKLKEPREVVVGEPELGLGPLHTTFDGRGNAYTTLFIDSQVAKWNIEEAIRAYKGEKTNYIKQKLDVHYQPGHNHASLTESRDADGKWLVVLSKFSKDRFLPTGPLHPENDQLIDISGEEMKLVHDGPTFAEPHDCILVRRDQIKTKKIWERNDPFFATTVARAKKDGITLEQDNKVIREGNKVRVYMTSIAPAYGLTEFKVKQGDEVTVTITNLDRIEDVSHGFVMTNHGVSMEISPQQTSSITFVADKPGVHWYYCSWFCHALHMEMVGRMLVEKA | C10: 635 | D10: 0.0110 | E10: 0.7582144676 | F10: 1.794432958 | H10: 0.8139 | I10: 4.045648519 | J10: 9.494546254 | K10: + | L10: 0.0025 | M10: 0.2044422407 | N10: 0.6130282084 | P10: 0.5863 | Q10: 3.815487995 | R10: 8.732711792 | S10: + | T10: 0.1910114 | U10: 66341000.00 | V10: 104474.02 | W10: 0.0117 | X10: -0.1077709 | Y10: 41259000 | Z10: 64974.80 | AA10: 0.0070 | AB10: 0.3406105 | AC10: 60969000 | AD10: 96014.17323 | AE10: 0.0144 | AF10: 7.829597 | AG10: 49801000000 | AH10: 78426771.65 | AI10: 0.7962 | AJ10: 7.789339 | AK10: 45499000000 | AL10: 71651968.50 | AM10: 0.7933 | AN10: 7.905254 | AO10: 43049000000 | AP10: 67793700.79 | AQ10: 0.8522 | AR10: -1.262548 | AS10: 66564000 | AT10: 104825.20 | AU10: 0.0023 | AV10: -1.36223 | AW10: 3701200 | AX10: 5828.66 | AY10: 0.0016 | AZ10: -0.4955845 | BA10: 71431000 | BB10: 112489.76 | BC10: 0.0037 | BD10: 7.102339 | BE10: 8693500000 | BF10: 13690551.18 | BG10: 0.5792 | BH10: 7.019815 | BI10: 8805700000 | BJ10: 13867244.09 | BK10: 0.5601 | BL10: 7.116533 | BM10: 10103000000 | BN10: 15910236.22 | BO10: 0.6197 | BP10: -0.4137573 | BQ10: 176600000 | BR10: 278110.24 | BS10: 0.0035 | BT10: -0.7368317 | BU10: 88623000 | BV10: 139563.78 | BW10: 0.0025 | BX10: 0.574461 | BY10: 222340000 | BZ10: 350141.73 | CA10: 0.0055 | CB10: -5.080084 | CC10: 29912000 | CD10: 47105.51 | CE10: 0.0006 | CF10: -1.911402 | CG10: 42084000 | CH10: 66274.02 | CI10: 0.0019 | CJ10: -2.351282 | CK10: 24029000 | CL10: 37840.94 | CM10: 0.0016 | CN10: PESu_Succ;PHBV_Succ | CO10: 75 | CP10: 75 | CQ10: 75 | CR10: 75.9 | CS10: 75.9 | CT10: 75.9 | CU10: 70.381 | CV10: 0 | CW10: 323.31 | CX10: 166840000000 | CY10: 1287 | CZ10: 9 | DA10: 75 | DB10: 75 | DC10: 75 | DD10: 1 | DE10: 16 | DF10: 11 | DG10: 19 | DH10: 70 | DI10: 73 | DJ10: 67 | DK10: 18 | DL10: 9 | DM10: 17 | DN10: 63 | DO10: 65 | DP10: 60 | DQ10: 25 | DR10: 18 | DS10: 31 | DT10: 5 | DU10: 8 | DV10: 6 | DW10: 16 | DX10: 11 | DY10: 19 | DZ10: 70 | EA10: 73 | EB10: 67 | EC10: 18 | ED10: 9 | EE10: 17 | EF10: 63 | EG10: 65 | EH10: 60 | EI10: 25 | EJ10: 18 | EK10: 31 | EL10: 5 | EM10: 8 | EN10: 6 | EO10: 16 | EP10: 11 | EQ10: 19 | ER10: 70 | ES10: 73 | ET10: 67 | EU10: 18 | EV10: 9 | EW10: 17 | EX10: 63 | EY10: 65 | EZ10: 60 | FA10: 25 | FB10: 18 | FC10: 31 | FD10: 5 | FE10: 8 | FF10: 6 | FG10: 635 | FH10: 635 | FI10: 1 | FJ10: 1503 | FK10: 34.3 | FL10: 25 | FM10: 40.8 | FN10: 74.2 | FO10: 75 | FP10: 73.7 | FQ10: 34.5 | FR10: 17.5 | FS10: 32 | FT10: 71.5 | FU10: 74.8 | FV10: 74 | FW10: 47.1 | FX10: 33.7 | FY10: 50.4 | FZ10: 11.8 | GA10: 20.3 | GB10: 13.9 | GC10: 7 | GD10: 9 | GE10: 9 | GF10: 201 | GG10: 214 | GH10: 217 | GI10: 4 | GJ10: 2 | GK10: 9 | GL10: 200 | GM10: 192 | GN10: 182 | GO10: 10 | GP10: 9 | GQ10: 17 | GR10: 2 | GS10: 1 | GT10: 2 | GU10: 0.2253333333 | GV10: 0.5629700527 | GW10: 0 | GX10: 2.981478653 | GY10: 0.667519007 | GZ10: 0.1917039282 | HA10: 0 | HB10: 2.742285508 | HC10: AX24.00016_Nitrous-oxide | HD10: By MS/MS | HE10: By MS/MS | HF10: By MS/MS | HG10: By MS/MS | HH10: By MS/MS | HI10: By MS/MS | HJ10: By MS/MS | HK10: By MS/MS | HL10: By MS/MS | HM10: By MS/MS | HN10: By MS/MS | HO10: By MS/MS | HP10: By MS/MS | HQ10: By MS/MS | HR10: By MS/MS | HS10: By MS/MS | HT10: By MS/MS | HU10: By MS/MS
A11: ALC24_0017_Periplasmic copper-binding protein (NosD) | B11: MGELSRIGLCCLALWGVSGMAAQAGMSSRDLIAAATAAPEENRWRVPAGIHRGRFRIDEEGTEVVCDPGAVLDAEGQGNGLTIAAANVAVSGCALRNWGKDLTAMDAGVFIEKQASGATLRNNRLTGPGFGIWVDGTADVTVTGNHIQGEPALRSQDRGNGIHLYAVRGAVVSRNYVRETRDGIYIDTSNGNRLEGNVLEDLRYGVHYMFSHDNKVVGNVTRRTRTGYALMQSRALWVEGNCSENDQNYGILMNYITYSTLRGNHIRGVRRGATGDAMIRGAEGKALFVYNSLYNDITDNRFEQSTLGIHLTAGSEDNQLSGNRFIVNQQQVKYVATRTQEWSRHGRGNYWSDYLGWDRDGDGIGDVPYQPNDDLDRLLWLYPQARLLMSSPSVSLLRWAQSAFPVTRSPGVRDSHPLMTADETAAELCHDSH | C11: 433 | D11: 0.0000 | E11: -4.34E-08 | F11: 0 | H11: 0.0026 | I11: 3.622919624 | J11: 3.598997394 | K11: + | L11: 0.0004 | M11: -4.34E-08 | N11: 0 | P11: 0.0005 | Q11: 1.912962486 | R11: 1.852113684 | T11: -4.185337 | U11: 0.00 | V11: 0.00 | W11: 0.0000 | X11: -4.307981 | Y11: 0 | Z11: 0.00 | AA11: 0.0000 | AB11: -4.99734 | AC11: 0 | AD11: 0 | AE11: 0.0000 | AF11: -1.065113 | AG11: 120500000 | AH11: 278290.99 | AI11: 0.0028 | AJ11: -1.478563 | AK11: 89578000 | AL11: 206877.60 | AM11: 0.0023 | AN11: -0.3722382 | AO11: 94455000 | AP11: 218140.88 | AQ11: 0.0027 | AR11: -4.527939 | AS11: 13573000 | AT11: 31346.42 | AU11: 0.0007 | AV11: -4.903998 | AW11: 0 | AX11: 0.00 | AY11: 0.0000 | AZ11: -5.919485 | BA11: 7617900 | BB11: 17593.30 | BC11: 0.0006 | BD11: -3.338418 | BE11: 1944700 | BF11: 4491.22 | BG11: 0.0002 | BH11: -1.92005 | BI11: 6237500 | BJ11: 14405.31 | BK11: 0.0006 | BL11: -2.898098 | BM11: 7282900 | BN11: 16819.63 | BO11: 0.0007 | BP11: -5.641036 | BQ11: 14416000 | BR11: 33293.30 | BS11: 0.0004 | BT11: -5.026824 | BU11: 2798900 | BV11: 6463.97 | BW11: 0.0001 | BX11: -3.589029 | BY11: 4426600 | BZ11: 10223.09 | CA11: 0.0002 | CB11: -5.115811 | CC11: 0 | CD11: 0.00 | CE11: 0.0000 | CF11: -3.943721 | CG11: 0 | CH11: 0.00 | CI11: 0.0000 | CJ11: -4.109393 | CK11: 0 | CL11: 0.00 | CM11: 0.0000 | CN11: PESu_Succ | CO11: 8 | CP11: 8 | CQ11: 8 | CR11: 22.2 | CS11: 22.2 | CT11: 22.2 | CU11: 47.543 | CV11: 0 | CW11: 40.064 | CX11: 362840000 | CY11: 16 | CZ11: 10 | DA11: 8 | DB11: 8 | DC11: 8 | DD11: 1 | DE11: 0 | DF11: 0 | DG11: 0 | DH11: 6 | DI11: 6 | DJ11: 5 | DK11: 2 | DL11: 0 | DM11: 2 | DN11: 1 | DO11: 3 | DP11: 3 | DQ11: 2 | DR11: 1 | DS11: 1 | DT11: 0 | DU11: 0 | DV11: 0 | DW11: 0 | DX11: 0 | DY11: 0 | DZ11: 6 | EA11: 6 | EB11: 5 | EC11: 2 | ED11: 0 | EE11: 2 | EF11: 1 | EG11: 3 | EH11: 3 | EI11: 2 | EJ11: 1 | EK11: 1 | EL11: 0 | EM11: 0 | EN11: 0 | EO11: 0 | EP11: 0 | EQ11: 0 | ER11: 6 | ES11: 6 | ET11: 5 | EU11: 2 | EV11: 0 | EW11: 2 | EX11: 1 | EY11: 3 | EZ11: 3 | FA11: 2 | FB11: 1 | FC11: 1 | FD11: 0 | FE11: 0 | FF11: 0 | FG11: 433 | FH11: 433 | FI11: 1 | FJ11: 35 | FK11: 0 | FL11: 0 | FM11: 0 | FN11: 17.1 | FO11: 17.1 | FP11: 14.3 | FQ11: 5.8 | FR11: 0 | FS11: 5.8 | FT11: 3.7 | FU11: 7.4 | FV11: 8.1 | FW11: 5.8 | FX11: 3.7 | FY11: 2.1 | FZ11: 0 | GA11: 0 | GB11: 0 | GC11: 0 | GD11: 0 | GE11: 0 | GF11: 4 | GG11: 4 | GH11: 4 | GI11: 1 | GJ11: 0 | GK11: 0 | GL11: 0 | GM11: 2 | GN11: 1 | GO11: 0 | GP11: 0 | GQ11: 0 | GR11: 0 | GS11: 0 | GT11: 0 | GU11: 1 | GV11: 0 | GW11: 0.00375 | GX11: 1.425859189 | GY11: 1 | GZ11: 0 | HA11: 0.1454814815 | HB11: 0.7255914025 | HC11: AX24.00017_Periplasmic | HG11: By MS/MS | HH11: By MS/MS | HI11: By MS/MS | HJ11: By MS/MS | HL11: By matching | HM11: By matching | HN11: By MS/MS | HO11: By MS/MS | HP11: By matching | HQ11: By matching | HR11: By matching
A12: ALC24_0018_putative ABC transporter ATP-binding protein YxlF | B12: MTAIEMCSVRHGYGRTTVLHDLSLTVGEGEVLGLFGHNGAGKTTTMKLILGVLRPDAGEVRVLGVPAGEARARRELGYLPESVSFYPQLSGRETLAYFARLKGTPVSGIAGLLDQVGLTNAADRRVRTYSKGMRQRLGLAQALLGEPRLLLLDEPTVGLDPIATAELYALIDDLRRRGTAVVLCSHVLAGVEGYIDRAAILCQGRLRALGSLPELQREAGLRWHLTSLRVDPQGRTLRYERTVAAKDKMAWLRALASQPETVDVEVRAPSLEDLYRHFQAGVDEQRRETV | C12: 290 | D12: 0.0000 | E12: -4.34E-08 | F12: 0 | H12: 0.0214 | I12: 4.978305562 | J12: 6.089559476 | K12: + | L12: 0.0000 | M12: -4.34E-08 | N12: 0 | P12: 0.0080 | Q12: 4.672955525 | R12: 5.416905642 | S12: + | T12: -3.469552 | U12: 0.00 | V12: 0.00 | W12: 0.0000 | X12: -3.962743 | Y12: 0 | Z12: 0.00 | AA12: 0.0000 | AB12: -4.667884 | AC12: 0 | AD12: 0 | AE12: 0.0000 | AF12: 1.489475 | AG12: 673110000 | AH12: 2321068.97 | AI12: 0.0236 | AJ12: 1.183676 | AK12: 506340000 | AL12: 1746000.00 | AM12: 0.0193 | AN12: 1.649229 | AO12: 488820000 | AP12: 1685586.21 | AQ12: 0.0212 | AR12: -5.327092 | AS12: 0 | AT12: 0.00 | AU12: 0.0000 | AV12: -2.314503 | AW12: 0 | AX12: 0.00 | AY12: 0.0000 | AZ12: -3.757193 | BA12: 0 | BB12: 0.00 | BC12: 0.0000 | BD12: 0.8218842 | BE12: 62549000 | BF12: 215686.21 | BG12: 0.0091 | BH12: 0.8313465 | BI12: 59438000 | BJ12: 204958.62 | BK12: 0.0083 | BL12: 0.6511879 | BM12: 48766000 | BN12: 168158.62 | BO12: 0.0065 | BP12: -4.464392 | BQ12: 0 | BR12: 0.00 | BS12: 0.0000 | BT12: -4.597878 | BU12: 0 | BV12: 0.00 | BW12: 0.0000 | BX12: -6.059807 | BY12: 0 | BZ12: 0.00 | CA12: 0.0000 | CB12: -4.951859 | CC12: 0 | CD12: 0.00 | CE12: 0.0000 | CF12: -3.251644 | CG12: 0 | CH12: 0.00 | CI12: 0.0000 | CJ12: -4.567018 | CK12: 0 | CL12: 0.00 | CM12: 0.0000 | CN12: PESu_Succ;PHBV_Succ | CO12: 18 | CP12: 18 | CQ12: 18 | CR12: 54.8 | CS12: 54.8 | CT12: 54.8 | CU12: 31.76 | CV12: 0 | CW12: 83.164 | CX12: 1839000000 | CY12: 80 | CZ12: 11 | DA12: 18 | DB12: 18 | DC12: 18 | DD12: 1 | DE12: 0 | DF12: 0 | DG12: 0 | DH12: 17 | DI12: 16 | DJ12: 17 | DK12: 0 | DL12: 0 | DM12: 0 | DN12: 7 | DO12: 9 | DP12: 8 | DQ12: 0 | DR12: 0 | DS12: 0 | DT12: 0 | DU12: 0 | DV12: 0 | DW12: 0 | DX12: 0 | DY12: 0 | DZ12: 17 | EA12: 16 | EB12: 17 | EC12: 0 | ED12: 0 | EE12: 0 | EF12: 7 | EG12: 9 | EH12: 8 | EI12: 0 | EJ12: 0 | EK12: 0 | EL12: 0 | EM12: 0 | EN12: 0 | EO12: 0 | EP12: 0 | EQ12: 0 | ER12: 17 | ES12: 16 | ET12: 17 | EU12: 0 | EV12: 0 | EW12: 0 | EX12: 7 | EY12: 9 | EZ12: 8 | FA12: 0 | FB12: 0 | FC12: 0 | FD12: 0 | FE12: 0 | FF12: 0 | FG12: 290 | FH12: 290 | FI12: 1 | FJ12: 88 | FK12: 0 | FL12: 0 | FM12: 0 | FN12: 51.7 | FO12: 49 | FP12: 50 | FQ12: 0 | FR12: 0 | FS12: 0 | FT12: 32.8 | FU12: 42.4 | FV12: 39.3 | FW12: 0 | FX12: 0 | FY12: 0 | FZ12: 0 | GA12: 0 | GB12: 0 | GC12: 0 | GD12: 0 | GE12: 0 | GF12: 18 | GG12: 15 | GH12: 20 | GI12: 0 | GJ12: 0 | GK12: 0 | GL12: 5 | GM12: 10 | GN12: 12 | GO12: 0 | GP12: 0 | GQ12: 0 | GR12: 0 | GS12: 0 | GT12: 0 | GU12: 1 | GV12: 0 | GW12: 0 | GX12: 2.390806764 | GY12: 1 | GZ12: 0 | HA12: 0 | HB12: 2.131737185 | HC12: AX24.00018_putative | HG12: By MS/MS | HH12: By MS/MS | HI12: By MS/MS | HM12: By MS/MS | HN12: By MS/MS | HO12: By MS/MS
A13: ALC24_0020_NosL | B13: MGKSGIGFGLLMLLVLAGCEEPSSAVLGPVPFHADDECHVCGMIIADFPGPKGEAVSAHQVRRFCSVAEMLGWWHQPENQVGESHLYVHDMARGDWNRPDDAHLIDARQAWFVIGGDLPGAMGVTVASFAEKAAAEDWAGRHGGRVYQFKELEPALWRPSAPMAGHH | C13: 167 | D13: 0.0000 | E13: 1.305053529 | F13: 1.60539039 | H13: 0.0161 | I13: 5.235050149 | J13: 5.591608524 | K13: + | L13: 0.0000 | M13: 1.445868605 | N13: 1.494372447 | P13: 0.0067 | Q13: 2.941579081 | R13: 2.621740182 | S13: + | T13: -5.097722 | U13: 0.00 | V13: 0.00 | W13: 0.0000 | X13: -3.322049 | Y13: 0 | Z13: 0.00 | AA13: 0.0000 | AB13: -2.523198 | AC13: 0 | AD13: 0 | AE13: 0.0000 | AF13: 0.4372711 | AG13: 200670000 | AH13: 1201616.77 | AI13: 0.0122 | AJ13: 0.3043709 | AK13: 231280000 | AL13: 1384910.18 | AM13: 0.0153 | AN13: 0.274044 | AO13: 275950000 | AP13: 1652395.21 | AQ13: 0.0208 | AR13: -4.623641 | AS13: 186910 | AT13: 1119.22 | AU13: 0.0000 | AV13: -3.866633 | AW13: 0 | AX13: 0.00 | AY13: 0.0000 | AZ13: -2.785748 | BA13: 0 | BB13: 0.00 | BC13: 0.0000 | BD13: -2.063049 | BE13: 27845000 | BF13: 166736.53 | BG13: 0.0071 | BH13: -2.822094 | BI13: 29238000 | BJ13: 175077.84 | BK13: 0.0071 | BL13: -3.008776 | BM13: 25560000 | BN13: 153053.89 | BO13: 0.0060 | BP13: -6.193968 | BQ13: 4011400 | BR13: 24020.36 | BS13: 0.0003 | BT13: -6.025246 | BU13: 3711100 | BV13: 22222.16 | BW13: 0.0004 | BX13: -5.2812 | BY13: 6599400 | BZ13: 39517.37 | CA13: 0.0006 | CB13: -5.204187 | CC13: 0 | CD13: 0.00 | CE13: 0.0000 | CF13: -4.286936 | CG13: 0 | CH13: 0.00 | CI13: 0.0000 | CJ13: -4.526742 | CK13: 7960400 | CL13: 47667.07 | CM13: 0.0020 | CN13: PESu_Succ;PHBV_Succ | CO13: 5 | CP13: 5 | CQ13: 5 | CR13: 31.1 | CS13: 31.1 | CT13: 31.1 | CU13: 18.108 | CV13: 0 | CW13: 16.243 | CX13: 813020000 | CY13: 30 | CZ13: 13 | DA13: 5 | DB13: 5 | DC13: 5 | DD13: 1 | DE13: 0 | DF13: 0 | DG13: 0 | DH13: 5 | DI13: 5 | DJ13: 5 | DK13: 1 | DL13: 0 | DM13: 0 | DN13: 3 | DO13: 3 | DP13: 3 | DQ13: 3 | DR13: 3 | DS13: 3 | DT13: 0 | DU13: 0 | DV13: 1 | DW13: 0 | DX13: 0 | DY13: 0 | DZ13: 5 | EA13: 5 | EB13: 5 | EC13: 1 | ED13: 0 | EE13: 0 | EF13: 3 | EG13: 3 | EH13: 3 | EI13: 3 | EJ13: 3 | EK13: 3 | EL13: 0 | EM13: 0 | EN13: 1 | EO13: 0 | EP13: 0 | EQ13: 0 | ER13: 5 | ES13: 5 | ET13: 5 | EU13: 1 | EV13: 0 | EW13: 0 | EX13: 3 | EY13: 3 | EZ13: 3 | FA13: 3 | FB13: 3 | FC13: 3 | FD13: 0 | FE13: 0 | FF13: 1 | FG13: 167 | FH13: 167 | FI13: 1 | FJ13: 60 | FK13: 0 | FL13: 0 | FM13: 0 | FN13: 31.1 | FO13: 31.1 | FP13: 31.1 | FQ13: 6.6 | FR13: 0 | FS13: 0 | FT13: 20.4 | FU13: 20.4 | FV13: 20.4 | FW13: 15.6 | FX13: 15.6 | FY13: 15.6 | FZ13: 0 | GA13: 0 | GB13: 10.2 | GC13: 0 | GD13: 0 | GE13: 0 | GF13: 7 | GG13: 7 | GH13: 9 | GI13: 0 | GJ13: 0 | GK13: 0 | GL13: 3 | GM13: 2 | GN13: 2 | GO13: 0 | GP13: 0 | GQ13: 0 | GR13: 0 | GS13: 0 | GT13: 0 | GU13: 0.2093408451 | GV13: 0.5996715466 | GW13: 0 | GX13: 2.273128789 | GY13: 0.2835348837 | GZ13: 0.5800125651 | HA13: 0.03354216867 | HB13: 1.050277724 | HC13: AX24.00020_NosL | HG13: By MS/MS | HH13: By MS/MS | HI13: By MS/MS | HJ13: By matching | HM13: By MS/MS | HN13: By MS/MS | HO13: By MS/MS | HP13: By matching | HQ13: By matching | HR13: By matching | HU13: By matching
A14: ALC24_0021_Cytochrome c-551 precursor | B14: MKVTAFSLAALAAASLSPGLALAADAETLYQAKACVACHKIDGPMVGPSYQDVAKKYAGQDGAATTLAKHIKEGSQGIWGAIPMPPNAVTDEEAKTLAEWILQQK | C14: 105 | D14: 0.0005 | E14: 0.3526073583 | F14: 0.6332559586 | H14: 0.0252 | I14: 3.124910345 | J14: 4.246076822 | K14: + | L14: 0.0001 | M14: 0.0211372221 | N14: -0.04389182727 | P14: 0.0027 | Q14: 0.4037570352 | R14: 0.7823131084 | T14: -3.001859 | U14: 0.00 | V14: 0.00 | W14: 0.0000 | X14: -4.560493 | Y14: 720750 | Z14: 6864.29 | AA14: 0.0007 | AB14: -3.080256 | AC14: 517110 | AD14: 4924.857143 | AE14: 0.0007 | AF14: 0.110672 | AG14: 252120000 | AH14: 2401142.86 | AI14: 0.0244 | AJ14: -0.6002541 | AK14: 211670000 | AL14: 2015904.76 | AM14: 0.0223 | AN14: 0.6854362 | AO14: 241120000 | AP14: 2296380.95 | AQ14: 0.0289 | AR14: -4.449751 | AS14: 2002300 | AT14: 19069.52 | AU14: 0.0004 | AV14: -4.17469 | AW14: 0 | AX14: 0.00 | AY14: 0.0000 | AZ14: -4.049611 | BA14: 0 | BB14: 0.00 | BC14: 0.0000 | BD14: -1.886433 | BE14: 7900200 | BF14: 75240.00 | BG14: 0.0032 | BH14: -4.154412 | BI14: 7257600 | BJ14: 69120.00 | BK14: 0.0028 | BL14: -4.154593 | BM14: 5819900 | BN14: 55427.62 | BO14: 0.0022 | BP14: -4.564922 | BQ14: 0 | BR14: 0.00 | BS14: 0.0000 | BT14: -3.895069 | BU14: 13424000 | BV14: 127847.62 | BW14: 0.0023 | BX14: -2.680141 | BY14: 19927000 | BZ14: 189780.95 | CA14: 0.0030 | CB14: -6.221538 | CC14: 10407000 | CD14: 99114.29 | CE14: 0.0012 | CF14: -3.59511 | CG14: 0 | CH14: 0.00 | CI14: 0.0000 | CJ14: -4.127972 | CK14: 0 | CL14: 0.00 | CM14: 0.0000 | CN14: PESu_Succ | CO14: 6 | CP14: 6 | CQ14: 6 | CR14: 61.9 | CS14: 61.9 | CT14: 61.9 | CU14: 10.883 | CV14: 0 | CW14: 19.088 | CX14: 772890000 | CY14: 25 | CZ14: 14 | DA14: 6 | DB14: 6 | DC14: 6 | DD14: 1 | DE14: 0 | DF14: 1 | DG14: 1 | DH14: 3 | DI14: 3 | DJ14: 4 | DK14: 1 | DL14: 0 | DM14: 0 | DN14: 2 | DO14: 1 | DP14: 2 | DQ14: 0 | DR14: 2 | DS14: 2 | DT14: 2 | DU14: 0 | DV14: 0 | DW14: 0 | DX14: 1 | DY14: 1 | DZ14: 3 | EA14: 3 | EB14: 4 | EC14: 1 | ED14: 0 | EE14: 0 | EF14: 2 | EG14: 1 | EH14: 2 | EI14: 0 | EJ14: 2 | EK14: 2 | EL14: 2 | EM14: 0 | EN14: 0 | EO14: 0 | EP14: 1 | EQ14: 1 | ER14: 3 | ES14: 3 | ET14: 4 | EU14: 1 | EV14: 0 | EW14: 0 | EX14: 2 | EY14: 1 | EZ14: 2 | FA14: 0 | FB14: 2 | FC14: 2 | FD14: 2 | FE14: 0 | FF14: 0 | FG14: 105 | FH14: 105 | FI14: 1 | FJ14: 41 | FK14: 0 | FL14: 13.3 | FM14: 12.4 | FN14: 44.8 | FO14: 22.9 | FP14: 30.5 | FQ14: 15.2 | FR14: 0 | FS14: 0 | FT14: 44.8 | FU14: 13.3 | FV14: 13.3 | FW14: 0 | FX14: 16.2 | FY14: 16.2 | FZ14: 22.9 | GA14: 0 | GB14: 0 | GC14: 0 | GD14: 0 | GE14: 1 | GF14: 7 | GG14: 5 | GH14: 7 | GI14: 0 | GJ14: 0 | GK14: 0 | GL14: 1 | GM14: 2 | GN14: 2 | GO14: 0 | GP14: 0 | GQ14: 0 | GR14: 0 | GS14: 0 | GT14: 0 | GU14: 0.4210147783 | GV14: 0.2277291846 | GW14: 0.00075 | GX14: 1.545470393 | GY14: 0.9708745875 | GZ14: -0.01619083803 | HA14: 0.4629822926 | HB14: 0.2732720955 | HC14: AX24.00021_Cytochrome | HE14: By matching | HF14: By MS/MS | HG14: By MS/MS | HH14: By MS/MS | HI14: By MS/MS | HJ14: By matching | HM14: By MS/MS | HN14: By MS/MS | HO14: By MS/MS | HQ14: By matching | HR14: By matching | HS14: By matching
A15: ALC24_0023_Deoxyguanosinetriphosphate triphosphohydrolase | B15: MHWEHLLNKERLGHRGAKDETGRTAFLRDHDKIIFSGAFRRLARKTQVHPLATNDHVHNRLTHSLEVSCVGRTLGIQVGERLERLKLLPASTNATDLGDIVQSACLAHDIGNPPFGHTGERAIRAWFQERGQRYLELLSPAQQSDLIYFEGNAQGFRILTKSEYHQYQDGMRLTYATLATFLKYPWLSAQAGESGIKPGKYSAFVSEAGAFREVCQATGLRPLDADRYCRHPLAYLMEAADDFCYAIIDLEDGLEMDLLHWDEVYALLQPALPDSAEVRNLVHSGLRDGRKAALLRGKIIERFIEAGVEAFIANHQRLLEGRMDGDLLHHCEPVVHDVVENAKQLARGKVFEHPRKIELEIGAFEVMGALLDGLIDAALSHARGTARNYRHERIIDLIGRHSFPDDLPTLPEQERIYQCIMRALDFLSGMTDNYATYLAKQFSGMAETRY | C15: 450 | D15: 0.0027 | E15: 1.843183489 | F15: -0.6504952113 | H15: 0.0051 | I15: 0.1054712067 | J15: -0.05819924672 | L15: 0.0041 | M15: 0.03463026412 | N15: -0.02599048615 | P15: 0.0023 | Q15: 1.052889276 | R15: -0.4044529597 | T15: -0.8209515 | U15: 11333000.00 | V15: 25184.44 | W15: 0.0028 | X15: -0.8799839 | Y15: 15388000 | Z15: 34195.56 | AA15: 0.0037 | AB15: -0.8829002 | AC15: 4900900 | AD15: 10890.88889 | AE15: 0.0016 | AF15: -0.3888359 | AG15: 225370000 | AH15: 500822.22 | AI15: 0.0051 | AJ15: -0.182127 | AK15: 207210000 | AL15: 460466.67 | AM15: 0.0051 | AN15: -0.2359848 | AO15: 188480000 | AP15: 418844.44 | AQ15: 0.0053 | AR15: -0.2365742 | AS15: 88111000 | AT15: 195802.22 | AU15: 0.0043 | AV15: -0.6769466 | AW15: 5295200 | AX15: 11767.11 | AY15: 0.0031 | AZ15: 0.2031994 | BA15: 66574000 | BB15: 147942.22 | BC15: 0.0049 | BD15: -0.6995087 | BE15: 22326000 | BF15: 49613.33 | BG15: 0.0021 | BH15: -0.4971313 | BI15: 24189000 | BJ15: 53753.33 | BK15: 0.0022 | BL15: -0.6490688 | BM15: 28867000 | BN15: 64148.89 | BO15: 0.0025 | BP15: 0.2092381 | BQ15: 297960000 | BR15: 662133.33 | BS15: 0.0083 | BT15: -0.2978325 | BU15: 169930000 | BV15: 377622.22 | BW15: 0.0068 | BX15: 0.03076553 | BY15: 216290000 | BZ15: 480644.44 | CA15: 0.0075 | CB15: -0.6431885 | CC15: 139140000 | CD15: 309200.00 | CE15: 0.0038 | CF15: -0.03269005 | CG15: 54267000 | CH15: 120593.33 | CI15: 0.0035 | CJ15: -0.5309925 | CK15: 38545000 | CL15: 85655.56 | CM15: 0.0035 | CO15: 21 | CP15: 21 | CQ15: 21 | CR15: 57.6 | CS15: 57.6 | CT15: 57.6 | CU15: 50.879 | CV15: 0 | CW15: 120.49 | CX15: 1804200000 | CY15: 173 | CZ15: 15 | DA15: 21 | DB15: 21 | DC15: 21 | DD15: 1 | DE15: 9 | DF15: 9 | DG15: 6 | DH15: 16 | DI15: 17 | DJ15: 18 | DK15: 11 | DL15: 9 | DM15: 12 | DN15: 10 | DO15: 9 | DP15: 10 | DQ15: 17 | DR15: 18 | DS15: 17 | DT15: 10 | DU15: 8 | DV15: 8 | DW15: 9 | DX15: 9 | DY15: 6 | DZ15: 16 | EA15: 17 | EB15: 18 | EC15: 11 | ED15: 9 | EE15: 12 | EF15: 10 | EG15: 9 | EH15: 10 | EI15: 17 | EJ15: 18 | EK15: 17 | EL15: 10 | EM15: 8 | EN15: 8 | EO15: 9 | EP15: 9 | EQ15: 6 | ER15: 16 | ES15: 17 | ET15: 18 | EU15: 11 | EV15: 9 | EW15: 12 | EX15: 10 | EY15: 9 | EZ15: 10 | FA15: 17 | FB15: 18 | FC15: 17 | FD15: 10 | FE15: 8 | FF15: 8 | FG15: 450 | FH15: 450 | FI15: 1 | FJ15: 306 | FK15: 17.3 | FL15: 22.4 | FM15: 9.3 | FN15: 48 | FO15: 47.1 | FP15: 49.8 | FQ15: 36 | FR15: 28.7 | FS15: 40.4 | FT15: 27.3 | FU15: 23.3 | FV15: 30.4 | FW15: 49.3 | FX15: 51.1 | FY15: 49.3 | FZ15: 30.2 | GA15: 20.4 | GB15: 24.7 | GC15: 6 | GD15: 5 | GE15: 5 | GF15: 15 | GG15: 15 | GH15: 14 | GI15: 11 | GJ15: 4 | GK15: 10 | GL15: 5 | GM15: 4 | GN15: 8 | GO15: 19 | GP15: 16 | GQ15: 18 | GR15: 5 | GS15: 8 | GT15: 5 | GU15: 0.350140625 | GV15: -0.2955358475 | GW15: 0.9085385557 | GX15: -0.02639794349 | GY15: 0.9719854897 | GZ15: -0.01149707756 | HA15: 0.597659661 | HB15: -0.1834629342 | HC15: AX24.00023_Deoxyguanosinetriphosphate | HD15: By MS/MS | HE15: By MS/MS | HF15: By MS/MS | HG15: By MS/MS | HH15: By MS/MS | HI15: By MS/MS | HJ15: By MS/MS | HK15: By MS/MS | HL15: By MS/MS | HM15: By MS/MS | HN15: By MS/MS | HO15: By MS/MS | HP15: By MS/MS | HQ15: By MS/MS | HR15: By MS/MS | HS15: By MS/MS | HT15: By MS/MS | HU15: By MS/MS
A16: ALC24_0024_Molecular chaperone Hsp31 and glyoxalase 3 | B16: MNLDKPLLMLVTSAGQMGQGQQTGLWLEEFAVPYGLFREAGIPLRVASPLGGKVPVDPRSVPDDAEKDAWREAIAALQETRALEDIWEDGFAGVFVPGGHGAMFDMPDHPMVARVLNRTWEQGGLVSAVCHGPAALVGARDGAGKPLVEGRVVSCFSNEEEHEVGLDDVMPFLLENRLRELGAEIRNGEMFQPRVVEDGNLITGQNPQSSTVVAEAVLKRLLSR | C16: 224 | D16: 0.0010 | E16: 1.333026749 | F16: -1.731500824 | H16: 0.0049 | I16: 0.7211442046 | J16: 1.018104434 | L16: 0.0027 | M16: 1.049666869 | N16: 1.401866158 | P16: 0.0061 | Q16: 0.03611677959 | R16: 0.09173365434 | T16: -4.533631 | U16: 6224300.00 | V16: 27787.05 | W16: 0.0031 | X16: -4.278624 | Y16: 0 | Z16: 0.00 | AA16: 0.0000 | AB16: -3.687164 | AC16: 0 | AD16: 0 | AE16: 0.0000 | AF16: -1.550585 | AG16: 88354000 | AH16: 394437.50 | AI16: 0.0040 | AJ16: -1.20237 | AK16: 158400000 | AL16: 707142.86 | AM16: 0.0078 | AN16: -1.497648 | AO16: 50835000 | AP16: 226941.96 | AQ16: 0.0029 | AR16: -0.7031517 | AS16: 31543000 | AT16: 140816.96 | AU16: 0.0031 | AV16: -0.9875031 | AW16: 2490200 | AX16: 11116.96 | AY16: 0.0030 | AZ16: -1.408663 | BA16: 13357000 | BB16: 59629.46 | BC16: 0.0020 | BD16: -1.594223 | BE16: 7754800 | BF16: 34619.64 | BG16: 0.0015 | BH16: -1.440769 | BI16: 90792000 | BJ16: 405321.43 | BK16: 0.0164 | BL16: -3.994723 | BM16: 2179100 | BN16: 9728.13 | BO16: 0.0004 | BP16: -1.497375 | BQ16: 37642000 | BR16: 168044.64 | BS16: 0.0021 | BT16: -1.539843 | BU16: 21461000 | BV16: 95808.04 | BW16: 0.0017 | BX16: -1.530615 | BY16: 20835000 | BZ16: 93013.39 | CA16: 0.0015 | CB16: -2.387442 | CC16: 0 | CD16: 0.00 | CE16: 0.0000 | CF16: -3.356296 | CG16: 0 | CH16: 0.00 | CI16: 0.0000 | CJ16: -4.298261 | CK16: 0 | CL16: 0.00 | CM16: 0.0000 | CO16: 6 | CP16: 6 | CQ16: 6 | CR16: 47.3 | CS16: 47.3 | CT16: 47.3 | CU16: 24.249 | CV16: 0 | CW16: 13.889 | CX16: 531860000 | CY16: 17 | CZ16: 16 | DA16: 6 | DB16: 6 | DC16: 6 | DD16: 1 | DE16: 1 | DF16: 0 | DG16: 0 | DH16: 4 | DI16: 4 | DJ16: 4 | DK16: 3 | DL16: 3 | DM16: 3 | DN16: 3 | DO16: 3 | DP16: 1 | DQ16: 4 | DR16: 3 | DS16: 3 | DT16: 0 | DU16: 0 | DV16: 0 | DW16: 1 | DX16: 0 | DY16: 0 | DZ16: 4 | EA16: 4 | EB16: 4 | EC16: 3 | ED16: 3 | EE16: 3 | EF16: 3 | EG16: 3 | EH16: 1 | EI16: 4 | EJ16: 3 | EK16: 3 | EL16: 0 | EM16: 0 | EN16: 0 | EO16: 1 | EP16: 0 | EQ16: 0 | ER16: 4 | ES16: 4 | ET16: 4 | EU16: 3 | EV16: 3 | EW16: 3 | EX16: 3 | EY16: 3 | EZ16: 1 | FA16: 4 | FB16: 3 | FC16: 3 | FD16: 0 | FE16: 0 | FF16: 0 | FG16: 224 | FH16: 224 | FI16: 1 | FJ16: 39 | FK16: 11.6 | FL16: 0 | FM16: 0 | FN16: 30.4 | FO16: 30.4 | FP16: 30.4 | FQ16: 21 | FR16: 21 | FS16: 31.7 | FT16: 29.5 | FU16: 30.4 | FV16: 6.2 | FW16: 43.3 | FX16: 29.5 | FY16: 29.5 | FZ16: 0 | GA16: 0 | GB16: 0 | GC16: 0 | GD16: 0 | GE16: 0 | GF16: 0 | GG16: 1 | GH16: 0 | GI16: 4 | GJ16: 3 | GK16: 3 | GL16: 0 | GM16: 1 | GN16: 0 | GO16: 2 | GP16: 1 | GQ16: 2 | GR16: 0 | GS16: 0 | GT16: 0 | GU16: 0.1867476038 | GV16: -0.6372721083 | GW16: 0.2795630965 | GX16: 0.3768511954 | GY16: 0.3259204244 | GZ16: 0.5171427605 | HA16: 0.9056270613 | HB16: 0.03181507934 | HC16: AX24.00024_Molecular | HD16: By matching | HG16: By matching | HH16: By MS/MS | HI16: By matching | HJ16: By MS/MS | HK16: By MS/MS | HL16: By MS/MS | HM16: By matching | HN16: By MS/MS | HO16: By matching | HP16: By MS/MS | HQ16: By MS/MS | HR16: By MS/MS
A17: ALC24_0025_Hydroperoxy fatty acid reductase gpx1 | B17: VDIYDYSAVTLDGEERSLADFKGKVLLIVNTASKCGFTPQYKGLQALYERYKNRGLVVLGFPCNQFGRQEPGDEVEIGAFCEKNYGVDFPMFAKIDVNGSDTHPLYRHLKSEAPGLLGSEGIKWNFTKFLVDQSGRVVRRYAPKDKPEALAADVEKALKGVDS | C17: 163 | D17: 0.0246 | E17: 1.594343437 | F17: -0.7306083043 | H17: 0.0218 | I17: 0.3472980798 | J17: -0.2107731501 | L17: 0.0159 | M17: 1.688171238 | N17: -0.7915277481 | P17: 0.0121 | Q17: 0.8528240225 | R17: -0.4261903763 | T17: 0.163826 | U17: 40364000.00 | V17: 247631.90 | W17: 0.0277 | X17: 0.1167488 | Y17: 40639000 | Z17: 249319.02 | AA17: 0.0268 | AB17: -0.1077976 | AC17: 20840000 | AD17: 127852.7607 | AE17: 0.0192 | AF17: 0.3692989 | AG17: 310790000 | AH17: 1906687.12 | AI17: 0.0194 | AJ17: 0.6016827 | AK17: 322760000 | AL17: 1980122.70 | AM17: 0.0219 | AN17: 0.761301 | AO17: 312800000 | AP17: 1919018.40 | AQ17: 0.0241 | AR17: 0.231636 | AS17: 118110000 | AT17: 724601.23 | AU17: 0.0159 | AV17: -0.04042244 | AW17: 10178000 | AX17: 62441.72 | AY17: 0.0166 | AZ17: -0.2011948 | BA17: 74211000 | BB17: 455282.21 | BC17: 0.0150 | BD17: 0.2597313 | BE17: 47834000 | BF17: 293460.12 | BG17: 0.0124 | BH17: 0.3340836 | BI17: 49204000 | BJ17: 301865.03 | BK17: 0.0122 | BL17: 0.4922161 | BM17: 49446000 | BN17: 303349.69 | BO17: 0.0118 | BP17: 0.7008095 | BQ17: 360170000 | BR17: 2209631.90 | BS17: 0.0276 | BT17: 1.54088 | BU17: 411160000 | BV17: 2522453.99 | BW17: 0.0456 | BX17: 0.8497677 | BY17: 358140000 | BZ17: 2197177.91 | CA17: 0.0344 | CB17: 0.2616024 | CC17: 351450000 | CD17: 2156134.97 | CE17: 0.0266 | CF17: 0.7786293 | CG17: 215020000 | CH17: 1319141.10 | CI17: 0.0385 | CJ17: 0.5975151 | CK17: 142100000 | CL17: 871779.14 | CM17: 0.0358 | CO17: 17 | CP17: 17 | CQ17: 17 | CR17: 90.8 | CS17: 90.8 | CT17: 90.8 | CU17: 18.147 | CV17: 0 | CW17: 65.632 | CX17: 3235200000 | CY17: 135 | CZ17: 17 | DA17: 17 | DB17: 17 | DC17: 17 | DD17: 1 | DE17: 7 | DF17: 7 | DG17: 7 | DH17: 12 | DI17: 11 | DJ17: 12 | DK17: 10 | DL17: 9 | DM17: 11 | DN17: 8 | DO17: 7 | DP17: 6 | DQ17: 15 | DR17: 14 | DS17: 16 | DT17: 11 | DU17: 9 | DV17: 10 | DW17: 7 | DX17: 7 | DY17: 7 | DZ17: 12 | EA17: 11 | EB17: 12 | EC17: 10 | ED17: 9 | EE17: 11 | EF17: 8 | EG17: 7 | EH17: 6 | EI17: 15 | EJ17: 14 | EK17: 16 | EL17: 11 | EM17: 9 | EN17: 10 | EO17: 7 | EP17: 7 | EQ17: 7 | ER17: 12 | ES17: 11 | ET17: 12 | EU17: 10 | EV17: 9 | EW17: 11 | EX17: 8 | EY17: 7 | EZ17: 6 | FA17: 15 | FB17: 14 | FC17: 16 | FD17: 11 | FE17: 9 | FF17: 10 | FG17: 163 | FH17: 163 | FI17: 1 | FJ17: 224 | FK17: 52.8 | FL17: 54.6 | FM17: 58.9 | FN17: 71.2 | FO17: 64.4 | FP17: 64.4 | FQ17: 73 | FR17: 64.4 | FS17: 79.8 | FT17: 63.8 | FU17: 57.1 | FV17: 41.1 | FW17: 84 | FX17: 88.3 | FY17: 90.8 | FZ17: 67.5 | GA17: 65 | GB17: 73 | GC17: 4 | GD17: 5 | GE17: 4 | GF17: 7 | GG17: 8 | GH17: 10 | GI17: 9 | GJ17: 6 | GK17: 6 | GL17: 3 | GM17: 4 | GN17: 6 | GO17: 11 | GP17: 16 | GQ17: 11 | GR17: 11 | GS17: 7 | GT17: 7 | GU17: 0.3348758865 | GV17: -0.3235255872 | GW17: 0.7023576779 | GX17: -0.09313288772 | GY17: 0.4709900709 | GZ17: -0.349371127 | HA17: 0.5899640387 | HB17: -0.1888861241 | HC17: AX24.00025_Hydroperoxy | HD17: By MS/MS | HE17: By MS/MS | HF17: By MS/MS | HG17: By MS/MS | HH17: By MS/MS | HI17: By MS/MS | HJ17: By MS/MS | HK17: By MS/MS | HL17: By MS/MS | HM17: By MS/MS | HN17: By MS/MS | HO17: By MS/MS | HP17: By MS/MS | HQ17: By MS/MS | HR17: By MS/MS | HS17: By MS/MS | HT17: By MS/MS | HU17: By MS/MS
A18: ALC24_0026_Colicin I receptor precursor | B18: MRYPVLLSPMLLLPCLAQGAHPIPLETVTVTAPRQSQALLETPAAVTVVDSQAHGEGRPNLQLDETLNRVPGLFFQNRYNFAQNLRISSRGFGARAPFGVRGLHLRVDGLPYTLPDGQSQVDAIDLDRLRQVEVLRGPASSLYGNAAGGVLLLNSDDGGSQPPGAHLRVAGGSDDYHKLGAALYQRDENNDYALGVSALSFDGQRQQSRVEKYQLNGKWRHALTNGGRVTTVLEVLDIPTAEDPGGLTRAQAHQDRDQASRFANLLDAGQVVRQQRLGWVWDQPTEQGAWQGYLHYTHRDFEQQLPFPGSSELGYERHFYGTGLRYAGQAGQLNYVIGAEVNRQEDDRDRYQVGASGERQGRTADEQQNATAAGLFAQATLPLNEHWSWTFGGRLDRLQLSIDDRLLTDGNDDGHRRFTERSYSTGLNWRLHPRHQLFANIGSAFESPTFTEFANPSGGGFNPDLEPQKAVNGEIGARGDLSGTVQYELTLFTVRTRDEIVPFEQDGRTFYENAGRTRRDGVELGLSWFPDDWNRISAAWTYGNYRFRRFQEGGESLRDHRLPGLPEHQLYLEWQRDYRGGTFTSLETLMSSSVYAENGNHTRVGGYALVNGRVGHRWRLAGGNQLTTYLAAHNLLDRDYYANIRINANSDRPLASRGYFEPGPGRTWVAGIEVKL | C18: 676 | D18: 0.0048 | E18: 0.2776123299 | F18: -0.2104612986 | H18: 0.0017 | I18: 2.71979671 | J18: -1.599541346 | L18: 0.0092 | M18: 0.4232372432 | N18: 0.3014221191 | P18: 0.0017 | Q18: 1.886995015 | R18: -1.073324839 | T18: 0.1341114 | U18: 32055000.00 | V18: 47418.64 | W18: 0.0053 | X18: 0.343626 | Y18: 26370000 | Z18: 39008.88 | AA18: 0.0042 | AB18: 0.315712 | AC18: 22642000 | AD18: 33494.08284 | AE18: 0.0050 | AF18: -1.04635 | AG18: 102790000 | AH18: 152056.21 | AI18: 0.0015 | AJ18: -0.8904476 | AK18: 121310000 | AL18: 179452.66 | AM18: 0.0020 | AN18: -1.436993 | AO18: 79749000 | AP18: 117971.89 | AQ18: 0.0015 | AR18: 0.7029705 | AS18: 243630000 | AT18: 360399.41 | AU18: 0.0079 | AV18: 0.6626358 | AW18: 22868000 | AX18: 33828.40 | AY18: 0.0090 | AZ18: 0.9634933 | BA18: 221820000 | BB18: 328136.09 | BC18: 0.0108 | BD18: -0.8436947 | BE18: 23358000 | BF18: 34553.25 | BG18: 0.0015 | BH18: -0.5229855 | BI18: 29710000 | BJ18: 43949.70 | BK18: 0.0018 | BL18: -0.4284611 | BM18: 32814000 | BN18: 48541.42 | BO18: 0.0019 | BP18: 0.971035 | BQ18: 395780000 | BR18: 585473.37 | BS18: 0.0073 | BT18: 0.5526237 | BU18: 258130000 | BV18: 381849.11 | BW18: 0.0069 | BX18: 0.9519367 | BY18: 351620000 | BZ18: 520147.93 | CA18: 0.0082 | CB18: -0.3334084 | CC18: 128130000 | CD18: 189541.42 | CE18: 0.0023 | CF18: 0.02480507 | CG18: 170090000 | CH18: 251612.43 | CI18: 0.0074 | CJ18: 0.6826744 | CK18: 149890000 | CL18: 221730.77 | CM18: 0.0091 | CO18: 26 | CP18: 26 | CQ18: 26 | CR18: 58.7 | CS18: 58.7 | CT18: 58.7 | CU18: 75.439 | CV18: 0 | CW18: 154.9 | CX18: 2412800000 | CY18: 175 | CZ18: 18 | DA18: 26 | DB18: 26 | DC18: 26 | DD18: 1 | DE18: 8 | DF18: 9 | DG18: 6 | DH18: 11 | DI18: 12 | DJ18: 11 | DK18: 18 | DL18: 17 | DM18: 19 | DN18: 9 | DO18: 10 | DP18: 11 | DQ18: 22 | DR18: 23 | DS18: 23 | DT18: 8 | DU18: 14 | DV18: 12 | DW18: 8 | DX18: 9 | DY18: 6 | DZ18: 11 | EA18: 12 | EB18: 11 | EC18: 18 | ED18: 17 | EE18: 19 | EF18: 9 | EG18: 10 | EH18: 11 | EI18: 22 | EJ18: 23 | EK18: 23 | EL18: 8 | EM18: 14 | EN18: 12 | EO18: 8 | EP18: 9 | EQ18: 6 | ER18: 11 | ES18: 12 | ET18: 11 | EU18: 18 | EV18: 17 | EW18: 19 | EX18: 9 | EY18: 10 | EZ18: 11 | FA18: 22 | FB18: 23 | FC18: 23 | FD18: 8 | FE18: 14 | FF18: 12 | FG18: 676 | FH18: 676 | FI18: 1 | FJ18: 277 | FK18: 20.4 | FL18: 20.9 | FM18: 14.5 | FN18: 26.3 | FO18: 30.6 | FP18: 29.3 | FQ18: 43.9 | FR18: 41.7 | FS18: 49.7 | FT18: 20.3 | FU18: 21.6 | FV18: 22 | FW18: 49.6 | FX18: 54.9 | FY18: 53.4 | FZ18: 18 | GA18: 33.9 | GB18: 28.1 | GC18: 8 | GD18: 4 | GE18: 4 | GF18: 4 | GG18: 9 | GH18: 3 | GI18: 13 | GJ18: 14 | GK18: 15 | GL18: 4 | GM18: 4 | GN18: 4 | GO18: 27 | GP18: 20 | GQ18: 19 | GR18: 4 | GS18: 10 | GT18: 9 | GU18: 0.6826775215 | GV18: -0.09084276169 | GW18: 0.1126413994 | GX18: -0.6860909788 | GY18: 0.7506252285 | GZ18: 0.1299320108 | HA18: 0.309287619 | HB18: -0.4617573895 | HC18: AX24.00026_Colicin | HD18: By MS/MS | HE18: By MS/MS | HF18: By MS/MS | HG18: By MS/MS | HH18: By MS/MS | HI18: By MS/MS | HJ18: By MS/MS | HK18: By MS/MS | HL18: By MS/MS | HM18: By MS/MS | HN18: By MS/MS | HO18: By MS/MS | HP18: By MS/MS | HQ18: By MS/MS | HR18: By MS/MS | HS18: By MS/MS | HT18: By MS/MS | HU18: By MS/MS
A19: ALC24_0028_Catalase | B19: MSKKKQTLTTSAGIPVADNQNSLTAGPRGPLLVQDWQLFEKHAHFNRERIPERVVHAKGSAAFGTFKVTGDITRYSKAKVFQPGTETDVLLRFSTVAGERGAADAERDVRGFALKFYTEQGNWDLVGNNTPVFFVRDPYKFPDFIRTQKRDPRSNLRSATHMWDFWSLSPESLHQVTILMSDRGLPKSYRHMNGYGSHTYSFINDNNERFWVKFHFKTRQGIECLTDAEAGEVVGGDRESHQRDLYNAIENKDFPTWRVCVQIMPEAEAETTPYNPFDLTKVWPHGDYPLIEIGELTLNRNPENYFAEVEQASFSPANVVPGISHSPDKMLQFRIFSYADAHRYRLGVNYESLPVNLPRCPVHGYHRDGRMRFDGNGGGSVNYEPNSFGGPVEDPAFREPPLSISGDADRYDHREGNDDYSQAGDLFRLMTAEQQERLFGNVARAMDGVPEEIVRRQLDHFEKADPAYAAGVAKALGLSR | C19: 480 | D19: 0.1226 | E19: 4.464961 | F19: -1.286499023 | H19: 0.1514 | I19: 0.2731178512 | J19: 0.09898376465 | L19: 0.1405 | M19: 1.182681137 | N19: -0.3181889852 | P19: 0.1233 | Q19: 1.113862286 | R19: -0.3051795959 | T19: 3.577871 | U19: 507110000.00 | V19: 1056479.17 | W19: 0.1184 | X19: 3.631655 | Y19: 572310000 | Z19: 1192312.50 | AA19: 0.1280 | AB19: 3.578455 | AC19: 388130000 | AD19: 808604.1667 | AE19: 0.1216 | AF19: 4.792606 | AG19: 6298600000 | AH19: 13122083.33 | AI19: 0.1332 | AJ19: 5.087996 | AK19: 7132400000 | AL19: 14859166.67 | AM19: 0.1645 | AN19: 5.063828 | AO19: 5974200000 | AP19: 12446250.00 | AQ19: 0.1565 | AR19: 4.618084 | AS19: 3083300000 | AT19: 6423541.67 | AU19: 0.1411 | AV19: 4.418293 | AW19: 267110000 | AX19: 556479.17 | AY19: 0.1484 | AZ19: 4.656534 | BA19: 1921600000 | BB19: 4003333.33 | BC19: 0.1319 | BD19: 4.471535 | BE19: 1265100000 | BF19: 2635625.00 | BG19: 0.1115 | BH19: 4.527256 | BI19: 1416700000 | BJ19: 2951458.33 | BK19: 0.1192 | BL19: 4.733149 | BM19: 1715400000 | BN19: 3573750.00 | BO19: 0.1392 | BP19: 5.223221 | BQ19: 7294400000 | BR19: 15196666.67 | BS19: 0.1898 | BT19: 4.801128 | BU19: 3857900000 | BV19: 8037291.67 | BW19: 0.1451 | BX19: 5.103598 | BY19: 5403000000 | BZ19: 11256250.00 | CA19: 0.1764 | CB19: 4.615892 | CC19: 6630200000 | CD19: 13812916.67 | CE19: 0.1703 | CF19: 4.770618 | CG19: 4208300000 | CH19: 8767291.67 | CI19: 0.2562 | CJ19: 4.780499 | CK19: 2673600000 | CL19: 5570000.00 | CM19: 0.2287 | CO19: 48 | CP19: 48 | CQ19: 48 | CR19: 78.3 | CS19: 78.3 | CT19: 78.3 | CU19: 54.422 | CV19: 0 | CW19: 323.31 | CX19: 60609000000 | CY19: 1186 | CZ19: 19 | DA19: 48 | DB19: 48 | DC19: 48 | DD19: 1 | DE19: 33 | DF19: 32 | DG19: 31 | DH19: 42 | DI19: 44 | DJ19: 42 | DK19: 42 | DL19: 36 | DM19: 41 | DN19: 39 | DO19: 40 | DP19: 38 | DQ19: 46 | DR19: 41 | DS19: 46 | DT19: 38 | DU19: 38 | DV19: 37 | DW19: 33 | DX19: 32 | DY19: 31 | DZ19: 42 | EA19: 44 | EB19: 42 | EC19: 42 | ED19: 36 | EE19: 41 | EF19: 39 | EG19: 40 | EH19: 38 | EI19: 46 | EJ19: 41 | EK19: 46 | EL19: 38 | EM19: 38 | EN19: 37 | EO19: 33 | EP19: 32 | EQ19: 31 | ER19: 42 | ES19: 44 | ET19: 42 | EU19: 42 | EV19: 36 | EW19: 41 | EX19: 39 | EY19: 40 | EZ19: 38 | FA19: 46 | FB19: 41 | FC19: 46 | FD19: 38 | FE19: 38 | FF19: 37 | FG19: 480 | FH19: 480 | FI19: 1 | FJ19: 1386 | FK19: 68.1 | FL19: 67.3 | FM19: 72.5 | FN19: 71.5 | FO19: 72.9 | FP19: 74.4 | FQ19: 72.9 | FR19: 70 | FS19: 77.7 | FT19: 69.4 | FU19: 78.3 | FV19: 75 | FW19: 78.3 | FX19: 76.2 | FY19: 78.3 | FZ19: 72.7 | GA19: 72.7 | GB19: 72.7 | GC19: 51 | GD19: 51 | GE19: 54 | GF19: 57 | GG19: 68 | GH19: 70 | GI19: 60 | GJ19: 59 | GK19: 62 | GL19: 55 | GM19: 59 | GN19: 60 | GO19: 77 | GP19: 69 | GQ19: 79 | GR19: 77 | GS19: 90 | GT19: 88 | GU19: 0.2089116809 | GV19: -0.6016654174 | GW19: 0.8435742869 | GX19: 0.0460166284 | GY19: 0.7201328125 | GZ19: -0.1482725635 | HA19: 0.6663279666 | HB19: -0.1421254469 | HC19: AX24.00028_Catalase | HD19: By MS/MS | HE19: By MS/MS | HF19: By MS/MS | HG19: By MS/MS | HH19: By MS/MS | HI19: By MS/MS | HJ19: By MS/MS | HK19: By MS/MS | HL19: By MS/MS | HM19: By MS/MS | HN19: By MS/MS | HO19: By MS/MS | HP19: By MS/MS | HQ19: By MS/MS | HR19: By MS/MS | HS19: By MS/MS | HT19: By MS/MS | HU19: By MS/MS
A20: ALC24_0029_Multidrug resistance protein MdtA precursor | B20: MSETRSSLLTRSRLIWVVLIAAVLGGLWYFLSHSTSAPTGPMPRNAWEGPVAVRAVDAEAGDLSVRIKAIGTVTPLNTVTVRSRVDGELSRVLFEEGAEVTKGTLLAEIDPDPYRVQLAQAQGQYRQNEAELAGAEQDLALYRTLYQQDSIARQQLTQQEALVNQLRGSRQALQAQIDDARLRLSWTRIEAPIDGRLGLRNVDAGNLVSSGDTDGLVTITQMRPISVVFTVPETQLDAVRSAFATGNAMPVQALDRNGATQIAVGTLTTLDNRIDTATGTLRLRAEFTNEHNELFPNQFVNVRLQLRTLPEAVTIPTDAVQYGSQGTYVFVLEDDKAQLRPITLGPVDGDRIAVSEGLADGELVVLEGMERLRDGREVILVEGDSLPVREQNGGGPDRARGGRR | C20: 404 | D20: 0.0035 | E20: 1.079620133 | F20: -0.786752065 | H20: 0.0034 | I20: 0.4274975269 | J20: 0.3581574758 | L20: 0.0035 | M20: 0.1172077267 | N20: -0.1174068451 | P20: 0.0056 | Q20: 1.022483115 | R20: 0.7243913015 | T20: -2.019749 | U20: 9348700.00 | V20: 23140.35 | W20: 0.0026 | X20: -1.613544 | Y20: 15046000 | Z20: 37242.57 | AA20: 0.0040 | AB20: -1.429983 | AC20: 10863000 | AD20: 26888.61386 | AE20: 0.0040 | AF20: -0.4671516 | AG20: 145140000 | AH20: 359257.43 | AI20: 0.0036 | AJ20: -0.444521 | AK20: 124020000 | AL20: 306980.20 | AM20: 0.0034 | AN20: -0.7168751 | AO20: 101240000 | AP20: 250594.06 | AQ20: 0.0032 | AR20: -0.9546242 | AS20: 63948000 | AT20: 158287.13 | AU20: 0.0035 | AV20: -1.153578 | AW20: 5270600 | AX20: 13046.04 | AY20: 0.0035 | AZ20: -0.9470387 | BA20: 42228000 | BB20: 104524.75 | BC20: 0.0034 | BD20: -0.04384422 | BE20: 53269000 | BF20: 131853.96 | BG20: 0.0056 | BH20: -0.206461 | BI20: 59206000 | BJ20: 146549.50 | BK20: 0.0059 | BL20: -0.279541 | BM20: 55103000 | BN20: 136393.56 | BO20: 0.0053 | BP20: -0.4431458 | BQ20: 104970000 | BR20: 259826.73 | BS20: 0.0032 | BT20: -0.405447 | BU20: 129730000 | BV20: 321113.86 | BW20: 0.0058 | BX20: -0.3963661 | BY20: 181840000 | BZ20: 450099.01 | CA20: 0.0071 | CB20: -0.825367 | CC20: 339850000 | CD20: 841212.87 | CE20: 0.0104 | CF20: -1.506792 | CG20: 43481000 | CH20: 107626.24 | CI20: 0.0031 | CJ20: -1.828922 | CK20: 32570000 | CL20: 80618.81 | CM20: 0.0033 | CO20: 16 | CP20: 16 | CQ20: 16 | CR20: 46.8 | CS20: 46.8 | CT20: 46.8 | CU20: 44.014 | CV20: 0 | CW20: 43.903 | CX20: 1517100000 | CY20: 112 | CZ20: 20 | DA20: 16 | DB20: 16 | DC20: 16 | DD20: 1 | DE20: 5 | DF20: 7 | DG20: 4 | DH20: 10 | DI20: 9 | DJ20: 9 | DK20: 8 | DL20: 8 | DM20: 7 | DN20: 9 | DO20: 11 | DP20: 8 | DQ20: 8 | DR20: 11 | DS20: 12 | DT20: 11 | DU20: 5 | DV20: 7 | DW20: 5 | DX20: 7 | DY20: 4 | DZ20: 10 | EA20: 9 | EB20: 9 | EC20: 8 | ED20: 8 | EE20: 7 | EF20: 9 | EG20: 11 | EH20: 8 | EI20: 8 | EJ20: 11 | EK20: 12 | EL20: 11 | EM20: 5 | EN20: 7 | EO20: 5 | EP20: 7 | EQ20: 4 | ER20: 10 | ES20: 9 | ET20: 9 | EU20: 8 | EV20: 8 | EW20: 7 | EX20: 9 | EY20: 11 | EZ20: 8 | FA20: 8 | FB20: 11 | FC20: 12 | FD20: 11 | FE20: 5 | FF20: 7 | FG20: 404 | FH20: 404 | FI20: 1 | FJ20: 215 | FK20: 17.1 | FL20: 20.8 | FM20: 11.1 | FN20: 26.7 | FO20: 24.8 | FP20: 26.2 | FQ20: 31.4 | FR20: 26.2 | FS20: 28.2 | FT20: 31.9 | FU20: 37.9 | FV20: 29 | FW20: 24 | FX20: 36.1 | FY20: 35.1 | FZ20: 39.9 | GA20: 15.8 | GB20: 24.8 | GC20: 4 | GD20: 6 | GE20: 3 | GF20: 6 | GG20: 9 | GH20: 4 | GI20: 6 | GJ20: 3 | GK20: 5 | GL20: 8 | GM20: 10 | GN20: 6 | GO20: 4 | GP20: 13 | GQ20: 7 | GR20: 11 | GS20: 4 | GT20: 3 | GU20: 0.3348095238 | GV20: -0.3292306985 | GW20: 0.5747351525 | GX20: 0.1506793833 | GY20: 0.9039926199 | GZ20: -0.049429932 | HA20: 0.4318357895 | HB20: 0.3049583958 | HC20: AX24.00029_Multidrug | HD20: By MS/MS | HE20: By MS/MS | HF20: By MS/MS | HG20: By MS/MS | HH20: By MS/MS | HI20: By MS/MS | HJ20: By MS/MS | HK20: By MS/MS | HL20: By MS/MS | HM20: By MS/MS | HN20: By MS/MS | HO20: By MS/MS | HP20: By MS/MS | HQ20: By MS/MS | HR20: By MS/MS | HS20: By MS/MS | HT20: By MS/MS | HU20: By MS/MS
A21: ALC24_0030_Multidrug resistance protein MdtB | B21: MSLSRPFILRPVATSLLMLALLAAGLLAWRLLPVAALPQVDYPIIQVFTFQPGAGPDVTARTITAPLERSLGQIPGLKQMSSTSSGGASVITLQFSLEVDLGVAEQEVQAALNTADNLLPNDLPTPPIYRKVNPADAPILTLAITSDTLPLPDVYDLVDTRMAQKLAQLGGVGMVSLAGGQRPALRVQVNPMALAAYGLDLEDVRSAIAATNTNQPKGSFDGPQRSTMLDANDQIRSVEDYRQLILTWIGGAPLRLGDVATIVDGAEDRFLAAWADTQPAVLLNIQRQPGANVIDVADSVRELLPQLVNTLPATVDVAVLTDRTQSIRASVRDVQKELVFAITLVVLVTFVFLRNIPATIIPSVAVPLSLVGTFSFMYLAGFSINNLSLMALTIATGFVVDDAIVMLENIARHREQGASKLDAALKGAGEIGFTLVSLTLSLVAVLIPLLFMGDVVGRLFHEFAVTLAVAIIISLVVSLTLTPMMSARMLERPPGHDDSAPGLMNRVIRRYGEALDWVLERQALAMLVMLATIALTAVLYLMVKKDFFPVQDSGVIQVVTESPQTSSFEHMAQRQQALAAALLEDPGVASLSSFIGVDGTNTTINSGRMLINLPPHGERHGSAFEVMDRLRERAAGVDGITAWFQPVQELSIEDRVSRTQYQFTLTTPESATLNEWVPILVDALQRQPELADVASDLQYDGRQAYVDIDRDAASRLGLNVSDIATALQNAFAQRQIATLFTQANQYRVILEVDPEHARGLAALQTTYVPTADGTPVPLSSVARVTQRPAALLINHQGQFPAATISFNLGPDASLGDAVKVIERVQREAGLPAEIESRFQGAAEAFRASLSNTLWLILAAILTMYIVLGILYESTIHPITILSTLPSATVGALLALLLTGRALDLIAVIGVVLLIGLVKKNGIMMVDFALDAQRNQGMPPRQAIHRAAMLRFRPILMTTLAALFGAVPLMLASGSGAELRQPLGLVMVGGLLVSQVLTLFTTPVVYLFFDRLTRRPAPLADDGGARP | C21: 1026 | D21: 0.0000 | E21: -4.34E-08 | F21: 0 | H21: 0.0001 | I21: 1.286474329 | J21: 0.4948959351 | L21: 0.0001 | M21: -4.34E-08 | N21: 0 | P21: 0.0001 | Q21: -4.34E-08 | R21: 0 | T21: -4.499594 | U21: 0.00 | V21: 0.00 | W21: 0.0000 | X21: -4.322576 | Y21: 0 | Z21: 0.00 | AA21: 0.0000 | AB21: -4.308693 | AC21: 0 | AD21: 0 | AE21: 0.0000 | AF21: -4.072649 | AG21: 9285000 | AH21: 9049.71 | AI21: 0.0001 | AJ21: -4.024967 | AK21: 17538000 | AL21: 17093.57 | AM21: 0.0002 | AN21: -4.027672 | AO21: 7262900 | AP21: 7078.85 | AQ21: 0.0001 | AR21: -4.509923 | AS21: 1339700 | AT21: 1305.75 | AU21: 0.0000 | AV21: -3.99274 | AW21: 264330 | AX21: 257.63 | AY21: 0.0001 | AZ21: -3.911785 | BA21: 3153700 | BB21: 3073.78 | BC21: 0.0001 | BD21: -3.687314 | BE21: 3548800 | BF21: 3458.87 | BG21: 0.0001 | BH21: -4.017204 | BI21: 3017100 | BJ21: 2940.64 | BK21: 0.0001 | BL21: -4.755662 | BM21: 1224600 | BN21: 1193.57 | BO21: 0.0000 | BP21: -4.703462 | BQ21: 2624800 | BR21: 2558.28 | BS21: 0.0000 | BT21: -4.317514 | BU21: 2869800 | BV21: 2797.08 | BW21: 0.0001 | BX21: -4.801797 | BY21: 1992800 | BZ21: 1942.30 | CA21: 0.0000 | CB21: -4.138975 | CC21: 3649900 | CD21: 3557.41 | CE21: 0.0000 | CF21: -5.017949 | CG21: 5104700 | CH21: 4975.34 | CI21: 0.0001 | CJ21: -4.240255 | CK21: 1308700 | CL21: 1275.54 | CM21: 0.0001 | CO21: 6 | CP21: 6 | CQ21: 6 | CR21: 9.9 | CS21: 9.9 | CT21: 9.9 | CU21: 110.15 | CV21: 0 | CW21: 93.02 | CX21: 64184000 | CY21: 18 | CZ21: 21 | DA21: 6 | DB21: 6 | DC21: 6 | DD21: 1 | DE21: 0 | DF21: 0 | DG21: 0 | DH21: 2 | DI21: 3 | DJ21: 2 | DK21: 2 | DL21: 1 | DM21: 2 | DN21: 2 | DO21: 2 | DP21: 3 | DQ21: 1 | DR21: 2 | DS21: 1 | DT21: 1 | DU21: 2 | DV21: 1 | DW21: 0 | DX21: 0 | DY21: 0 | DZ21: 2 | EA21: 3 | EB21: 2 | EC21: 2 | ED21: 1 | EE21: 2 | EF21: 2 | EG21: 2 | EH21: 3 | EI21: 1 | EJ21: 2 | EK21: 1 | EL21: 1 | EM21: 2 | EN21: 1 | EO21: 0 | EP21: 0 | EQ21: 0 | ER21: 2 | ES21: 3 | ET21: 2 | EU21: 2 | EV21: 1 | EW21: 2 | EX21: 2 | EY21: 2 | EZ21: 3 | FA21: 1 | FB21: 2 | FC21: 1 | FD21: 1 | FE21: 2 | FF21: 1 | FG21: 1026 | FH21: 1026 | FI21: 1 | FJ21: 28 | FK21: 0 | FL21: 0 | FM21: 0 | FN21: 2.2 | FO21: 4.4 | FP21: 2.2 | FQ21: 3.1 | FR21: 1.3 | FS21: 3.1 | FT21: 3.4 | FU21: 3.4 | FV21: 4.8 | FW21: 1.9 | FX21: 3.1 | FY21: 1.9 | FZ21: 1.3 | GA21: 3.1 | GB21: 1.3 | GC21: 0 | GD21: 0 | GE21: 0 | GF21: 2 | GG21: 5 | GH21: 2 | GI21: 0 | GJ21: 0 | GK21: 1 | GL21: 1 | GM21: 1 | GN21: 2 | GO21: 1 | GP21: 1 | GQ21: 1 | GR21: 1 | GS21: 0 | GT21: 0 | GU21: 1 | GV21: 0 | GW21: 0.4477366362 | GX21: 0.2238004142 | GY21: 1 | GZ21: 0 | HA21: 1 | HB21: 0 | HC21: AX24.00030_Multidrug | HG21: By MS/MS | HH21: By MS/MS | HI21: By MS/MS | HJ21: By matching | HK21: By matching | HL21: By MS/MS | HM21: By MS/MS | HN21: By MS/MS | HO21: By MS/MS | HP21: By MS/MS | HQ21: By MS/MS | HR21: By MS/MS | HS21: By MS/MS | HT21: By matching | HU21: By matching
A22: ALC24_0032_Outer membrane protein OprM precursor | B22: MKSLSAACLLCALALAGCTLGPDYRTPDSAIPARFQYQDGWRTMPEQPWVAQGTWWEAFDDPVLTDLIEQADQASQTLAQAEARFRAAEAQWRLARGEYSPQLDASVSGTRSGGSDTDPGNLFSGRLDISWAPDLWGRVRRQVEAERAGLAASAADIAAARLTLQVAVVQGYVRIRALDRQRAILELTMAAYDRSAELTRNQYNAGIVSRSDVIQAETQRQSLRTQLYDLQQQRAQEENALAALLGVAPVSFSIAATNALPLLPALPAALPSVLIARRPDVVVAERGVAQANALIGVAQTAWLPDLTLSAYGALQDDTFSGLFDAPQRIWSVGPSLALTLFDGGRRRATRDIAVAQYDEQVANYRQTILDSLRDVEDALATMQVLREKAEQQDELLALAEQNESVIANRYRAGMVSFLEVATAQNLTLEARRSRLDITSQQLQAAAELAAAIGGGWDLDDPVIQRMARPEPGE | C22: 473 | D22: 0.0023 | E22: 0.7330309214 | F22: -0.970260938 | H22: 0.0017 | I22: 0.05114755339 | J22: -0.09251689911 | L22: 0.0027 | M22: 0.05857310401 | N22: -0.1053489049 | P22: 0.0037 | Q22: 0.2893096718 | R22: 0.4389785131 | T22: -2.576992 | U22: 6890100.00 | V22: 14566.81 | W22: 0.0016 | X22: -1.671583 | Y22: 16096000 | Z22: 34029.60 | AA22: 0.0037 | AB22: -2.321848 | AC22: 5224700 | AD22: 11045.87738 | AE22: 0.0017 | AF22: -1.14551 | AG22: 90431000 | AH22: 191186.05 | AI22: 0.0019 | AJ22: -1.331102 | AK22: 75523000 | AL22: 159668.08 | AM22: 0.0018 | AN22: -1.460579 | AO22: 53929000 | AP22: 114014.80 | AQ22: 0.0014 | AR22: -1.239834 | AS22: 49372000 | AT22: 104380.55 | AU22: 0.0023 | AV22: -1.536352 | AW22: 5455900 | AX22: 11534.67 | AY22: 0.0031 | AZ22: -1.199501 | BA22: 37248000 | BB22: 78748.41 | BC22: 0.0026 | BD22: -0.7332325 | BE22: 33457000 | BF22: 70733.62 | BG22: 0.0030 | BH22: -0.6659718 | BI22: 47070000 | BJ22: 99513.74 | BK22: 0.0040 | BL22: -0.9435005 | BM22: 50592000 | BN22: 106959.83 | BO22: 0.0042 | BP22: -0.2826519 | BQ22: 144270000 | BR22: 305010.57 | BS22: 0.0038 | BT22: -0.209465 | BU22: 120040000 | BV22: 253784.36 | BW22: 0.0046 | BX22: -0.3537483 | BY22: 123710000 | BZ22: 261543.34 | CA22: 0.0041 | CB22: -2.261635 | CC22: 30458000 | CD22: 64393.23 | CE22: 0.0008 | CF22: -1.68458 | CG22: 58201000 | CH22: 123046.51 | CI22: 0.0036 | CJ22: -2.527201 | CK22: 13616000 | CL22: 28786.47 | CM22: 0.0012 | CO22: 13 | CP22: 13 | CQ22: 13 | CR22: 36.4 | CS22: 36.4 | CT22: 36.4 | CU22: 51.485 | CV22: 0 | CW22: 73.159 | CX22: 961600000 | CY22: 90 | CZ22: 22 | DA22: 13 | DB22: 13 | DC22: 13 | DD22: 1 | DE22: 5 | DF22: 7 | DG22: 3 | DH22: 9 | DI22: 8 | DJ22: 8 | DK22: 8 | DL22: 8 | DM22: 8 | DN22: 9 | DO22: 11 | DP22: 11 | DQ22: 11 | DR22: 12 | DS22: 11 | DT22: 4 | DU22: 6 | DV22: 7 | DW22: 5 | DX22: 7 | DY22: 3 | DZ22: 9 | EA22: 8 | EB22: 8 | EC22: 8 | ED22: 8 | EE22: 8 | EF22: 9 | EG22: 11 | EH22: 11 | EI22: 11 | EJ22: 12 | EK22: 11 | EL22: 4 | EM22: 6 | EN22: 7 | EO22: 5 | EP22: 7 | EQ22: 3 | ER22: 9 | ES22: 8 | ET22: 8 | EU22: 8 | EV22: 8 | EW22: 8 | EX22: 9 | EY22: 11 | EZ22: 11 | FA22: 11 | FB22: 12 | FC22: 11 | FD22: 4 | FE22: 6 | FF22: 7 | FG22: 473 | FH22: 473 | FI22: 1 | FJ22: 151 | FK22: 11 | FL22: 18 | FM22: 6.1 | FN22: 27.7 | FO22: 22.8 | FP22: 22.8 | FQ22: 21.6 | FR22: 23.3 | FS22: 23.5 | FT22: 23.5 | FU22: 30.4 | FV22: 31.5 | FW22: 29.4 | FX22: 33.2 | FY22: 28.3 | FZ22: 9.3 | GA22: 14.2 | GB22: 16.7 | GC22: 0 | GD22: 0 | GE22: 1 | GF22: 9 | GG22: 4 | GH22: 6 | GI22: 6 | GJ22: 2 | GK22: 5 | GL22: 7 | GM22: 7 | GN22: 7 | GO22: 7 | GP22: 12 | GQ22: 7 | GR22: 2 | GS22: 4 | GT22: 4 | GU22: 0.3122111932 | GV22: -0.3647797289 | GW22: 0.8833124739 | GX22: -0.03506240931 | GY22: 0.9265670841 | GZ22: -0.03991072926 | HA22: 0.6214945617 | HB22: 0.1663948283 | HC22: AX24.00032_Outer | HD22: By matching | HE22: By MS/MS | HF22: By MS/MS | HG22: By MS/MS | HH22: By MS/MS | HI22: By MS/MS | HJ22: By MS/MS | HK22: By MS/MS | HL22: By MS/MS | HM22: By MS/MS | HN22: By MS/MS | HO22: By MS/MS | HP22: By MS/MS | HQ22: By MS/MS | HR22: By MS/MS | HS22: By MS/MS | HT22: By MS/MS | HU22: By MS/MS
A23: ALC24_0036_6-aminohexanoate-dimer hydrolase | B23: MLQSLRYGLAATALLIATQGHTETPQLPPPESTTLPKLGLMQGFPPPPDKLVTRANFNRFPNGRWALHHMRELQPSRGIARDPLADVAKLKNKDRDLGSLRFDDGSGQTTTVSKWLLDTYTDAFIVLHKGRVVHETYTDGMDDQDQHILWSVTKSVTGLLAADMIQRGELDPDATVGHYVPELKGSAWGDATVQQVLDMTAAVRYREDYKDFTSDVYRYAFSSGILPKPKNYQGPASLYEFLASLTEKSGEHGEQFTYQTVQSEVVAWIISKASGRDYTDLLSERIWSKLGAERDAYILVDDHGTPLAGGGMNTTLRDLARFAEMVRRNGHYNGEQIVSKAAIEDLFKGGERSKFEGGGLDFRQGQSYHNQWYQTHNAHGALQAAGIHGQMIHIDPQAELVVVKFSSHPVASSSFTYTSTTAALDAITEALQ | C23: 432 | D23: 0.0725 | E23: 1.4072816 | F23: -0.3154506683 | H23: 0.0132 | I23: 3.46670804 | J23: -1.445055008 | L23: 0.0322 | M23: 2.299144603 | N23: -0.5920403798 | P23: 0.0242 | Q23: 3.261792987 | R23: -0.8180618286 | T23: 2.378384 | U23: 298200000.00 | V23: 690277.78 | W23: 0.0773 | X23: 2.52886 | Y23: 269040000 | Z23: 622777.78 | AA23: 0.0668 | AB23: 2.442759 | AC23: 210910000 | AD23: 488217.5926 | AE23: 0.0734 | AF23: 1.481106 | AG23: 639510000 | AH23: 1480347.22 | AI23: 0.0150 | AJ23: 1.715496 | AK23: 653570000 | AL23: 1512893.52 | AM23: 0.0168 | AN23: 0.7645874 | AO23: 265100000 | AP23: 613657.41 | AQ23: 0.0077 | AR23: 2.408195 | AS23: 695950000 | AT23: 1610995.37 | AU23: 0.0354 | AV23: 1.972103 | AW23: 50455000 | AX23: 116793.98 | AY23: 0.0311 | AZ23: 2.139935 | BA23: 394810000 | BB23: 913912.04 | BC23: 0.0301 | BD23: 1.837513 | BE23: 231950000 | BF23: 536921.30 | BG23: 0.0227 | BH23: 1.866396 | BI23: 251190000 | BJ23: 581458.33 | BK23: 0.0235 | BL23: 2.13826 | BM23: 293220000 | BN23: 678750.00 | BO23: 0.0264 | BP23: 2.990692 | BQ23: 1470000000 | BR23: 3402777.78 | BS23: 0.0425 | BT23: 2.83666 | BU23: 937150000 | BV23: 2169328.70 | BW23: 0.0392 | BX23: 2.829254 | BY23: 1113300000 | BZ23: 2577083.33 | CA23: 0.0404 | CB23: 2.597216 | CC23: 2156800000 | CD23: 4992592.59 | CE23: 0.0615 | CF23: 2.446531 | CG23: 945150000 | CH23: 2187847.22 | CI23: 0.0639 | CJ23: 2.892355 | CK23: 834310000 | CL23: 1931273.15 | CM23: 0.0793 | CO23: 28 | CP23: 28 | CQ23: 28 | CR23: 84.3 | CS23: 84.3 | CT23: 84.3 | CU23: 47.83 | CV23: 0 | CW23: 288.19 | CX23: 11711000000 | CY23: 595 | CZ23: 23 | DA23: 28 | DB23: 28 | DC23: 28 | DD23: 1 | DE23: 20 | DF23: 21 | DG23: 22 | DH23: 23 | DI23: 23 | DJ23: 22 | DK23: 22 | DL23: 21 | DM23: 20 | DN23: 20 | DO23: 21 | DP23: 22 | DQ23: 24 | DR23: 24 | DS23: 25 | DT23: 23 | DU23: 21 | DV23: 19 | DW23: 20 | DX23: 21 | DY23: 22 | DZ23: 23 | EA23: 23 | EB23: 22 | EC23: 22 | ED23: 21 | EE23: 20 | EF23: 20 | EG23: 21 | EH23: 22 | EI23: 24 | EJ23: 24 | EK23: 25 | EL23: 23 | EM23: 21 | EN23: 19 | EO23: 20 | EP23: 21 | EQ23: 22 | ER23: 23 | ES23: 23 | ET23: 22 | EU23: 22 | EV23: 21 | EW23: 20 | EX23: 20 | EY23: 21 | EZ23: 22 | FA23: 24 | FB23: 24 | FC23: 25 | FD23: 23 | FE23: 21 | FF23: 19 | FG23: 432 | FH23: 432 | FI23: 1 | FJ23: 800 | FK23: 68.3 | FL23: 71.8 | FM23: 69.4 | FN23: 63 | FO23: 73.4 | FP23: 63.9 | FQ23: 68.5 | FR23: 70.1 | FS23: 67.1 | FT23: 70.1 | FU23: 70.1 | FV23: 70.1 | FW23: 66.4 | FX23: 65.5 | FY23: 75.9 | FZ23: 82.4 | GA23: 70.1 | GB23: 69 | GC23: 44 | GD23: 44 | GE23: 45 | GF23: 22 | GG23: 24 | GH23: 14 | GI23: 33 | GJ23: 20 | GK23: 23 | GL23: 20 | GM23: 22 | GN23: 31 | GO23: 43 | GP23: 41 | GQ23: 43 | GR23: 40 | GS23: 38 | GT23: 48 | GU23: 0.553250887 | GV23: -0.1484745058 | GW23: 0.1222506394 | GX23: -0.6500171973 | GY23: 0.5672326351 | GZ23: -0.2757450264 | HA23: 0.3557903448 | HB23: -0.3828884825 | HC23: AX24.00036_6-aminohexanoate-dimer | HD23: By MS/MS | HE23: By MS/MS | HF23: By MS/MS | HG23: By MS/MS | HH23: By MS/MS | HI23: By MS/MS | HJ23: By MS/MS | HK23: By MS/MS | HL23: By MS/MS | HM23: By MS/MS | HN23: By MS/MS | HO23: By MS/MS | HP23: By MS/MS | HQ23: By MS/MS | HR23: By MS/MS | HS23: By MS/MS | HT23: By MS/MS | HU23: By MS/MS
A24: ALC24_0039_hypothetical protein | B24: MGLRWFMSMAGLLLAFASQVNAATETTCAREQRQLEQWEQQTVDMDRQVEPLQRLLDGTPIAPNTLDQALGAPADAVNRPPPGPITPPSLSCEQLEERLNQAVTERRGVRALLDDQRDQWFSLSRPERAALLGLLEEYQSLTTLEADPLVTPGPLRDHLSALIALLPPLRNQPANAARQLDVLWPPPAPVIQADIPAQQRLTLWRHHYETRRLQLALRSGLWQRQGVLRSWFSYRPTEWLPLLGLEARMTLDRLHQGLIQTYREWTLNREIRHYTPLVSNALAVILGLAILALVMKLGRRGRRGLLRLHERLVSRAGQKRWLWNASRLLSGVAPLVPWLLLWLVIHLLAPLLDSPSTQVVRWLLPLARLYVLFGLLWLFGEWLMFRVCQSAHSYLNDNQITEASALARRLALWMMVPWALWFAVDRLLGHSLAGLLCTVLVGLCLYIAIGRLLAFRRDDYLLCLQNVLPSSLDPLAERLLKGLRFGWTAPGLLPVALVNFLFHYLDTLLGELDWYLRLKARWFRLRTKGVGEDEEPVREDTSEASKQYQKWFANQLPDDQETPFIDTGLLNAMIKAVEQWHSESVEENALLVTGEKGSGKSMAMRKLVRKMEQEQPDLRLVTVSVPPRTVTPEAVTSMIAKALGESLDEGPASLVKNDEQRPPTLLILDETQNCFLARIGGLDGWQALLTLTNARLDNLFWLVLINNQSWSYLSNVFGRDYQFRRVIKVKRWDQSEIRSLILSRHHLSKQKLRYDDLLLSSRGPEAGNMRNAEQRYFSLLWDACGGNPMVALKLWLTSIKVTPRQVLVGLPAQPSSSLAAGQSGDSLMFVYAAIVSHENLSSDEIVAVTDLSENVVRSALKAGQDAGFIYKGEDSRYRVVPMWYRTVINQLNRKNLLHE | C24: 899 | D24: 0.0000 | E24: 7.884038766 | F24: -4.508754969 | G24: + | H24: 0.0051 | I24: 1.464490929 | J24: 0.4243275325 | L24: 0.0041 | M24: 0.3187352865 | N24: -0.1340475082 | P24: 0.0033 | Q24: 0.4531252646 | R24: -0.1454839706 | T24: -3.959402 | U24: 0.00 | V24: 0.00 | W24: 0.0000 | X24: -3.973671 | Y24: 397140 | Z24: 441.76 | AA24: 0.0000 | AB24: -4.262911 | AC24: 0 | AD24: 0 | AE24: 0.0000 | AF24: 0.8720951 | AG24: 439790000 | AH24: 489199.11 | AI24: 0.0050 | AJ24: 0.6423721 | AK24: 370580000 | AL24: 412213.57 | AM24: 0.0046 | AN24: 1.088797 | AO24: 412140000 | AP24: 458442.71 | AQ24: 0.0058 | AR24: 0.3085098 | AS24: 136000000 | AT24: 151279.20 | AU24: 0.0033 | AV24: 0.005567551 | AW24: 12605000 | AX24: 14021.13 | AY24: 0.0037 | AZ24: 0.6140614 | BA24: 146930000 | BB24: 163437.15 | BC24: 0.0054 | BD24: 0.2336559 | BE24: 69749000 | BF24: 77585.09 | BG24: 0.0033 | BH24: 0.4424877 | BI24: 82089000 | BJ24: 91311.46 | BK24: 0.0037 | BL24: 0.2176857 | BM24: 67335000 | BN24: 74899.89 | BO24: 0.0029 | BP24: 0.4842033 | BQ24: 269940000 | BR24: 300266.96 | BS24: 0.0037 | BT24: 0.5115967 | BU24: 187030000 | BV24: 208042.27 | BW24: 0.0038 | BX24: 0.7632885 | BY24: 259860000 | BZ24: 289054.51 | CA24: 0.0045 | CB24: 0.06158447 | CC24: 243710000 | CD24: 271090.10 | CE24: 0.0033 | CF24: 0.4957771 | CG24: 162900000 | CH24: 181201.33 | CI24: 0.0053 | CJ24: 0.3441124 | CK24: 98787000 | CL24: 109885.43 | CM24: 0.0045 | CN24: BHET_Succ | CO24: 31 | CP24: 31 | CQ24: 31 | CR24: 41.9 | CS24: 41.9 | CT24: 41.9 | CU24: 102.15 | CV24: 0 | CW24: 323.31 | CX24: 2959800000 | CY24: 268 | CZ24: 25 | DA24: 31 | DB24: 31 | DC24: 31 | DD24: 1 | DE24: 1 | DF24: 1 | DG24: 0 | DH24: 26 | DI24: 24 | DJ24: 28 | DK24: 19 | DL24: 15 | DM24: 20 | DN24: 19 | DO24: 19 | DP24: 16 | DQ24: 21 | DR24: 26 | DS24: 24 | DT24: 16 | DU24: 13 | DV24: 12 | DW24: 1 | DX24: 1 | DY24: 0 | DZ24: 26 | EA24: 24 | EB24: 28 | EC24: 19 | ED24: 15 | EE24: 20 | EF24: 19 | EG24: 19 | EH24: 16 | EI24: 21 | EJ24: 26 | EK24: 24 | EL24: 16 | EM24: 13 | EN24: 12 | EO24: 1 | EP24: 1 | EQ24: 0 | ER24: 26 | ES24: 24 | ET24: 28 | EU24: 19 | EV24: 15 | EW24: 20 | EX24: 19 | EY24: 19 | EZ24: 16 | FA24: 21 | FB24: 26 | FC24: 24 | FD24: 16 | FE24: 13 | FF24: 12 | FG24: 899 | FH24: 899 | FI24: 1 | FJ24: 411 | FK24: 0.9 | FL24: 2.2 | FM24: 0 | FN24: 32.8 | FO24: 29.4 | FP24: 35 | FQ24: 24.4 | FR24: 21.7 | FS24: 28.5 | FT24: 28.5 | FU24: 26.9 | FV24: 23.1 | FW24: 24.9 | FX24: 33.4 | FY24: 29.8 | FZ24: 23.1 | GA24: 18.5 | GB24: 17.2 | GC24: 1 | GD24: 0 | GE24: 0 | GF24: 23 | GG24: 24 | GH24: 25 | GI24: 23 | GJ24: 8 | GK24: 21 | GL24: 15 | GM24: 16 | GN24: 15 | GO24: 17 | GP24: 19 | GQ24: 23 | GR24: 14 | GS24: 11 | GT24: 13 | GU24: 0 | GV24: -2.094636513 | GW24: 0.4936803874 | GX24: 0.196280451 | GY24: 0.8857076476 | GZ24: -0.06149773604 | HA24: 0.8096933208 | HB24: -0.06779253286 | HC24: AX24.00039_hypothetical | HD24: By MS/MS | HE24: By matching | HG24: By MS/MS | HH24: By MS/MS | HI24: By MS/MS | HJ24: By MS/MS | HK24: By MS/MS | HL24: By MS/MS | HM24: By MS/MS | HN24: By MS/MS | HO24: By MS/MS | HP24: By MS/MS | HQ24: By MS/MS | HR24: By MS/MS | HS24: By MS/MS | HT24: By MS/MS | HU24: By MS/MS
A25: ALC24_0040_Choline transport ATP-binding protein OpuBA | B25: MAGLLVKDVMIKHPMSVPADMDLTLVVDTLLQYRITGLPVVDNENRVIGFVSEQDCLRQLLVSSYHSEGAVRVEQVMHGDPLTVDVEESLVDLAELMLKQKPKIYPVVDEKRRLIGLLTRGHVLRALRDSRRGG | C25: 134 | D25: 0.0442 | E25: 1.062043637 | F25: -0.5172805786 | H25: 0.0765 | I25: 2.848089179 | J25: 1.345941544 | L25: 0.0307 | M25: 0.3591743583 | N25: -0.2244364421 | P25: 0.0694 | Q25: 3.256094475 | R25: 1.482035319 | T25: 0.6125317 | U25: 64363000.00 | V25: 480320.90 | W25: 0.0538 | X25: 0.1072025 | Y25: 50330000 | Z25: 375597.01 | AA25: 0.0403 | AB25: 0.1008205 | AC25: 34269000 | AD25: 255738.806 | AE25: 0.0385 | AF25: 2.180456 | AG25: 908060000 | AH25: 6776567.16 | AI25: 0.0688 | AJ25: 1.794813 | AK25: 671680000 | AL25: 5012537.31 | AM25: 0.0555 | AN25: 2.434952 | AO25: 1122700000 | AP25: 8378358.21 | AQ25: 0.1053 | AR25: 0.9885006 | AS25: 211920000 | AT25: 1581492.54 | AU25: 0.0347 | AV25: 0.3696175 | AW25: 15098000 | AX25: 112671.64 | AY25: 0.0300 | AZ25: 0.3409691 | BA25: 110960000 | BB25: 828059.70 | BC25: 0.0273 | BD25: 2.337324 | BE25: 211410000 | BF25: 1577686.57 | BG25: 0.0667 | BH25: 2.443439 | BI25: 245690000 | BJ25: 1833507.46 | BK25: 0.0741 | BL25: 2.037739 | BM25: 231990000 | BN25: 1731268.66 | BO25: 0.0674 | BP25: 0.1544495 | BQ25: 211670000 | BR25: 1579626.87 | BS25: 0.0197 | BT25: 1.095299 | BU25: 266280000 | BV25: 1987164.18 | BW25: 0.0359 | BX25: 0.6375694 | BY25: 233080000 | BZ25: 1739402.99 | CA25: 0.0273 | CB25: 0.9359112 | CC25: 667460000 | CD25: 4981044.78 | CE25: 0.0614 | CF25: 0.6674824 | CG25: 236050000 | CH25: 1761567.16 | CI25: 0.0515 | CJ25: 1.254082 | CK25: 297680000 | CL25: 2221492.54 | CM25: 0.0912 | CO25: 12 | CP25: 12 | CQ25: 12 | CR25: 65.7 | CS25: 65.7 | CT25: 65.7 | CU25: 15.027 | CV25: 0 | CW25: 104.56 | CX25: 5790700000 | CY25: 205 | CZ25: 26 | DA25: 12 | DB25: 12 | DC25: 12 | DD25: 1 | DE25: 5 | DF25: 5 | DG25: 6 | DH25: 8 | DI25: 8 | DJ25: 10 | DK25: 9 | DL25: 8 | DM25: 10 | DN25: 10 | DO25: 9 | DP25: 9 | DQ25: 7 | DR25: 9 | DS25: 10 | DT25: 9 | DU25: 8 | DV25: 9 | DW25: 5 | DX25: 5 | DY25: 6 | DZ25: 8 | EA25: 8 | EB25: 10 | EC25: 9 | ED25: 8 | EE25: 10 | EF25: 10 | EG25: 9 | EH25: 9 | EI25: 7 | EJ25: 9 | EK25: 10 | EL25: 9 | EM25: 8 | EN25: 9 | EO25: 5 | EP25: 5 | EQ25: 6 | ER25: 8 | ES25: 8 | ET25: 10 | EU25: 9 | EV25: 8 | EW25: 10 | EX25: 10 | EY25: 9 | EZ25: 9 | FA25: 7 | FB25: 9 | FC25: 10 | FD25: 9 | FE25: 8 | FF25: 9 | FG25: 134 | FH25: 134 | FI25: 1 | FJ25: 257 | FK25: 41 | FL25: 39.6 | FM25: 41 | FN25: 61.2 | FO25: 61.2 | FP25: 61.2 | FQ25: 65.7 | FR25: 64.9 | FS25: 65.7 | FT25: 65.7 | FU25: 65.7 | FV25: 65.7 | FW25: 61.2 | FX25: 61.2 | FY25: 61.2 | FZ25: 61.2 | GA25: 61.2 | GB25: 61.2 | GC25: 10 | GD25: 9 | GE25: 8 | GF25: 17 | GG25: 13 | GH25: 11 | GI25: 11 | GJ25: 9 | GK25: 10 | GL25: 11 | GM25: 14 | GN25: 14 | GO25: 6 | GP25: 7 | GQ25: 8 | GR25: 18 | GS25: 14 | GT25: 15 | GU25: 0.4192707046 | GV25: -0.2289123417 | GW25: 0.14368 | GX25: 0.5943535731 | GY25: 0.8052968835 | GZ25: -0.09876100262 | HA25: 0.1779552239 | HB25: 0.6592888872 | HC25: AX24.00040_Choline | HD25: By MS/MS | HE25: By MS/MS | HF25: By MS/MS | HG25: By MS/MS | HH25: By MS/MS | HI25: By MS/MS | HJ25: By MS/MS | HK25: By MS/MS | HL25: By MS/MS | HM25: By MS/MS | HN25: By MS/MS | HO25: By MS/MS | HP25: By MS/MS | HQ25: By MS/MS | HR25: By MS/MS | HS25: By MS/MS | HT25: By MS/MS | HU25: By MS/MS
A26: ALC24_0043_2,3-dehydroadipyl-CoA hydratase | B26: MEYQHIQTALADDGILTVTLNRPDRLNAFTLRMKDELVHAFGDASQDNRVRAVVVTGAGRVFCAGMEMEPEDGGNLFGYDRADSEEPPLEVIRDSGGEVSLAIFECRKPVIAAINGAAVGVGITMTLPMDFRVVAEGAKIGFVFTQRGITPEACSSWFLPRLVGMQQAFEWVYSGDIFLAEEGVEAGLFRGAHPRDQVLEAAQALARKLTAKSSPVAVALAKQMLWRNPVFEHPMQAHAVESRLIYRSSEYWDGKDGFKAFLEKRDPVFDTDLNSVPTQFDFWPEPPLR | C26: 289 | D26: 0.0522 | E26: 1.511958212 | F26: -0.9259163539 | H26: 0.0499 | I26: 0.009262263667 | J26: 0.009583473206 | L26: 0.0592 | M26: 0.02480483794 | N26: 0.02646605174 | P26: 0.0404 | Q26: 0.2232914692 | R26: -0.1896352768 | T26: 1.591021 | U26: 137970000.00 | V26: 477404.84 | W26: 0.0535 | X26: 1.5618 | Y26: 131340000 | Z26: 454463.67 | AA26: 0.0488 | AB26: 1.464008 | AC26: 104420000 | AD26: 361314.8789 | AE26: 0.0543 | AF26: 2.625391 | AG26: 1646500000 | AH26: 5697231.83 | AI26: 0.0578 | AJ26: 2.53381 | AK26: 1279800000 | AL26: 4428373.70 | AM26: 0.0490 | AN26: 2.264128 | AO26: 987380000 | AP26: 3416539.79 | AQ26: 0.0429 | AR26: 2.726198 | AS26: 822400000 | AT26: 2845674.74 | AU26: 0.0625 | AV26: 2.091955 | AW26: 53647000 | AX26: 185629.76 | AY26: 0.0495 | AZ26: 2.655823 | BA26: 576430000 | BB26: 1994567.47 | BC26: 0.0657 | BD26: 2.340475 | BE26: 273890000 | BF26: 947716.26 | BG26: 0.0401 | BH26: 2.286566 | BI26: 297920000 | BJ26: 1030865.05 | BK26: 0.0416 | BL26: 2.198631 | BM26: 292080000 | BN26: 1010657.44 | BO26: 0.0394 | BP26: 2.896294 | BQ26: 1501500000 | BR26: 5195501.73 | BS26: 0.0649 | BT26: 2.844942 | BU26: 963250000 | BV26: 3333044.98 | BW26: 0.0602 | BX26: 2.991253 | BY26: 1203000000 | BZ26: 4162629.76 | CA26: 0.0652 | CB26: 2.523785 | CC26: 1870400000 | CD26: 6471972.32 | CE26: 0.0798 | CF26: 1.931185 | CG26: 645110000 | CH26: 2232214.53 | CI26: 0.0652 | CJ26: 1.601698 | CK26: 298770000 | CL26: 1033806.23 | CM26: 0.0424 | CO26: 22 | CP26: 22 | CQ26: 22 | CR26: 74 | CS26: 74 | CT26: 74 | CU26: 32.011 | CV26: 0 | CW26: 298.27 | CX26: 13086000000 | CY26: 427 | CZ26: 29 | DA26: 22 | DB26: 22 | DC26: 22 | DD26: 1 | DE26: 13 | DF26: 12 | DG26: 11 | DH26: 19 | DI26: 17 | DJ26: 17 | DK26: 17 | DL26: 14 | DM26: 17 | DN26: 17 | DO26: 15 | DP26: 13 | DQ26: 19 | DR26: 18 | DS26: 19 | DT26: 16 | DU26: 14 | DV26: 13 | DW26: 13 | DX26: 12 | DY26: 11 | DZ26: 19 | EA26: 17 | EB26: 17 | EC26: 17 | ED26: 14 | EE26: 17 | EF26: 17 | EG26: 15 | EH26: 13 | EI26: 19 | EJ26: 18 | EK26: 19 | EL26: 16 | EM26: 14 | EN26: 13 | EO26: 13 | EP26: 12 | EQ26: 11 | ER26: 19 | ES26: 17 | ET26: 17 | EU26: 17 | EV26: 14 | EW26: 17 | EX26: 17 | EY26: 15 | EZ26: 13 | FA26: 19 | FB26: 18 | FC26: 19 | FD26: 16 | FE26: 14 | FF26: 13 | FG26: 289 | FH26: 289 | FI26: 1 | FJ26: 578 | FK26: 51.6 | FL26: 49.1 | FM26: 46.7 | FN26: 71.3 | FO26: 71.3 | FP26: 69.6 | FQ26: 74 | FR26: 65.1 | FS26: 66.8 | FT26: 66.8 | FU26: 66.8 | FV26: 65.1 | FW26: 71.3 | FX26: 69.6 | FY26: 71.3 | FZ26: 65.1 | GA26: 63.3 | GB26: 57.1 | GC26: 10 | GD26: 14 | GE26: 14 | GF26: 34 | GG26: 29 | GH26: 27 | GI26: 25 | GJ26: 12 | GK26: 29 | GL26: 18 | GM26: 21 | GN26: 19 | GO26: 37 | GP26: 36 | GQ26: 38 | GR26: 23 | GS26: 24 | GT26: 17 | GU26: 0.2994016888 | GV26: -0.3951352946 | GW26: 0.9873954581 | GX26: 0.004078683383 | GY26: 0.9723607085 | GZ26: 0.01118260132 | HA26: 0.7779286064 | HB26: -0.08092191513 | HC26: AX24.00043_2,3-dehydroadipyl-CoA | HD26: By MS/MS | HE26: By MS/MS | HF26: By MS/MS | HG26: By MS/MS | HH26: By MS/MS | HI26: By MS/MS | HJ26: By MS/MS | HK26: By MS/MS | HL26: By MS/MS | HM26: By MS/MS | HN26: By MS/MS | HO26: By MS/MS | HP26: By MS/MS | HQ26: By MS/MS | HR26: By MS/MS | HS26: By MS/MS | HT26: By MS/MS | HU26: By MS/MS
A27: ALC24_0044_Methionine gamma-lyase | B27: MKRETIAIHGGFAGDPETHSVAVPIYQTTSYYFDNTQHGADLFDLKVPGNIYSRIMNPTNGVLEERVAQLEGGIGALAMASGMAAITAAVQTLARAGDNIVSVSQLYGGTYNLFAHTLPTMGIDVRLADGRDLEAMAAAIDDNTKAVFCESIGNPAGNIVDLAGLAKVAHDAGVPLIVDNTVASPALCRPFEHGADIVVHSLTKYMGGHGTTVGGIIVDSGKFPWQGNARFPQFNEPDPSYHGVIYTEAMGPAAFIARARVVPLRNMGAALSPMNAFLILQGIETLNLRMERHCENAIKVARCLKAHDKVEWVNYAGLEGDRDAELAKRYMDGGLPSAILSFGIKGGREAGARFIDALQMIKRLVNIGDAKSLACHPATTTHRQLNDDELKTAGVSADLVRLSIGIEHVDDILADIEQALDAV | C27: 423 | D27: 0.3782 | E27: 1.52374197 | F27: -0.8615856171 | H27: 0.1787 | I27: 0.8581644603 | J27: -0.5570074717 | L27: 0.3350 | M27: 0.2401341279 | N27: -0.1904449463 | P27: 0.1891 | Q27: 1.277549436 | R27: -0.7371966044 | T27: 4.793806 | U27: 1462600000.00 | V27: 3457683.22 | W27: 0.3874 | X27: 4.745651 | Y27: 1451400000 | Z27: 3431205.67 | AA27: 0.3683 | AB27: 4.64856 | AC27: 1066200000 | AD27: 2520567.376 | AE27: 0.3791 | AF27: 5.197334 | AG27: 8157600000 | AH27: 19285106.38 | AI27: 0.1958 | AJ27: 5.19446 | AK27: 8085500000 | AL27: 19114657.21 | AM27: 0.2116 | AN27: 4.709957 | AO27: 4325800000 | AP27: 10226477.54 | AQ27: 0.1286 | AR27: 5.369358 | AS27: 5704200000 | AT27: 13485106.38 | AU27: 0.2962 | AV27: 5.227285 | AW27: 573750000 | AX27: 1356382.98 | AY27: 0.3617 | AZ27: 5.604795 | BA27: 4456200000 | BB27: 10534751.77 | BC27: 0.3471 | BD27: 4.904232 | BE27: 1945900000 | BF27: 4600236.41 | BG27: 0.1946 | BH27: 4.795118 | BI27: 1950400000 | BJ27: 4610874.70 | BK27: 0.1862 | BL27: 4.861834 | BM27: 2023300000 | BN27: 4783215.13 | BO27: 0.1863 | BP27: 6.080448 | BQ27: 13622000000 | BR27: 32203309.69 | BS27: 0.4021 | BT27: 5.871773 | BU27: 7716600000 | BV27: 18242553.19 | BW27: 0.3294 | BX27: 6.147051 | BY27: 11609000000 | BZ27: 27444444.44 | CA27: 0.4300 | CB27: 5.460825 | CC27: 16615000000 | CD27: 39278959.81 | CE27: 0.4841 | CF27: 5.12977 | CG27: 5831100000 | CH27: 13785106.38 | CI27: 0.4028 | CJ27: 4.85568 | CK27: 3894900000 | CL27: 9207801.42 | CM27: 0.3781 | CO27: 32 | CP27: 32 | CQ27: 32 | CR27: 82 | CS27: 82 | CT27: 82 | CU27: 45.083 | CV27: 0 | CW27: 323.31 | CX27: 100490000000 | CY27: 1379 | CZ27: 30 | DA27: 32 | DB27: 32 | DC27: 32 | DD27: 1 | DE27: 22 | DF27: 22 | DG27: 22 | DH27: 28 | DI27: 26 | DJ27: 26 | DK27: 28 | DL27: 23 | DM27: 26 | DN27: 25 | DO27: 25 | DP27: 23 | DQ27: 30 | DR27: 29 | DS27: 32 | DT27: 26 | DU27: 23 | DV27: 23 | DW27: 22 | DX27: 22 | DY27: 22 | DZ27: 28 | EA27: 26 | EB27: 26 | EC27: 28 | ED27: 23 | EE27: 26 | EF27: 25 | EG27: 25 | EH27: 23 | EI27: 30 | EJ27: 29 | EK27: 32 | EL27: 26 | EM27: 23 | EN27: 23 | EO27: 22 | EP27: 22 | EQ27: 22 | ER27: 28 | ES27: 26 | ET27: 26 | EU27: 28 | EV27: 23 | EW27: 26 | EX27: 25 | EY27: 25 | EZ27: 23 | FA27: 30 | FB27: 29 | FC27: 32 | FD27: 26 | FE27: 23 | FF27: 23 | FG27: 423 | FH27: 423 | FI27: 1 | FJ27: 1547 | FK27: 73 | FL27: 72.3 | FM27: 69.5 | FN27: 80.1 | FO27: 74.5 | FP27: 79.4 | FQ27: 81.8 | FR27: 76.4 | FS27: 81.1 | FT27: 76.1 | FU27: 79.2 | FV27: 72.8 | FW27: 80.1 | FX27: 79 | FY27: 82 | FZ27: 80.4 | GA27: 74.7 | GB27: 74.7 | GC27: 78 | GD27: 71 | GE27: 69 | GF27: 79 | GG27: 65 | GH27: 58 | GI27: 93 | GJ27: 63 | GK27: 81 | GL27: 62 | GM27: 60 | GN27: 63 | GO27: 90 | GP27: 90 | GQ27: 89 | GR27: 99 | GS27: 89 | GT27: 80 | GU27: 0.3087529924 | GV27: -0.3718167267 | GW27: 0.4246294278 | GX27: -0.2387193267 | GY27: 0.8441266874 | GZ27: -0.08194314811 | HA27: 0.42 | HB27: -0.3182124851 | HC27: AX24.00044_Methionine | HD27: By MS/MS | HE27: By MS/MS | HF27: By MS/MS | HG27: By MS/MS | HH27: By MS/MS | HI27: By MS/MS | HJ27: By MS/MS | HK27: By MS/MS | HL27: By MS/MS | HM27: By MS/MS | HN27: By MS/MS | HO27: By MS/MS | HP27: By MS/MS | HQ27: By MS/MS | HR27: By MS/MS | HS27: By MS/MS | HT27: By MS/MS | HU27: By MS/MS
A28: ALC24_0045_HTH-type transcriptional regulator VirS | B28: MNHSPTVTVHFSQAIMQAAQRLGLSLPEALVTEMSARDRVDLESQNRLWEAFCQAADDPLVGVDLGLALQVGHLDTAGMILMSCETLGEAVESLLDYHPIVGEGGTFDFRTITAGRCELRYQPLYHTCLTTRVEAVMASMLSLTRWSTGEAFRPSHLTVCHAPRSDLSRYQDRLGVPIRFNADHNALVFAPEQLRLPLIHANPALCRHLRGLADDLLAGLENPSLGGQVSTLIRGHPHWGKERIAEQLGMSGRHLIRKLADEGTGFKLLRDTLLRERAERALADGERAGRIAEELGFSDESAFVKAFKRWTGSTPARFRAERGD | C28: 324 | D28: 0.0000 | E28: 0.5231815439 | F28: -0.6493287881 | H28: 0.0002 | I28: 0.5811872641 | J28: -0.6891007423 | L28: 0.0000 | M28: 0.5990603218 | N28: -0.858029445 | P28: 0.0000 | Q28: 0.1978409355 | R28: 0.2893841267 | T28: -3.639446 | U28: 0.00 | V28: 0.00 | W28: 0.0000 | X28: -4.618945 | Y28: 0 | Z28: 0.00 | AA28: 0.0000 | AB28: -4.342309 | AC28: 0 | AD28: 0 | AE28: 0.0000 | AF28: -4.051197 | AG28: 8566400 | AH28: 26439.51 | AI28: 0.0003 | AJ28: -4.667403 | AK28: 2835700 | AL28: 8752.16 | AM28: 0.0001 | AN28: -4.001415 | AO28: 7107000 | AP28: 21935.19 | AQ28: 0.0003 | AR28: -4.137251 | AS28: 0 | AT28: 0.00 | AU28: 0.0000 | AV28: -3.473431 | AW28: 0 | AX28: 0.00 | AY28: 0.0000 | AZ28: -5.616119 | BA28: 0 | BB28: 0.00 | BC28: 0.0000 | BD28: -3.486468 | BE28: 0 | BF28: 0.00 | BG28: 0.0000 | BH28: -2.66779 | BI28: 241810 | BJ28: 746.33 | BK28: 0.0000 | BL28: -3.630304 | BM28: 0 | BN28: 0.00 | BO28: 0.0000 | BP28: -2.683315 | BQ28: 34195000 | BR28: 105540.12 | BS28: 0.0013 | BT28: -2.862038 | BU28: 14526000 | BV28: 44833.33 | BW28: 0.0008 | BX28: -2.667559 | BY28: 28164000 | BZ28: 86925.93 | CA28: 0.0014 | CB28: -4.613479 | CC28: 4834900 | CD28: 14922.53 | CE28: 0.0002 | CF28: -4.477583 | CG28: 4427600 | CH28: 13665.43 | CI28: 0.0004 | CJ28: -4.001453 | CK28: 1207000 | CL28: 3725.31 | CM28: 0.0002 | CO28: 6 | CP28: 6 | CQ28: 6 | CR28: 25 | CS28: 25 | CT28: 25 | CU28: 35.839 | CV28: 0 | CW28: 32.401 | CX28: 106110000 | CY28: 20 | CZ28: 31 | DA28: 6 | DB28: 6 | DC28: 6 | DD28: 1 | DE28: 0 | DF28: 0 | DG28: 0 | DH28: 2 | DI28: 1 | DJ28: 2 | DK28: 0 | DL28: 0 | DM28: 0 | DN28: 0 | DO28: 1 | DP28: 0 | DQ28: 5 | DR28: 4 | DS28: 4 | DT28: 1 | DU28: 2 | DV28: 1 | DW28: 0 | DX28: 0 | DY28: 0 | DZ28: 2 | EA28: 1 | EB28: 2 | EC28: 0 | ED28: 0 | EE28: 0 | EF28: 0 | EG28: 1 | EH28: 0 | EI28: 5 | EJ28: 4 | EK28: 4 | EL28: 1 | EM28: 2 | EN28: 1 | EO28: 0 | EP28: 0 | EQ28: 0 | ER28: 2 | ES28: 1 | ET28: 2 | EU28: 0 | EV28: 0 | EW28: 0 | EX28: 0 | EY28: 1 | EZ28: 0 | FA28: 5 | FB28: 4 | FC28: 4 | FD28: 1 | FE28: 2 | FF28: 1 | FG28: 324 | FH28: 324 | FI28: 1 | FJ28: 25 | FK28: 0 | FL28: 0 | FM28: 0 | FN28: 10.5 | FO28: 3.1 | FP28: 10.5 | FQ28: 0 | FR28: 0 | FS28: 0 | FT28: 0 | FU28: 3.1 | FV28: 0 | FW28: 20.1 | FX28: 15.1 | FY28: 17.6 | FZ28: 3.1 | GA28: 6.2 | GB28: 3.1 | GC28: 0 | GD28: 0 | GE28: 0 | GF28: 1 | GG28: 1 | GH28: 2 | GI28: 0 | GJ28: 0 | GK28: 0 | GL28: 0 | GM28: 0 | GN28: 0 | GO28: 6 | GP28: 4 | GQ28: 5 | GR28: 1 | GS28: 0 | GT28: 0 | GU28: 0.3893165229 | GV28: -0.2516854787 | GW28: 0.3836251874 | GX28: -0.2686259261 | GY28: 0.5027325729 | GZ28: -0.3193444268 | HA28: 0.7125886144 | HB28: 0.1120899736 | HC28: AX24.00045_HTH-type | HG28: By MS/MS | HH28: By MS/MS | HI28: By MS/MS | HN28: By matching | HP28: By MS/MS | HQ28: By MS/MS | HR28: By MS/MS | HS28: By MS/MS | HT28: By matching | HU28: By matching
A29: ALC24_0050_hypothetical protein | B29: MSSVEIRPVSGIAVEPWLDELAGLRIRIFRDYPYLYDGDESYERRYLDRYARSDRSLFVLALEYNQVVGVASALPLEDADQELLAPFQQRGLAPERVYYFGESVLLPEYRGQGIGHRFFDLRELYASDFGFSTTAFCSVVRPVDDPRRPDGYTGLEPFWRSRGYRPATGLTTGFFWRDQGEQEETRKAMQFWLRDAVE | C29: 198 | D29: 0.0026 | E29: 0.210727765 | F29: -0.6824072202 | H29: 0.0029 | I29: 0.4056229575 | J29: 1.182801565 | L29: 0.0015 | M29: 0.2296874092 | N29: -0.7894217173 | P29: 0.0013 | Q29: 0.3146454729 | R29: -0.9914536476 | T29: -3.563433 | U29: 8197400.00 | V29: 41401.01 | W29: 0.0046 | X29: -3.806779 | Y29: 6028400 | Z29: 30446.46 | AA29: 0.0033 | AB29: -3.649057 | AC29: 0 | AD29: 0 | AE29: 0.0000 | AF29: -1.757648 | AG29: 54130000 | AH29: 273383.84 | AI29: 0.0028 | AJ29: -1.986706 | AK29: 50569000 | AL29: 255398.99 | AM29: 0.0028 | AN29: -1.679289 | AO29: 48883000 | AP29: 246883.84 | AQ29: 0.0031 | AR29: -2.270191 | AS29: 16776000 | AT29: 84727.27 | AU29: 0.0019 | AV29: -4.179673 | AW29: 1816800 | AX29: 9175.76 | AY29: 0.0024 | AZ29: -4.890449 | BA29: 1896800 | BB29: 9579.80 | BC29: 0.0003 | BD29: -5.040493 | BE29: 7378000 | BF29: 37262.63 | BG29: 0.0016 | BH29: -3.419812 | BI29: 5779600 | BJ29: 29189.90 | BK29: 0.0012 | BL29: -3.486104 | BM29: 5913900 | BN29: 29868.18 | BO29: 0.0012 | BP29: -1.197893 | BQ29: 67119000 | BR29: 338984.85 | BS29: 0.0042 | BT29: -1.120974 | BU29: 71600000 | BV29: 361616.16 | BW29: 0.0065 | BX29: -0.8568668 | BY29: 91849000 | BZ29: 463883.84 | CA29: 0.0073 | CB29: -4.353538 | CC29: 44928000 | CD29: 226909.09 | CE29: 0.0028 | CF29: -4.640339 | CG29: 0 | CH29: 0.00 | CI29: 0.0000 | CJ29: -5.774485 | CK29: 13591000 | CL29: 68641.41 | CM29: 0.0028 | CO29: 7 | CP29: 7 | CQ29: 7 | CR29: 46 | CS29: 46 | CT29: 46 | CU29: 23.024 | CV29: 0 | CW29: 22.782 | CX29: 496460000 | CY29: 42 | CZ29: 32 | DA29: 7 | DB29: 7 | DC29: 7 | DD29: 1 | DE29: 1 | DF29: 1 | DG29: 0 | DH29: 4 | DI29: 4 | DJ29: 4 | DK29: 2 | DL29: 1 | DM29: 1 | DN29: 1 | DO29: 1 | DP29: 1 | DQ29: 4 | DR29: 7 | DS29: 6 | DT29: 1 | DU29: 0 | DV29: 1 | DW29: 1 | DX29: 1 | DY29: 0 | DZ29: 4 | EA29: 4 | EB29: 4 | EC29: 2 | ED29: 1 | EE29: 1 | EF29: 1 | EG29: 1 | EH29: 1 | EI29: 4 | EJ29: 7 | EK29: 6 | EL29: 1 | EM29: 0 | EN29: 1 | EO29: 1 | EP29: 1 | EQ29: 0 | ER29: 4 | ES29: 4 | ET29: 4 | EU29: 2 | EV29: 1 | EW29: 1 | EX29: 1 | EY29: 1 | EZ29: 1 | FA29: 4 | FB29: 7 | FC29: 6 | FD29: 1 | FE29: 0 | FF29: 1 | FG29: 198 | FH29: 198 | FI29: 1 | FJ29: 46 | FK29: 12.1 | FL29: 12.1 | FM29: 0 | FN29: 31.8 | FO29: 31.8 | FP29: 31.8 | FQ29: 19.2 | FR29: 12.1 | FS29: 6.6 | FT29: 12.1 | FU29: 12.1 | FV29: 12.1 | FW29: 31.8 | FX29: 46 | FY29: 46 | FZ29: 12.1 | GA29: 0 | GB29: 12.1 | GC29: 2 | GD29: 2 | GE29: 0 | GF29: 2 | GG29: 3 | GH29: 2 | GI29: 1 | GJ29: 1 | GK29: 0 | GL29: 2 | GM29: 3 | GN29: 1 | GO29: 5 | GP29: 7 | GQ29: 8 | GR29: 1 | GS29: 0 | GT29: 2 | GU29: 0.448966474 | GV29: -0.2068557959 | GW29: 0.2927185629 | GX29: 0.3584772228 | GY29: 0.6138065693 | GZ29: -0.2324908357 | HA29: 0.4420224719 | HB29: -0.2965225858 | HC29: AX24.00050_hypothetical | HD29: By MS/MS | HE29: By MS/MS | HG29: By MS/MS | HH29: By MS/MS | HI29: By MS/MS | HJ29: By MS/MS | HK29: By MS/MS | HL29: By matching | HM29: By MS/MS | HN29: By MS/MS | HO29: By MS/MS | HP29: By MS/MS | HQ29: By MS/MS | HR29: By MS/MS | HS29: By MS/MS | HU29: By MS/MS
A30: ALC24_0053_Protein YceI | B30: MYKLFTTPVLALMSALMLSSAAMAADKPAGTYHFDTEGQHQFIMFKISHLGYSWLYGRFNDFDGTFTVDADNPENSTVEATIKTASLDSNHAERDKHLRSDDFLDVSEYPTATFKSTGIEKTGDETARITGDFTLHGVTKPVTLDARLIGYGDDPWGGYRMGLEASTTLKLADFGITKNLGPASETVEIIISVEGVRQ | C30: 198 | D30: 0.0183 | E30: 1.341056821 | F30: -0.6158971786 | H30: 0.0083 | I30: 0.08226329281 | J30: -0.06394227346 | L30: 0.0085 | M30: 1.566998527 | N30: -0.7499125799 | P30: 0.0066 | Q30: 2.165282226 | R30: -0.9746783574 | T30: -0.5141201 | U30: 32462000.00 | V30: 163949.49 | W30: 0.0184 | X30: -0.5181007 | Y30: 39285000 | Z30: 198409.09 | AA30: 0.0213 | AB30: -0.735548 | AC30: 20232000 | AD30: 102181.8182 | AE30: 0.0154 | AF30: -0.09614182 | AG30: 154090000 | AH30: 778232.32 | AI30: 0.0079 | AJ30: 0.3409748 | AK30: 201700000 | AL30: 1018686.87 | AM30: 0.0113 | AN30: -0.3567371 | AO30: 91777000 | AP30: 463520.20 | AQ30: 0.0058 | AR30: -0.4414196 | AS30: 89720000 | AT30: 453131.31 | AU30: 0.0100 | AV30: -0.7486725 | AW30: 6945000 | AX30: 35075.76 | AY30: 0.0094 | AZ30: -0.979723 | BA30: 38033000 | BB30: 192085.86 | BC30: 0.0063 | BD30: -0.7527847 | BE30: 37418000 | BF30: 188979.80 | BG30: 0.0080 | BH30: -1.020506 | BI30: 30142000 | BJ30: 152232.32 | BK30: 0.0061 | BL30: -1.070822 | BM30: 28436000 | BN30: 143616.16 | BO30: 0.0056 | BP30: 0.3874798 | BQ30: 236690000 | BR30: 1195404.04 | BS30: 0.0149 | BT30: 0.5163383 | BU30: 171780000 | BV30: 867575.76 | BW30: 0.0157 | BX30: 0.00177002 | BY30: 150330000 | BZ30: 759242.42 | CA30: 0.0119 | CB30: -0.006795883 | CC30: 465190000 | CD30: 2349444.44 | CE30: 0.0290 | CF30: -0.06644249 | CG30: 194090000 | CH30: 980252.53 | CI30: 0.0286 | CJ30: -0.6725044 | CK30: 98297000 | CL30: 496449.49 | CM30: 0.0204 | CO30: 11 | CP30: 11 | CQ30: 11 | CR30: 64.1 | CS30: 64.1 | CT30: 64.1 | CU30: 21.717 | CV30: 0 | CW30: 135.91 | CX30: 2086600000 | CY30: 171 | CZ30: 33 | DA30: 11 | DB30: 11 | DC30: 11 | DD30: 1 | DE30: 7 | DF30: 8 | DG30: 4 | DH30: 10 | DI30: 10 | DJ30: 10 | DK30: 9 | DL30: 8 | DM30: 7 | DN30: 10 | DO30: 9 | DP30: 8 | DQ30: 10 | DR30: 11 | DS30: 11 | DT30: 9 | DU30: 9 | DV30: 8 | DW30: 7 | DX30: 8 | DY30: 4 | DZ30: 10 | EA30: 10 | EB30: 10 | EC30: 9 | ED30: 8 | EE30: 7 | EF30: 10 | EG30: 9 | EH30: 8 | EI30: 10 | EJ30: 11 | EK30: 11 | EL30: 9 | EM30: 9 | EN30: 8 | EO30: 7 | EP30: 8 | EQ30: 4 | ER30: 10 | ES30: 10 | ET30: 10 | EU30: 9 | EV30: 8 | EW30: 7 | EX30: 10 | EY30: 9 | EZ30: 8 | FA30: 10 | FB30: 11 | FC30: 11 | FD30: 9 | FE30: 9 | FF30: 8 | FG30: 198 | FH30: 198 | FI30: 1 | FJ30: 239 | FK30: 40.9 | FL30: 47.5 | FM30: 31.8 | FN30: 64.1 | FO30: 64.1 | FP30: 54 | FQ30: 54 | FR30: 52.5 | FS30: 47.5 | FT30: 64.1 | FU30: 54 | FV30: 47.5 | FW30: 54 | FX30: 64.1 | FY30: 64.1 | FZ30: 54 | GA30: 54 | GB30: 47.5 | GC30: 7 | GD30: 6 | GE30: 3 | GF30: 8 | GG30: 11 | GH30: 9 | GI30: 11 | GJ30: 3 | GK30: 7 | GL30: 7 | GM30: 6 | GN30: 6 | GO30: 12 | GP30: 12 | GQ30: 14 | GR30: 20 | GS30: 17 | GT30: 12 | GU30: 0.3649366548 | GV30: -0.2732787257 | GW30: 0.904247541 | GX30: -0.02801333225 | GY30: 0.4932148541 | GZ30: -0.3304646628 | HA30: 0.3276559865 | HB30: -0.4317677299 | HC30: AX24.00053_Protein | HD30: By MS/MS | HE30: By MS/MS | HF30: By MS/MS | HG30: By MS/MS | HH30: By MS/MS | HI30: By MS/MS | HJ30: By MS/MS | HK30: By MS/MS | HL30: By MS/MS | HM30: By MS/MS | HN30: By MS/MS | HO30: By MS/MS | HP30: By MS/MS | HQ30: By MS/MS | HR30: By MS/MS | HS30: By MS/MS | HT30: By MS/MS | HU30: By MS/MS
A31: ALC24_0054_Ubiquinone biosynthesis O-methyltransferase | B31: VKVSCRLCQASDSRAFASVDGRDYWRCSRCQLTFLDQGQLPDRDQEKAQYDLHQNNPGDAGYRRFLDQLAAPLAERLPDGAEGLDYGCGPGPALARLMGERGFPMAVYDPLYRPETDVLAGQYDFITCTEVIEHLHWPHLEWRRFAQLVRPGGWLGLMTRWLTDDAHFPRWHYRRDPTHVCFWKPETFAWLARRDGWQVVYAENPAVILRKV | C31: 212 | D31: 0.0000 | E31: 0.3457785877 | F31: -0.6582838694 | H31: 0.0011 | I31: 1.09225149 | J31: -1.681918303 | L31: 0.0009 | M31: 0.6330974652 | N31: -1.089812358 | P31: 0.0006 | Q31: 0.7305696651 | R31: -1.239943584 | T31: -3.649928 | U31: 0.00 | V31: 0.00 | W31: 0.0000 | X31: -3.84407 | Y31: 0 | Z31: 0.00 | AA31: 0.0000 | AB31: -4.383862 | AC31: 0 | AD31: 0 | AE31: 0.0000 | AF31: -5.37388 | AG31: 19377000 | AH31: 91400.94 | AI31: 0.0009 | AJ31: -4.965254 | AK31: 20535000 | AL31: 96863.21 | AM31: 0.0011 | AN31: -4.60963 | AO31: 24249000 | AP31: 114382.08 | AQ31: 0.0014 | AR31: -4.721389 | AS31: 6176600 | AT31: 29134.91 | AU31: 0.0006 | AV31: -4.64124 | AW31: 607980 | AX31: 2867.83 | AY31: 0.0008 | AZ31: -3.809817 | BA31: 7378600 | BB31: 34804.72 | BC31: 0.0011 | BD31: -5.199168 | BE31: 2699500 | BF31: 12733.49 | BG31: 0.0005 | BH31: -3.962914 | BI31: 3287000 | BJ31: 15504.72 | BK31: 0.0006 | BL31: -4.460758 | BM31: 3666800 | BN31: 17296.23 | BO31: 0.0007 | BP31: -2.498121 | BQ31: 30328000 | BR31: 143056.60 | BS31: 0.0018 | BT31: -2.150984 | BU31: 34022000 | BV31: 160481.13 | BW31: 0.0029 | BX31: -1.940638 | BY31: 33049000 | BZ31: 155891.51 | CA31: 0.0024 | CB31: -4.792399 | CC31: 32258000 | CD31: 152160.38 | CE31: 0.0019 | CF31: -3.33612 | CG31: 0 | CH31: 0.00 | CI31: 0.0000 | CJ31: -5.087755 | CK31: 653520 | CL31: 3082.64 | CM31: 0.0001 | CO31: 4 | CP31: 4 | CQ31: 4 | CR31: 27.4 | CS31: 27.4 | CT31: 27.4 | CU31: 24.641 | CV31: 0.0024973 | CW31: 2.6352 | CX31: 218290000 | CY31: 6 | CZ31: 34 | DA31: 4 | DB31: 4 | DC31: 4 | DD31: 1 | DE31: 0 | DF31: 0 | DG31: 0 | DH31: 2 | DI31: 2 | DJ31: 2 | DK31: 1 | DL31: 1 | DM31: 1 | DN31: 1 | DO31: 1 | DP31: 1 | DQ31: 3 | DR31: 3 | DS31: 3 | DT31: 1 | DU31: 0 | DV31: 1 | DW31: 0 | DX31: 0 | DY31: 0 | DZ31: 2 | EA31: 2 | EB31: 2 | EC31: 1 | ED31: 1 | EE31: 1 | EF31: 1 | EG31: 1 | EH31: 1 | EI31: 3 | EJ31: 3 | EK31: 3 | EL31: 1 | EM31: 0 | EN31: 1 | EO31: 0 | EP31: 0 | EQ31: 0 | ER31: 2 | ES31: 2 | ET31: 2 | EU31: 1 | EV31: 1 | EW31: 1 | EX31: 1 | EY31: 1 | EZ31: 1 | FA31: 3 | FB31: 3 | FC31: 3 | FD31: 1 | FE31: 0 | FF31: 1 | FG31: 212 | FH31: 212 | FI31: 1 | FJ31: 23 | FK31: 0 | FL31: 0 | FM31: 0 | FN31: 14.2 | FO31: 14.2 | FP31: 14.2 | FQ31: 9.4 | FR31: 9.4 | FS31: 9.4 | FT31: 9.4 | FU31: 9.4 | FV31: 9.4 | FW31: 22.6 | FX31: 22.6 | FY31: 22.6 | FZ31: 15.1 | GA31: 0 | GB31: 4.7 | GC31: 0 | GD31: 0 | GE31: 0 | GF31: 1 | GG31: 0 | GH31: 0 | GI31: 0 | GJ31: 0 | GK31: 0 | GL31: 0 | GM31: 0 | GN31: 0 | GO31: 2 | GP31: 0 | GQ31: 3 | GR31: 0 | GS31: 0 | GT31: 0 | GU31: 0.4157234444 | GV31: -0.2330343042 | GW31: 0.1439150743 | GX31: -0.5953739221 | GY31: 0.4453642384 | GZ31: -0.3845055828 | HA31: 0.3254226804 | HB31: -0.4357471571 | HC31: AX24.00054_Ubiquinone | HG31: By MS/MS | HH31: By matching | HI31: By matching | HJ31: By matching | HK31: By matching | HL31: By matching | HM31: By matching | HN31: By matching | HO31: By matching | HP31: By MS/MS | HQ31: By matching | HR31: By MS/MS | HS31: By matching | HU31: By matching
A32: ALC24_0056_Multidrug resistance protein MdtN | B32: MTPEQQFSRWVRRALVVFALVFAYVVWMDLHAPLTTLSRVQRYVVQVAPQVAGEVTGVAVTNGDHVNQGDLLFTVAEQDYRLIMDGAELRVAEAGQDNAVLLADLAGARARETSARATLEEARRQRQRLKNLFEGGAVSRQEWEQGELAVDNAESELESARATIRSLETRLGEDKEHNLALAQAMNELEKARLDWSRTRITAPVAGVVDNLQLESGTYASAREPLVSLIADAPVWVAADFREKSLRDVHPGDRAEIVFDAWPGRVFDARVQSMGKGVRDGQGVPDGQLAQVENTDRWVRDAQRVRVRLVLEGGDEEPPLRVGARTTVQLYPRDRLSWLSHGFGWLQIRVLSLLHYLY | C32: 357 | D32: 0.0007 | E32: -4.34E-08 | F32: 0 | H32: 0.0003 | I32: -4.34E-08 | J32: 0 | L32: 0.0011 | M32: 2.09584859 | N32: 2.092978716 | P32: 0.0028 | Q32: 3.941892934 | R32: 3.453573624 | S32: + | T32: -4.385682 | U32: 3878000.00 | V32: 10862.75 | W32: 0.0012 | X32: -3.878263 | Y32: 2441800 | Z32: 6839.78 | AA32: 0.0007 | AB32: -4.506079 | AC32: 0 | AD32: 0 | AE32: 0.0000 | AF32: -5.161816 | AG32: 7318500 | AH32: 20500.00 | AI32: 0.0002 | AJ32: -4.924487 | AK32: 11207000 | AL32: 31392.16 | AM32: 0.0003 | AN32: -4.806981 | AO32: 10668000 | AP32: 29882.35 | AQ32: 0.0004 | AR32: -1.490917 | AS32: 53138000 | AT32: 148845.94 | AU32: 0.0033 | AV32: -2.55879 | AW32: 0 | AX32: 0.00 | AY32: 0.0000 | AZ32: -3.478542 | BA32: 1888700 | BB32: 5290.48 | BC32: 0.0002 | BD32: -0.9902344 | BE32: 31805000 | BF32: 89089.64 | BG32: 0.0038 | BH32: -0.9310932 | BI32: 32702000 | BJ32: 91602.24 | BK32: 0.0037 | BL32: -1.525137 | BM32: 9146300 | BN32: 25619.89 | BO32: 0.0010 | BP32: -4.712473 | BQ32: 3423400 | BR32: 9589.36 | BS32: 0.0001 | BT32: -4.409509 | BU32: 1313100 | BV32: 3678.15 | BW32: 0.0001 | BX32: -5.37378 | BY32: 2170000 | BZ32: 6078.43 | CA32: 0.0001 | CB32: -5.388693 | CC32: 0 | CD32: 0.00 | CE32: 0.0000 | CF32: -3.520665 | CG32: 0 | CH32: 0.00 | CI32: 0.0000 | CJ32: -4.20925 | CK32: 0 | CL32: 0.00 | CM32: 0.0000 | CN32: PHBV_Succ | CO32: 6 | CP32: 6 | CQ32: 6 | CR32: 20.7 | CS32: 20.7 | CT32: 20.7 | CU32: 39.954 | CV32: 0 | CW32: 4.0955 | CX32: 171100000 | CY32: 11 | CZ32: 36 | DA32: 6 | DB32: 6 | DC32: 6 | DD32: 1 | DE32: 1 | DF32: 1 | DG32: 0 | DH32: 1 | DI32: 2 | DJ32: 2 | DK32: 2 | DL32: 0 | DM32: 1 | DN32: 4 | DO32: 3 | DP32: 3 | DQ32: 2 | DR32: 1 | DS32: 1 | DT32: 0 | DU32: 0 | DV32: 0 | DW32: 1 | DX32: 1 | DY32: 0 | DZ32: 1 | EA32: 2 | EB32: 2 | EC32: 2 | ED32: 0 | EE32: 1 | EF32: 4 | EG32: 3 | EH32: 3 | EI32: 2 | EJ32: 1 | EK32: 1 | EL32: 0 | EM32: 0 | EN32: 0 | EO32: 1 | EP32: 1 | EQ32: 0 | ER32: 1 | ES32: 2 | ET32: 2 | EU32: 2 | EV32: 0 | EW32: 1 | EX32: 4 | EY32: 3 | EZ32: 3 | FA32: 2 | FB32: 1 | FC32: 1 | FD32: 0 | FE32: 0 | FF32: 0 | FG32: 357 | FH32: 357 | FI32: 1 | FJ32: 24 | FK32: 6.7 | FL32: 6.7 | FM32: 0 | FN32: 5.3 | FO32: 7.6 | FP32: 7.6 | FQ32: 9 | FR32: 0 | FS32: 2.2 | FT32: 16 | FU32: 14.3 | FV32: 12 | FW32: 4.8 | FX32: 2.2 | FY32: 2.2 | FZ32: 0 | GA32: 0 | GB32: 0 | GC32: 0 | GD32: 0 | GE32: 0 | GF32: 1 | GG32: 2 | GH32: 2 | GI32: 0 | GJ32: 0 | GK32: 0 | GL32: 3 | GM32: 1 | GN32: 2 | GO32: 0 | GP32: 0 | GQ32: 0 | GR32: 0 | GS32: 0 | GT32: 0 | GU32: 1 | GV32: 0 | GW32: 1 | GX32: 0 | GY32: 0.1388270677 | GZ32: 0.8140375099 | HA32: 0.002909090909 | HB32: 1.411158086 | HC32: AX24.00056_Multidrug | HD32: By matching | HE32: By matching | HG32: By MS/MS | HH32: By MS/MS | HI32: By MS/MS | HJ32: By matching | HL32: By matching | HM32: By MS/MS | HN32: By MS/MS | HO32: By MS/MS | HP32: By MS/MS | HQ32: By matching | HR32: By matching
A33: ALC24_0058_hypothetical protein | B33: MRTFSKGFVVVLFGALLGLAACDQQEGPMEEAGEKVDQAVDDMTNEGTMEKAGESADETWQDTKEAGQEALDKTKQAGEDAWNKTKETGEDVKDAVTGENQN | C33: 102 | D33: 0.0241 | E33: 1.074226993 | F33: -1.410453796 | H33: 0.0938 | I33: 1.056038976 | J33: 1.396409353 | L33: 0.0604 | M33: 0.08664707287 | N33: 0.1659679413 | P33: 0.0548 | Q33: 0.1568310657 | R33: 0.2840906779 | T33: -0.507122 | U33: 30034000.00 | V33: 294450.98 | W33: 0.0330 | X33: -0.5666637 | Y33: 14453000 | Z33: 141696.08 | AA33: 0.0152 | AB33: -0.9285908 | AC33: 16343000 | AD33: 160225.4902 | AE33: 0.0241 | AF33: 2.214397 | AG33: 975060000 | AH33: 9559411.76 | AI33: 0.0971 | AJ33: 2.379385 | AK33: 1070500000 | AL33: 10495098.04 | AM33: 0.1162 | AN33: 1.82443 | AO33: 551910000 | AP33: 5410882.35 | AQ33: 0.0680 | AR33: 0.988142 | AS33: 312690000 | AT33: 3065588.24 | AU33: 0.0673 | AV33: 0.7168846 | AW33: 20662000 | AX33: 202568.63 | AY33: 0.0540 | AZ33: 1.021862 | BA33: 185530000 | BB33: 1818921.57 | BC33: 0.0599 | BD33: 0.8550396 | BE33: 119100000 | BF33: 1167647.06 | BG33: 0.0494 | BH33: 1.227894 | BI33: 162580000 | BJ33: 1593921.57 | BK33: 0.0644 | BL33: 0.9983234 | BM33: 132770000 | BN33: 1301666.67 | BO33: 0.0507 | BP33: 1.679966 | BQ33: 646360000 | BR33: 6336862.75 | BS33: 0.0791 | BT33: 1.870447 | BU33: 398170000 | BV33: 3903627.45 | BW33: 0.0705 | BX33: 1.797813 | BY33: 497350000 | BZ33: 4875980.39 | CA33: 0.0764 | CB33: 0.1284409 | CC33: 272050000 | CD33: 2667156.86 | CE33: 0.0329 | CF33: -0.4410038 | CG33: 112960000 | CH33: 1107450.98 | CI33: 0.0324 | CJ33: -0.5776939 | CK33: 66336000 | CL33: 650352.94 | CM33: 0.0267 | CO33: 8 | CP33: 8 | CQ33: 8 | CR33: 65.7 | CS33: 65.7 | CT33: 65.7 | CU33: 11.003 | CV33: 0 | CW33: 192.97 | CX33: 5584800000 | CY33: 188 | CZ33: 37 | DA33: 8 | DB33: 8 | DC33: 8 | DD33: 1 | DE33: 7 | DF33: 5 | DG33: 6 | DH33: 8 | DI33: 8 | DJ33: 8 | DK33: 7 | DL33: 7 | DM33: 7 | DN33: 7 | DO33: 7 | DP33: 7 | DQ33: 7 | DR33: 8 | DS33: 8 | DT33: 7 | DU33: 6 | DV33: 6 | DW33: 7 | DX33: 5 | DY33: 6 | DZ33: 8 | EA33: 8 | EB33: 8 | EC33: 7 | ED33: 7 | EE33: 7 | EF33: 7 | EG33: 7 | EH33: 7 | EI33: 7 | EJ33: 8 | EK33: 8 | EL33: 7 | EM33: 6 | EN33: 6 | EO33: 7 | EP33: 5 | EQ33: 6 | ER33: 8 | ES33: 8 | ET33: 8 | EU33: 7 | EV33: 7 | EW33: 7 | EX33: 7 | EY33: 7 | EZ33: 7 | FA33: 7 | FB33: 8 | FC33: 8 | FD33: 7 | FE33: 6 | FF33: 6 | FG33: 102 | FH33: 102 | FI33: 1 | FJ33: 223 | FK33: 50 | FL33: 50 | FM33: 50 | FN33: 65.7 | FO33: 65.7 | FP33: 65.7 | FQ33: 50 | FR33: 50 | FS33: 50 | FT33: 50 | FU33: 50 | FV33: 50 | FW33: 50 | FX33: 65.7 | FY33: 65.7 | FZ33: 50 | GA33: 50 | GB33: 50 | GC33: 5 | GD33: 5 | GE33: 3 | GF33: 21 | GG33: 14 | GH33: 12 | GI33: 12 | GJ33: 6 | GK33: 13 | GL33: 10 | GM33: 11 | GN33: 9 | GO33: 15 | GP33: 14 | GQ33: 15 | GR33: 10 | GS33: 6 | GT33: 7 | GU33: 0.2381656566 | GV33: -0.5220994519 | GW33: 0.1854125413 | GX33: 0.5163339694 | GY33: 0.8853236575 | GZ33: 0.06149127737 | HA33: 0.7300729773 | HB33: 0.1052263164 | HC33: AX24.00058_hypothetical | HD33: By MS/MS | HE33: By MS/MS | HF33: By MS/MS | HG33: By MS/MS | HH33: By MS/MS | HI33: By MS/MS | HJ33: By MS/MS | HK33: By MS/MS | HL33: By MS/MS | HM33: By MS/MS | HN33: By MS/MS | HO33: By MS/MS | HP33: By MS/MS | HQ33: By MS/MS | HR33: By MS/MS | HS33: By MS/MS | HT33: By MS/MS | HU33: By MS/MS
A34: ALC24_0064_Endonuclease V | B34: MNLEREWANLTPRDAIALQRNTATAVITEDQLPVVRTVAGVDVGFENKHTARAAVVVLDAATLEPVDHALARLPVSFPYVPGLLSFRECPVVLRALSSLSVTPDLLLCDGQGIAHPRRLGVASHLGVLTGLPSIGVAKSRLVGTHDPVPDRRGVWVPLRDGDEVIGAVLRTRQGVKPLFISPGHRLSLATALEWVMACVTRYRLPETTRWADGLASDRGQRWLDRLK | C34: 227 | D34: 0.0014 | E34: 0.6683004626 | F34: -1.740756909 | H34: 0.0026 | I34: 0.1106814241 | J34: -0.334177494 | L34: 0.0002 | M34: 1.171385754 | N34: -2.516471783 | P34: 0.0000 | Q34: 1.648934528 | R34: -3.280812263 | S34: + | T34: -3.796345 | U34: 5650000.00 | V34: 24889.87 | W34: 0.0028 | X34: -1.779188 | Y34: 2686400 | Z34: 11834.36 | AA34: 0.0013 | AB34: -4.924317 | AC34: 0 | AD34: 0 | AE34: 0.0000 | AF34: -2.167961 | AG34: 58246000 | AH34: 256590.31 | AI34: 0.0026 | AJ34: -2.03281 | AK34: 56904000 | AL34: 250678.41 | AM34: 0.0028 | AN34: -2.07934 | AO34: 46395000 | AP34: 204383.26 | AQ34: 0.0026 | AR34: -5.161738 | AS34: 3519200 | AT34: 15503.08 | AU34: 0.0003 | AV34: -3.631552 | AW34: 192240 | AX34: 846.87 | AY34: 0.0002 | AZ34: -4.033704 | BA34: 572720 | BB34: 2523.00 | BC34: 0.0001 | BD34: -5.10611 | BE34: 294020 | BF34: 1295.24 | BG34: 0.0001 | BH34: -5.014766 | BI34: 0 | BJ34: 0.00 | BK34: 0.0000 | BL34: -4.99914 | BM34: 250070 | BN34: 1101.63 | BO34: 0.0000 | BP34: -0.5055962 | BQ34: 142130000 | BR34: 626123.35 | BS34: 0.0078 | BT34: -0.5522251 | BU34: 120990000 | BV34: 532995.59 | BW34: 0.0096 | BX34: 0.2712708 | BY34: 146610000 | BZ34: 645859.03 | CA34: 0.0101 | CB34: -2.087717 | CC34: 50804000 | CD34: 223806.17 | CE34: 0.0028 | CF34: -2.896101 | CG34: 7220300 | CH34: 31807.49 | CI34: 0.0009 | CJ34: -4.784789 | CK34: 1119100 | CL34: 4929.96 | CM34: 0.0002 | CN34: PHBV_Succ | CO34: 12 | CP34: 12 | CQ34: 12 | CR34: 68.7 | CS34: 68.7 | CT34: 68.7 | CU34: 24.73 | CV34: 0 | CW34: 57.032 | CX34: 643590000 | CY34: 34 | CZ34: 38 | DA34: 12 | DB34: 12 | DC34: 12 | DD34: 1 | DE34: 2 | DF34: 2 | DG34: 0 | DH34: 7 | DI34: 8 | DJ34: 8 | DK34: 1 | DL34: 1 | DM34: 1 | DN34: 1 | DO34: 0 | DP34: 1 | DQ34: 9 | DR34: 10 | DS34: 11 | DT34: 4 | DU34: 2 | DV34: 1 | DW34: 2 | DX34: 2 | DY34: 0 | DZ34: 7 | EA34: 8 | EB34: 8 | EC34: 1 | ED34: 1 | EE34: 1 | EF34: 1 | EG34: 0 | EH34: 1 | EI34: 9 | EJ34: 10 | EK34: 11 | EL34: 4 | EM34: 2 | EN34: 1 | EO34: 2 | EP34: 2 | EQ34: 0 | ER34: 7 | ES34: 8 | ET34: 8 | EU34: 1 | EV34: 1 | EW34: 1 | EX34: 1 | EY34: 0 | EZ34: 1 | FA34: 9 | FB34: 10 | FC34: 11 | FD34: 4 | FE34: 2 | FF34: 1 | FG34: 227 | FH34: 227 | FI34: 1 | FJ34: 89 | FK34: 12.8 | FL34: 12.3 | FM34: 0 | FN34: 55.1 | FO34: 59 | FP34: 59 | FQ34: 5.3 | FR34: 5.3 | FS34: 5.3 | FT34: 5.3 | FU34: 0 | FV34: 5.3 | FW34: 52.4 | FX34: 64.3 | FY34: 67.8 | FZ34: 26.9 | GA34: 9.3 | GB34: 5.3 | GC34: 1 | GD34: 0 | GE34: 0 | GF34: 3 | GG34: 3 | GH34: 2 | GI34: 0 | GJ34: 0 | GK34: 0 | GL34: 0 | GM34: 0 | GN34: 0 | GO34: 8 | GP34: 6 | GQ34: 8 | GR34: 1 | GS34: 1 | GT34: 1 | GU34: 0.2339663866 | GV34: -0.5314164945 | GW34: 0.6680927088 | GX34: -0.1069406471 | GY34: 0.1495362319 | GZ34: -0.7953775508 | HA34: 0.03314285714 | HB34: -1.049927062 | HC34: AX24.00064_Endonuclease | HD34: By MS/MS | HE34: By matching | HG34: By MS/MS | HH34: By MS/MS | HI34: By MS/MS | HJ34: By matching | HK34: By matching | HL34: By matching | HM34: By matching | HO34: By matching | HP34: By MS/MS | HQ34: By MS/MS | HR34: By MS/MS | HS34: By MS/MS | HT34: By MS/MS | HU34: By MS/MS
A35: ALC24_0065_Virginiamycin B lyase | B35: MYCRPRTQWRWMTLVLCLSFGSAVVQAQEARYDAPKAVVGPLPYLGVHGLGVDAEGRLYAGSVVGQSLNRVDINSGKVTVFEGADEGMADDVAFGPDGEMAWTSYLSGILRIRDAEGEVRDAALGLPGINSLAYNEEGRLFATQVFMGDALYEIDRQGEAPVRKIKEDMGGLNGFEFGADGKLYGPLWFKGKVVRVDVDSGKMETVARDFQVPAAVNFDADGGLYVVDTKTGELVRVDVDSGAKTTVATLKPALDNLAVDDKRKRIYVSNMADNSIQEVDPESGKVRTLVSSDLAAPAGLSVVGDDIYIADVFALRRYAVGEGKVHELARVWGSDLEYPMNIWADQDTVVTASWAAGVVQEFDRHSGELKRSLHEFKAPHDVVRLNDGSLLVAELANGNLVRVAGKEGKKRDVVVEDLEGPAGLSLSKDGSTLYVADAGGNLWAFNTEGWSRRLIRDDLTLPEGIDLTREGKLLVMEVGKRRLLEVDPVRGDQRVLAEELPVGLPQLQGLPPTGVFNDVVEAANGDLYFSADRKGGLYRMKRR | C35: 543 | D35: 0.0141 | E35: 0.02665842815 | F35: 0.02803897858 | H35: 0.0101 | I35: 0.4345879577 | J35: 0.3630552292 | L35: 0.0034 | M35: 0.8656784604 | N35: -0.6243747075 | P35: 0.0092 | Q35: 0.5906249302 | R35: 0.4512427648 | T35: 0.7972126 | U35: 52770000.00 | V35: 97182.32 | W35: 0.0109 | X35: 0.8122845 | Y35: 82139000 | Z35: 151268.88 | AA35: 0.0162 | AB35: 0.7772713 | AC35: 54582000 | AD35: 100519.337 | AE35: 0.0151 | AF35: 1.136805 | AG35: 522010000 | AH35: 961344.38 | AI35: 0.0098 | AJ35: 1.404743 | AK35: 600670000 | AL35: 1106206.26 | AM35: 0.0122 | AN35: 0.8502693 | AO35: 362800000 | AP35: 668139.96 | AQ35: 0.0084 | AR35: 0.3852081 | AS35: 99052000 | AT35: 182416.21 | AU35: 0.0040 | AV35: 0.05953598 | AW35: 6616700 | AX35: 12185.45 | AY35: 0.0032 | AZ35: -0.01521683 | BA35: 48760000 | BB35: 89797.42 | BC35: 0.0030 | BD35: 1.184111 | BE35: 124680000 | BF35: 229613.26 | BG35: 0.0097 | BH35: 1.111464 | BI35: 115550000 | BJ35: 212799.26 | BK35: 0.0086 | BL35: 1.360806 | BM35: 129290000 | BN35: 238103.13 | BO35: 0.0093 | BP35: 1.320393 | BQ35: 565000000 | BR35: 1040515.65 | BS35: 0.0130 | BT35: 0.9734192 | BU35: 315520000 | BV35: 581068.14 | BW35: 0.0105 | BX35: 1.011835 | BY35: 332120000 | BZ35: 611639.04 | CA35: 0.0096 | CB35: 1.26742 | CC35: 551540000 | CD35: 1015727.44 | CE35: 0.0125 | CF35: -0.1408081 | CG35: 126360000 | CH35: 232707.18 | CI35: 0.0068 | CJ35: 0.1730442 | CK35: 141230000 | CL35: 260092.08 | CM35: 0.0107 | CO35: 26 | CP35: 26 | CQ35: 26 | CR35: 62.4 | CS35: 62.4 | CT35: 62.4 | CU35: 59.009 | CV35: 0 | CW35: 142.03 | CX35: 4230700000 | CY35: 268 | CZ35: 39 | DA35: 26 | DB35: 26 | DC35: 26 | DD35: 1 | DE35: 14 | DF35: 12 | DG35: 11 | DH35: 20 | DI35: 20 | DJ35: 22 | DK35: 10 | DL35: 9 | DM35: 10 | DN35: 18 | DO35: 15 | DP35: 17 | DQ35: 19 | DR35: 21 | DS35: 19 | DT35: 14 | DU35: 11 | DV35: 11 | DW35: 14 | DX35: 12 | DY35: 11 | DZ35: 20 | EA35: 20 | EB35: 22 | EC35: 10 | ED35: 9 | EE35: 10 | EF35: 18 | EG35: 15 | EH35: 17 | EI35: 19 | EJ35: 21 | EK35: 19 | EL35: 14 | EM35: 11 | EN35: 11 | EO35: 14 | EP35: 12 | EQ35: 11 | ER35: 20 | ES35: 20 | ET35: 22 | EU35: 10 | EV35: 9 | EW35: 10 | EX35: 18 | EY35: 15 | EZ35: 17 | FA35: 19 | FB35: 21 | FC35: 19 | FD35: 14 | FE35: 11 | FF35: 11 | FG35: 543 | FH35: 543 | FI35: 1 | FJ35: 410 | FK35: 36.6 | FL35: 36.8 | FM35: 29.8 | FN35: 48.3 | FO35: 50.5 | FP35: 51.4 | FQ35: 29.5 | FR35: 26 | FS35: 28.4 | FT35: 54.5 | FU35: 46.6 | FV35: 53.2 | FW35: 43.6 | FX35: 52.3 | FY35: 45.5 | FZ35: 41.1 | GA35: 34.6 | GB35: 33.9 | GC35: 10 | GD35: 10 | GE35: 8 | GF35: 19 | GG35: 24 | GH35: 22 | GI35: 12 | GJ35: 1 | GK35: 5 | GL35: 19 | GM35: 20 | GN35: 24 | GO35: 26 | GP35: 24 | GQ35: 13 | GR35: 12 | GS35: 12 | GT35: 7 | GU35: 0.9527522053 | GV35: 0.01186981497 | GW35: 0.5707462366 | GX35: 0.1527362159 | GY35: 0.5825005236 | GZ35: -0.2633402348 | HA35: 0.5851591383 | HB35: 0.1907699226 | HC35: AX24.00065_Virginiamycin | HD35: By MS/MS | HE35: By MS/MS | HF35: By MS/MS | HG35: By MS/MS | HH35: By MS/MS | HI35: By MS/MS | HJ35: By MS/MS | HK35: By MS/MS | HL35: By MS/MS | HM35: By MS/MS | HN35: By MS/MS | HO35: By MS/MS | HP35: By MS/MS | HQ35: By MS/MS | HR35: By MS/MS | HS35: By MS/MS | HT35: By MS/MS | HU35: By MS/MS
A36: ALC24_0066_hypothetical protein | B36: MNNSPRRALLGLLAAAFVSGCANQNLDTENALAMVDSPTELNTPKPEWKTPFWERDASEQGAVTAFQHRDEPLNNVGVLVQGQLGSADAFWNTLIEGAPEHGFVIVPTGTLRDALSNTQGCGNAPLQSESCLDGLTSYPGVRLLVEVIPTGQNQLQVSLRDTTRDGVSTVTLGTDGNGGADALLDELAARADSARWSVRAFDGGDGHVYIPAGRRNGLALGTELEVRQPGQAIQAPSGQVIGWRPGAVAGKVKVTQWVGEGLSVVETTSGSAPSPNDWLTLPRKKN | C36: 286 | D36: 0.0880 | E36: 0.3170038835 | F36: -0.1339489619 | H36: 0.0462 | I36: 0.8414264499 | J36: 0.2923987707 | L36: 0.0745 | M36: 0.9092461293 | N36: 0.3279091517 | P36: 0.0461 | Q36: 0.2765853876 | R36: 0.1172628403 | T36: 2.105404 | U36: 219260000.00 | V36: 766643.36 | W36: 0.0859 | X36: 2.118355 | Y36: 230840000 | Z36: 807132.87 | AA36: 0.0866 | AB36: 1.942011 | AC36: 174220000 | AD36: 609160.8392 | AE36: 0.0916 | AF36: 2.544846 | AG36: 1305100000 | AH36: 4563286.71 | AI36: 0.0463 | AJ36: 2.437656 | AK36: 1254400000 | AL36: 4386013.99 | AM36: 0.0486 | AN36: 2.462311 | AO36: 995950000 | AP36: 3482342.66 | AQ36: 0.0438 | AR36: 2.564327 | AS36: 837260000 | AT36: 2927482.52 | AU36: 0.0643 | AV36: 2.334126 | AW36: 91171000 | AX36: 318779.72 | AY36: 0.0850 | AZ36: 2.652891 | BA36: 644420000 | BB36: 2253216.78 | BC36: 0.0742 | BD36: 2.266094 | BE36: 312890000 | BF36: 1094020.98 | BG36: 0.0463 | BH36: 2.320171 | BI36: 316560000 | BJ36: 1106853.15 | BK36: 0.0447 | BL36: 2.333139 | BM36: 347080000 | BN36: 1213566.43 | BO36: 0.0473 | BP36: 2.19591 | BQ36: 965890000 | BR36: 3377237.76 | BS36: 0.0422 | BT36: 2.673496 | BU36: 850740000 | BV36: 2974615.38 | BW36: 0.0537 | BX36: 2.378941 | BY36: 904250000 | BZ36: 3161713.29 | CA36: 0.0495 | CB36: 2.048624 | CC36: 1433300000 | CD36: 5011538.46 | CE36: 0.0618 | CF36: 1.924969 | CG36: 670560000 | CH36: 2344615.38 | CI36: 0.0685 | CJ36: 1.913294 | CK36: 396280000 | CL36: 1385594.41 | CM36: 0.0569 | CO36: 13 | CP36: 13 | CQ36: 13 | CR36: 63.6 | CS36: 63.6 | CT36: 63.6 | CU36: 30.143 | CV36: 0 | CW36: 166.35 | CX36: 11950000000 | CY36: 403 | CZ36: 40 | DA36: 13 | DB36: 13 | DC36: 13 | DD36: 1 | DE36: 10 | DF36: 10 | DG36: 10 | DH36: 11 | DI36: 11 | DJ36: 11 | DK36: 10 | DL36: 9 | DM36: 10 | DN36: 10 | DO36: 8 | DP36: 10 | DQ36: 10 | DR36: 10 | DS36: 10 | DT36: 11 | DU36: 11 | DV36: 9 | DW36: 10 | DX36: 10 | DY36: 10 | DZ36: 11 | EA36: 11 | EB36: 11 | EC36: 10 | ED36: 9 | EE36: 10 | EF36: 10 | EG36: 8 | EH36: 10 | EI36: 10 | EJ36: 10 | EK36: 10 | EL36: 11 | EM36: 11 | EN36: 9 | EO36: 10 | EP36: 10 | EQ36: 10 | ER36: 11 | ES36: 11 | ET36: 11 | EU36: 10 | EV36: 9 | EW36: 10 | EX36: 10 | EY36: 8 | EZ36: 10 | FA36: 10 | FB36: 10 | FC36: 10 | FD36: 11 | FE36: 11 | FF36: 9 | FG36: 286 | FH36: 286 | FI36: 1 | FJ36: 450 | FK36: 57.3 | FL36: 57.3 | FM36: 57.3 | FN36: 54.5 | FO36: 54.5 | FP36: 54.5 | FQ36: 50.3 | FR36: 49 | FS36: 50.3 | FT36: 50.3 | FU36: 47.6 | FV36: 50.3 | FW36: 50.3 | FX36: 50.3 | FY36: 50.3 | FZ36: 54.5 | GA36: 61.5 | GB36: 48.3 | GC36: 27 | GD36: 29 | GE36: 23 | GF36: 21 | GG36: 25 | GH36: 20 | GI36: 24 | GJ36: 20 | GK36: 23 | GL36: 26 | GM36: 16 | GN36: 19 | GO36: 18 | GP36: 20 | GQ36: 19 | GR36: 27 | GS36: 24 | GT36: 22 | GU36: 0.7726242974 | GV36: -0.06143322906 | GW36: 0.6084744714 | GX36: 0.1342631648 | GY36: 0.7172233137 | GZ36: 0.149924125 | HA36: 0.8425863309 | HB36: 0.05386333819 | HC36: AX24.00066_hypothetical | HD36: By MS/MS | HE36: By MS/MS | HF36: By MS/MS | HG36: By MS/MS | HH36: By MS/MS | HI36: By MS/MS | HJ36: By MS/MS | HK36: By MS/MS | HL36: By MS/MS | HM36: By MS/MS | HN36: By MS/MS | HO36: By MS/MS | HP36: By MS/MS | HQ36: By MS/MS | HR36: By MS/MS | HS36: By MS/MS | HT36: By MS/MS | HU36: By MS/MS
A37: ALC24_0067_hypothetical protein | B37: MAFKWTEKQNTPLSTSTPSNQLRKSIKAAAIGSAIGLGTLMSSSAMALKTDFGMEYRATAFGVTSDAFDTGTPGTSDTDTGFGHLIRVKANFLDEDTGISVYTSVELAGDRWVGDSHGAASPANDQAFNTGSRGDNVRLDLGYVQIPVGHTIFRVGRQATSYNNCFLVCDDRRDRVLMIQPLSKKTTLVALYDRRQDSTPFANQDNGDMTTLGITSKITDNWTAGLVYVQWMNNYEGMTPHPGGGAAPYVLNNVTLFSGYVSGGLGDVAKATLGFNYFTNGNVENGVDDQFFTDQSPSGYLRLEGDAGVVDWGLQYIMSKDGGLISPGFDTYSSLINNNPDSTQSPTSMYRMGGTLGVKGYDEEVIAGKLTWNLTDKFAVTGAVGQLSVDNSVVDDDSMFYDLQFSYQVNKTLRTWLSVGMLEENKAGVLSSNGLVGPLPSAAFADDDVKAASLNMTVNF | C37: 460 | D37: 4.5295 | E37: 0.4145888039 | F37: -0.2199602127 | H37: 0.3205 | I37: 3.014208106 | J37: -3.018483162 | K37: + | L37: 1.4180 | M37: 1.300477919 | N37: -0.5699726741 | P37: 1.5492 | Q37: 1.39959309 | R37: -0.6100746791 | T37: 8.14978 | U37: 19365000000.00 | V37: 42097826.09 | W37: 4.7161 | X37: 8.203274 | Y37: 19411000000 | Z37: 42197826.09 | AA37: 4.5288 | AB37: 7.852566 | AC37: 13286000000 | AD37: 28882608.7 | AE37: 4.3435 | AF37: 5.455921 | AG37: 12929000000 | AH37: 28106521.74 | AI37: 0.2854 | AJ37: 6.508116 | AK37: 24826000000 | AL37: 53969565.22 | AM37: 0.5975 | AN37: 3.846014 | AO37: 2874100000 | AP37: 6248043.48 | AQ37: 0.0785 | AR37: 7.809952 | AS37: 34289000000 | AT37: 74541304.35 | AU37: 1.6372 | AV37: 7.467884 | AW37: 2361900000 | AX37: 5134565.22 | AY37: 1.3691 | AZ37: 7.877747 | BA37: 17420000000 | BB37: 37869565.22 | BC37: 1.2477 | BD37: 7.580938 | BE37: 15888000000 | BF37: 34539130.43 | BG37: 1.4612 | BH37: 7.515966 | BI37: 15937000000 | BJ37: 34645652.17 | BK37: 1.3994 | BL37: 7.938372 | BM37: 21102000000 | BN37: 45873913.04 | BO37: 1.7868 | BP37: 7.939404 | BQ37: 34125000000 | BR37: 74184782.61 | BS37: 0.9264 | BT37: 7.958145 | BU37: 26003000000 | BV37: 56528260.87 | BW37: 1.0208 | BX37: 8.173944 | BY37: 32067000000 | BZ37: 69710869.57 | CA37: 1.0923 | CB37: 8.134695 | CC37: 97399000000 | CD37: 211736956.52 | CE37: 2.6098 | CF37: 8.746252 | CG37: 79069000000 | CH37: 171889130.43 | CI37: 5.0231 | CJ37: 8.778561 | CK37: 55329000000 | CL37: 120280434.78 | CM37: 4.9388 | CN37: PESu_Succ | CO37: 42 | CP37: 33 | CQ37: 33 | CR37: 77.2 | CS37: 75.4 | CT37: 75.4 | CU37: 49.441 | CV37: 0 | CW37: 323.31 | CX37: 523680000000 | CY37: 3022 | CZ37: 41 | DA37: 42 | DB37: 33 | DC37: 33 | DD37: 1 | DE37: 36 | DF37: 35 | DG37: 36 | DH37: 32 | DI37: 35 | DJ37: 28 | DK37: 37 | DL37: 36 | DM37: 37 | DN37: 36 | DO37: 37 | DP37: 37 | DQ37: 42 | DR37: 38 | DS37: 40 | DT37: 39 | DU37: 37 | DV37: 37 | DW37: 29 | DX37: 28 | DY37: 29 | DZ37: 26 | EA37: 27 | EB37: 22 | EC37: 29 | ED37: 28 | EE37: 29 | EF37: 28 | EG37: 29 | EH37: 29 | EI37: 33 | EJ37: 30 | EK37: 31 | EL37: 31 | EM37: 30 | EN37: 30 | EO37: 29 | EP37: 28 | EQ37: 29 | ER37: 26 | ES37: 27 | ET37: 22 | EU37: 29 | EV37: 28 | EW37: 29 | EX37: 28 | EY37: 29 | EZ37: 29 | FA37: 33 | FB37: 30 | FC37: 31 | FD37: 31 | FE37: 30 | FF37: 30 | FG37: 460 | FH37: 460 | FI37: 1 | FJ37: 2817 | FK37: 76.5 | FL37: 76.5 | FM37: 76.5 | FN37: 62.4 | FO37: 62.8 | FP37: 59.6 | FQ37: 69.8 | FR37: 69.8 | FS37: 69.8 | FT37: 77.2 | FU37: 77.2 | FV37: 77.2 | FW37: 77.2 | FX37: 77.2 | FY37: 77.2 | FZ37: 77.2 | GA37: 76.5 | GB37: 76.5 | GC37: 260 | GD37: 266 | GE37: 245 | GF37: 57 | GG37: 96 | GH37: 39 | GI37: 133 | GJ37: 127 | GK37: 141 | GL37: 113 | GM37: 125 | GN37: 143 | GO37: 154 | GP37: 163 | GQ37: 157 | GR37: 251 | GS37: 274 | GT37: 278 | GU37: 0.6633483249 | GV37: -0.09831160331 | GW37: 0.01294382022 | GX37: -1.181391659 | GY37: 0.5884524525 | GZ37: -0.2543238271 | HA37: 0.4635407407 | HB37: -0.2720929981 | HC37: AX24.00067_hypothetical | HD37: By MS/MS | HE37: By MS/MS | HF37: By MS/MS | HG37: By MS/MS | HH37: By MS/MS | HI37: By MS/MS | HJ37: By MS/MS | HK37: By MS/MS | HL37: By MS/MS | HM37: By MS/MS | HN37: By MS/MS | HO37: By MS/MS | HP37: By MS/MS | HQ37: By MS/MS | HR37: By MS/MS | HS37: By MS/MS | HT37: By MS/MS | HU37: By MS/MS
A38: ALC24_0068_hypothetical protein | B38: MALKWTSNHEGGQASPARSQLRTSIKAAAIGSAIGLGTLMSAPAMALKTDFGMEYRATAFAVQSDAFDGGSGTSETDNGIGHLIRVKANFLDEDTGISVYTSVELAGDRWTGDDRKYGTTNPQGFNTSSRGDNVRLDLGYVQIPVGHTIFRVGRQATSYNNCFLTCDDRRDRVLMIQPLNKTTTMVLGYDRRADTNTFANQDNGDMVLLGVTGKLSESWNAGLLFVKWMDNYDGTVAYTPTPYALNGVNLVSGYVTGGLGDVAKATLGFNHFSDGKVEGAADEQYFTDQSPSGYFRLEGDVGPMNWGVQYVTARDGGLIAPGFDTYSSLINSNPDATQSATSMYRMGGTLGVKDYDEDLVIGKLTWNVTDKFAVTGAVGQLSVDTGTVDDDSMVYDLQFAYQVNKALRTWLSVGMLEKNKAGTLSGNGLIGSLSGMNTFADDDVKAASLNMTVNF | C38: 455 | D38: 2.6177 | E38: 1.557956142 | F38: -1.090306918 | H38: 0.5921 | I38: 1.841922987 | J38: -1.528213183 | L38: 1.9684 | M38: 0.003036655749 | N38: 0.003650983175 | P38: 1.7222 | Q38: 0.09884949338 | R38: -0.1059707006 | T38: 7.017822 | U38: 11274000000.00 | V38: 24778021.98 | W38: 2.7758 | X38: 7.10321 | Y38: 10747000000 | Z38: 23619780.22 | AA38: 2.5350 | AB38: 6.940323 | AC38: 7692300000 | AD38: 16906153.85 | AE38: 2.5424 | AF38: 6.804249 | AG38: 28195000000 | AH38: 61967032.97 | AI38: 0.6291 | AJ38: 7.142282 | AK38: 33350000000 | AL38: 73296703.30 | AM38: 0.8115 | AN38: 5.801105 | AO38: 12153000000 | AP38: 26709890.11 | AQ38: 0.3358 | AR38: 8.142872 | AS38: 35482000000 | AT38: 77982417.58 | AU38: 1.7128 | AV38: 7.852488 | AW38: 3608800000 | AX38: 7931428.57 | AY38: 2.1149 | AZ38: 8.34787 | BA38: 28690000000 | BB38: 63054945.05 | BC38: 2.0775 | BD38: 7.88872 | BE38: 17106000000 | BF38: 37595604.40 | BG38: 1.5905 | BH38: 7.979013 | BI38: 18534000000 | BJ38: 40734065.93 | BK38: 1.6454 | BL38: 8.146631 | BM38: 22553000000 | BN38: 49567032.97 | BO38: 1.9307 | BP38: 8.747154 | BQ38: 65789000000 | BR38: 144591208.79 | BS38: 1.8056 | BT38: 8.564663 | BU38: 49274000000 | BV38: 108294505.49 | BW38: 1.9556 | BX38: 8.796312 | BY38: 55566000000 | BZ38: 122123076.92 | CA38: 1.9135 | CB38: 7.641695 | CC38: 86057000000 | CD38: 189136263.74 | CE38: 2.3313 | CF38: 7.454699 | CG38: 42677000000 | CH38: 93795604.40 | CI38: 2.7410 | CJ38: 7.46003 | CK38: 31178000000 | CL38: 68523076.92 | CM38: 2.8136 | CO38: 51 | CP38: 51 | CQ38: 42 | CR38: 89.5 | CS38: 89.5 | CT38: 87 | CU38: 48.828 | CV38: 0 | CW38: 323.31 | CX38: 559930000000 | CY38: 4326 | CZ38: 42 | DA38: 51 | DB38: 51 | DC38: 42 | DD38: 1 | DE38: 36 | DF38: 36 | DG38: 33 | DH38: 41 | DI38: 44 | DJ38: 34 | DK38: 46 | DL38: 42 | DM38: 46 | DN38: 45 | DO38: 43 | DP38: 43 | DQ38: 49 | DR38: 45 | DS38: 47 | DT38: 46 | DU38: 40 | DV38: 38 | DW38: 36 | DX38: 36 | DY38: 33 | DZ38: 41 | EA38: 44 | EB38: 34 | EC38: 46 | ED38: 42 | EE38: 46 | EF38: 45 | EG38: 43 | EH38: 43 | EI38: 49 | EJ38: 45 | EK38: 47 | EL38: 46 | EM38: 40 | EN38: 38 | EO38: 29 | EP38: 29 | EQ38: 26 | ER38: 35 | ES38: 36 | ET38: 28 | EU38: 38 | EV38: 34 | EW38: 38 | EX38: 37 | EY38: 35 | EZ38: 35 | FA38: 40 | FB38: 37 | FC38: 38 | FD38: 38 | FE38: 33 | FF38: 31 | FG38: 455 | FH38: 455 | FI38: 1 | FJ38: 4476 | FK38: 80 | FL38: 80.7 | FM38: 72.5 | FN38: 89 | FO38: 82 | FP38: 88.1 | FQ38: 89.5 | FR38: 81.3 | FS38: 89.5 | FT38: 89.5 | FU38: 89.5 | FV38: 88.8 | FW38: 89.5 | FX38: 89.5 | FY38: 89.5 | FZ38: 81.3 | GA38: 80 | GB38: 80 | GC38: 251 | GD38: 245 | GE38: 232 | GF38: 155 | GG38: 181 | GH38: 98 | GI38: 229 | GJ38: 211 | GK38: 223 | GL38: 212 | GM38: 208 | GN38: 239 | GO38: 333 | GP38: 349 | GQ38: 307 | GR38: 278 | GS38: 284 | GT38: 291 | GU38: 0.2750929134 | GV38: -0.4555216879 | GW38: 0.136562212 | GX38: -0.6180385809 | GY38: 0.9952665881 | GZ38: 0.001519058982 | HA38: 0.8694360771 | HB38: -0.04423862398 | HC38: AX24.00068_hypothetical | HD38: By MS/MS | HE38: By MS/MS | HF38: By MS/MS | HG38: By MS/MS | HH38: By MS/MS | HI38: By MS/MS | HJ38: By MS/MS | HK38: By MS/MS | HL38: By MS/MS | HM38: By MS/MS | HN38: By MS/MS | HO38: By MS/MS | HP38: By MS/MS | HQ38: By MS/MS | HR38: By MS/MS | HS38: By MS/MS | HT38: By MS/MS | HU38: By MS/MS
A39: ALC24_0069_Long-chain-fatty-acid--CoA ligase FadD13 | B39: MGDKAPFAVRHEYHFGDRLVRCYASRPANLLASFRRAVSQAPNKECLVCDGQRFTYREANRRVQHIAAQLARRGVVAGDRVALLMANSNEFVLALLGALRLGAIVVPVNIRESKSGLAYILYHCQAKALIHDHAQSDKVSGRETLPALAFRFVVGDRVAGTEPFEALLKEGAPRLPLPSLQEDDTAILLYTSGTTGRPKGVRLTHLNLLHSLIHFEQSMALGDDERSLLVVPASHVTGVVAVILTLFHVGGCVVIQREFDAQRFLALADRERITHTVMVPAMYNLCLLRADFDQFDLSAWRLGGFGGAPMPEATIRRLADRLPNLRLVNAYGATETCSPATILPLGEAARRADSVGRVVTCGDIKVMDSNGRERPPGEAGELWIAGPMVTPGYWNNAEADRAEFAGGYWRSGDIGSVDEEGYVRVLDRKKDMINRAGYNVYSAELEGLLQGLDGVIESAAVARPDPVLGEKIQLFVVSDDPTLSAARLKAYCAEHLADYKIPDFIDFLEEPLPRNANGKVLKAQLRQRLGDTQTASG | C39: 537 | D39: 0.0018 | E39: 0.254466009 | F39: -0.2291313807 | H39: 0.0001 | I39: 3.267914086 | J39: -2.316704273 | K39: + | L39: 0.0003 | M39: 2.98368077 | N39: -2.328466733 | P39: 0.0002 | Q39: 1.731110362 | R39: -1.128906568 | T39: -1.898312 | U39: 4501300.00 | V39: 8382.31 | W39: 0.0009 | X39: -2.021301 | Y39: 11520000 | Z39: 21452.51 | AA39: 0.0023 | AB39: -2.037201 | AC39: 7990500 | AD39: 14879.88827 | AE39: 0.0022 | AF39: -3.947417 | AG39: 1377900 | AH39: 2565.92 | AI39: 0.0000 | AJ39: -4.403116 | AK39: 8194800 | AL39: 15260.34 | AM39: 0.0002 | AN39: -3.869 | AO39: 0 | AP39: 0.00 | AQ39: 0.0000 | AR39: -4.537151 | AS39: 6200000 | AT39: 11545.62 | AU39: 0.0003 | AV39: -4.308943 | AW39: 473670 | AX39: 882.07 | AY39: 0.0002 | AZ39: -3.408726 | BA39: 7038600 | BB39: 13107.26 | BC39: 0.0004 | BD39: -2.879192 | BE39: 2002600 | BF39: 3729.24 | BG39: 0.0002 | BH39: -2.889605 | BI39: 2744500 | BJ39: 5110.80 | BK39: 0.0002 | BL39: -2.887342 | BM39: 4003700 | BN39: 7455.68 | BO39: 0.0003 | BP39: -1.638422 | BQ39: 51785000 | BR39: 96433.89 | BS39: 0.0012 | BT39: -2.666496 | BU39: 49137000 | BV39: 91502.79 | BW39: 0.0017 | BX39: -1.79142 | BY39: 51916000 | BZ39: 96677.84 | CA39: 0.0015 | CB39: -1.880104 | CC39: 155960000 | CD39: 290428.31 | CE39: 0.0036 | CF39: -0.7302494 | CG39: 89754000 | CH39: 167139.66 | CI39: 0.0049 | CJ39: -1.832148 | CK39: 26586000 | CL39: 49508.38 | CM39: 0.0020 | CN39: PESu_Succ | CO39: 14 | CP39: 14 | CQ39: 14 | CR39: 32.2 | CS39: 32.2 | CT39: 32.2 | CU39: 58.745 | CV39: 0 | CW39: 102.3 | CX39: 481190000 | CY39: 72 | CZ39: 43 | DA39: 14 | DB39: 14 | DC39: 14 | DD39: 1 | DE39: 3 | DF39: 4 | DG39: 3 | DH39: 1 | DI39: 3 | DJ39: 0 | DK39: 4 | DL39: 2 | DM39: 4 | DN39: 2 | DO39: 3 | DP39: 3 | DQ39: 10 | DR39: 11 | DS39: 10 | DT39: 8 | DU39: 11 | DV39: 7 | DW39: 3 | DX39: 4 | DY39: 3 | DZ39: 1 | EA39: 3 | EB39: 0 | EC39: 4 | ED39: 2 | EE39: 4 | EF39: 2 | EG39: 3 | EH39: 3 | EI39: 10 | EJ39: 11 | EK39: 10 | EL39: 8 | EM39: 11 | EN39: 7 | EO39: 3 | EP39: 4 | EQ39: 3 | ER39: 1 | ES39: 3 | ET39: 0 | EU39: 4 | EV39: 2 | EW39: 4 | EX39: 2 | EY39: 3 | EZ39: 3 | FA39: 10 | FB39: 11 | FC39: 10 | FD39: 8 | FE39: 11 | FF39: 7 | FG39: 537 | FH39: 537 | FI39: 1 | FJ39: 114 | FK39: 7.1 | FL39: 11.7 | FM39: 9.5 | FN39: 2.8 | FO39: 8.2 | FP39: 0 | FQ39: 9.1 | FR39: 3.9 | FS39: 7.3 | FT39: 6 | FU39: 7.6 | FV39: 7.1 | FW39: 27.4 | FX39: 27.9 | FY39: 26.1 | FZ39: 17.5 | GA39: 26.8 | GB39: 17.1 | GC39: 4 | GD39: 5 | GE39: 3 | GF39: 0 | GG39: 1 | GH39: 0 | GI39: 1 | GJ39: 0 | GK39: 2 | GL39: 1 | GM39: 1 | GN39: 2 | GO39: 8 | GP39: 8 | GQ39: 7 | GR39: 10 | GS39: 14 | GT39: 5 | GU39: 0.6678369963 | GV39: -0.09663117573 | GW39: 0.03884444444 | GX39: -0.9710377489 | GY39: 0.06795744681 | GZ39: -0.9568880939 | HA39: 0.3021538462 | HB39: -0.4763143148 | HC39: AX24.00069_Long-chain-fatty-acid--CoA | HD39: By MS/MS | HE39: By MS/MS | HF39: By MS/MS | HG39: By matching | HH39: By MS/MS | HJ39: By MS/MS | HK39: By matching | HL39: By MS/MS | HM39: By MS/MS | HN39: By MS/MS | HO39: By MS/MS | HP39: By MS/MS | HQ39: By MS/MS | HR39: By MS/MS | HS39: By MS/MS | HT39: By MS/MS | HU39: By MS/MS
A40: ALC24_0070_Bacterial extracellular solute-binding protein, family 7 | B40: MRMVRLLLVMALTAISAVSAAAPLRISAGMGQQHFWVGQHMDPFVDAMEKETDLSFVRFYSGSLVTPGREWDALKTGTISVAAPLLAPYHEGSFPLSDVTQLPTLNTTSVMVTKALQTLMDSDQELADGKTFYQYELASKGLRGWPLGATSAYSLSTIGRVLDSPDDLKGAPIRAGSALHTILLQELGATPVTMTSADSYEALSRKTVIGTILSVADWPSYSFEDLLKYTITGISMGHWESYLAVTDQTWNGLTEQQRATWDRVARQIALDNAAHIDQQEEAVRARTQKAGATFVELSELSDDMARHLQDAASRTWIRWIEQMEQAGHPGKATARLWAELIEELGGTIPRSAVDYLEKD | C40: 359 | D40: 0.0280 | E40: 0.8522490213 | F40: -0.4126946131 | H40: 0.0009 | I40: 2.521327278 | J40: -4.06432422 | K40: + | L40: 0.0001 | M40: 6.795384928 | N40: -5.435724417 | O40: + | P40: 0.0055 | Q40: 3.433111887 | R40: -1.487036069 | T40: 1.169201 | U40: 90738000.00 | V40: 252752.09 | W40: 0.0283 | X40: 1.278017 | Y40: 106070000 | Z40: 295459.61 | AA40: 0.0317 | AB40: 0.769207 | AC40: 57250000 | AD40: 159470.7521 | AE40: 0.0240 | AF40: -1.678873 | AG40: 22661000 | AH40: 63122.56 | AI40: 0.0006 | AJ40: -0.8163242 | AK40: 69008000 | AL40: 192222.84 | AM40: 0.0021 | AN40: -5.243267 | AO40: 1881900 | AP40: 5242.06 | AQ40: 0.0001 | AR40: -4.358072 | AS40: 0 | AT40: 0.00 | AU40: 0.0000 | AV40: -3.686235 | AW40: 125660 | AX40: 350.03 | AY40: 0.0001 | AZ40: -3.808357 | BA40: 1421500 | BB40: 3959.61 | BC40: 0.0001 | BD40: 0.1512909 | BE40: 60726000 | BF40: 169153.20 | BG40: 0.0072 | BH40: -0.05061913 | BI40: 44447000 | BJ40: 123807.80 | BK40: 0.0050 | BL40: -0.1072712 | BM40: 39747000 | BN40: 110715.88 | BO40: 0.0043 | BP40: 1.123724 | BQ40: 401130000 | BR40: 1117353.76 | BS40: 0.0140 | BT40: 1.069668 | BU40: 314180000 | BV40: 875153.20 | BW40: 0.0158 | BX40: 1.2966 | BY40: 423440000 | BZ40: 1179498.61 | CA40: 0.0185 | CB40: 1.702475 | CC40: 1198500000 | CD40: 3338440.11 | CE40: 0.0411 | CF40: 2.024805 | CG40: 624290000 | CH40: 1738969.36 | CI40: 0.0508 | CJ40: 1.691746 | CK40: 303270000 | CL40: 844763.23 | CM40: 0.0347 | CN40: PESu_Succ;PHB_Succ | CO40: 15 | CP40: 15 | CQ40: 15 | CR40: 71 | CS40: 71 | CT40: 71 | CU40: 39.438 | CV40: 0 | CW40: 173.02 | CX40: 3758900000 | CY40: 145 | CZ40: 44 | DA40: 15 | DB40: 15 | DC40: 15 | DD40: 1 | DE40: 8 | DF40: 10 | DG40: 9 | DH40: 4 | DI40: 7 | DJ40: 1 | DK40: 0 | DL40: 1 | DM40: 1 | DN40: 8 | DO40: 6 | DP40: 6 | DQ40: 11 | DR40: 14 | DS40: 14 | DT40: 12 | DU40: 12 | DV40: 14 | DW40: 8 | DX40: 10 | DY40: 9 | DZ40: 4 | EA40: 7 | EB40: 1 | EC40: 0 | ED40: 1 | EE40: 1 | EF40: 8 | EG40: 6 | EH40: 6 | EI40: 11 | EJ40: 14 | EK40: 14 | EL40: 12 | EM40: 12 | EN40: 14 | EO40: 8 | EP40: 10 | EQ40: 9 | ER40: 4 | ES40: 7 | ET40: 1 | EU40: 0 | EV40: 1 | EW40: 1 | EX40: 8 | EY40: 6 | EZ40: 6 | FA40: 11 | FB40: 14 | FC40: 14 | FD40: 12 | FE40: 12 | FF40: 14 | FG40: 359 | FH40: 359 | FI40: 1 | FJ40: 214 | FK40: 46.5 | FL40: 56 | FM40: 45.7 | FN40: 22.3 | FO40: 40.7 | FP40: 3.6 | FQ40: 0 | FR40: 4.2 | FS40: 4.2 | FT40: 49.3 | FU40: 33.7 | FV40: 29.8 | FW40: 61.3 | FX40: 71 | FY40: 71 | FZ40: 68.5 | GA40: 71 | GB40: 68.5 | GC40: 12 | GD40: 11 | GE40: 7 | GF40: 2 | GG40: 7 | GH40: 0 | GI40: 0 | GJ40: 0 | GK40: 0 | GL40: 7 | GM40: 3 | GN40: 3 | GO40: 14 | GP40: 16 | GQ40: 19 | GR40: 15 | GS40: 18 | GT40: 11 | GU40: 0.4876316076 | GV40: -0.1835540773 | GW40: 0.004417910448 | GX40: -1.394011285 | GY40: 0 | GZ40: -2.400887376 | HA40: 0.1746159696 | HB40: -0.6660809889 | HC40: AX24.00070_Bacterial | HD40: By MS/MS | HE40: By MS/MS | HF40: By MS/MS | HG40: By MS/MS | HH40: By MS/MS | HI40: By matching | HK40: By matching | HL40: By matching | HM40: By MS/MS | HN40: By MS/MS | HO40: By MS/MS | HP40: By MS/MS | HQ40: By MS/MS | HR40: By MS/MS | HS40: By MS/MS | HT40: By MS/MS | HU40: By MS/MS
A41: ALC24_0074_Leucine-responsive regulatory protein | B41: MPEMKLDNLDRRILTALQRDGRLSNVQLSEEVGLSPSPCLRRVRLLERSGIIRGYRAELDRAGVGLGLTVFVGIKVGQHDDEADSAFRGAVADLPEVVACYLLSGESDFLLQVVVPDLPAYERFLRGTLLKLPGVIDIRSNFAISTVKRETALSLAHLPGAAG | C41: 163 | D41: 0.0013 | E41: 1.689601358 | F41: -1.086711009 | H41: 0.0033 | I41: 0.1817040704 | J41: -0.1927165985 | L41: 0.0023 | M41: 1.572168225 | N41: -1.088660558 | P41: 0.0028 | Q41: 1.549280477 | R41: -0.9454917908 | T41: -3.238195 | U41: 2676200.00 | V41: 16418.40 | W41: 0.0018 | X41: -3.390731 | Y41: 0 | Z41: 0.00 | AA41: 0.0000 | AB41: -2.628977 | AC41: 2359800 | AD41: 14477.30061 | AE41: 0.0022 | AF41: -2.028419 | AG41: 56958000 | AH41: 349435.58 | AI41: 0.0035 | AJ41: -2.930473 | AK41: 42264000 | AL41: 259288.34 | AM41: 0.0029 | AN41: -1.617027 | AO41: 43885000 | AP41: 269233.13 | AQ41: 0.0034 | AR41: -2.552046 | AS41: 26167000 | AT41: 160533.74 | AU41: 0.0035 | AV41: -3.070932 | AW41: 1022000 | AX41: 6269.94 | AY41: 0.0017 | AZ41: -3.640774 | BA41: 8603000 | BB41: 52779.14 | BC41: 0.0017 | BD41: -2.887243 | BE41: 9940600 | BF41: 60985.28 | BG41: 0.0026 | BH41: -3.206385 | BI41: 8533600 | BJ41: 52353.37 | BK41: 0.0021 | BL41: -2.740618 | BM41: 15107000 | BN41: 92680.98 | BO41: 0.0036 | BP41: -1.975981 | BQ41: 55603000 | BR41: 341122.70 | BS41: 0.0043 | BT41: -1.546097 | BU41: 53956000 | BV41: 331018.40 | BW41: 0.0060 | BX41: -1.30829 | BY41: 67833000 | BZ41: 416153.37 | CA41: 0.0065 | CB41: -1.911343 | CC41: 41075000 | CD41: 251993.87 | CE41: 0.0031 | CF41: -2.461824 | CG41: 15540000 | CH41: 95337.42 | CI41: 0.0028 | CJ41: -2.792006 | CK41: 12440000 | CL41: 76319.02 | CM41: 0.0031 | CO41: 9 | CP41: 9 | CQ41: 9 | CR41: 52.1 | CS41: 52.1 | CT41: 52.1 | CU41: 17.722 | CV41: 0 | CW41: 29.341 | CX41: 463960000 | CY41: 43 | CZ41: 45 | DA41: 9 | DB41: 9 | DC41: 9 | DD41: 1 | DE41: 2 | DF41: 0 | DG41: 3 | DH41: 7 | DI41: 6 | DJ41: 6 | DK41: 6 | DL41: 3 | DM41: 4 | DN41: 5 | DO41: 4 | DP41: 6 | DQ41: 6 | DR41: 7 | DS41: 8 | DT41: 3 | DU41: 3 | DV41: 4 | DW41: 2 | DX41: 0 | DY41: 3 | DZ41: 7 | EA41: 6 | EB41: 6 | EC41: 6 | ED41: 3 | EE41: 4 | EF41: 5 | EG41: 4 | EH41: 6 | EI41: 6 | EJ41: 7 | EK41: 8 | EL41: 3 | EM41: 3 | EN41: 4 | EO41: 2 | EP41: 0 | EQ41: 3 | ER41: 7 | ES41: 6 | ET41: 6 | EU41: 6 | EV41: 3 | EW41: 4 | EX41: 5 | EY41: 4 | EZ41: 6 | FA41: 6 | FB41: 7 | FC41: 8 | FD41: 3 | FE41: 3 | FF41: 4 | FG41: 163 | FH41: 163 | FI41: 1 | FJ41: 104 | FK41: 14.1 | FL41: 0 | FM41: 19 | FN41: 47.2 | FO41: 35.6 | FP41: 42.3 | FQ41: 44.2 | FR41: 18.4 | FS41: 23.3 | FT41: 31.9 | FU41: 23.3 | FV41: 44.2 | FW41: 47.2 | FX41: 47.2 | FY41: 52.1 | FZ41: 19 | GA41: 19 | GB41: 27.6 | GC41: 0 | GD41: 0 | GE41: 1 | GF41: 5 | GG41: 2 | GH41: 5 | GI41: 2 | GJ41: 1 | GK41: 0 | GL41: 2 | GM41: 0 | GN41: 1 | GO41: 5 | GP41: 6 | GQ41: 8 | GR41: 2 | GS41: 1 | GT41: 2 | GU41: 0.272192 | GV41: -0.4596262425 | GW41: 0.7412297853 | GX41: -0.07972892189 | GY41: 0.3819141631 | GZ41: -0.455555828 | HA41: 0.3406044444 | HB41: -0.4035421524 | HC41: AX24.00074_Leucine-responsive | HD41: By matching | HF41: By MS/MS | HG41: By MS/MS | HH41: By MS/MS | HI41: By MS/MS | HJ41: By MS/MS | HK41: By MS/MS | HL41: By matching | HM41: By MS/MS | HN41: By matching | HO41: By MS/MS | HP41: By MS/MS | HQ41: By MS/MS | HR41: By MS/MS | HS41: By MS/MS | HT41: By MS/MS | HU41: By MS/MS
A42: ALC24_0075_NADH dehydrogenase | B42: MTDAKTVSEALESRRSIRAFQDRPVDGALLRAVLEKATRAPSGGNLQPWHLYVVGGERLDQFKAIMRERLQDSPGGENREYDVYPPNLTAPYRDRRFQVGEDMYGLLGIPREDKAARLRWFANNFQFFGAPVALFCYVHRTMGPPQWSDLGMYLQSVMLLLREAGLDSCPQECWSLYPQTLGEFLQTPDEWMLFTGMAIGYRDESAEVNQLRAKRAPLDEIAEFQGL | C42: 227 | D42: 0.0018 | E42: 0.9406093468 | F42: -1.751958768 | H42: 0.0033 | I42: 0.1022600481 | J42: 0.2365283966 | L42: 0.0091 | M42: 0.5785943251 | N42: 1.037827174 | P42: 0.0041 | Q42: 0.2261812429 | R42: 0.4754803975 | T42: -2.138651 | U42: 5846000.00 | V42: 25753.30 | W42: 0.0029 | X42: -4.620128 | Y42: 2528800 | Z42: 11140.09 | AA42: 0.0012 | AB42: -3.567347 | AC42: 1914400 | AD42: 8433.480176 | AE42: 0.0013 | AF42: -1.352524 | AG42: 71304000 | AH42: 314114.54 | AI42: 0.0032 | AJ42: -1.286148 | AK42: 75086000 | AL42: 330775.33 | AM42: 0.0037 | AN42: -1.721992 | AO42: 52853000 | AP42: 232832.60 | AQ42: 0.0029 | AR42: -0.4345875 | AS42: 92239000 | AT42: 406339.21 | AU42: 0.0089 | AV42: -0.8298836 | AW42: 7997700 | AX42: 35232.16 | AY42: 0.0094 | AZ42: -0.692297 | BA42: 62854000 | BB42: 276889.87 | BC42: 0.0091 | BD42: -1.163534 | BE42: 22944000 | BF42: 101074.89 | BG42: 0.0043 | BH42: -1.166653 | BI42: 23458000 | BJ42: 103339.21 | BK42: 0.0042 | BL42: -1.313622 | BM42: 21603000 | BN42: 95167.40 | BO42: 0.0037 | BP42: -0.8152561 | BQ42: 109720000 | BR42: 483348.02 | BS42: 0.0060 | BT42: -0.7862835 | BU42: 98146000 | BV42: 432361.23 | BW42: 0.0078 | BX42: -0.8734436 | BY42: 96298000 | BZ42: 424220.26 | CA42: 0.0066 | CB42: -1.448895 | CC42: 90720000 | CD42: 399647.58 | CE42: 0.0049 | CF42: -4.488546 | CG42: 7553400 | CH42: 33274.89 | CI42: 0.0010 | CJ42: -1.728075 | CK42: 16495000 | CL42: 72665.20 | CM42: 0.0030 | CO42: 10 | CP42: 10 | CQ42: 10 | CR42: 46.3 | CS42: 46.3 | CT42: 46.3 | CU42: 25.93 | CV42: 0 | CW42: 26.312 | CX42: 859560000 | CY42: 76 | CZ42: 46 | DA42: NaN | DB42: NaN | DC42: NaN | DD42: 2 | DE42: 3 | DF42: 1 | DG42: 1 | DH42: 5 | DI42: 5 | DJ42: 5 | DK42: 8 | DL42: 5 | DM42: 9 | DN42: 5 | DO42: 6 | DP42: 5 | DQ42: 7 | DR42: 8 | DS42: 8 | DT42: 4 | DU42: 1 | DV42: 3 | DW42: 3 | DX42: 1 | DY42: 1 | DZ42: 5 | EA42: 5 | EB42: 5 | EC42: 8 | ED42: 5 | EE42: 9 | EF42: 5 | EG42: 6 | EH42: 5 | EI42: 7 | EJ42: 8 | EK42: 8 | EL42: 4 | EM42: 1 | EN42: 3 | EO42: 3 | EP42: 1 | EQ42: 1 | ER42: 5 | ES42: 5 | ET42: 5 | EU42: 8 | EV42: 5 | EW42: 9 | EX42: 5 | EY42: 6 | EZ42: 5 | FA42: 7 | FB42: 8 | FC42: 8 | FD42: 4 | FE42: 1 | FF42: 3 | FG42: 227 | FH42: NaN | FI42: 1 | FJ42: 107 | FK42: 20.7 | FL42: 4.4 | FM42: 4.4 | FN42: 33.5 | FO42: 33.5 | FP42: 33.5 | FQ42: 41 | FR42: 39.2 | FS42: 41 | FT42: 39.2 | FU42: 34.4 | FV42: 29.1 | FW42: 44.5 | FX42: 44.5 | FY42: 45.4 | FZ42: 20.7 | GA42: 4.4 | GB42: 10.1 | GC42: 1 | GD42: 0 | GE42: 0 | GF42: 9 | GG42: 6 | GH42: 4 | GI42: 9 | GJ42: 6 | GK42: 7 | GL42: 5 | GM42: 3 | GN42: 2 | GO42: 4 | GP42: 10 | GQ42: 5 | GR42: 3 | GS42: 1 | GT42: 1 | GU42: 0.2129329759 | GV42: -0.5893750285 | GW42: 0.7312231405 | GX42: 0.08282765699 | GY42: 0.4579969925 | GZ42: 0.3635851939 | HA42: 0.6210916079 | HB42: 0.1667374883 | HC42: AX24.00075_NADH | HD42: By MS/MS | HE42: By matching | HF42: By matching | HG42: By MS/MS | HH42: By MS/MS | HI42: By MS/MS | HJ42: By MS/MS | HK42: By MS/MS | HL42: By MS/MS | HM42: By MS/MS | HN42: By MS/MS | HO42: By MS/MS | HP42: By MS/MS | HQ42: By MS/MS | HR42: By MS/MS | HS42: By MS/MS | HT42: By MS/MS | HU42: By MS/MS
A43: ALC24_0076_1,2-epoxyphenylacetyl-CoA isomerase | B43: MEIPSFQTLELTVDDGIATLYLNRPDRMNAFTREMKDELIAAFDFTDTTDEVRAVIVTGKGRAFCAGADLASGGDTFDYKKRGGEGANPDDAHRDGGGQVALRIYRSLKPVIAAVNGAAVGVGITMQLPMDVRLAADNARFGFVFSKRGIVNEAASSWFLSRVVGISSALEWCFTGRVFNAQEAKERGLVRSVHPADELYGEAVKLAREFADQTSAVSIAAMRQMIWRMAGASHPMEAHRLDSATMKSRGGSEDVREGVNSFLEKRPANFPDRVSTDMPDCFEWQSEPPFKE | C43: 292 | D43: 0.0659 | E43: 2.324951518 | F43: -0.3527574539 | H43: 0.0384 | I43: 0.6099671206 | J43: -0.1175718307 | L43: 0.0645 | M43: 0.9713364381 | N43: 0.2061344783 | P43: 0.0445 | Q43: 0.7669508279 | R43: -0.1293973923 | T43: 1.977776 | U43: 176590000.00 | V43: 604760.27 | W43: 0.0677 | X43: 2.053736 | Y43: 167010000 | Z43: 571952.05 | AA43: 0.0614 | AB43: 1.966305 | AC43: 133100000 | AD43: 455821.9178 | AE43: 0.0685 | AF43: 2.323622 | AG43: 1168100000 | AH43: 4000342.47 | AI43: 0.0406 | AJ43: 2.253181 | AK43: 1046700000 | AL43: 3584589.04 | AM43: 0.0397 | AN43: 2.12657 | AO43: 811330000 | AP43: 2778527.40 | AQ43: 0.0349 | AR43: 2.677572 | AS43: 879320000 | AT43: 3011369.86 | AU43: 0.0661 | AV43: 2.337234 | AW43: 68950000 | AX43: 236130.14 | AY43: 0.0630 | AZ43: 2.659685 | BA43: 569700000 | BB43: 1951027.40 | BC43: 0.0643 | BD43: 2.232195 | BE43: 308870000 | BF43: 1057773.97 | BG43: 0.0447 | BH43: 2.22546 | BI43: 315410000 | BJ43: 1080171.23 | BK43: 0.0436 | BL43: 2.210241 | BM43: 339250000 | BN43: 1161815.07 | BO43: 0.0453 | BP43: 2.394632 | BQ43: 1045300000 | BR43: 3579794.52 | BS43: 0.0447 | BT43: 2.330578 | BU43: 687690000 | BV43: 2355102.74 | BW43: 0.0425 | BX43: 2.469322 | BY43: 838920000 | BZ43: 2873013.70 | CA43: 0.0450 | CB43: 2.513657 | CC43: 1754900000 | CD43: 6009931.51 | CE43: 0.0741 | CF43: 2.28363 | CG43: 759210000 | CH43: 2600034.25 | CI43: 0.0760 | CJ43: 2.120358 | CK43: 432290000 | CL43: 1480445.21 | CM43: 0.0608 | CO43: 24 | CP43: 24 | CQ43: 24 | CR43: 80.5 | CS43: 80.5 | CT43: 80.5 | CU43: 31.985 | CV43: 0 | CW43: 323.31 | CX43: 11503000000 | CY43: 646 | CZ43: 47 | DA43: 24 | DB43: 24 | DC43: 24 | DD43: 1 | DE43: 19 | DF43: 19 | DG43: 20 | DH43: 24 | DI43: 23 | DJ43: 24 | DK43: 21 | DL43: 21 | DM43: 20 | DN43: 19 | DO43: 19 | DP43: 19 | DQ43: 24 | DR43: 24 | DS43: 24 | DT43: 22 | DU43: 20 | DV43: 19 | DW43: 19 | DX43: 19 | DY43: 20 | DZ43: 24 | EA43: 23 | EB43: 24 | EC43: 21 | ED43: 21 | EE43: 20 | EF43: 19 | EG43: 19 | EH43: 19 | EI43: 24 | EJ43: 24 | EK43: 24 | EL43: 22 | EM43: 20 | EN43: 19 | EO43: 19 | EP43: 19 | EQ43: 20 | ER43: 24 | ES43: 23 | ET43: 24 | EU43: 21 | EV43: 21 | EW43: 20 | EX43: 19 | EY43: 19 | EZ43: 19 | FA43: 24 | FB43: 24 | FC43: 24 | FD43: 22 | FE43: 20 | FF43: 19 | FG43: 292 | FH43: 292 | FI43: 1 | FJ43: 839 | FK43: 63 | FL43: 63 | FM43: 63 | FN43: 80.5 | FO43: 74 | FP43: 80.5 | FQ43: 78.1 | FR43: 78.1 | FS43: 74.7 | FT43: 74.7 | FU43: 72.9 | FV43: 74.7 | FW43: 80.5 | FX43: 80.5 | FY43: 80.5 | FZ43: 78.1 | GA43: 77.4 | GB43: 77.4 | GC43: 26 | GD43: 32 | GE43: 27 | GF43: 36 | GG43: 36 | GH43: 34 | GI43: 39 | GJ43: 29 | GK43: 36 | GL43: 34 | GM43: 32 | GN43: 31 | GO43: 45 | GP43: 36 | GQ43: 46 | GR43: 46 | GS43: 44 | GT43: 37 | GU43: 0.515223754 | GV43: -0.1690575646 | GW43: 0.8155648755 | GX43: -0.05618042724 | GY43: 0.8088178844 | GZ43: 0.09762718763 | HA43: 0.8192802577 | HB43: -0.06206598951 | HC43: AX24.00076_1,2-epoxyphenylacetyl-CoA | HD43: By MS/MS | HE43: By MS/MS | HF43: By MS/MS | HG43: By MS/MS | HH43: By MS/MS | HI43: By MS/MS | HJ43: By MS/MS | HK43: By MS/MS | HL43: By MS/MS | HM43: By MS/MS | HN43: By MS/MS | HO43: By MS/MS | HP43: By MS/MS | HQ43: By MS/MS | HR43: By MS/MS | HS43: By MS/MS | HT43: By MS/MS | HU43: By MS/MS
A44: ALC24_0077_Rhamnolipids biosynthesis 3-oxoacyl-[acyl-carrier-protein] reductase | B44: MSEQPVRTVQALFDLTGKTALVTGGSRGLGLQMAEALGEAGARVAISARKVKELEEAAEHLRQRGVEVLLLPADLSQEAHVLSLAEQAVKELGHVDILVNNAGATWGAPAEDYPMDGWDKVMTLNVRNLFLLTREIGRLSMIPRRYGRIVNIASNAALGGNRDLMQAVGYSTSKGAVVTFTRALAAEWGAYNITVNAIGPGVFPSKMSRYLSERHGDEGLARRVPLNQIGDEEGLKGVALLFASDAGKHTTGQFLLVDGGASAMIAG | C44: 267 | D44: 0.0133 | E44: 0.3785603773 | F44: -0.2419398626 | H44: 0.0005 | I44: 4.378785135 | J44: -4.34809653 | K44: + | L44: 0.0142 | M44: 0.5092339892 | N44: 0.3187481562 | P44: 0.0039 | Q44: 1.88497958 | R44: -0.9604438146 | T44: -0.5277843 | U44: 27395000.00 | V44: 102603.00 | W44: 0.0115 | X44: -0.3798866 | Y44: 24968000 | Z44: 93513.11 | AA44: 0.0100 | AB44: -0.365057 | AC44: 32710000 | AD44: 122509.3633 | AE44: 0.0184 | AF44: -4.735836 | AG44: 11523000 | AH44: 43157.30 | AI44: 0.0004 | AJ44: -3.404844 | AK44: 22591000 | AL44: 84610.49 | AM44: 0.0009 | AN44: -5.450518 | AO44: 0 | AP44: 0.00 | AQ44: 0.0000 | AR44: 0.3861103 | AS44: 179630000 | AT44: 672771.54 | AU44: 0.0148 | AV44: 0.005220413 | AW44: 13450000 | AX44: 50374.53 | AY44: 0.0134 | AZ44: 0.01800537 | BA44: 117390000 | BB44: 439662.92 | BC44: 0.0145 | BD44: -0.9019413 | BE44: 31432000 | BF44: 117722.85 | BG44: 0.0050 | BH44: -1.305693 | BI44: 20413000 | BJ44: 76453.18 | BK44: 0.0031 | BL44: -1.220606 | BM44: 25368000 | BN44: 95011.24 | BO44: 0.0037 | BP44: -0.1580048 | BQ44: 175220000 | BR44: 656254.68 | BS44: 0.0082 | BT44: 0.2692928 | BU44: 177290000 | BV44: 664007.49 | BW44: 0.0120 | BX44: 0.1520252 | BY44: 178750000 | BZ44: 669475.66 | CA44: 0.0105 | CB44: -0.01944733 | CC44: 219240000 | CD44: 821123.60 | CE44: 0.0101 | CF44: -0.2976971 | CG44: 166270000 | CH44: 622734.08 | CI44: 0.0182 | CJ44: -1.039986 | CK44: 71634000 | CL44: 268292.13 | CM44: 0.0110 | CN44: PESu_Succ | CO44: 15 | CP44: 15 | CQ44: 15 | CR44: 67 | CS44: 67 | CT44: 67 | CU44: 28.36 | CV44: 0 | CW44: 94.164 | CX44: 1495300000 | CY44: 110 | CZ44: 48 | DA44: 15 | DB44: 15 | DC44: 15 | DD44: 1 | DE44: 7 | DF44: 5 | DG44: 8 | DH44: 3 | DI44: 4 | DJ44: 0 | DK44: 11 | DL44: 8 | DM44: 8 | DN44: 7 | DO44: 6 | DP44: 8 | DQ44: 12 | DR44: 11 | DS44: 11 | DT44: 7 | DU44: 10 | DV44: 8 | DW44: 7 | DX44: 5 | DY44: 8 | DZ44: 3 | EA44: 4 | EB44: 0 | EC44: 11 | ED44: 8 | EE44: 8 | EF44: 7 | EG44: 6 | EH44: 8 | EI44: 12 | EJ44: 11 | EK44: 11 | EL44: 7 | EM44: 10 | EN44: 8 | EO44: 7 | EP44: 5 | EQ44: 8 | ER44: 3 | ES44: 4 | ET44: 0 | EU44: 11 | EV44: 8 | EW44: 8 | EX44: 7 | EY44: 6 | EZ44: 8 | FA44: 12 | FB44: 11 | FC44: 11 | FD44: 7 | FE44: 10 | FF44: 8 | FG44: 267 | FH44: 267 | FI44: 1 | FJ44: 174 | FK44: 38.2 | FL44: 28.1 | FM44: 46.1 | FN44: 12 | FO44: 16.1 | FP44: 0 | FQ44: 51.7 | FR44: 43.8 | FS44: 46.8 | FT44: 37.8 | FU44: 35.6 | FV44: 40.8 | FW44: 64 | FX44: 59.2 | FY44: 59.2 | FZ44: 41.9 | GA44: 55.1 | GB44: 44.2 | GC44: 5 | GD44: 6 | GE44: 4 | GF44: 1 | GG44: 1 | GH44: 0 | GI44: 11 | GJ44: 6 | GK44: 11 | GL44: 4 | GM44: 3 | GN44: 2 | GO44: 11 | GP44: 13 | GQ44: 11 | GR44: 9 | GS44: 7 | GT44: 5 | GU44: 0.6418039944 | GV44: -0.1060526943 | GW44: 0 | GX44: -1.752117663 | GY44: 0.7359823455 | GZ44: 0.1391320065 | HA44: 0.3329745223 | HB44: -0.4192959962 | HC44: AX24.00077_Rhamnolipids | HD44: By MS/MS | HE44: By MS/MS | HF44: By MS/MS | HG44: By MS/MS | HH44: By MS/MS | HJ44: By MS/MS | HK44: By MS/MS | HL44: By MS/MS | HM44: By MS/MS | HN44: By MS/MS | HO44: By MS/MS | HP44: By MS/MS | HQ44: By MS/MS | HR44: By MS/MS | HS44: By MS/MS | HT44: By MS/MS | HU44: By MS/MS
A45: ALC24_0078_1,2-epoxyphenylacetyl-CoA isomerase | B45: MTSEALVDYRVNGAVAIVKMNRPDALNAFNIPLREALLAALNEAEQDDRVKVVVLGSTGRAFSAGADLMESPENKPSVIETLLDGYRPLLEKISTLPLPVIGMTPGVAAGVGAAVLMACDLVLMAEEARIYMAFSHIGLVPDGGATWFLYQHLGYQRAFQLIVEGGSLDAQRCLALGIANQVLPVDQLEARALEWGGQLAQRSPLATAEAKRLLRAAATSSYAETYQQEAVAQHRCIASPESKAAVEAFKAKSKK | C45: 255 | D45: 0.0163 | E45: 1.674062697 | F45: -0.475575765 | H45: 0.0022 | I45: 3.637721505 | J45: -2.317862829 | K45: + | L45: 0.0167 | M45: 0.1952765034 | N45: -0.09731292725 | P45: 0.0084 | Q45: 2.088859642 | R45: -0.5687700907 | T45: 0.3204899 | U45: 37804000.00 | V45: 148250.98 | W45: 0.0166 | X45: 0.2205925 | Y45: 40160000 | Z45: 157490.20 | AA45: 0.0169 | AB45: -0.02807426 | AC45: 26321000 | AD45: 103219.6078 | AE45: 0.0155 | AF45: -1.505348 | AG45: 55068000 | AH45: 215952.94 | AI45: 0.0022 | AJ45: -0.9672813 | AK45: 86703000 | AL45: 340011.76 | AM45: 0.0038 | AN45: -2.541224 | AO45: 14577000 | AP45: 57164.71 | AQ45: 0.0007 | AR45: 0.7438831 | AS45: 186210000 | AT45: 730235.29 | AU45: 0.0160 | AV45: 0.1408386 | AW45: 15835000 | AX45: 62098.04 | AY45: 0.0166 | AZ45: 0.7630749 | BA45: 135040000 | BB45: 529568.63 | BC45: 0.0174 | BD45: 0.1972504 | BE45: 62911000 | BF45: 246709.80 | BG45: 0.0104 | BH45: 0.1193066 | BI45: 49139000 | BJ45: 192701.96 | BK45: 0.0078 | BL45: -0.08313179 | BM45: 44920000 | BN45: 176156.86 | BO45: 0.0069 | BP45: 0.405468 | BQ45: 227090000 | BR45: 890549.02 | BS45: 0.0111 | BT45: 0.5028782 | BU45: 187460000 | BV45: 735137.25 | BW45: 0.0133 | BX45: 0.5819778 | BY45: 195020000 | BZ45: 764784.31 | CA45: 0.0120 | CB45: 0.6363525 | CC45: 578510000 | CD45: 2268666.67 | CE45: 0.0280 | CF45: 1.10972 | CG45: 443840000 | CH45: 1740549.02 | CI45: 0.0509 | CJ45: 0.643074 | CK45: 217670000 | CL45: 853607.84 | CM45: 0.0351 | CN45: PESu_Succ | CO45: 11 | CP45: 11 | CQ45: 11 | CR45: 61.6 | CS45: 61.6 | CT45: 61.6 | CU45: 27.263 | CV45: 0 | CW45: 160.51 | CX45: 2604300000 | CY45: 130 | CZ45: 49 | DA45: 11 | DB45: 11 | DC45: 11 | DD45: 1 | DE45: 4 | DF45: 4 | DG45: 5 | DH45: 4 | DI45: 6 | DJ45: 2 | DK45: 7 | DL45: 8 | DM45: 8 | DN45: 7 | DO45: 5 | DP45: 5 | DQ45: 8 | DR45: 6 | DS45: 7 | DT45: 9 | DU45: 7 | DV45: 7 | DW45: 4 | DX45: 4 | DY45: 5 | DZ45: 4 | EA45: 6 | EB45: 2 | EC45: 7 | ED45: 8 | EE45: 8 | EF45: 7 | EG45: 5 | EH45: 5 | EI45: 8 | EJ45: 6 | EK45: 7 | EL45: 9 | EM45: 7 | EN45: 7 | EO45: 4 | EP45: 4 | EQ45: 5 | ER45: 4 | ES45: 6 | ET45: 2 | EU45: 7 | EV45: 8 | EW45: 8 | EX45: 7 | EY45: 5 | EZ45: 5 | FA45: 8 | FB45: 6 | FC45: 7 | FD45: 9 | FE45: 7 | FF45: 7 | FG45: 255 | FH45: 255 | FI45: 1 | FJ45: 169 | FK45: 30.2 | FL45: 31 | FM45: 29.4 | FN45: 25.1 | FO45: 37.6 | FP45: 11.8 | FQ45: 44.3 | FR45: 53.7 | FS45: 47.8 | FT45: 50.2 | FU45: 31.8 | FV45: 31.8 | FW45: 50.2 | FX45: 44.3 | FY45: 44.3 | FZ45: 52.2 | GA45: 48.6 | GB45: 41.2 | GC45: 8 | GD45: 6 | GE45: 6 | GF45: 2 | GG45: 5 | GH45: 1 | GI45: 15 | GJ45: 7 | GK45: 13 | GL45: 8 | GM45: 7 | GN45: 7 | GO45: 7 | GP45: 6 | GQ45: 7 | GR45: 8 | GS45: 11 | GT45: 6 | GU45: 0.4291736527 | GV45: -0.2200920274 | GW45: 0.0352248062 | GX45: -0.9923722496 | GY45: 0.9142725215 | GZ45: -0.04427659094 | HA45: 0.4750054054 | HB45: -0.2638427739 | HC45: AX24.00078_1,2-epoxyphenylacetyl-CoA | HD45: By MS/MS | HE45: By MS/MS | HF45: By MS/MS | HG45: By MS/MS | HH45: By MS/MS | HI45: By MS/MS | HJ45: By MS/MS | HK45: By MS/MS | HL45: By MS/MS | HM45: By MS/MS | HN45: By MS/MS | HO45: By MS/MS | HP45: By MS/MS | HQ45: By MS/MS | HR45: By MS/MS | HS45: By MS/MS | HT45: By MS/MS | HU45: By MS/MS
A46: ALC24_0081_Acyl-CoA dehydrogenase | B46: MDFNLPAELTAYLEELDAFIEAEIKPLENQDDNIRFFDHRREWARTDFDNGGLPREEWEALLMEARRRADQAGHWRFPLPKQYGGKDGSHLAMTVIREHLAAKGLGLHNDLQNEHSIVANNPFVLMFRDFGTAEQSDTFIHGMLNGELKLSFGLTEPNHGSDATHMETRAVKQQRDGVDGWLINGEKMWITGMHTSTHCLTFARTSGKDGDAKGITALLVPSDTPGLKVEEYLWTFNMPTDHPRISFTDVWVPADTLFGEEDNGLALAQHFVHENRIRQAASSLGAAVFCIQESVRYARERKPFGEALAKNQGIQFPMVELHTQTEMLRLLIRHTAWQMDQLPKVEVEKQLSDKVAMCNFWANRLCCEAADRAMQVHGGMGYSRHKPFEHIYRHHRRYRITEGAEEIQMRKVAAYLFGYLGPNRWRDE | C46: 428 | D46: 0.0056 | E46: 2.296412727 | F46: -0.7650133769 | H46: 0.0013 | I46: 3.151483075 | J46: -2.016269048 | L46: 0.0065 | M46: 0.8954889949 | N46: -0.3901850382 | P46: 0.0027 | Q46: 3.830744141 | R46: -0.935377121 | T46: -0.2268887 | U46: 28181000.00 | V46: 65843.46 | W46: 0.0074 | X46: -0.4728012 | Y46: 21364000 | Z46: 49915.89 | AA46: 0.0054 | AB46: -1.059727 | AC46: 11204000 | AD46: 26177.57009 | AE46: 0.0039 | AF46: -1.564293 | AG46: 48336000 | AH46: 112934.58 | AI46: 0.0011 | AJ46: -1.115776 | AK46: 81811000 | AL46: 191147.20 | AM46: 0.0021 | AN46: -2.833115 | AO46: 19688000 | AP46: 46000.00 | AQ46: 0.0006 | AR46: -0.08444595 | AS46: 131600000 | AT46: 307476.64 | AU46: 0.0068 | AV46: -0.798275 | AW46: 7263400 | AX46: 16970.56 | AY46: 0.0045 | AZ46: 0.2477894 | BA46: 105810000 | BB46: 247219.63 | BC46: 0.0081 | BD46: -0.8577557 | BE46: 24422000 | BF46: 57060.75 | BG46: 0.0024 | BH46: -0.8893948 | BI46: 31590000 | BJ46: 73808.41 | BK46: 0.0030 | BL46: -0.5233574 | BM46: 28752000 | BN46: 67177.57 | BO46: 0.0026 | BP46: 0.1635475 | BQ46: 220680000 | BR46: 515607.48 | BS46: 0.0064 | BT46: 0.1487045 | BU46: 140670000 | BV46: 328668.22 | BW46: 0.0059 | BX46: 0.2600842 | BY46: 167580000 | BZ46: 391542.06 | CA46: 0.0061 | CB46: -0.02671242 | CC46: 338510000 | CD46: 790911.21 | CE46: 0.0097 | CF46: 0.4583588 | CG46: 292290000 | CH46: 682920.56 | CI46: 0.0200 | CJ46: 0.06726456 | CK46: 118520000 | CL46: 276915.89 | CM46: 0.0114 | CO46: 22 | CP46: 22 | CQ46: 22 | CR46: 67.5 | CS46: 67.5 | CT46: 67.5 | CU46: 49.102 | CV46: 0 | CW46: 84.228 | CX46: 1818300000 | CY46: 105 | CZ46: 51 | DA46: 22 | DB46: 22 | DC46: 22 | DD46: 1 | DE46: 9 | DF46: 6 | DG46: 7 | DH46: 9 | DI46: 13 | DJ46: 6 | DK46: 14 | DL46: 11 | DM46: 14 | DN46: 10 | DO46: 11 | DP46: 10 | DQ46: 19 | DR46: 18 | DS46: 19 | DT46: 10 | DU46: 14 | DV46: 11 | DW46: 9 | DX46: 6 | DY46: 7 | DZ46: 9 | EA46: 13 | EB46: 6 | EC46: 14 | ED46: 11 | EE46: 14 | EF46: 10 | EG46: 11 | EH46: 10 | EI46: 19 | EJ46: 18 | EK46: 19 | EL46: 10 | EM46: 14 | EN46: 11 | EO46: 9 | EP46: 6 | EQ46: 7 | ER46: 9 | ES46: 13 | ET46: 6 | EU46: 14 | EV46: 11 | EW46: 14 | EX46: 10 | EY46: 11 | EZ46: 10 | FA46: 19 | FB46: 18 | FC46: 19 | FD46: 10 | FE46: 14 | FF46: 11 | FG46: 428 | FH46: 428 | FI46: 1 | FJ46: 268 | FK46: 35.5 | FL46: 17.1 | FM46: 21 | FN46: 29.4 | FO46: 40.2 | FP46: 19.6 | FQ46: 57.7 | FR46: 50.5 | FS46: 57.7 | FT46: 40.9 | FU46: 42.8 | FV46: 39.7 | FW46: 64.5 | FX46: 54.7 | FY46: 54.7 | FZ46: 40 | GA46: 53.5 | GB46: 40.2 | GC46: 4 | GD46: 1 | GE46: 3 | GF46: 2 | GG46: 3 | GH46: 0 | GI46: 10 | GJ46: 4 | GK46: 8 | GL46: 4 | GM46: 1 | GN46: 3 | GO46: 8 | GP46: 12 | GQ46: 12 | GR46: 8 | GS46: 13 | GT46: 9 | GU46: 0.3198144126 | GV46: -0.3492802842 | GW46: 0.06071794872 | GX46: -0.8575278141 | GY46: 0.6851734104 | GZ46: -0.1753238586 | HA46: 0.3245664336 | HB46: -0.4399365108 | HC46: AX24.00081_Acyl-CoA | HD46: By MS/MS | HE46: By MS/MS | HF46: By MS/MS | HG46: By MS/MS | HH46: By MS/MS | HI46: By matching | HJ46: By MS/MS | HK46: By MS/MS | HL46: By MS/MS | HM46: By MS/MS | HN46: By MS/MS | HO46: By MS/MS | HP46: By MS/MS | HQ46: By MS/MS | HR46: By MS/MS | HS46: By MS/MS | HT46: By MS/MS | HU46: By MS/MS
A47: ALC24_0082_1,2-epoxyphenylacetyl-CoA isomerase | B47: MDYNSIQLQRDGAIAVLSLHRPKTMNALATELQKEMLHALAAIEQDDGVRALIVTGSGRAFCSGADLGTMAPASDESVGTRVARMMRETSVPLIQALRRCRVPVVCAVNGAAAGAGASLALAGDVVVAARSAYFLFPFIPTLGILPDLGATWHLPRLAGSARAMGATLLGERIPSEQAERWGMIWACCEDEALEKTSRELATRLAALPRGAALEARRALDSAQHNTLDQQMELETQGQQRLIDSDAFQEGVQAFLEKRRPNFD | C47: 263 | D47: 0.0150 | E47: 0.4358265999 | F47: -0.3049284617 | H47: 0.0033 | I47: 1.775920052 | J47: -0.9626668294 | L47: 0.0153 | M47: 0.4394187628 | N47: 0.3006356557 | P47: 0.0067 | Q47: 0.8240411066 | R47: -0.4947605133 | T47: -0.1324768 | U47: 30415000.00 | V47: 115646.39 | W47: 0.0130 | X47: -0.3404446 | Y47: 42931000 | Z47: 163235.74 | AA47: 0.0175 | AB47: -0.6624355 | AC47: 25163000 | AD47: 95676.80608 | AE47: 0.0144 | AF47: -1.065468 | AG47: 92261000 | AH47: 350802.28 | AI47: 0.0036 | AJ47: -0.8297119 | AK47: 80158000 | AL47: 304783.27 | AM47: 0.0034 | AN47: -1.213392 | AO47: 63017000 | AP47: 239608.37 | AQ47: 0.0030 | AR47: 0.4513092 | AS47: 230810000 | AT47: 877604.56 | AU47: 0.0193 | AV47: 0.04406357 | AW47: 13526000 | AX47: 51429.66 | AY47: 0.0137 | AZ47: 0.1859627 | BA47: 104050000 | BB47: 395627.38 | BC47: 0.0130 | BD47: -0.4072685 | BE47: 44843000 | BF47: 170505.70 | BG47: 0.0072 | BH47: -0.5552616 | BI47: 44455000 | BJ47: 169030.42 | BK47: 0.0068 | BL47: -0.7423229 | BM47: 40774000 | BN47: 155034.22 | BO47: 0.0060 | BP47: 0.2520485 | BQ47: 225310000 | BR47: 856692.02 | BS47: 0.0107 | BT47: 0.3513699 | BU47: 195750000 | BV47: 744296.58 | BW47: 0.0134 | BX47: 0.4722595 | BY47: 236180000 | BZ47: 898022.81 | CA47: 0.0141 | CB47: -0.2975254 | CC47: 224070000 | CD47: 851977.19 | CE47: 0.0105 | CF47: -0.4593601 | CG47: 105340000 | CH47: 400532.32 | CI47: 0.0117 | CJ47: -0.7599354 | CK47: 44551000 | CL47: 169395.44 | CM47: 0.0070 | CO47: 15 | CP47: 15 | CQ47: 15 | CR47: 58.2 | CS47: 58.2 | CT47: 58.2 | CU47: 28.28 | CV47: 0 | CW47: 147.05 | CX47: 1843600000 | CY47: 137 | CZ47: 52 | DA47: 15 | DB47: 15 | DC47: 15 | DD47: 1 | DE47: 8 | DF47: 10 | DG47: 7 | DH47: 8 | DI47: 5 | DJ47: 7 | DK47: 10 | DL47: 10 | DM47: 12 | DN47: 10 | DO47: 10 | DP47: 9 | DQ47: 13 | DR47: 12 | DS47: 13 | DT47: 9 | DU47: 10 | DV47: 4 | DW47: 8 | DX47: 10 | DY47: 7 | DZ47: 8 | EA47: 5 | EB47: 7 | EC47: 10 | ED47: 10 | EE47: 12 | EF47: 10 | EG47: 10 | EH47: 9 | EI47: 13 | EJ47: 12 | EK47: 13 | EL47: 9 | EM47: 10 | EN47: 4 | EO47: 8 | EP47: 10 | EQ47: 7 | ER47: 8 | ES47: 5 | ET47: 7 | EU47: 10 | EV47: 10 | EW47: 12 | EX47: 10 | EY47: 10 | EZ47: 9 | FA47: 13 | FB47: 12 | FC47: 13 | FD47: 9 | FE47: 10 | FF47: 4 | FG47: 263 | FH47: 263 | FI47: 1 | FJ47: 206 | FK47: 37.3 | FL47: 48.3 | FM47: 31.9 | FN47: 41.8 | FO47: 24.7 | FP47: 37.3 | FQ47: 45.6 | FR47: 41.1 | FS47: 51.7 | FT47: 46.8 | FU47: 46.8 | FV47: 46.4 | FW47: 54.4 | FX47: 54.4 | FY47: 54.4 | FZ47: 41.1 | GA47: 44.1 | GB47: 23.2 | GC47: 5 | GD47: 4 | GE47: 6 | GF47: 3 | GG47: 2 | GH47: 3 | GI47: 9 | GJ47: 9 | GK47: 12 | GL47: 8 | GM47: 9 | GN47: 9 | GO47: 13 | GP47: 15 | GQ47: 15 | GR47: 7 | GS47: 4 | GT47: 4 | GU47: 0.5890991168 | GV47: -0.1316666353 | GW47: 0.244904142 | GX47: -0.4170703992 | GY47: 0.7516283619 | GZ47: 0.1301798603 | HA47: 0.5425446362 | HB47: -0.2145524788 | HC47: AX24.00082_1,2-epoxyphenylacetyl-CoA | HD47: By MS/MS | HE47: By MS/MS | HF47: By MS/MS | HG47: By MS/MS | HH47: By MS/MS | HI47: By MS/MS | HJ47: By MS/MS | HK47: By MS/MS | HL47: By MS/MS | HM47: By MS/MS | HN47: By MS/MS | HO47: By MS/MS | HP47: By MS/MS | HQ47: By MS/MS | HR47: By MS/MS | HS47: By MS/MS | HT47: By MS/MS | HU47: By MS/MS
A48: ALC24_0083_hypothetical protein | B48: VKTQPWQRDPEAYDFQFTFTPLFFHLDVERHVNNVAVQSFHTEGRLRYLMELSGADGIWCSDQVLLRPRRTVTQFIEETHYLTDVRCAVKLVAVDKDACRFAIALFQNGECTSVQDCLMGAWRDGQWQALPAALFDTLSARLGDVPELAPWPDFDAGPETDRGYPCRMPLEPRFIDQDTDRRLGELTIARYLEQSRVSSLDAMRLPGLGLLVARIDIHYLDWPAPLHSASLATGIAGFGNSSFRVHSGARVNDVLVGACESVMVLMNREQRRPTQIDEAMREAMAGSLVQG | C48: 291 | D48: 0.0069 | E48: 1.326753214 | F48: -1.031935056 | H48: 0.0066 | I48: 0.2288925381 | J48: -0.2410415014 | L48: 0.0089 | M48: 0.1146949815 | N48: -0.1321573257 | P48: 0.0066 | Q48: 0.3659268889 | R48: -0.3558537165 | T48: -0.8571148 | U48: 19216000.00 | V48: 66034.36 | W48: 0.0074 | X48: -1.08791 | Y48: 12342000 | Z48: 42412.37 | AA48: 0.0046 | AB48: -0.8013096 | AC48: 17075000 | AD48: 58676.97595 | AE48: 0.0088 | AF48: -0.03478241 | AG48: 196450000 | AH48: 675085.91 | AI48: 0.0069 | AJ48: -0.2511826 | AK48: 165190000 | AL48: 567663.23 | AM48: 0.0063 | AN48: -0.08768845 | AO48: 156390000 | AP48: 537422.68 | AQ48: 0.0068 | AR48: 0.04356766 | AS48: 127630000 | AT48: 438591.07 | AU48: 0.0096 | AV48: -0.2192192 | AW48: 8668500 | AX48: 29788.66 | AY48: 0.0079 | AZ48: 0.1286507 | BA48: 81771000 | BB48: 281000.00 | BC48: 0.0093 | BD48: -0.2010689 | BE48: 53548000 | BF48: 184013.75 | BG48: 0.0078 | BH48: -0.2810593 | BI48: 40570000 | BJ48: 139415.81 | BK48: 0.0056 | BL48: -0.2359619 | BM48: 48302000 | BN48: 165986.25 | BO48: 0.0065 | BP48: 0.7157898 | BQ48: 322780000 | BR48: 1109209.62 | BS48: 0.0139 | BT48: 0.637249 | BU48: 211950000 | BV48: 728350.52 | BW48: 0.0132 | BX48: 0.901783 | BY48: 294270000 | BZ48: 1011237.11 | CA48: 0.0158 | CB48: -0.3229733 | CC48: 285890000 | CD48: 982439.86 | CE48: 0.0121 | CF48: -0.5243855 | CG48: 113950000 | CH48: 391580.76 | CI48: 0.0114 | CJ48: -0.7085209 | CK48: 54980000 | CL48: 188934.71 | CM48: 0.0078 | CO48: 15 | CP48: 15 | CQ48: 15 | CR48: 72.5 | CS48: 72.5 | CT48: 72.5 | CU48: 32.79 | CV48: 0 | CW48: 139.67 | CX48: 2211000000 | CY48: 164 | CZ48: 53 | DA48: 15 | DB48: 15 | DC48: 15 | DD48: 1 | DE48: 6 | DF48: 7 | DG48: 8 | DH48: 9 | DI48: 12 | DJ48: 10 | DK48: 10 | DL48: 8 | DM48: 9 | DN48: 11 | DO48: 9 | DP48: 9 | DQ48: 13 | DR48: 12 | DS48: 13 | DT48: 9 | DU48: 12 | DV48: 9 | DW48: 6 | DX48: 7 | DY48: 8 | DZ48: 9 | EA48: 12 | EB48: 10 | EC48: 10 | ED48: 8 | EE48: 9 | EF48: 11 | EG48: 9 | EH48: 9 | EI48: 13 | EJ48: 12 | EK48: 13 | EL48: 9 | EM48: 12 | EN48: 9 | EO48: 6 | EP48: 7 | EQ48: 8 | ER48: 9 | ES48: 12 | ET48: 10 | EU48: 10 | EV48: 8 | EW48: 9 | EX48: 11 | EY48: 9 | EZ48: 9 | FA48: 13 | FB48: 12 | FC48: 13 | FD48: 9 | FE48: 12 | FF48: 9 | FG48: 291 | FH48: 291 | FI48: 1 | FJ48: 249 | FK48: 28.2 | FL48: 27.1 | FM48: 40.2 | FN48: 40.2 | FO48: 53.3 | FP48: 43.6 | FQ48: 49.1 | FR48: 43.3 | FS48: 43 | FT48: 48.5 | FU48: 38.8 | FV48: 46.4 | FW48: 62.2 | FX48: 58.8 | FY48: 62.2 | FZ48: 46.7 | GA48: 58.8 | GB48: 38.1 | GC48: 3 | GD48: 3 | GE48: 5 | GF48: 10 | GG48: 12 | GH48: 12 | GI48: 9 | GJ48: 6 | GK48: 10 | GL48: 12 | GM48: 8 | GN48: 9 | GO48: 14 | GP48: 12 | GQ48: 11 | GR48: 9 | GS48: 11 | GT48: 8 | GU48: 0.29005 | GV48: -0.4248230573 | GW48: 0.6876273764 | GX48: -0.09930168341 | GY48: 0.8944180366 | GZ48: -0.05436958175 | HA48: 0.6576067756 | HB48: -0.1467133443 | HC48: AX24.00083_hypothetical | HD48: By MS/MS | HE48: By MS/MS | HF48: By MS/MS | HG48: By MS/MS | HH48: By MS/MS | HI48: By MS/MS | HJ48: By MS/MS | HK48: By MS/MS | HL48: By MS/MS | HM48: By MS/MS | HN48: By MS/MS | HO48: By MS/MS | HP48: By MS/MS | HQ48: By MS/MS | HR48: By MS/MS | HS48: By MS/MS | HT48: By MS/MS | HU48: By MS/MS
A49: ALC24_0084_Crotonobetainyl-CoA:carnitine CoA-transferase | B49: MSGPLKGLKIIEMVGIGPGPFCSMMFADMGAEVIRIDRPGRGEPGSARFDVLARGRRSLALDLKKPGAADLVLDLVEQADVLIEGFRPGVMEKMGLGPEVCLSRKPSLVFGRMTGWGQFGPLSSAAGHDLNYIALTGALHGIGRADGPPPPPLNYVGDFGGGAMMLAFGVLAAVYESRASGQGQVVDAAMTDGAALLSAMMYGMKAAGAWRNERSANLLDGAAPYYDTYQCADGKFVAVGAIEPRFYAELLKRAEIDDAEFEAQNDRERWPSLKSKLTRLFASQPRDYWCERLEGSDACFAPVLDWEEAPQHPHNRARHTFITVDGVVQPAPAPRFSRTPPPAPRAPSARGQDSEAILSDWGIDEARQTGLRESGIL | C49: 377 | D49: 0.0113 | E49: 0.4972912018 | F49: -0.2515856425 | H49: 0.0009 | I49: 2.85747064 | J49: -2.365404765 | K49: + | L49: 0.0099 | M49: 1.233984315 | N49: 0.506462733 | P49: 0.0021 | Q49: 1.746293937 | R49: -0.620604833 | T49: -0.1978149 | U49: 43657000.00 | V49: 115801.06 | W49: 0.0130 | X49: -0.8339348 | Y49: 27864000 | Z49: 73909.81 | AA49: 0.0079 | AB49: -0.5461655 | AC49: 32216000 | AD49: 85453.5809 | AE49: 0.0129 | AF49: -2.847612 | AG49: 27844000 | AH49: 73856.76 | AI49: 0.0007 | AJ49: -1.4464 | AK49: 53410000 | AL49: 141671.09 | AM49: 0.0016 | AN49: -3.62536 | AO49: 7135700 | AP49: 18927.59 | AQ49: 0.0002 | AR49: 0.3931427 | AS49: 152150000 | AT49: 403580.90 | AU49: 0.0089 | AV49: -0.07183647 | AW49: 12787000 | AX49: 33917.77 | AY49: 0.0090 | AZ49: 0.3749237 | BA49: 134310000 | BB49: 356259.95 | BC49: 0.0117 | BD49: -0.9540253 | BE49: 15640000 | BF49: 41485.41 | BG49: 0.0018 | BH49: -0.8503189 | BI49: 14874000 | BJ49: 39453.58 | BK49: 0.0016 | BL49: -0.8806286 | BM49: 28609000 | BN49: 75885.94 | BO49: 0.0030 | BP49: 0.1545925 | BQ49: 208540000 | BR49: 553156.50 | BS49: 0.0069 | BT49: -0.7003307 | BU49: 98759000 | BV49: 261960.21 | BW49: 0.0047 | BX49: -0.389595 | BY49: 126980000 | BZ49: 336816.98 | CA49: 0.0053 | CB49: -0.5769978 | CC49: 228530000 | CD49: 606180.37 | CE49: 0.0075 | CF49: -0.003120422 | CG49: 200330000 | CH49: 531379.31 | CI49: 0.0155 | CJ49: -0.1308651 | CK49: 78145000 | CL49: 207281.17 | CM49: 0.0085 | CN49: PESu_Succ | CO49: 17 | CP49: 17 | CQ49: 17 | CR49: 60.5 | CS49: 60.5 | CT49: 60.5 | CU49: 40.532 | CV49: 0 | CW49: 67.787 | CX49: 1491800000 | CY49: 126 | CZ49: 54 | DA49: 17 | DB49: 17 | DC49: 17 | DD49: 1 | DE49: 8 | DF49: 7 | DG49: 8 | DH49: 7 | DI49: 8 | DJ49: 2 | DK49: 10 | DL49: 9 | DM49: 12 | DN49: 6 | DO49: 6 | DP49: 6 | DQ49: 13 | DR49: 12 | DS49: 13 | DT49: 6 | DU49: 9 | DV49: 7 | DW49: 8 | DX49: 7 | DY49: 8 | DZ49: 7 | EA49: 8 | EB49: 2 | EC49: 10 | ED49: 9 | EE49: 12 | EF49: 6 | EG49: 6 | EH49: 6 | EI49: 13 | EJ49: 12 | EK49: 13 | EL49: 6 | EM49: 9 | EN49: 7 | EO49: 8 | EP49: 7 | EQ49: 8 | ER49: 7 | ES49: 8 | ET49: 2 | EU49: 10 | EV49: 9 | EW49: 12 | EX49: 6 | EY49: 6 | EZ49: 6 | FA49: 13 | FB49: 12 | FC49: 13 | FD49: 6 | FE49: 9 | FF49: 7 | FG49: 377 | FH49: 377 | FI49: 1 | FJ49: 214 | FK49: 31 | FL49: 25.5 | FM49: 36.6 | FN49: 18.8 | FO49: 19.4 | FP49: 10.6 | FQ49: 38.2 | FR49: 31.3 | FS49: 53.1 | FT49: 14.3 | FU49: 19.9 | FV49: 22.8 | FW49: 42.4 | FX49: 40.6 | FY49: 45.9 | FZ49: 30 | GA49: 34.5 | GB49: 34 | GC49: 7 | GD49: 2 | GE49: 6 | GF49: 1 | GG49: 5 | GH49: 0 | GI49: 18 | GJ49: 6 | GK49: 14 | GL49: 3 | GM49: 3 | GN49: 5 | GO49: 14 | GP49: 13 | GQ49: 13 | GR49: 4 | GS49: 6 | GT49: 6 | GU49: 0.6267518797 | GV49: -0.1126102589 | GW49: 0.04202898551 | GX49: -0.9603142547 | GY49: 0.6199248658 | GZ49: 0.2277141597 | HA49: 0.4537137368 | HB49: -0.2818615101 | HC49: AX24.00084_Crotonobetainyl-CoA:carnitine | HD49: By MS/MS | HE49: By MS/MS | HF49: By MS/MS | HG49: By MS/MS | HH49: By MS/MS | HI49: By matching | HJ49: By MS/MS | HK49: By MS/MS | HL49: By MS/MS | HM49: By MS/MS | HN49: By MS/MS | HO49: By MS/MS | HP49: By MS/MS | HQ49: By MS/MS | HR49: By MS/MS | HS49: By MS/MS | HT49: By MS/MS | HU49: By MS/MS
A50: ALC24_0086_putative 2,4-dienoyl-CoA reductase | B50: VQASDLMFRPDLLKGHRILVTGGGTGLGREMAEALLILGARVYICGRRGTVLEETAKALMDAHGGTVVPATCDIRDADAIEAMVDTIWKDGGALTGLLNNAAGNFISRTEDLSSRGFDAISSIVFRGSFLVTRACGKRWLAEGVSASVVSILTTWVWNGSPFVVPSAMSKAGLHAMTQSLAVEWGNRGLRFNAIAPGLFPTEGMSKRLGPLGGMQVRGCPMGRPGRMPELANLAAYLLAPGSEYVNGQTIAIDGGRYQADGGNFAELAAWGDEEWQQAREAITRQNEKDKKQRS | C50: 294 | D50: 0.0034 | E50: 0.9725534556 | F50: -1.674024582 | H50: 0.0009 | I50: 2.949175807 | J50: -2.270721118 | K50: + | L50: 0.0066 | M50: 0.3335949383 | N50: 0.3233722051 | P50: 0.0016 | Q50: 0.7664007315 | R50: -0.5950670242 | T50: -5.327111 | U50: 3310100.00 | V50: 11258.84 | W50: 0.0013 | X50: -2.143702 | Y50: 12212000 | Z50: 41537.41 | AA50: 0.0045 | AB50: -1.192503 | AC50: 8717400 | AD50: 29651.02041 | AE50: 0.0045 | AF50: -3.936766 | AG50: 26480000 | AH50: 90068.03 | AI50: 0.0009 | AJ50: -2.944056 | AK50: 32158000 | AL50: 109380.95 | AM50: 0.0012 | AN50: -3.572584 | AO50: 11188000 | AP50: 38054.42 | AQ50: 0.0005 | AR50: -0.4724312 | AS50: 79758000 | AT50: 271285.71 | AU50: 0.0060 | AV50: -1.335207 | AW50: 7234800 | AX50: 24608.16 | AY50: 0.0066 | AZ50: -0.8634872 | BA50: 64671000 | BB50: 219969.39 | BC50: 0.0072 | BD50: -1.911983 | BE50: 8516600 | BF50: 28968.03 | BG50: 0.0012 | BH50: -1.596973 | BI50: 16012000 | BJ50: 54462.59 | BK50: 0.0022 | BL50: -1.917486 | BM50: 10884000 | BN50: 37020.41 | BO50: 0.0014 | BP50: -0.8736801 | BQ50: 108400000 | BR50: 368707.48 | BS50: 0.0046 | BT50: -0.260788 | BU50: 93296000 | BV50: 317333.33 | BW50: 0.0057 | BX50: -1.024216 | BY50: 105150000 | BZ50: 357653.06 | CA50: 0.0056 | CB50: -2.118298 | CC50: 66983000 | CD50: 227833.33 | CE50: 0.0028 | CF50: -1.605484 | CG50: 50043000 | CH50: 170214.29 | CI50: 0.0050 | CJ50: -1.400019 | CK50: 45653000 | CL50: 155282.31 | CM50: 0.0064 | CN50: PESu_Succ | CO50: 17 | CP50: 17 | CQ50: 17 | CR50: 68 | CS50: 68 | CT50: 68 | CU50: 31.387 | CV50: 0 | CW50: 54.687 | CX50: 750670000 | CY50: 69 | CZ50: 56 | DA50: 17 | DB50: 17 | DC50: 17 | DD50: 1 | DE50: 3 | DF50: 4 | DG50: 4 | DH50: 5 | DI50: 6 | DJ50: 5 | DK50: 10 | DL50: 8 | DM50: 11 | DN50: 4 | DO50: 6 | DP50: 4 | DQ50: 10 | DR50: 13 | DS50: 12 | DT50: 4 | DU50: 6 | DV50: 6 | DW50: 3 | DX50: 4 | DY50: 4 | DZ50: 5 | EA50: 6 | EB50: 5 | EC50: 10 | ED50: 8 | EE50: 11 | EF50: 4 | EG50: 6 | EH50: 4 | EI50: 10 | EJ50: 13 | EK50: 12 | EL50: 4 | EM50: 6 | EN50: 6 | EO50: 3 | EP50: 4 | EQ50: 4 | ER50: 5 | ES50: 6 | ET50: 5 | EU50: 10 | EV50: 8 | EW50: 11 | EX50: 4 | EY50: 6 | EZ50: 4 | FA50: 10 | FB50: 13 | FC50: 12 | FD50: 4 | FE50: 6 | FF50: 6 | FG50: 294 | FH50: 294 | FI50: 1 | FJ50: 145 | FK50: 11.9 | FL50: 17.3 | FM50: 21.1 | FN50: 17.7 | FO50: 25.9 | FP50: 21.8 | FQ50: 53.7 | FR50: 40.8 | FS50: 50.7 | FT50: 21.8 | FU50: 28.9 | FV50: 21.1 | FW50: 46.9 | FX50: 56.8 | FY50: 53.4 | FZ50: 19.4 | GA50: 28.2 | GB50: 28.2 | GC50: 1 | GD50: 2 | GE50: 3 | GF50: 0 | GG50: 1 | GH50: 0 | GI50: 14 | GJ50: 5 | GK50: 4 | GL50: 2 | GM50: 2 | GN50: 3 | GO50: 5 | GP50: 13 | GQ50: 5 | GR50: 2 | GS50: 4 | GT50: 3 | GU50: 0.2194605598 | GV50: -0.5764312596 | GW50: 0.04455629139 | GX50: -0.9350342598 | GY50: 0.7474767514 | GZ50: 0.1337675447 | HA50: 0.4985467009 | HB50: -0.2489439269 | HC50: AX24.00086_putative | HD50: By MS/MS | HE50: By MS/MS | HF50: By MS/MS | HG50: By MS/MS | HH50: By MS/MS | HI50: By matching | HJ50: By MS/MS | HK50: By MS/MS | HL50: By MS/MS | HM50: By MS/MS | HN50: By MS/MS | HO50: By MS/MS | HP50: By MS/MS | HQ50: By MS/MS | HR50: By MS/MS | HS50: By MS/MS | HT50: By MS/MS | HU50: By MS/MS
A51: ALC24_0087_putative enoyl-CoA hydratase echA6 | B51: MSDVIRVIETETPGVVEVRLNRPDKHNALNSELFAALAGMAERLSAWRGLRAVVLSGEGKSFCAGLDMENFSRMAQGSGAGVGGRKTLAERTHGDSNLAQYAAMVWRDVPVPVIAAVQGVAFGGGLQVALGADLRLARADSRWSVMEIQWGLVPDMAGMVLISELVRPDRVRELCYSGRIFDGEEAADLGLVTRVCESPREEALAMARDIAGRNPHAVRAMKRLLNQSAMPQEQTARVLLAESVEQDAIIGQPNQVEAVYARMEKRAPVFRDPE | C51: 274 | D51: 0.0310 | E51: 1.26120644 | F51: -0.7634970347 | H51: 0.0294 | I51: 0.002628115204 | J51: -0.00265566508 | L51: 0.0334 | M51: 0.1409115957 | N51: 0.1269683838 | P51: 0.0198 | Q51: 0.4712597294 | R51: -0.342405955 | T51: 0.7482815 | U51: 58694000.00 | V51: 214211.68 | W51: 0.0240 | X51: 0.6674404 | Y51: 85672000 | Z51: 312671.53 | AA51: 0.0336 | AB51: 0.8345222 | AC51: 64766000 | AD51: 236372.2628 | AE51: 0.0355 | AF51: 1.664629 | AG51: 839660000 | AH51: 3064452.55 | AI51: 0.0311 | AJ51: 1.587557 | AK51: 808480000 | AL51: 2950656.93 | AM51: 0.0327 | AN51: 1.280582 | AO51: 533040000 | AP51: 1945401.46 | AQ51: 0.0245 | AR51: 1.899626 | AS51: 480590000 | AT51: 1753978.10 | AU51: 0.0385 | AV51: 1.38905 | AW51: 32707000 | AX51: 119368.61 | AY51: 0.0318 | AZ51: 1.632965 | BA51: 249410000 | BB51: 910255.47 | BC51: 0.0300 | BD51: 1.245913 | BE51: 129020000 | BF51: 470875.91 | BG51: 0.0199 | BH51: 1.226475 | BI51: 135420000 | BJ51: 494233.58 | BK51: 0.0200 | BL51: 1.04113 | BM51: 136960000 | BN51: 499854.01 | BO51: 0.0195 | BP51: 2.061829 | BQ51: 742240000 | BR51: 2708905.11 | BS51: 0.0338 | BT51: 1.811022 | BU51: 467930000 | BV51: 1707773.72 | BW51: 0.0308 | BX51: 1.971174 | BY51: 636560000 | BZ51: 2323211.68 | CA51: 0.0364 | CB51: 1.565735 | CC51: 774470000 | CD51: 2826532.85 | CE51: 0.0348 | CF51: 0.889883 | CG51: 292980000 | CH51: 1069270.07 | CI51: 0.0312 | CJ51: 0.7818279 | CK51: 169270000 | CL51: 617773.72 | CM51: 0.0254 | CO51: 17 | CP51: 17 | CQ51: 17 | CR51: 69.3 | CS51: 69.3 | CT51: 69.3 | CU51: 29.763 | CV51: 0 | CW51: 195.3 | CX51: 6637900000 | CY51: 274 | CZ51: 57 | DA51: 17 | DB51: 17 | DC51: 17 | DD51: 1 | DE51: 11 | DF51: 11 | DG51: 10 | DH51: 15 | DI51: 15 | DJ51: 14 | DK51: 15 | DL51: 14 | DM51: 13 | DN51: 13 | DO51: 12 | DP51: 13 | DQ51: 14 | DR51: 15 | DS51: 15 | DT51: 10 | DU51: 13 | DV51: 10 | DW51: 11 | DX51: 11 | DY51: 10 | DZ51: 15 | EA51: 15 | EB51: 14 | EC51: 15 | ED51: 14 | EE51: 13 | EF51: 13 | EG51: 12 | EH51: 13 | EI51: 14 | EJ51: 15 | EK51: 15 | EL51: 10 | EM51: 13 | EN51: 10 | EO51: 11 | EP51: 11 | EQ51: 10 | ER51: 15 | ES51: 15 | ET51: 14 | EU51: 15 | EV51: 14 | EW51: 13 | EX51: 13 | EY51: 12 | EZ51: 13 | FA51: 14 | FB51: 15 | FC51: 15 | FD51: 10 | FE51: 13 | FF51: 10 | FG51: 274 | FH51: 274 | FI51: 1 | FJ51: 398 | FK51: 52.6 | FL51: 54.4 | FM51: 51.5 | FN51: 67.5 | FO51: 67.5 | FP51: 67.5 | FQ51: 67.5 | FR51: 67.5 | FS51: 58.4 | FT51: 58.4 | FU51: 49.6 | FV51: 58.8 | FW51: 52.6 | FX51: 58.4 | FY51: 58.4 | FZ51: 46.4 | GA51: 63.1 | GB51: 42 | GC51: 12 | GD51: 14 | GE51: 16 | GF51: 17 | GG51: 21 | GH51: 24 | GI51: 15 | GJ51: 13 | GK51: 14 | GL51: 11 | GM51: 13 | GN51: 10 | GO51: 15 | GP51: 15 | GQ51: 18 | GR51: 18 | GS51: 12 | GT51: 16 | GU51: 0.333961991 | GV51: -0.3274538031 | GW51: 0.9964513619 | GX51: -0.001135421597 | GY51: 0.8945809479 | GZ51: 0.05416896836 | HA51: 0.6578062954 | HB51: -0.146774952 | HC51: AX24.00087_putative | HD51: By MS/MS | HE51: By MS/MS | HF51: By MS/MS | HG51: By MS/MS | HH51: By MS/MS | HI51: By MS/MS | HJ51: By MS/MS | HK51: By MS/MS | HL51: By MS/MS | HM51: By MS/MS | HN51: By MS/MS | HO51: By MS/MS | HP51: By MS/MS | HQ51: By MS/MS | HR51: By MS/MS | HS51: By MS/MS | HT51: By MS/MS | HU51: By MS/MS
A52: ALC24_0088_Putative hydroxypyruvate reductase | B52: VNLFEDPEAPRRFLRELFDAAVLAAQPEHCVPPWLPEDDGGPLLVLGAGKAAAAMARAVEAHWSGPLTGLVVTRYGHGLPTRHIEVVEAAHPVPDEAGERAARRILELARAAGPGDRVLCLISGGGSALLSLPAAGLSLSCKQALTGELLRCGAAIDEINTVRKHLSAIKGGRLAEALAPAESHTLVISDVPGDDPSVIASGPTVADASTSAEALAVLERYGIEVPEAVRRHLNSPASETPKPGATCFQSARLNCIATPALSLRAAARRAREQGVAAAVLSDRIEGEARDIGVLHAELAHQARRGGGFGGLRLPLVLLSGGETTVTVTGKGRGGRNAEFLLGAALNLDDVPGIHALAGDTDGIDGTEDNAGAVYHPGLMAEARTRQLDGHQALADHDAYGFFQALGGLVVTGPTHTNVNDFRAFLVLG | C52: 428 | D52: 0.0024 | E52: 0.1509550049 | F52: 0.1207345327 | H52: 0.0016 | I52: 0.1826418385 | J52: -0.0705464681 | L52: 0.0031 | M52: 1.54167684 | N52: 0.4297040304 | P52: 0.0011 | Q52: 1.042067834 | R52: -0.2975641886 | T52: -2.257847 | U52: 6486600.00 | V52: 15155.61 | W52: 0.0017 | X52: -1.689707 | Y52: 8960900 | Z52: 20936.68 | AA52: 0.0022 | AB52: -0.8411007 | AC52: 9022400 | AD52: 21080.37383 | AE52: 0.0032 | AF52: -1.78336 | AG52: 69891000 | AH52: 163296.73 | AI52: 0.0017 | AJ52: -1.702147 | AK52: 70885000 | AL52: 165619.16 | AM52: 0.0018 | AN52: -1.876991 | AO52: 47626000 | AP52: 111275.70 | AQ52: 0.0014 | AR52: -1.33325 | AS52: 62340000 | AT52: 145654.21 | AU52: 0.0032 | AV52: -1.390318 | AW52: 3768900 | AX52: 8805.84 | AY52: 0.0023 | AZ52: -1.138178 | BA52: 49923000 | BB52: 116642.52 | BC52: 0.0038 | BD52: -2.088886 | BE52: 15484000 | BF52: 36177.57 | BG52: 0.0015 | BH52: -1.922386 | BI52: 10560000 | BJ52: 24672.90 | BK52: 0.0010 | BL52: -2.032278 | BM52: 9760300 | BN52: 22804.44 | BO52: 0.0009 | BP52: -1.706364 | BQ52: 78245000 | BR52: 182815.42 | BS52: 0.0023 | BT52: -1.695974 | BU52: 49150000 | BV52: 114836.45 | BW52: 0.0021 | BX52: -1.481138 | BY52: 49415000 | BZ52: 115455.61 | CA52: 0.0018 | CB52: -1.706367 | CC52: 81412000 | CD52: 190214.95 | CE52: 0.0023 | CF52: -1.52935 | CG52: 58617000 | CH52: 136955.61 | CI52: 0.0040 | CJ52: -2.182522 | CK52: 11838000 | CL52: 27658.88 | CM52: 0.0011 | CO52: 12 | CP52: 12 | CQ52: 12 | CR52: 38.1 | CS52: 38.1 | CT52: 38.1 | CU52: 44.281 | CV52: 0 | CW52: 110.72 | CX52: 693380000 | CY52: 77 | CZ52: 58 | DA52: 12 | DB52: 12 | DC52: 12 | DD52: 1 | DE52: 4 | DF52: 3 | DG52: 3 | DH52: 8 | DI52: 8 | DJ52: 7 | DK52: 7 | DL52: 4 | DM52: 8 | DN52: 5 | DO52: 3 | DP52: 4 | DQ52: 8 | DR52: 9 | DS52: 8 | DT52: 4 | DU52: 6 | DV52: 4 | DW52: 4 | DX52: 3 | DY52: 3 | DZ52: 8 | EA52: 8 | EB52: 7 | EC52: 7 | ED52: 4 | EE52: 8 | EF52: 5 | EG52: 3 | EH52: 4 | EI52: 8 | EJ52: 9 | EK52: 8 | EL52: 4 | EM52: 6 | EN52: 4 | EO52: 4 | EP52: 3 | EQ52: 3 | ER52: 8 | ES52: 8 | ET52: 7 | EU52: 7 | EV52: 4 | EW52: 8 | EX52: 5 | EY52: 3 | EZ52: 4 | FA52: 8 | FB52: 9 | FC52: 8 | FD52: 4 | FE52: 6 | FF52: 4 | FG52: 428 | FH52: 428 | FI52: 1 | FJ52: 131 | FK52: 15.7 | FL52: 9.3 | FM52: 9.3 | FN52: 30.8 | FO52: 31.8 | FP52: 26.2 | FQ52: 25.7 | FR52: 18.9 | FS52: 30.4 | FT52: 18.2 | FU52: 10 | FV52: 15.9 | FW52: 29.7 | FX52: 32.5 | FY52: 27.6 | FZ52: 15.7 | GA52: 22.9 | GB52: 14.3 | GC52: 0 | GD52: 2 | GE52: 1 | GF52: 9 | GG52: 9 | GH52: 6 | GI52: 5 | GJ52: 4 | GK52: 9 | GL52: 1 | GM52: 2 | GN52: 0 | GO52: 4 | GP52: 8 | GQ52: 6 | GR52: 4 | GS52: 4 | GT52: 3 | GU52: 0.8028505747 | GV52: 0.05231968385 | GW52: 0.8901816674 | GX52: -0.03278154027 | GY52: 0.6612455859 | GZ52: 0.1992537703 | HA52: 0.6737102473 | HB52: -0.138286915 | HC52: AX24.00088_Putative | HD52: By matching | HE52: By MS/MS | HF52: By MS/MS | HG52: By MS/MS | HH52: By MS/MS | HI52: By MS/MS | HJ52: By MS/MS | HK52: By MS/MS | HL52: By MS/MS | HM52: By MS/MS | HN52: By MS/MS | HO52: By matching | HP52: By MS/MS | HQ52: By MS/MS | HR52: By MS/MS | HS52: By MS/MS | HT52: By MS/MS | HU52: By MS/MS
A53: ALC24_0089_Serine/threonine-protein kinase PknK | B53: MKTSSYLLSTRTLLNSKLSPPTSHSSQVTRTRIRDSVVGASAAKLVLFQAPAGFGKSTLMAQCLERFESEGVATAWLTLDDADNDIQRFLSCVEAAISSMMALPQEPERGLHSSKSPGDTALELVTSLAAEHAAFALFLDDFERIHEPTVLGLVREIIDHLPHNCRLVIGSRSVPELGLGRLRARGRLLEIDSELMRFSKEETHHFLNGCRQLSLSLDDLGHIHDKTEGWVAALWLASLALEHHPAPAEFIAGFSGENRAVAHYLAEDVLSQQPPRVRNFLLRTSILRYMSVPLCNALLPDTDSESLINLLNEANIFLVPIEGQERLYRYHSLFADFLRAQLEQHLPQEVPYLHRAASHWFEDQHRPVPAIDHALEGKDYRRALELLAVHGEELLAQGRMRLLARWFDTIPAERLDGFPLLQAIHVWALCFTSSPRKAMDLLQRTGLENSRDPQIRPHVLALRPSILAIMDDFEEAYRIGREALKQLPNGDPFADTALVNTVANAYSVMGEYQEARQLLDGARDVQGVYESAFNAMYSESVEGIIDLQEGRQRQAAARFRLAVGMTRARGAFSFSGTTGNAWAGVLHASAVYESNDLPQAARLLNVYVPLVRDIGLPDHMILGDVMLSRIAFHEGDLDKAFQILASLELTGHRRQQPRMVATARLERAHLMLLQGDEEASLAELERADDPQVWDRVKGLRLLANDLETAQIGRLRWESLVGDASIAVEKLRQAIAEAVNDSRYRRACKLRLFLAVALQRKGQLRGALEEMEKVLKEACREGYFRLILDEGPRVGALVVHLQSDTLERKQDRREPLFAEYLQQLLQGFGPTVFNAYPPVEDAQALLLPEPLTRKEIRVLKLLAEGHSNSAMAEKLFVSDSTIRTHLRNINAKLNASNRTEAVAIARKAGVV | C53: 910 | D53: 0.0006 | E53: 1.635135574 | F53: -2.441435496 | H53: 0.0010 | I53: 0.3908896427 | J53: -0.7370402018 | L53: 0.0026 | M53: 0.04705396826 | N53: -0.1146793365 | P53: 0.0014 | Q53: 0.2417074975 | R53: -0.4927101135 | T53: -3.301456 | U53: 3023600.00 | V53: 3322.64 | W53: 0.0004 | X53: -3.014601 | Y53: 5628300 | Z53: 6184.95 | AA53: 0.0007 | AB53: -2.601019 | AC53: 5420200 | AD53: 5956.263736 | AE53: 0.0009 | AF53: -1.401476 | AG53: 78353000 | AH53: 86102.20 | AI53: 0.0009 | AJ53: -1.289482 | AK53: 88450000 | AL53: 97197.80 | AM53: 0.0011 | AN53: -1.112932 | AO53: 71266000 | AP53: 78314.29 | AQ53: 0.0010 | AR53: -0.4737759 | AS53: 90924000 | AT53: 99916.48 | AU53: 0.0022 | AV53: -1.244467 | AW53: 7317900 | AX53: 8041.65 | AY53: 0.0021 | AZ53: -0.218565 | BA53: 95615000 | BB53: 105071.43 | BC53: 0.0035 | BD53: -1.144464 | BE53: 30246000 | BF53: 33237.36 | BG53: 0.0014 | BH53: -0.9808578 | BI53: 35075000 | BJ53: 38543.96 | BK53: 0.0016 | BL53: -0.9455776 | BM53: 30547000 | BN53: 33568.13 | BO53: 0.0013 | BP53: 0.650177 | BQ53: 320920000 | BR53: 352659.34 | BS53: 0.0044 | BT53: 0.4432755 | BU53: 168650000 | BV53: 185329.67 | BW53: 0.0033 | BX53: 0.8754578 | BY53: 280230000 | BZ53: 307945.05 | CA53: 0.0048 | CB53: -1.646717 | CC53: 129460000 | CD53: 142263.74 | CE53: 0.0018 | CF53: -0.9942303 | CG53: 80507000 | CH53: 88469.23 | CI53: 0.0026 | CJ53: -2.513502 | CK53: 22228000 | CL53: 24426.37 | CM53: 0.0010 | CO53: 24 | CP53: 24 | CQ53: 24 | CR53: 38.1 | CS53: 38.1 | CT53: 38.1 | CU53: 101.73 | CV53: 0 | CW53: 181.56 | CX53: 1543900000 | CY53: 156 | CZ53: 59 | DA53: 24 | DB53: 24 | DC53: 24 | DD53: 1 | DE53: 4 | DF53: 4 | DG53: 5 | DH53: 9 | DI53: 12 | DJ53: 10 | DK53: 12 | DL53: 9 | DM53: 13 | DN53: 11 | DO53: 11 | DP53: 9 | DQ53: 19 | DR53: 16 | DS53: 21 | DT53: 10 | DU53: 10 | DV53: 6 | DW53: 4 | DX53: 4 | DY53: 5 | DZ53: 9 | EA53: 12 | EB53: 10 | EC53: 12 | ED53: 9 | EE53: 13 | EF53: 11 | EG53: 11 | EH53: 9 | EI53: 19 | EJ53: 16 | EK53: 21 | EL53: 10 | EM53: 10 | EN53: 6 | EO53: 4 | EP53: 4 | EQ53: 5 | ER53: 9 | ES53: 12 | ET53: 10 | EU53: 12 | EV53: 9 | EW53: 13 | EX53: 11 | EY53: 11 | EZ53: 9 | FA53: 19 | FB53: 16 | FC53: 21 | FD53: 10 | FE53: 10 | FF53: 6 | FG53: 910 | FH53: 910 | FI53: 1 | FJ53: 259 | FK53: 5.5 | FL53: 5.8 | FM53: 7.5 | FN53: 11.1 | FO53: 16.8 | FP53: 12.2 | FQ53: 17.8 | FR53: 13.5 | FS53: 19.6 | FT53: 16.8 | FU53: 18.9 | FV53: 12.4 | FW53: 26 | FX53: 22.3 | FY53: 31.4 | FZ53: 17.8 | GA53: 14.8 | GB53: 8.8 | GC53: 1 | GD53: 1 | GE53: 2 | GF53: 5 | GG53: 13 | GH53: 8 | GI53: 10 | GJ53: 5 | GK53: 13 | GL53: 6 | GM53: 6 | GN53: 6 | GO53: 24 | GP53: 21 | GQ53: 25 | GR53: 4 | GS53: 6 | GT53: 0 | GU53: 0.1069752066 | GV53: -0.8586108389 | GW53: 0.3960612245 | GX53: -0.260004762 | GY53: 0.926588446 | GZ53: -0.04013949693 | HA53: 0.6117399869 | HB53: -0.1738647266 | HC53: AX24.00089_Serine/threonine-protein | HD53: By MS/MS | HE53: By MS/MS | HF53: By MS/MS | HG53: By MS/MS | HH53: By MS/MS | HI53: By MS/MS | HJ53: By MS/MS | HK53: By MS/MS | HL53: By MS/MS | HM53: By MS/MS | HN53: By MS/MS | HO53: By MS/MS | HP53: By MS/MS | HQ53: By MS/MS | HR53: By MS/MS | HS53: By MS/MS | HT53: By MS/MS | HU53: By matching
A54: ALC24_0090_3-oxoacyl-[acyl-carrier-protein] reductase FabG | B54: MKLDSSVSAVITGGASGLGAATARRLAAHGVRVALFDVNEEQGEALAAELGGVFCKVDVTDDASVDQGFEKARAAIGQERILVNCAGIGGSAKTAGRDKKDGSTNHYPIDQFNRIVQINLVGSFRCSAKAAKGMLSLDPLEHGERGVMINTASVAAQDGQIGQTAYSASKAALVGMTLPMARDLMSEGIRVNTIMPGIFETPLLARLPENVKQSLSASVPFPKRLGSPDEFAQLAETMIVNGYFNGESVRLDGAIRMAPR | C54: 260 | D54: 0.0160 | E54: 0.6895798999 | F54: -0.2664203644 | H54: 0.0034 | I54: 2.809251765 | J54: -1.175258001 | L54: 0.0225 | M54: 2.337112726 | N54: 0.7018305461 | P54: 0.0106 | Q54: 0.3565661016 | R54: -0.1387290955 | T54: 0.1102257 | U54: 34775000.00 | V54: 133750.00 | W54: 0.0150 | X54: -0.2169876 | Y54: 46631000 | Z54: 179350.00 | AA54: 0.0192 | AB54: -0.3855629 | AC54: 23681000 | AD54: 91080.76923 | AE54: 0.0137 | AF54: -1.098906 | AG54: 79503000 | AH54: 305780.77 | AI54: 0.0031 | AJ54: -0.6184788 | AK54: 113460000 | AL54: 436384.62 | AM54: 0.0048 | AN54: -1.501453 | AO54: 44704000 | AP54: 171938.46 | AQ54: 0.0022 | AR54: 0.7250023 | AS54: 267600000 | AT54: 1029230.77 | AU54: 0.0226 | AV54: 0.7398224 | AW54: 22653000 | AX54: 87126.92 | AY54: 0.0232 | AZ54: 0.9476032 | BA54: 170960000 | BB54: 657538.46 | BC54: 0.0217 | BD54: 0.01369476 | BE54: 71795000 | BF54: 276134.62 | BG54: 0.0117 | BH54: -0.1565399 | BI54: 54846000 | BJ54: 210946.15 | BK54: 0.0085 | BL54: 0.03359413 | BM54: 78249000 | BN54: 300957.69 | BO54: 0.0117 | BP54: 0.1408024 | BQ54: 244590000 | BR54: 940730.77 | BS54: 0.0117 | BT54: 0.3973141 | BU54: 199780000 | BV54: 768384.62 | BW54: 0.0139 | BX54: 0.2484684 | BY54: 255660000 | BZ54: 983307.69 | CA54: 0.0154 | CB54: -0.4149456 | CC54: 124030000 | CD54: 477038.46 | CE54: 0.0059 | CF54: 0.08872604 | CG54: 199930000 | CH54: 768961.54 | CI54: 0.0225 | CJ54: 0.1535072 | CK54: 100130000 | CL54: 385115.38 | CM54: 0.0158 | CO54: 16 | CP54: 16 | CQ54: 16 | CR54: 76.2 | CS54: 76.2 | CT54: 76.2 | CU54: 27.25 | CV54: 0 | CW54: 90.506 | CX54: 2133000000 | CY54: 184 | CZ54: 60 | DA54: 16 | DB54: 16 | DC54: 16 | DD54: 1 | DE54: 7 | DF54: 11 | DG54: 8 | DH54: 8 | DI54: 9 | DJ54: 8 | DK54: 11 | DL54: 11 | DM54: 12 | DN54: 11 | DO54: 10 | DP54: 11 | DQ54: 15 | DR54: 12 | DS54: 14 | DT54: 4 | DU54: 10 | DV54: 9 | DW54: 7 | DX54: 11 | DY54: 8 | DZ54: 8 | EA54: 9 | EB54: 8 | EC54: 11 | ED54: 11 | EE54: 12 | EF54: 11 | EG54: 10 | EH54: 11 | EI54: 15 | EJ54: 12 | EK54: 14 | EL54: 4 | EM54: 10 | EN54: 9 | EO54: 7 | EP54: 11 | EQ54: 8 | ER54: 8 | ES54: 9 | ET54: 8 | EU54: 11 | EV54: 11 | EW54: 12 | EX54: 11 | EY54: 10 | EZ54: 11 | FA54: 15 | FB54: 12 | FC54: 14 | FD54: 4 | FE54: 10 | FF54: 9 | FG54: 260 | FH54: 260 | FI54: 1 | FJ54: 258 | FK54: 35 | FL54: 67.3 | FM54: 47.3 | FN54: 43.5 | FO54: 48.5 | FP54: 37.7 | FQ54: 70.4 | FR54: 65.8 | FS54: 65.8 | FT54: 65.8 | FU54: 57.7 | FV54: 70.4 | FW54: 75.8 | FX54: 67.3 | FY54: 75.8 | FZ54: 28.8 | GA54: 62.3 | GB54: 56.2 | GC54: 5 | GD54: 7 | GE54: 6 | GF54: 4 | GG54: 7 | GH54: 3 | GI54: 15 | GJ54: 14 | GK54: 19 | GL54: 12 | GM54: 10 | GN54: 12 | GO54: 14 | GP54: 14 | GQ54: 15 | GR54: 6 | GS54: 13 | GT54: 8 | GU54: 0.6095677233 | GV54: -0.1216330268 | GW54: 0.1831917098 | GX54: -0.5259171784 | GY54: 0.4993608247 | GZ54: 0.3232181646 | HA54: 0.8136831409 | HB54: -0.06394612963 | HC54: AX24.00090_3-oxoacyl-[acyl-carrier-protein] | HD54: By MS/MS | HE54: By MS/MS | HF54: By MS/MS | HG54: By MS/MS | HH54: By MS/MS | HI54: By MS/MS | HJ54: By MS/MS | HK54: By MS/MS | HL54: By MS/MS | HM54: By MS/MS | HN54: By MS/MS | HO54: By MS/MS | HP54: By MS/MS | HQ54: By MS/MS | HR54: By MS/MS | HS54: By MS/MS | HT54: By MS/MS | HU54: By MS/MS
A55: ALC24_0091_3-ketoacyl-CoA thiolase | B55: MSEAYIVAAARTAGGRRGGRLSGWHPADLAGQVLNALLDRADADPALIEDVIMGCVGQAGEQSNNVARNAVLASRLPESVPATSVDRQCGSSQQALHFAAQAVMSGTQDIVIAAGVESMSRVPMGSPSSLARQQGLGHYFSPAMKERYPDIPDFSQFMGAEMMAEKYDLAKDELDRFALLSHERARRATEAGDFKDEIVPLPVRSVDGAGDGETHDVDEGIRFDATLEGIQNVKLLKEGGRITAATASQICDGASGVMVVNERGLKALGLEPMARIHHLTVIGHDPVIMLEAPIPATERALKKAGMSIDDIDLFEVNEAFAPVPLAWLKTLGADADRLNVNGGAISLGHPLGGSGTKLMTTLLHALKKRDKRYGLQTMCEGGGLANVTIVERL | C55: 393 | D55: 0.0266 | E55: 1.794551303 | F55: -0.6714038849 | H55: 0.0039 | I55: 3.163318779 | J55: -1.920553207 | L55: 0.0390 | M55: 1.040545855 | N55: 0.4554551442 | P55: 0.0168 | Q55: 1.790561065 | R55: -0.6255696615 | T55: 1.311901 | U55: 87921000.00 | V55: 223717.56 | W55: 0.0251 | X55: 1.063244 | Y55: 93366000 | Z55: 237572.52 | AA55: 0.0255 | AB55: 0.8929081 | AC55: 76609000 | AD55: 194933.8422 | AE55: 0.0293 | AF55: -0.1117649 | AG55: 133320000 | AH55: 339236.64 | AI55: 0.0034 | AJ55: 0.5247097 | AK55: 228910000 | AL55: 582468.19 | AM55: 0.0064 | AN55: -0.8923397 | AO55: 56621000 | AP55: 144073.79 | AQ55: 0.0018 | AR55: 2.437401 | AS55: 744090000 | AT55: 1893358.78 | AU55: 0.0416 | AV55: 1.842226 | AW55: 52466000 | AX55: 133501.27 | AY55: 0.0356 | AZ55: 2.369003 | BA55: 475570000 | BB55: 1210101.78 | BC55: 0.0399 | BD55: 1.069027 | BE55: 138770000 | BF55: 353104.33 | BG55: 0.0149 | BH55: 1.14694 | BI55: 179770000 | BJ55: 457430.03 | BK55: 0.0185 | BL55: 1.189589 | BM55: 171430000 | BN55: 436208.65 | BO55: 0.0170 | BP55: 2.00758 | BQ55: 850020000 | BR55: 2162900.76 | BS55: 0.0270 | BT55: 1.966917 | BU55: 577430000 | BV55: 1469287.53 | BW55: 0.0265 | BX55: 2.074081 | BY55: 685300000 | BZ55: 1743765.90 | CA55: 0.0273 | CB55: 1.416546 | CC55: 908300000 | CD55: 2311195.93 | CE55: 0.0285 | CF55: 1.810675 | CG55: 551090000 | CH55: 1402264.63 | CI55: 0.0410 | CJ55: 1.288731 | CK55: 240750000 | CL55: 612595.42 | CM55: 0.0252 | CO55: 21 | CP55: 21 | CQ55: 21 | CR55: 65.4 | CS55: 65.4 | CT55: 65.4 | CU55: 41.695 | CV55: 0 | CW55: 205.8 | CX55: 6251700000 | CY55: 281 | CZ55: 61 | DA55: 21 | DB55: 21 | DC55: 21 | DD55: 1 | DE55: 10 | DF55: 10 | DG55: 10 | DH55: 12 | DI55: 13 | DJ55: 7 | DK55: 16 | DL55: 14 | DM55: 17 | DN55: 12 | DO55: 15 | DP55: 11 | DQ55: 18 | DR55: 16 | DS55: 16 | DT55: 14 | DU55: 13 | DV55: 15 | DW55: 10 | DX55: 10 | DY55: 10 | DZ55: 12 | EA55: 13 | EB55: 7 | EC55: 16 | ED55: 14 | EE55: 17 | EF55: 12 | EG55: 15 | EH55: 11 | EI55: 18 | EJ55: 16 | EK55: 16 | EL55: 14 | EM55: 13 | EN55: 15 | EO55: 10 | EP55: 10 | EQ55: 10 | ER55: 12 | ES55: 13 | ET55: 7 | EU55: 16 | EV55: 14 | EW55: 17 | EX55: 12 | EY55: 15 | EZ55: 11 | FA55: 18 | FB55: 16 | FC55: 16 | FD55: 14 | FE55: 13 | FF55: 15 | FG55: 393 | FH55: 393 | FI55: 1 | FJ55: 404 | FK55: 34.6 | FL55: 39.4 | FM55: 34.6 | FN55: 45.3 | FO55: 51.7 | FP55: 25.2 | FQ55: 62.1 | FR55: 54.5 | FS55: 57 | FT55: 45.3 | FU55: 59.8 | FV55: 40.5 | FW55: 59.3 | FX55: 64.1 | FY55: 58.8 | FZ55: 49.6 | GA55: 42.5 | GB55: 55.5 | GC55: 7 | GD55: 9 | GE55: 11 | GF55: 6 | GG55: 9 | GH55: 3 | GI55: 27 | GJ55: 18 | GK55: 18 | GL55: 9 | GM55: 7 | GN55: 11 | GO55: 30 | GP55: 31 | GQ55: 29 | GR55: 21 | GS55: 21 | GT55: 14 | GU55: 0.3466168831 | GV55: -0.3034135518 | GW55: 0.06915068493 | GX55: -0.8231964341 | GY55: 0.6571287941 | GZ55: 0.2040010844 | HA55: 0.4527594937 | HB55: -0.2845154402 | HC55: AX24.00091_3-ketoacyl-CoA | HD55: By MS/MS | HE55: By MS/MS | HF55: By MS/MS | HG55: By MS/MS | HH55: By MS/MS | HI55: By MS/MS | HJ55: By MS/MS | HK55: By MS/MS | HL55: By MS/MS | HM55: By MS/MS | HN55: By MS/MS | HO55: By MS/MS | HP55: By MS/MS | HQ55: By MS/MS | HR55: By MS/MS | HS55: By MS/MS | HT55: By MS/MS | HU55: By MS/MS
A56: ALC24_0092_Long-chain-fatty-acid--CoA ligase | B56: MQGLMQDKPLLISSLIEHAATFHPDQEIVSRSIEGPIHRTNYRRIAHRAKQVANVLNELGAEFGDRIGTLAWNTWRHMELYFGVSGSGAVLHTVNPRLFPEQVEYILNHAGDKVLFFDISFAPLVEKLVPKLKSIEHFVALTDRDNMPDADIPGLLCYEDLVEAASAEFEWPEFDERTASSLCYTSGTTGNPKGVLYSHRSTVLHSLMAMAPDAFNVSARSTLLLVVPMFHANAWGMPYVAAMVGAKMVLPGEHLDGEHLYPLMRDERVTFSQAVPTVWLMFFQYLDAHPELDLEKELCLDTIGIGGSAPPRAMVRRLETQLGAQVIQGWGMTETSPLGVVNRPLPKHDDLDRDGLDELKVKQGRGIWGVHIKIVNDEGEPQPWDGVHSGHLYIRGPWIASGYFRAEGGGALDGEGYFPTGDIATMDPDGYLQLVDRAKDVIKSGGEWISSMDLENAAFSHPGVAEAAVIAIPHEKWQERPLMVVVKRAGARVDEDEIMAHLAERVVKWWLPDDIVFVDELPHTATGKLLKTKLREQFTGYRPRREAVRS | C56: 550 | D56: 0.0110 | E56: 0.5239167829 | F56: -0.4687649409 | H56: 0.0009 | I56: 2.361104655 | J56: -2.659219424 | K56: + | L56: 0.0122 | M56: 0.1321413405 | N56: 0.1463219325 | P56: 0.0043 | Q56: 0.9876073007 | R56: -0.7893387477 | T56: 0.4459629 | U56: 57182000.00 | V56: 103967.27 | W56: 0.0116 | X56: 0.1760235 | Y56: 42013000 | Z56: 76387.27 | AA56: 0.0082 | AB56: 0.4202423 | AC56: 48240000 | AD56: 87709.09091 | AE56: 0.0132 | AF56: -1.62253 | AG56: 37457000 | AH56: 68103.64 | AI56: 0.0007 | AJ56: -0.6684284 | AK56: 85265000 | AL56: 155027.27 | AM56: 0.0017 | AN56: -3.238176 | AO56: 12685000 | AP56: 23063.64 | AQ56: 0.0003 | AR56: 0.7889423 | AS56: 263430000 | AT56: 478963.64 | AU56: 0.0105 | AV56: 0.9544296 | AW56: 25853000 | AX56: 47005.45 | AY56: 0.0125 | AZ56: 1.144117 | BA56: 226180000 | BB56: 411236.36 | BC56: 0.0135 | BD56: -0.1540508 | BE56: 53281000 | BF56: 96874.55 | BG56: 0.0041 | BH56: -0.0005226135 | BI56: 53188000 | BJ56: 96705.45 | BK56: 0.0039 | BL56: 0.2350807 | BM56: 69082000 | BN56: 125603.64 | BO56: 0.0049 | BP56: 1.443697 | BQ56: 628040000 | BR56: 1141890.91 | BS56: 0.0143 | BT56: 1.203747 | BU56: 301750000 | BV56: 548636.36 | BW56: 0.0099 | BX56: 1.338388 | BY56: 405680000 | BZ56: 737600.00 | CA56: 0.0116 | CB56: 0.02955246 | CC56: 381290000 | CD56: 693254.55 | CE56: 0.0085 | CF56: 1.026766 | CG56: 280480000 | CH56: 509963.64 | CI56: 0.0149 | CJ56: -0.1451035 | CK56: 69475000 | CL56: 126318.18 | CM56: 0.0052 | CN56: PESu_Succ | CO56: 23 | CP56: 23 | CQ56: 23 | CR56: 66 | CS56: 66 | CT56: 66 | CU56: 61.329 | CV56: 0 | CW56: 130.54 | CX56: 3040600000 | CY56: 188 | CZ56: 62 | DA56: 23 | DB56: 23 | DC56: 23 | DD56: 1 | DE56: 10 | DF56: 8 | DG56: 9 | DH56: 7 | DI56: 12 | DJ56: 2 | DK56: 15 | DL56: 14 | DM56: 16 | DN56: 14 | DO56: 9 | DP56: 14 | DQ56: 20 | DR56: 21 | DS56: 22 | DT56: 14 | DU56: 14 | DV56: 8 | DW56: 10 | DX56: 8 | DY56: 9 | DZ56: 7 | EA56: 12 | EB56: 2 | EC56: 15 | ED56: 14 | EE56: 16 | EF56: 14 | EG56: 9 | EH56: 14 | EI56: 20 | EJ56: 21 | EK56: 22 | EL56: 14 | EM56: 14 | EN56: 8 | EO56: 10 | EP56: 8 | EQ56: 9 | ER56: 7 | ES56: 12 | ET56: 2 | EU56: 15 | EV56: 14 | EW56: 16 | EX56: 14 | EY56: 9 | EZ56: 14 | FA56: 20 | FB56: 21 | FC56: 22 | FD56: 14 | FE56: 14 | FF56: 8 | FG56: 550 | FH56: 550 | FI56: 1 | FJ56: 313 | FK56: 34.4 | FL56: 27.3 | FM56: 30.9 | FN56: 16.7 | FO56: 36.4 | FP56: 2.7 | FQ56: 47.1 | FR56: 42.9 | FS56: 54.2 | FT56: 48.2 | FU56: 27.3 | FV56: 40 | FW56: 59.3 | FX56: 59.3 | FY56: 61.1 | FZ56: 45.1 | GA56: 43.1 | GB56: 23.3 | GC56: 11 | GD56: 6 | GE56: 8 | GF56: 1 | GG56: 4 | GH56: 0 | GI56: 12 | GJ56: 10 | GK56: 14 | GL56: 4 | GM56: 4 | GN56: 9 | GO56: 25 | GP56: 27 | GQ56: 22 | GR56: 15 | GS56: 11 | GT56: 5 | GU56: 0.4710705487 | GV56: -0.1938501054 | GW56: 0.03244444444 | GX56: -1.006341152 | GY56: 0.8883880309 | GZ56: 0.06046901812 | HA56: 0.4125949657 | HB56: -0.3260458185 | HC56: AX24.00092_Long-chain-fatty-acid--CoA | HD56: By MS/MS | HE56: By MS/MS | HF56: By MS/MS | HG56: By MS/MS | HH56: By MS/MS | HI56: By matching | HJ56: By MS/MS | HK56: By MS/MS | HL56: By MS/MS | HM56: By MS/MS | HN56: By MS/MS | HO56: By MS/MS | HP56: By MS/MS | HQ56: By MS/MS | HR56: By MS/MS | HS56: By MS/MS | HT56: By MS/MS | HU56: By MS/MS
A57: ALC24_0095_Long-chain-fatty-acid--CoA ligase | B57: MTKQYDLSDSVQVAIRNTIGDALRRSAGRQPAAPALQFEDRIWSYQELDLAANRVANGLLARGLQKGDRVAAYGKNSDAYVLLWLACARAGLIHVPVNYGLVQRELTYICNQSGARALFCDDSLAANVEAVRNDLGVELYGSLRRGALAEGVDILALAQGRGEATAPDIALSDDDVVQILYTSGTTSDPKGAMHTHRSLMAEYQSCLLHLDISGKDRGLAALPLYHSAQMHVFLMPSLLCGAFNYLIDAPVPDQVLALIEEQKITSFFSPPTVWIGLLRHPDFDRRDLSTLENLYYGASIMPEPIVHELAERLPQGRLFNCYGQSEIAPMATVLEPHEHADRPSSCGRPLTSVETRVVKPGTLEDCAPGEQGEIVHRSPHLMVAYWDKPEETEEAFKGGWFHSGDLAYQDEQGYLYIVDRIKDVVNTGGVLVASRDVEEALYGHESVAEVAVIGVPHEKWIESIVAVVVVKEGKAADAAALIDHARQHLAPFKVPKAVHFVEALPKNTAGKLLKRTLREQYAR | C57: 523 | D57: 0.0165 | E57: 0.7993298361 | F57: -0.3943303426 | H57: 0.0034 | I57: 1.957623722 | J57: -2.469660441 | K57: + | L57: 0.0180 | M57: 0.3356742359 | N57: 0.1948318481 | P57: 0.0075 | Q57: 1.515528269 | R57: -0.7082023621 | T57: 1.373039 | U57: 71954000.00 | V57: 137579.35 | W57: 0.0154 | X57: 1.223934 | Y57: 88899000 | Z57: 169978.97 | AA57: 0.0182 | AB57: 0.9751606 | AC57: 54863000 | AD57: 104900.5736 | AE57: 0.0158 | AF57: -0.4969177 | AG57: 144250000 | AH57: 275812.62 | AI57: 0.0028 | AJ57: 0.6892319 | AK57: 332460000 | AL57: 635678.78 | AM57: 0.0070 | AN57: -2.84617 | AO57: 17275000 | AP57: 33030.59 | AQ57: 0.0004 | AR57: 1.901556 | AS57: 413810000 | AT57: 791223.71 | AU57: 0.0174 | AV57: 1.545855 | AW57: 31226000 | AX57: 59705.54 | AY57: 0.0159 | AZ57: 1.89221 | BA57: 328070000 | BB57: 627284.89 | BC57: 0.0207 | BD57: 0.8251228 | BE57: 83405000 | BF57: 159474.19 | BG57: 0.0067 | BH57: 0.6172848 | BI57: 73777000 | BJ57: 141065.01 | BK57: 0.0057 | BL57: 1.18811 | BM57: 135440000 | BN57: 258967.50 | BO57: 0.0101 | BP57: 1.822021 | BQ57: 642870000 | BR57: 1229196.94 | BS57: 0.0153 | BT57: 1.808861 | BU57: 529130000 | BV57: 1011720.84 | BW57: 0.0183 | BX57: 1.936619 | BY57: 701620000 | BZ57: 1341529.64 | CA57: 0.0210 | CB57: 1.168201 | CC57: 734260000 | CD57: 1403938.81 | CE57: 0.0173 | CF57: 1.782482 | CG57: 509000000 | CH57: 973231.36 | CI57: 0.0284 | CJ57: 0.9920654 | CK57: 209530000 | CL57: 400630.98 | CM57: 0.0165 | CN57: PESu_Succ | CO57: 28 | CP57: 28 | CQ57: 28 | CR57: 75.9 | CS57: 75.9 | CT57: 75.9 | CU57: 57.418 | CV57: 0 | CW57: 186.4 | CX57: 5101800000 | CY57: 290 | CZ57: 64 | DA57: 28 | DB57: 28 | DC57: 28 | DD57: 1 | DE57: 14 | DF57: 15 | DG57: 10 | DH57: 12 | DI57: 16 | DJ57: 5 | DK57: 23 | DL57: 20 | DM57: 24 | DN57: 16 | DO57: 14 | DP57: 19 | DQ57: 24 | DR57: 22 | DS57: 24 | DT57: 17 | DU57: 17 | DV57: 13 | DW57: 14 | DX57: 15 | DY57: 10 | DZ57: 12 | EA57: 16 | EB57: 5 | EC57: 23 | ED57: 20 | EE57: 24 | EF57: 16 | EG57: 14 | EH57: 19 | EI57: 24 | EJ57: 22 | EK57: 24 | EL57: 17 | EM57: 17 | EN57: 13 | EO57: 14 | EP57: 15 | EQ57: 10 | ER57: 12 | ES57: 16 | ET57: 5 | EU57: 23 | EV57: 20 | EW57: 24 | EX57: 16 | EY57: 14 | EZ57: 19 | FA57: 24 | FB57: 22 | FC57: 24 | FD57: 17 | FE57: 17 | FF57: 13 | FG57: 523 | FH57: 523 | FI57: 1 | FJ57: 440 | FK57: 41.5 | FL57: 47.2 | FM57: 28.3 | FN57: 31.7 | FO57: 49.3 | FP57: 13.4 | FQ57: 66 | FR57: 60.2 | FS57: 68.5 | FT57: 44.6 | FU57: 38.4 | FV57: 62 | FW57: 70.7 | FX57: 66.2 | FY57: 68.5 | FZ57: 48.9 | GA57: 53.3 | GB57: 42.8 | GC57: 17 | GD57: 17 | GE57: 9 | GF57: 4 | GG57: 13 | GH57: 1 | GI57: 19 | GJ57: 15 | GK57: 24 | GL57: 10 | GM57: 10 | GN57: 11 | GO57: 27 | GP57: 27 | GQ57: 21 | GR57: 21 | GS57: 30 | GT57: 14 | GU57: 0.5027288317 | GV57: -0.1752576008 | GW57: 0.04920245399 | GX57: -0.9077710597 | GY57: 0.8339399051 | GZ57: 0.08658417753 | HA57: 0.4194887218 | HB57: -0.3130842233 | HC57: AX24.00095_Long-chain-fatty-acid--CoA | HD57: By MS/MS | HE57: By MS/MS | HF57: By MS/MS | HG57: By MS/MS | HH57: By MS/MS | HI57: By MS/MS | HJ57: By MS/MS | HK57: By MS/MS | HL57: By MS/MS | HM57: By MS/MS | HN57: By MS/MS | HO57: By MS/MS | HP57: By MS/MS | HQ57: By MS/MS | HR57: By MS/MS | HS57: By MS/MS | HT57: By MS/MS | HU57: By MS/MS
A58: ALC24_0096_Long-chain-fatty-acid--CoA ligase | B58: MYLTQPLHKALRECPEREALVFADRRSTYRDLVRQVATLASVLKDLGLEDGDRAGILALNSDHYVTFVFGVLWAGGVFNTVNIRWSPVEIAYSLDDCDTRILFVDDEFVPLIDEVRARSKSLETVVYVGEKTCPEGMLSLAGLMAGTDPVDDAGRSGDQLACILYTGGTTGAPKGVMLSHANLYTCSIGAVMPACRGDGVVGLHSAPFFHVAGVGLILQLTLRLGTHVIVPRFEEVAVMSAIQRERVVETFLVPTMMRAVLAHPRFPEFDLSSLRCMMYGASPIDSTLLKKAMTAWPEASFLQLYGMTELSPVVCILPDYCHSDAAYADKLMAAGLPAHMAEVRVVDGEDNEVPRGQVGEIVARGPMVMRGYWNKPEQTEEALRRGWMHTGDAGYMDDAGYVFLVDRIKDMVVTGGENVYSVEVEDALLRMPAIAQCAVIGVPDEKWGERVHAVIVPAGGAEISEADIVAHCKTLIANYKCPRSFEFVDQMPLSGAGKILKYKLKEAHWGDRGRRIG | C58: 517 | D58: 0.0022 | E58: 0.9379952787 | F58: -0.6705423991 | H58: 0.0002 | I58: 3.968796583 | J58: -3.219447613 | K58: + | L58: 0.0015 | M58: 2.298685994 | N58: -1.57244873 | P58: 0.0011 | Q58: 2.301094161 | R58: -1.556167603 | T58: -1.662035 | U58: 11609000.00 | V58: 22454.55 | W58: 0.0025 | X58: -1.613447 | Y58: 8346000 | Z58: 16143.13 | AA58: 0.0017 | AB58: -1.400846 | AC58: 8397200 | AD58: 16242.16634 | AE58: 0.0024 | AF58: -4.245649 | AG58: 6195900 | AH58: 11984.33 | AI58: 0.0001 | AJ58: -3.565008 | AK58: 24172000 | AL58: 46754.35 | AM58: 0.0005 | AN58: -4.512387 | AO58: 644150 | AP58: 1245.94 | AQ58: 0.0000 | AR58: -2.823124 | AS58: 36609000 | AT58: 70810.44 | AU58: 0.0016 | AV58: -2.400743 | AW58: 2137400 | AX58: 4134.24 | AY58: 0.0011 | AZ58: -2.15818 | BA58: 29634000 | BB58: 57319.15 | BC58: 0.0019 | BD58: -2.340773 | BE58: 14205000 | BF58: 27475.82 | BG58: 0.0012 | BH58: -2.211784 | BI58: 9215300 | BJ58: 17824.56 | BK58: 0.0007 | BL58: -2.780647 | BM58: 19432000 | BN58: 37586.07 | BO58: 0.0015 | BP58: -0.4312325 | BQ58: 141220000 | BR58: 273152.80 | BS58: 0.0034 | BT58: -0.8558159 | BU58: 82376000 | BV58: 159334.62 | BW58: 0.0029 | BX58: -0.3716908 | BY58: 108970000 | BZ58: 210773.69 | CA58: 0.0033 | CB58: -1.404213 | CC58: 94976000 | CD58: 183706.00 | CE58: 0.0023 | CF58: -0.4096298 | CG58: 99107000 | CH58: 191696.32 | CI58: 0.0056 | CJ58: -1.856821 | CK58: 33044000 | CL58: 63914.89 | CM58: 0.0026 | CN58: PESu_Succ | CO58: 20 | CP58: 20 | CQ58: 18 | CR58: 44.9 | CS58: 44.9 | CT58: 41.8 | CU58: 56.605 | CV58: 0 | CW58: 65.356 | CX58: 730280000 | CY58: 61 | CZ58: 65 | DA58: 20 | DB58: 20 | DC58: 18 | DD58: 1 | DE58: 5 | DF58: 6 | DG58: 7 | DH58: 3 | DI58: 6 | DJ58: 1 | DK58: 8 | DL58: 7 | DM58: 10 | DN58: 9 | DO58: 5 | DP58: 9 | DQ58: 15 | DR58: 18 | DS58: 16 | DT58: 9 | DU58: 13 | DV58: 8 | DW58: 5 | DX58: 6 | DY58: 7 | DZ58: 3 | EA58: 6 | EB58: 1 | EC58: 8 | ED58: 7 | EE58: 10 | EF58: 9 | EG58: 5 | EH58: 9 | EI58: 15 | EJ58: 18 | EK58: 16 | EL58: 9 | EM58: 13 | EN58: 8 | EO58: 5 | EP58: 6 | EQ58: 7 | ER58: 3 | ES58: 4 | ET58: 1 | EU58: 6 | EV58: 5 | EW58: 8 | EX58: 8 | EY58: 4 | EZ58: 7 | FA58: 13 | FB58: 16 | FC58: 14 | FD58: 8 | FE58: 12 | FF58: 7 | FG58: 517 | FH58: 517 | FI58: 1 | FJ58: 172 | FK58: 13.5 | FL58: 14.1 | FM58: 13 | FN58: 6.4 | FO58: 13.7 | FP58: 1.4 | FQ58: 21.5 | FR58: 16.2 | FS58: 26.1 | FT58: 22.1 | FU58: 13.3 | FV58: 20.5 | FW58: 33.5 | FX58: 44.5 | FY58: 35.4 | FZ58: 19.7 | GA58: 26.3 | GB58: 15.9 | GC58: 4 | GD58: 2 | GE58: 2 | GF58: 0 | GG58: 1 | GH58: 0 | GI58: 0 | GJ58: 1 | GK58: 1 | GL58: 2 | GM58: 2 | GN58: 0 | GO58: 10 | GP58: 9 | GQ58: 9 | GR58: 6 | GS58: 8 | GT58: 4 | GU58: 0.3587496296 | GV58: -0.2825606245 | GW58: 0.006293333333 | GX58: -1.334232238 | GY58: 0.2264655172 | GZ58: -0.6577460428 | HA58: 0.1825942029 | HB58: -0.6521535495 | HC58: AX24.00096_Long-chain-fatty-acid--CoA | HD58: By MS/MS | HE58: By MS/MS | HF58: By MS/MS | HG58: By matching | HH58: By MS/MS | HI58: By matching | HJ58: By matching | HK58: By MS/MS | HL58: By MS/MS | HM58: By MS/MS | HN58: By MS/MS | HO58: By MS/MS | HP58: By MS/MS | HQ58: By MS/MS | HR58: By MS/MS | HS58: By MS/MS | HT58: By MS/MS | HU58: By MS/MS
A59: ALC24_0097_Lactate-binding periplasmic protein precursor | B59: MPIRAYAQRFFIATLFVIGATAATPTFARTISYATGYPPNSIGSNSALAYAEALKALSNGDLSVKVFPMSLLSFSEAAPGIRDGMADSGFVLFSYFPSEFPNTNLISELTMLLELDDVAPSHAGLAYVGAMSEYLFHHCPECVTEFAAQNQVFTGASASAPYMMLCNEKVTSLADIKGKRLRSAGPQWARWAQAVGGTPVTISVSDAYEALNQGVLDCSISSSVDLDIFRLSEVVSDVTAGVPGGVFGGTGVNNFNREVWRELTEREREQVLRASATFGSIISWDYQVGATKELEAAPEQGIKVHEPAEGLQQASQRFIVEDMKTIARNYQSRSGVNNAEQSIKAFQTILSKWVKLVKDVSSPEELAEIYWRETYSKVDVSEYGL | C59: 385 | D59: 0.0028 | E59: 1.343166975 | F59: 1.253381173 | H59: 0.0000 | I59: 1.496863387 | J59: -1.401642879 | L59: 0.0000 | M59: 0.7489876455 | N59: -0.9238012632 | P59: 0.0001 | Q59: 1.523778804 | R59: -1.453636567 | T59: -2.035418 | U59: 9520400.00 | V59: 24728.31 | W59: 0.0028 | X59: -2.214666 | Y59: 10540000 | Z59: 27376.62 | AA59: 0.0029 | AB59: -2.409769 | AC59: 6917400 | AD59: 17967.27273 | AE59: 0.0027 | AF59: -5.036432 | AG59: 2433500 | AH59: 6320.78 | AI59: 0.0001 | AJ59: -5.074746 | AK59: 0 | AL59: 0.00 | AM59: 0.0000 | AN59: -4.513747 | AO59: 0 | AP59: 0.00 | AQ59: 0.0000 | AR59: -5.409787 | AS59: 0 | AT59: 0.00 | AU59: 0.0000 | AV59: -4.160919 | AW59: 0 | AX59: 0.00 | AY59: 0.0000 | AZ59: -3.620694 | BA59: 0 | BB59: 0.00 | BC59: 0.0000 | BD59: -5.370615 | BE59: 1315400 | BF59: 3416.62 | BG59: 0.0001 | BH59: -4.528246 | BI59: 824960 | BJ59: 2142.75 | BK59: 0.0001 | BL59: -4.882046 | BM59: 1041600 | BN59: 2705.45 | BO59: 0.0001 | BP59: -3.899847 | BQ59: 31537000 | BR59: 81914.29 | BS59: 0.0010 | BT59: -4.282362 | BU59: 35258000 | BV59: 91579.22 | BW59: 0.0017 | BX59: -3.37094 | BY59: 27829000 | BZ59: 72283.12 | CA59: 0.0011 | CB59: -1.841618 | CC59: 63092000 | CD59: 163875.32 | CE59: 0.0020 | CF59: -3.819538 | CG59: 24926000 | CH59: 64742.86 | CI59: 0.0019 | CJ59: -3.625689 | CK59: 18046000 | CL59: 46872.73 | CM59: 0.0019 | CO59: 7 | CP59: 7 | CQ59: 7 | CR59: 26 | CS59: 26 | CT59: 26 | CU59: 41.865 | CV59: 0 | CW59: 21.84 | CX59: 233280000 | CY59: 24 | CZ59: 66 | DA59: 7 | DB59: 7 | DC59: 7 | DD59: 1 | DE59: 2 | DF59: 3 | DG59: 3 | DH59: 2 | DI59: 0 | DJ59: 0 | DK59: 0 | DL59: 0 | DM59: 0 | DN59: 1 | DO59: 1 | DP59: 1 | DQ59: 5 | DR59: 6 | DS59: 5 | DT59: 1 | DU59: 2 | DV59: 2 | DW59: 2 | DX59: 3 | DY59: 3 | DZ59: 2 | EA59: 0 | EB59: 0 | EC59: 0 | ED59: 0 | EE59: 0 | EF59: 1 | EG59: 1 | EH59: 1 | EI59: 5 | EJ59: 6 | EK59: 5 | EL59: 1 | EM59: 2 | EN59: 2 | EO59: 2 | EP59: 3 | EQ59: 3 | ER59: 2 | ES59: 0 | ET59: 0 | EU59: 0 | EV59: 0 | EW59: 0 | EX59: 1 | EY59: 1 | EZ59: 1 | FA59: 5 | FB59: 6 | FC59: 5 | FD59: 1 | FE59: 2 | FF59: 2 | FG59: 385 | FH59: 385 | FI59: 1 | FJ59: 41 | FK59: 6.5 | FL59: 9.4 | FM59: 9.4 | FN59: 4.7 | FO59: 0 | FP59: 0 | FQ59: 0 | FR59: 0 | FS59: 0 | FT59: 3.6 | FU59: 3.6 | FV59: 3.6 | FW59: 17.9 | FX59: 22.3 | FY59: 19.5 | FZ59: 3.6 | GA59: 8.1 | GB59: 8.1 | GC59: 2 | GD59: 2 | GE59: 3 | GF59: 0 | GG59: 0 | GH59: 0 | GI59: 0 | GJ59: 0 | GK59: 0 | GL59: 0 | GM59: 0 | GN59: 0 | GO59: 2 | GP59: 5 | GQ59: 2 | GR59: 2 | GS59: 3 | GT59: 3 | GU59: 0.2517254174 | GV59: 0.4982325137 | GW59: 0.1633221601 | GX59: -0.5552527298 | GY59: 0.4655186246 | GZ59: -0.3529457223 | HA59: 0.2358309859 | HB59: -0.5733789357 | HC59: AX24.00097_Lactate-binding | HD59: By MS/MS | HE59: By MS/MS | HF59: By MS/MS | HG59: By matching | HM59: By matching | HN59: By matching | HO59: By matching | HP59: By MS/MS | HQ59: By MS/MS | HR59: By MS/MS | HS59: By MS/MS | HT59: By MS/MS | HU59: By MS/MS
A60: ALC24_0098_Lactate-binding periplasmic protein precursor | B60: MMIQPRRAAMAALTLCAGAITFGVAEARTLTYAMGYPPKSIGANAGEAYAKRLEELSGGDLKARVFPMSLLSFKETSAGVRDGMADSGFLLISYFPSEFPYTNLITELTMLDELQGVPDSHVGPAYVGAMSEYVFHHCEGCQKEMAEQNQVFNGSMSTPPYALLCTKPIATEEQLKGARLRSAGALWARWAEAMNATPVTLSISDAYEGLSQGVIDCTMSSTVEMDIFNLREVVKDVTVGVPGGMYAAVGVNNVNKAVWKSLSEEQRAQVLKASTVISAKGSWDYQLGAAKEVRDASGNGITVHQPNEALVAATRAFVRKDVDTIVKNYVERHGIDDAGKMVDEFRPLLTKWVKLVEGVDNAEALADLYWRETFSKVDVSTYGL | C60: 384 | D60: 0.1628 | E60: 0.2931748209 | F60: -0.1135635376 | H60: 0.0121 | I60: 2.656921426 | J60: -2.611347834 | K60: + | L60: 0.0248 | M60: 4.609004061 | N60: -1.644632975 | P60: 0.0394 | Q60: 3.422725312 | R60: -1.045530955 | T60: 3.367804 | U60: 506630000.00 | V60: 1319348.96 | W60: 0.1478 | X60: 3.410656 | Y60: 585700000 | Z60: 1525260.42 | AA60: 0.1637 | AB60: 3.307919 | AC60: 451730000 | AD60: 1176380.208 | AE60: 0.1769 | AF60: 1.195602 | AG60: 371390000 | AH60: 967161.46 | AI60: 0.0098 | AJ60: 2.074503 | AK60: 826440000 | AL60: 2152187.50 | AM60: 0.0238 | AN60: -0.6770802 | AO60: 81614000 | AP60: 212536.46 | AQ60: 0.0027 | AR60: 1.949709 | AS60: 450840000 | AT60: 1174062.50 | AU60: 0.0258 | AV60: 1.716425 | AW60: 36909000 | AX60: 96117.19 | AY60: 0.0256 | AZ60: 1.827036 | BA60: 268920000 | BB60: 700312.50 | BC60: 0.0231 | BD60: 2.465933 | BE60: 357440000 | BF60: 930833.33 | BG60: 0.0394 | BH60: 2.351711 | BI60: 381260000 | BJ60: 992864.58 | BK60: 0.0401 | BL60: 2.472832 | BM60: 380460000 | BN60: 990781.25 | BO60: 0.0386 | BP60: 3.376245 | BQ60: 2221200000 | BR60: 5784375.00 | BS60: 0.0722 | BT60: 3.006783 | BU60: 1021700000 | BV60: 2660677.08 | BW60: 0.0480 | BX60: 3.425554 | BY60: 1759800000 | BZ60: 4582812.50 | CA60: 0.0718 | CB60: 3.739412 | CC60: 4159300000 | CD60: 10831510.42 | CE60: 0.1335 | CF60: 3.613653 | CG60: 2113900000 | CH60: 5504947.92 | CI60: 0.1609 | CJ60: 3.69249 | CK60: 1655800000 | CL60: 4311979.17 | CM60: 0.1771 | CN60: PESu_Succ | CO60: 29 | CP60: 29 | CQ60: 29 | CR60: 60.2 | CS60: 60.2 | CT60: 60.2 | CU60: 41.657 | CV60: 0 | CW60: 245.77 | CX60: 17631000000 | CY60: 620 | CZ60: 67 | DA60: 29 | DB60: 29 | DC60: 29 | DD60: 1 | DE60: 24 | DF60: 20 | DG60: 21 | DH60: 14 | DI60: 22 | DJ60: 12 | DK60: 24 | DL60: 15 | DM60: 20 | DN60: 23 | DO60: 24 | DP60: 21 | DQ60: 26 | DR60: 20 | DS60: 24 | DT60: 23 | DU60: 20 | DV60: 20 | DW60: 24 | DX60: 20 | DY60: 21 | DZ60: 14 | EA60: 22 | EB60: 12 | EC60: 24 | ED60: 15 | EE60: 20 | EF60: 23 | EG60: 24 | EH60: 21 | EI60: 26 | EJ60: 20 | EK60: 24 | EL60: 23 | EM60: 20 | EN60: 20 | EO60: 24 | EP60: 20 | EQ60: 21 | ER60: 14 | ES60: 22 | ET60: 12 | EU60: 24 | EV60: 15 | EW60: 20 | EX60: 23 | EY60: 24 | EZ60: 21 | FA60: 26 | FB60: 20 | FC60: 24 | FD60: 23 | FE60: 20 | FF60: 20 | FG60: 384 | FH60: 384 | FI60: 1 | FJ60: 777 | FK60: 56.8 | FL60: 54.4 | FM60: 55.7 | FN60: 35.9 | FO60: 49 | FP60: 31 | FQ60: 51.6 | FR60: 37 | FS60: 45.8 | FT60: 51 | FU60: 51.8 | FV60: 50 | FW60: 51.6 | FX60: 53.4 | FY60: 50.3 | FZ60: 51.6 | GA60: 49.5 | GB60: 54.4 | GC60: 64 | GD60: 65 | GE60: 52 | GF60: 13 | GG60: 24 | GH60: 5 | GI60: 23 | GJ60: 9 | GK60: 17 | GL60: 27 | GM60: 30 | GN60: 27 | GO60: 38 | GP60: 30 | GQ60: 35 | GR60: 50 | GS60: 49 | GT60: 62 | GU60: 0.8023679727 | GV60: -0.05249629716 | GW60: 0.0277704918 | GX60: -1.021906837 | GY60: 0.166325 | GZ60: -0.7585974211 | HA60: 0.2981916667 | HB60: -0.4831195361 | HC60: AX24.00098_Lactate-binding | HD60: By MS/MS | HE60: By MS/MS | HF60: By MS/MS | HG60: By MS/MS | HH60: By MS/MS | HI60: By MS/MS | HJ60: By MS/MS | HK60: By MS/MS | HL60: By MS/MS | HM60: By MS/MS | HN60: By MS/MS | HO60: By MS/MS | HP60: By MS/MS | HQ60: By MS/MS | HR60: By MS/MS | HS60: By MS/MS | HT60: By MS/MS | HU60: By MS/MS
A61: ALC24_0099_Acyl-CoA dehydrogenase | B61: METNSVDLQVFRQEVRAFMEQEADESIREAGRKMTSFFPPFDQCMRWHRKLHARGWSAASWPEQYGGPGWSREQKRIFEEECRVAGVPRLLPQGLGMVGPAIMKFGTDEQKSRFLPGIASGEDFWAQGYSEPNAGSDLASLACRAERHGDHYVINGSKTWTTYAHHANRMFLLVRTSNEGKPQQGISFFLIDRLDRPGLEIRPIIGLDGFPEQCDVFFDNVEVPLDCCLGEENQGWTVAKYLLEHERGGSASFAAQFDMELNRIRERAAELGDGFGGVLSDDPVFRQRFTRLYLEVAALDATESRFAAMEKGSPESGPMSSMIKITAMETLQRITELAVEMEGSPTLTLQLAALTVGAGVAPEGPEQALTVMPKYLNNRAATIFGGSNEIQRNIIAKMLLG | C61: 401 | D61: 0.0013 | E61: 0.4439095072 | F61: -0.8957343102 | H61: 0.0002 | I61: 1.563173673 | J61: -2.636704763 | L61: 0.0007 | M61: 0.4014509399 | N61: -0.9096059799 | P61: 0.0003 | Q61: 1.528946204 | R61: -2.479301135 | T61: -3.023557 | U61: 2311400.00 | V61: 5764.09 | W61: 0.0006 | X61: -3.104765 | Y61: 7902500 | Z61: 19706.98 | AA61: 0.0021 | AB61: -2.626375 | AC61: 2638300 | AD61: 6579.301746 | AE61: 0.0010 | AF61: -4.367622 | AG61: 2767700 | AH61: 6902.00 | AI61: 0.0001 | AJ61: -4.131603 | AK61: 15446000 | AL61: 38518.70 | AM61: 0.0004 | AN61: -5.478383 | AO61: 0 | AP61: 0.00 | AQ61: 0.0000 | AR61: -3.745258 | AS61: 7785300 | AT61: 19414.71 | AU61: 0.0004 | AV61: -1.61455 | AW61: 1539200 | AX61: 3838.40 | AY61: 0.0010 | AZ61: -3.436504 | BA61: 6213100 | BB61: 15494.01 | BC61: 0.0005 | BD61: -4.529943 | BE61: 2821900 | BF61: 7037.16 | BG61: 0.0003 | BH61: -4.599422 | BI61: 3029100 | BJ61: 7553.87 | BK61: 0.0003 | BL61: -4.376032 | BM61: 3806400 | BN61: 9492.27 | BO61: 0.0004 | BP61: -1.057058 | BQ61: 114730000 | BR61: 286109.73 | BS61: 0.0036 | BT61: -0.9530354 | BU61: 67928000 | BV61: 169396.51 | BW61: 0.0031 | BX61: -0.1033669 | BY61: 102810000 | BZ61: 256384.04 | CA61: 0.0040 | CB61: -3.471972 | CC61: 37100000 | CD61: 92518.70 | CE61: 0.0011 | CF61: -2.739403 | CG61: 19877000 | CH61: 49568.58 | CI61: 0.0014 | CJ61: -3.810154 | CK61: 12943000 | CL61: 32276.81 | CM61: 0.0013 | CO61: 13 | CP61: 13 | CQ61: 13 | CR61: 39.7 | CS61: 39.7 | CT61: 39.7 | CU61: 44.639 | CV61: 0 | CW61: 36.765 | CX61: 411650000 | CY61: 36 | CZ61: 68 | DA61: 13 | DB61: 13 | DC61: 13 | DD61: 1 | DE61: 1 | DF61: 4 | DG61: 2 | DH61: 1 | DI61: 3 | DJ61: 0 | DK61: 3 | DL61: 2 | DM61: 2 | DN61: 2 | DO61: 1 | DP61: 2 | DQ61: 10 | DR61: 10 | DS61: 11 | DT61: 5 | DU61: 6 | DV61: 4 | DW61: 1 | DX61: 4 | DY61: 2 | DZ61: 1 | EA61: 3 | EB61: 0 | EC61: 3 | ED61: 2 | EE61: 2 | EF61: 2 | EG61: 1 | EH61: 2 | EI61: 10 | EJ61: 10 | EK61: 11 | EL61: 5 | EM61: 6 | EN61: 4 | EO61: 1 | EP61: 4 | EQ61: 2 | ER61: 1 | ES61: 3 | ET61: 0 | EU61: 3 | EV61: 2 | EW61: 2 | EX61: 2 | EY61: 1 | EZ61: 2 | FA61: 10 | FB61: 10 | FC61: 11 | FD61: 5 | FE61: 6 | FF61: 4 | FG61: 401 | FH61: 401 | FI61: 1 | FJ61: 77 | FK61: 3.2 | FL61: 9.5 | FM61: 9 | FN61: 3.7 | FO61: 13 | FP61: 0 | FQ61: 9.2 | FR61: 7.5 | FS61: 6.5 | FT61: 6.5 | FU61: 4.7 | FV61: 7 | FW61: 33.7 | FX61: 25.9 | FY61: 33.7 | FZ61: 12.7 | GA61: 10.7 | GB61: 10.5 | GC61: 1 | GD61: 3 | GE61: 0 | GF61: 0 | GG61: 0 | GH61: 0 | GI61: 1 | GJ61: 0 | GK61: 1 | GL61: 2 | GM61: 0 | GN61: 1 | GO61: 6 | GP61: 7 | GQ61: 10 | GR61: 2 | GS61: 2 | GT61: 0 | GU61: 0.3438615004 | GV61: -0.3073691263 | GW61: 0.05151724138 | GX61: -0.8941520811 | GY61: 0.530468599 | GZ61: -0.3024090654 | HA61: 0.09611594203 | HB61: -0.8519674581 | HC61: AX24.00099_Acyl-CoA | HD61: By MS/MS | HE61: By MS/MS | HF61: By matching | HG61: By matching | HH61: By matching | HJ61: By MS/MS | HK61: By matching | HL61: By MS/MS | HM61: By MS/MS | HN61: By matching | HO61: By MS/MS | HP61: By MS/MS | HQ61: By MS/MS | HR61: By MS/MS | HS61: By MS/MS | HT61: By MS/MS | HU61: By MS/MS
A62: ALC24_0100_Acyl-CoA dehydrogenase | B62: MAFLNDDTRVMLEDSVDKFLNAHYDFHQRRTWVEKAPGYNREHWQRFAELGWLGLPFAERHGGLGGDITDTLGLMRRFGAALVVEPYLSVVGLGGQAIAQADNQDAADSLLPELVAGQAMPVLAWEESISRGNPEHLAASARRIDGGWRLEGEKVAVIGGDLATHFVVSAQTFEDDAGPVVELFLLQADELEVAGFPTMDGHRGARLTLAAVDVDEARRLTRDGHGAGVLRQVLEQGIMMMAAEGVGAMQTLLRRTLDYTRTRRQFGVPIASFQVLQHRMVDMYIAMKNLEHLLEATANRWDQSPSHARDSALLKAQLCQSGRYVGQQAVQLHGGIGMTDELDVGHYFKRLTALGLLFGDENYHLKRAWAAL | C62: 372 | D62: 0.0027 | E62: 0.1591616142 | F62: -0.4253552755 | H62: 0.0008 | I62: 0.4840480578 | J62: -1.082532247 | L62: 0.0018 | M62: 0.04160749719 | N62: -0.1153577169 | P62: 0.0007 | Q62: 0.3463158095 | R62: -0.779399236 | T62: -2.750742 | U62: 7757800.00 | V62: 20854.30 | W62: 0.0023 | X62: -1.058672 | Y62: 11945000 | Z62: 32110.22 | AA62: 0.0034 | AB62: -2.880413 | AC62: 5473300 | AD62: 14713.17204 | AE62: 0.0022 | AF62: -2.679054 | AG62: 27000000 | AH62: 72580.65 | AI62: 0.0007 | AJ62: -2.023911 | AK62: 42226000 | AL62: 113510.75 | AM62: 0.0013 | AN62: -3.958393 | AO62: 14678000 | AP62: 39456.99 | AQ62: 0.0005 | AR62: -1.745909 | AS62: 33710000 | AT62: 90618.28 | AU62: 0.0020 | AV62: -2.330086 | AW62: 1494300 | AX62: 4016.94 | AY62: 0.0011 | AZ62: -1.68384 | BA62: 27312000 | BB62: 73419.35 | BC62: 0.0024 | BD62: -2.188013 | BE62: 6577100 | BF62: 17680.38 | BG62: 0.0007 | BH62: -3.077251 | BI62: 5232100 | BJ62: 14064.78 | BK62: 0.0006 | BL62: -2.486694 | BM62: 8415900 | BN62: 22623.39 | BO62: 0.0009 | BP62: -0.7135067 | BQ62: 125160000 | BR62: 336451.61 | BS62: 0.0042 | BT62: -0.3424721 | BU62: 90149000 | BV62: 242336.02 | BW62: 0.0044 | BX62: -0.3258495 | BY62: 110960000 | BZ62: 298279.57 | CA62: 0.0047 | CB62: -4.226875 | CC62: 28919000 | CD62: 77739.25 | CE62: 0.0010 | CF62: -2.269823 | CG62: 40983000 | CH62: 110169.35 | CI62: 0.0032 | CJ62: -2.948996 | CK62: 17985000 | CL62: 48346.77 | CM62: 0.0020 | CO62: 13 | CP62: 13 | CQ62: 13 | CR62: 40.9 | CS62: 40.9 | CT62: 40.9 | CU62: 41.109 | CV62: 0 | CW62: 60.877 | CX62: 605970000 | CY62: 61 | CZ62: 69 | DA62: 13 | DB62: 13 | DC62: 13 | DD62: 1 | DE62: 2 | DF62: 3 | DG62: 2 | DH62: 4 | DI62: 4 | DJ62: 3 | DK62: 5 | DL62: 3 | DM62: 6 | DN62: 3 | DO62: 3 | DP62: 4 | DQ62: 10 | DR62: 11 | DS62: 10 | DT62: 4 | DU62: 5 | DV62: 5 | DW62: 2 | DX62: 3 | DY62: 2 | DZ62: 4 | EA62: 4 | EB62: 3 | EC62: 5 | ED62: 3 | EE62: 6 | EF62: 3 | EG62: 3 | EH62: 4 | EI62: 10 | EJ62: 11 | EK62: 10 | EL62: 4 | EM62: 5 | EN62: 5 | EO62: 2 | EP62: 3 | EQ62: 2 | ER62: 4 | ES62: 4 | ET62: 3 | EU62: 5 | EV62: 3 | EW62: 6 | EX62: 3 | EY62: 3 | EZ62: 4 | FA62: 10 | FB62: 11 | FC62: 10 | FD62: 4 | FE62: 5 | FF62: 5 | FG62: 372 | FH62: 372 | FI62: 1 | FJ62: 104 | FK62: 7.5 | FL62: 11.3 | FM62: 7.5 | FN62: 14.2 | FO62: 12.1 | FP62: 9.9 | FQ62: 18.8 | FR62: 10.2 | FS62: 21 | FT62: 11.3 | FU62: 10.5 | FV62: 14.2 | FW62: 32.8 | FX62: 37.1 | FY62: 32.8 | FZ62: 15.6 | GA62: 18.3 | GB62: 15.1 | GC62: 1 | GD62: 3 | GE62: 1 | GF62: 4 | GG62: 5 | GH62: 1 | GI62: 4 | GJ62: 1 | GK62: 2 | GL62: 2 | GM62: 1 | GN62: 1 | GO62: 7 | GP62: 11 | GQ62: 8 | GR62: 3 | GS62: 3 | GT62: 3 | GU62: 0.568304175 | GV62: -0.1401857786 | GW62: 0.292420218 | GX62: -0.3573043086 | GY62: 0.9280730512 | GZ62: -0.038845728 | HA62: 0.4786272401 | HB62: -0.261952888 | HC62: AX24.00100_Acyl-CoA | HD62: By MS/MS | HE62: By MS/MS | HF62: By MS/MS | HG62: By MS/MS | HH62: By MS/MS | HI62: By MS/MS | HJ62: By MS/MS | HK62: By MS/MS | HL62: By MS/MS | HM62: By MS/MS | HN62: By MS/MS | HO62: By MS/MS | HP62: By MS/MS | HQ62: By MS/MS | HR62: By MS/MS | HS62: By MS/MS | HT62: By MS/MS | HU62: By MS/MS
A63: ALC24_0101_HTH-type transcriptional regulator BetI | B63: VAEKKTSPDRLIAAATRALQQGDGDFEMSTIARTAGVSVGLAYHYFGSKAGLVAAVVEHFYEALDNEVMMARLPVSDWLERERLRIQYSVAFHYRHPLAAVILQRLRREPSVMAIEQQRLERQIEAGVGNMLQGQKQGSVSAELDPAAAATFTLAGSRALIARALALPPEARPTEQTLSEQIWGLVRQATRAGG | C63: 194 | D63: 0.0000 | E63: 0.2043021205 | F63: 0.3160077333 | H63: 0.0005 | I63: 0.5389896043 | J63: -0.5409791072 | L63: 0.0014 | M63: 0.8419192728 | N63: 0.8430544138 | P63: 0.0006 | Q63: 0.4991313893 | R63: -0.771653533 | T63: -2.220763 | U63: 0.00 | V63: 0.00 | W63: 0.0000 | X63: -4.591466 | Y63: 0 | Z63: 0.00 | AA63: 0.0000 | AB63: -2.924585 | AC63: 0 | AD63: 0 | AE63: 0.0000 | AF63: -3.877586 | AG63: 9897500 | AH63: 51018.04 | AI63: 0.0005 | AJ63: -4.78934 | AK63: 7363500 | AL63: 37956.19 | AM63: 0.0004 | AN63: -3.640848 | AO63: 9457200 | AP63: 48748.45 | AQ63: 0.0006 | AR63: -3.162689 | AS63: 10192000 | AT63: 52536.08 | AU63: 0.0012 | AV63: -1.789028 | AW63: 1551200 | AX63: 7995.88 | AY63: 0.0021 | AZ63: -3.203957 | BA63: 5613100 | BB63: 28933.51 | BC63: 0.0010 | BD63: -2.776834 | BE63: 4953300 | BF63: 25532.47 | BG63: 0.0011 | BH63: -4.348693 | BI63: 1960700 | BJ63: 10106.70 | BK63: 0.0004 | BL63: -5.87427 | BM63: 1940300 | BN63: 10001.55 | BO63: 0.0004 | BP63: -3.755644 | BQ63: 20931000 | BR63: 107891.75 | BS63: 0.0013 | BT63: -2.688965 | BU63: 23277000 | BV63: 119984.54 | BW63: 0.0022 | BX63: -2.909876 | BY63: 27864000 | BZ63: 143628.87 | CA63: 0.0023 | CB63: -4.078876 | CC63: 37886000 | CD63: 195288.66 | CE63: 0.0024 | CF63: -3.44048 | CG63: 0 | CH63: 0.00 | CI63: 0.0000 | CJ63: -4.495834 | CK63: 0 | CL63: 0.00 | CM63: 0.0000 | CO63: 6 | CP63: 6 | CQ63: 6 | CR63: 51 | CS63: 51 | CT63: 51 | CU63: 21.227 | CV63: 0 | CW63: 22.044 | CX63: 162890000 | CY63: 20 | CZ63: 70 | DA63: 6 | DB63: 6 | DC63: 6 | DD63: 1 | DE63: 0 | DF63: 0 | DG63: 0 | DH63: 2 | DI63: 1 | DJ63: 2 | DK63: 2 | DL63: 2 | DM63: 2 | DN63: 2 | DO63: 1 | DP63: 1 | DQ63: 5 | DR63: 6 | DS63: 6 | DT63: 1 | DU63: 1 | DV63: 0 | DW63: 0 | DX63: 0 | DY63: 0 | DZ63: 2 | EA63: 1 | EB63: 2 | EC63: 2 | ED63: 2 | EE63: 2 | EF63: 2 | EG63: 1 | EH63: 1 | EI63: 5 | EJ63: 6 | EK63: 6 | EL63: 1 | EM63: 1 | EN63: 0 | EO63: 0 | EP63: 0 | EQ63: 0 | ER63: 2 | ES63: 1 | ET63: 2 | EU63: 2 | EV63: 2 | EW63: 2 | EX63: 2 | EY63: 1 | EZ63: 1 | FA63: 5 | FB63: 6 | FC63: 6 | FD63: 1 | FE63: 1 | FF63: 0 | FG63: 194 | FH63: 194 | FI63: 1 | FJ63: 34 | FK63: 0 | FL63: 0 | FM63: 0 | FN63: 10.8 | FO63: 3.6 | FP63: 10.8 | FQ63: 16 | FR63: 16 | FS63: 16 | FT63: 16 | FU63: 3.6 | FV63: 3.6 | FW63: 38.7 | FX63: 51 | FY63: 51 | FZ63: 12.4 | GA63: 7.2 | GB63: 0 | GC63: 0 | GD63: 0 | GE63: 0 | GF63: 0 | GG63: 0 | GH63: 1 | GI63: 0 | GJ63: 0 | GK63: 0 | GL63: 1 | GM63: 0 | GN63: 0 | GO63: 4 | GP63: 6 | GQ63: 6 | GR63: 1 | GS63: 1 | GT63: 0 | GU63: 0.611493768 | GV63: 0.1207146073 | GW63: 0.4565714286 | GX63: -0.2188734492 | GY63: 0.4849313594 | GZ63: 0.3355567981 | HA63: 0.4533501946 | HB63: -0.2841183831 | HC63: AX24.00101_HTH-type | HG63: By matching | HH63: By matching | HI63: By MS/MS | HJ63: By matching | HK63: By matching | HL63: By matching | HM63: By MS/MS | HN63: By matching | HO63: By matching | HP63: By MS/MS | HQ63: By MS/MS | HR63: By MS/MS | HS63: By MS/MS | HT63: By MS/MS
A64: ALC24_0104_Sensory transduction protein regX3 | B64: VRIAYLEDDQAQAELVTHWLREAGHTCMHLSSGREFMSLLRRDTFDLLVLDWEVPDMSGYAVLEEVRASGNRTPVLFATQRDDESSIVGALTQGADDYMVKPVKQAELLARLTALGRRAGVADMDDQGTLNVGPWTIDRARRQIFLDDEAVKLTDKDYELACYLFQNVGKLMSRAHLLEKVWGIMTPIESRTVDVHISRIRRSLQIRPERGYRIKTVYQHGYRLEPMEE | C64: 229 | D64: 0.0670 | E64: 2.985482229 | F64: -0.6576560338 | H64: 0.0603 | I64: 0.9215244451 | J64: 0.2019255956 | L64: 0.0613 | M64: 0.3651891879 | N64: -0.123837471 | P64: 0.0581 | Q64: 0.418624477 | R64: 0.1151571274 | T64: 1.661266 | U64: 139480000.00 | V64: 609082.97 | W64: 0.0682 | X64: 1.819342 | Y64: 143860000 | Z64: 628209.61 | AA64: 0.0674 | AB64: 1.528902 | AC64: 99561000 | AD64: 434764.1921 | AE64: 0.0654 | AF64: 2.508474 | AG64: 1338700000 | AH64: 5845851.53 | AI64: 0.0594 | AJ64: 2.455893 | AK64: 1174900000 | AL64: 5130567.69 | AM64: 0.0568 | AN64: 2.623888 | AO64: 1179900000 | AP64: 5152401.75 | AQ64: 0.0648 | AR64: 2.486528 | AS64: 727680000 | AT64: 3177641.92 | AU64: 0.0698 | AV64: 1.960236 | AW64: 52946000 | AX64: 231205.24 | AY64: 0.0616 | AZ64: 2.164202 | BA64: 363970000 | BB64: 1589388.65 | BC64: 0.0524 | BD64: 2.570738 | BE64: 314850000 | BF64: 1374890.83 | BG64: 0.0582 | BH64: 2.27602 | BI64: 306140000 | BJ64: 1336855.90 | BK64: 0.0540 | BL64: 2.481192 | BM64: 364900000 | BN64: 1593449.78 | BO64: 0.0621 | BP64: 2.235243 | BQ64: 943110000 | BR64: 4118384.28 | BS64: 0.0514 | BT64: 2.550804 | BU64: 890210000 | BV64: 3887379.91 | BW64: 0.0702 | BX64: 2.434431 | BY64: 887910000 | BZ64: 3877336.24 | CA64: 0.0608 | CB64: 2.435555 | CC64: 1569100000 | CD64: 6851965.07 | CE64: 0.0845 | CF64: 2.26803 | CG64: 644120000 | CH64: 2812751.09 | CI64: 0.0822 | CJ64: 2.040894 | CK64: 451060000 | CL64: 1969694.32 | CM64: 0.0809 | CO64: 27 | CP64: 27 | CQ64: 27 | CR64: 83.4 | CS64: 83.4 | CT64: 83.4 | CU64: 26.298 | CV64: 0 | CW64: 267.94 | CX64: 11592000000 | CY64: 504 | CZ64: 71 | DA64: 27 | DB64: 27 | DC64: 27 | DD64: 1 | DE64: 17 | DF64: 18 | DG64: 21 | DH64: 24 | DI64: 25 | DJ64: 25 | DK64: 22 | DL64: 22 | DM64: 21 | DN64: 20 | DO64: 22 | DP64: 23 | DQ64: 23 | DR64: 25 | DS64: 25 | DT64: 21 | DU64: 18 | DV64: 20 | DW64: 17 | DX64: 18 | DY64: 21 | DZ64: 24 | EA64: 25 | EB64: 25 | EC64: 22 | ED64: 22 | EE64: 21 | EF64: 20 | EG64: 22 | EH64: 23 | EI64: 23 | EJ64: 25 | EK64: 25 | EL64: 21 | EM64: 18 | EN64: 20 | EO64: 17 | EP64: 18 | EQ64: 21 | ER64: 24 | ES64: 25 | ET64: 25 | EU64: 22 | EV64: 22 | EW64: 21 | EX64: 20 | EY64: 22 | EZ64: 23 | FA64: 23 | FB64: 25 | FC64: 25 | FD64: 21 | FE64: 18 | FF64: 20 | FG64: 229 | FH64: 229 | FI64: 1 | FJ64: 681 | FK64: 74.7 | FL64: 74.7 | FM64: 78.2 | FN64: 80.3 | FO64: 80.3 | FP64: 80.3 | FQ64: 77.3 | FR64: 80.3 | FS64: 77.7 | FT64: 80.3 | FU64: 80.3 | FV64: 80.3 | FW64: 80.3 | FX64: 80.3 | FY64: 80.3 | FZ64: 79.9 | GA64: 75.1 | GB64: 77.7 | GC64: 18 | GD64: 18 | GE64: 15 | GF64: 34 | GG64: 37 | GH64: 38 | GI64: 30 | GJ64: 18 | GK64: 22 | GL64: 33 | GM64: 26 | GN64: 33 | GO64: 26 | GP64: 38 | GQ64: 32 | GR64: 32 | GS64: 26 | GT64: 28 | GU64: 0.3449344538 | GV64: -0.3098767138 | GW64: 0.6972899576 | GX64: 0.09551838061 | GY64: 0.8886653992 | GZ64: -0.05764380513 | HA64: 0.8415571557 | HB64: 0.05423510238 | HC64: AX24.00104_Sensory | HD64: By MS/MS | HE64: By MS/MS | HF64: By MS/MS | HG64: By MS/MS | HH64: By MS/MS | HI64: By MS/MS | HJ64: By MS/MS | HK64: By MS/MS | HL64: By MS/MS | HM64: By MS/MS | HN64: By MS/MS | HO64: By MS/MS | HP64: By MS/MS | HQ64: By MS/MS | HR64: By MS/MS | HS64: By MS/MS | HT64: By MS/MS | HU64: By MS/MS
A65: ALC24_0105_FecR protein | B65: MLSRWLAAVVLCVIAATAQADANADHWQYTVRPGDTLWNLCERFAQDPVFCWRQLAADSAVDDPYRMSPGKVILIPLAWLKEQPVPARAERVNGQVWLLVGNNDPEPVENGAEIAFGDTIETGEAGSVVVRFADNSQVAVKPGTVLKVNNYRRFVDVGNEPTDLQLERGAIRNTVTPRDTDARVFRVYTPGVMTAVRGTEYHVRITDDAVTLSEVVEGEVEVAAARSTTPVPAGYGTMASAGQAPAKPVKLLPAPEVTLKAGGRGLRAEWPPVEGAEAYSVELFDADGVLLRSEQVSKPQWRSKPQAGDYQVLVRAIDARGLRGQERMLDATVSKGAWPWDALLFIGGAGLLLAL | C65: 355 | D65: 0.0103 | E65: 2.297262123 | F65: -1.085150401 | H65: 0.0136 | I65: 0.543400533 | J65: 0.3200232188 | L65: 0.0126 | M65: 0.1669473665 | N65: 0.113884608 | P65: 0.0064 | Q65: 0.570494806 | R65: -0.3059844971 | T65: -0.2735462 | U65: 33888000.00 | V65: 95459.15 | W65: 0.0107 | X65: -0.6755562 | Y65: 22124000 | Z65: 62321.13 | AA65: 0.0067 | AB65: -0.7811699 | AC65: 31619000 | AD65: 89067.60563 | AE65: 0.0134 | AF65: 0.7082138 | AG65: 421540000 | AH65: 1187436.62 | AI65: 0.0121 | AJ65: 1.187298 | AK65: 551970000 | AL65: 1554845.07 | AM65: 0.0172 | AN65: 0.5897369 | AO65: 329620000 | AP65: 928507.04 | AQ65: 0.0117 | AR65: 0.8936005 | AS65: 241390000 | AT65: 679971.83 | AU65: 0.0149 | AV65: 0.4638844 | AW65: 17186000 | AX65: 48411.27 | AY65: 0.0129 | AZ65: 0.5093479 | BA65: 108830000 | BB65: 306563.38 | BC65: 0.0101 | BD65: 0.2791996 | BE65: 53967000 | BF65: 152019.72 | BG65: 0.0064 | BH65: 0.2750988 | BI65: 53738000 | BJ65: 151374.65 | BK65: 0.0061 | BL65: 0.05292702 | BM65: 61713000 | BN65: 173839.44 | BO65: 0.0068 | BP65: 0.8907814 | BQ65: 405140000 | BR65: 1141239.44 | BS65: 0.0143 | BT65: 0.9418087 | BU65: 267390000 | BV65: 753211.27 | BW65: 0.0136 | BX65: 0.7717838 | BY65: 297980000 | BZ65: 839380.28 | CA65: 0.0132 | CB65: 0.3603611 | CC65: 369590000 | CD65: 1041098.59 | CE65: 0.0128 | CF65: 0.1336117 | CG65: 167450000 | CH65: 471690.14 | CI65: 0.0138 | CJ65: -0.04798889 | CK65: 124310000 | CL65: 350169.01 | CM65: 0.0144 | CO65: 13 | CP65: 13 | CQ65: 13 | CR65: 52.4 | CS65: 52.4 | CT65: 52.4 | CU65: 38.465 | CV65: 0 | CW65: 64.924 | CX65: 3559400000 | CY65: 195 | CZ65: 72 | DA65: 13 | DB65: 13 | DC65: 13 | DD65: 1 | DE65: 7 | DF65: 5 | DG65: 5 | DH65: 10 | DI65: 11 | DJ65: 9 | DK65: 10 | DL65: 8 | DM65: 8 | DN65: 8 | DO65: 8 | DP65: 9 | DQ65: 12 | DR65: 10 | DS65: 11 | DT65: 9 | DU65: 9 | DV65: 10 | DW65: 7 | DX65: 5 | DY65: 5 | DZ65: 10 | EA65: 11 | EB65: 9 | EC65: 10 | ED65: 8 | EE65: 8 | EF65: 8 | EG65: 8 | EH65: 9 | EI65: 12 | EJ65: 10 | EK65: 11 | EL65: 9 | EM65: 9 | EN65: 10 | EO65: 7 | EP65: 5 | EQ65: 5 | ER65: 10 | ES65: 11 | ET65: 9 | EU65: 10 | EV65: 8 | EW65: 8 | EX65: 8 | EY65: 8 | EZ65: 9 | FA65: 12 | FB65: 10 | FC65: 11 | FD65: 9 | FE65: 9 | FF65: 10 | FG65: 355 | FH65: 355 | FI65: 1 | FJ65: 257 | FK65: 25.9 | FL65: 20.6 | FM65: 20.6 | FN65: 38.9 | FO65: 41.7 | FP65: 36.1 | FQ65: 40.3 | FR65: 34.9 | FS65: 32.4 | FT65: 33.8 | FU65: 29.6 | FV65: 37.5 | FW65: 45.4 | FX65: 39.7 | FY65: 42.5 | FZ65: 35.5 | GA65: 32.7 | GB65: 43.1 | GC65: 7 | GD65: 6 | GE65: 7 | GF65: 13 | GG65: 14 | GH65: 15 | GI65: 9 | GJ65: 6 | GK65: 14 | GL65: 8 | GM65: 5 | GN65: 9 | GO65: 18 | GP65: 16 | GQ65: 13 | GR65: 12 | GS65: 9 | GT65: 14 | GU65: 0.2650606586 | GV65: -0.4780882418 | GW65: 0.5932241919 | GX65: 0.1405349601 | GY65: 0.9034905049 | GZ65: 0.05026916016 | HA65: 0.678124927 | HB65: -0.1357037523 | HC65: AX24.00105_FecR | HD65: By MS/MS | HE65: By MS/MS | HF65: By MS/MS | HG65: By MS/MS | HH65: By MS/MS | HI65: By MS/MS | HJ65: By MS/MS | HK65: By MS/MS | HL65: By MS/MS | HM65: By MS/MS | HN65: By MS/MS | HO65: By MS/MS | HP65: By MS/MS | HQ65: By MS/MS | HR65: By MS/MS | HS65: By MS/MS | HT65: By MS/MS | HU65: By MS/MS
A66: ALC24_0106_Alginate biosynthesis sensor protein KinB | B66: MSRGFDSHQRRYLVEHMSVLLVVASLCILLSISGGLSFLNRYVYDTLLPRLPMEPSGDILIVGIDEYSLREVGRWPWDRSIHARLIDQLSKQGARGVLMDLILSEPDRSRPAADQALVRVLSENGNVYLPVHVEQLRSGGQLIEVLPAGPFARAARGLGHVDLELDGDGVARSVYLRSGIGQPWWPHITQAMLEGEGLIPEDRFPAGENDDFVGLANVRKYPRYIPFAGGAGSYPHVSAVDVLEGRVPDQLIKDQFVFIGATAAGLGDMLPTPMAGQGDLMAGVEINANIFDGLRHERMISGMSRPWAIALGVLLALLAPLLLPFFLPRWSIPLILGSLLFTLGICYALLAVWQIWFPPAASAIAAVVAYPLWTWRRLEYSMAYMRNALERLAEYSDLNRRLTEPAPLSRMLRMLDQVLPVRAWRLQAQAGAPVSGGEQLEATAWRGQLSRRYPFRHDGKRYELTVVWRQALDADTYDYWIRAMLARTETHQAGIGPRYEVLEKHIERLRREEHRQQALTRFFQVGLAQMSEGVLITDACGGVVFMNPQASYLLSIEGVAQDTLGLADIGRELEFTGDRGWRTLLQEALADGRVQKECRNRRGMDLYLDMILVHAGDQPGRMLIVSLKDISDVKQAMRTRTEMLDFLSHDLRSPMVSVLALVGKMRHGPDGERLTDFLDNVEHYAERNLNIAEQFLQLARVEGVDSVEMMELDMLDVVESAIDQVQIQAQARDITLRFAYDETEEVWVKGNNELLERLIVNLLTNAVKYSYEGNSVDVRLFTQGGQVTCEVRDRGVGIPDAFQDKLFDRFSRASTSGGARTRGAGLGLRFVKVVTERHGGDIKVASAPGEGSRFTLLLPRIQLS | C66: 864 | D66: 0.0010 | E66: 4.193249647 | F66: -3.934024493 | G66: + | H66: 0.0092 | I66: 0.9917084254 | J66: 0.6781543096 | L66: 0.0083 | M66: 0.06035429347 | N66: -0.06514835358 | P66: 0.0069 | Q66: 0.1568942347 | R66: -0.1426871618 | T66: -3.64106 | U66: 3793500.00 | V66: 4390.63 | W66: 0.0005 | X66: -2.718872 | Y66: 7790400 | Z66: 9016.67 | AA66: 0.0010 | AB66: -2.01202 | AC66: 9056000 | AD66: 10481.48148 | AE66: 0.0016 | AF66: 1.599987 | AG66: 670870000 | AH66: 776469.91 | AI66: 0.0079 | AJ66: 1.78022 | AK66: 687520000 | AL66: 795740.74 | AM66: 0.0088 | AN66: 2.084377 | AO66: 750590000 | AP66: 868738.43 | AQ66: 0.0109 | AR66: 1.235754 | AS66: 313740000 | AT66: 363125.00 | AU66: 0.0080 | AV66: 0.5907631 | AW66: 25992000 | AX66: 30083.33 | AY66: 0.0080 | AZ66: 1.408159 | BA66: 237000000 | BB66: 274305.56 | BC66: 0.0090 | BD66: 0.9089661 | BE66: 133760000 | BF66: 154814.81 | BG66: 0.0065 | BH66: 1.138771 | BI66: 157750000 | BJ66: 182581.02 | BK66: 0.0074 | BL66: 0.9543228 | BM66: 153520000 | BN66: 177685.19 | BO66: 0.0069 | BP66: 1.698322 | BQ66: 579980000 | BR66: 671273.15 | BS66: 0.0084 | BT66: 1.471771 | BU66: 390480000 | BV66: 451944.44 | BW66: 0.0082 | BX66: 1.72798 | BY66: 459140000 | BZ66: 531412.04 | CA66: 0.0083 | CB66: 0.2696743 | CC66: 281120000 | CD66: 325370.37 | CE66: 0.0040 | CF66: 0.8709507 | CG66: 258560000 | CH66: 299259.26 | CI66: 0.0087 | CJ66: 0.8215446 | CK66: 191120000 | CL66: 221203.70 | CM66: 0.0091 | CN66: BHET_Succ | CO66: 44 | CP66: 44 | CQ66: 44 | CR66: 50.9 | CS66: 50.9 | CT66: 50.9 | CU66: 96.587 | CV66: 0 | CW66: 253.62 | CX66: 5311800000 | CY66: 339 | CZ66: 73 | DA66: 44 | DB66: 44 | DC66: 44 | DD66: 1 | DE66: 2 | DF66: 5 | DG66: 6 | DH66: 36 | DI66: 37 | DJ66: 40 | DK66: 23 | DL66: 24 | DM66: 23 | DN66: 25 | DO66: 26 | DP66: 25 | DQ66: 36 | DR66: 37 | DS66: 34 | DT66: 16 | DU66: 24 | DV66: 21 | DW66: 2 | DX66: 5 | DY66: 6 | DZ66: 36 | EA66: 37 | EB66: 40 | EC66: 23 | ED66: 24 | EE66: 23 | EF66: 25 | EG66: 26 | EH66: 25 | EI66: 36 | EJ66: 37 | EK66: 34 | EL66: 16 | EM66: 24 | EN66: 21 | EO66: 2 | EP66: 5 | EQ66: 6 | ER66: 36 | ES66: 37 | ET66: 40 | EU66: 23 | EV66: 24 | EW66: 23 | EX66: 25 | EY66: 26 | EZ66: 25 | FA66: 36 | FB66: 37 | FC66: 34 | FD66: 16 | FE66: 24 | FF66: 21 | FG66: 864 | FH66: 864 | FI66: 1 | FJ66: 558 | FK66: 2.8 | FL66: 7.2 | FM66: 7.9 | FN66: 43.3 | FO66: 42.1 | FP66: 47.7 | FQ66: 32.2 | FR66: 31.5 | FS66: 31.1 | FT66: 35.6 | FU66: 37.2 | FV66: 35.1 | FW66: 40.7 | FX66: 43.1 | FY66: 40.3 | FZ66: 21.9 | GA66: 31.7 | GB66: 30.7 | GC66: 0 | GD66: 1 | GE66: 0 | GF66: 30 | GG66: 30 | GH66: 31 | GI66: 18 | GJ66: 12 | GK66: 20 | GL66: 17 | GM66: 19 | GN66: 16 | GO66: 30 | GP66: 35 | GQ66: 34 | GR66: 10 | GS66: 19 | GT66: 17 | GU66: 0.002181818182 | GV66: -1.595646073 | GW66: 0.3601622912 | GX66: 0.2873029178 | GY66: 0.9532634293 | GZ66: -0.02732134018 | HA66: 0.8232960587 | HB66: -0.06068284473 | HC66: AX24.00106_Alginate | HD66: By matching | HE66: By MS/MS | HF66: By MS/MS | HG66: By MS/MS | HH66: By MS/MS | HI66: By MS/MS | HJ66: By MS/MS | HK66: By MS/MS | HL66: By MS/MS | HM66: By MS/MS | HN66: By MS/MS | HO66: By MS/MS | HP66: By MS/MS | HQ66: By MS/MS | HR66: By MS/MS | HS66: By MS/MS | HT66: By MS/MS | HU66: By MS/MS
A67: ALC24_0107_Cytochrome c5 | B67: MLTAGLVVLATLFAGAVMAASTKDISPYPLGERSVLGDRATAERIKPVGSVCVEGEECGSTVAAAEGSGEPRSGQAVYDTGCAACHATGAAGAPKFGDAGQWASHIEKGMDTLVKHAFEGFNAMPPKGMCMDCSEEEIRNAVEYIVENSQ | C67: =LEN(B67) -> 150 | D67: =AVERAGE(W67,AA67,AE67) -> 0.0127 | E67: 0.6121789983 | F67: -0.6558799744 | H67: =AVERAGE(AI67,AM67,AQ67) -> 0.0100 | I67: 1.127074686 | J67: 0.8585192362 | L67: =AVERAGE(AU67,AY67,BC67) -> 0.0041 | M67: 0.5553952738 | N67: -0.5007286072 | P67: =AVERAGE(BG67,BK67,BO67) -> 0.0038 | Q67: 0.1748702851 | R67: -0.1845639547 | T67: -1.737133 | U67: 16717000.00 | V67: =U67/C67 -> 111446.67 | W67: =V67*100/SUM(V:V) -> 0.0125 | X67: -1.531103 | Y67: 26603000 | Z67: =Y67/C67 -> 177353.33 | AA67: =Z67*100/SUM(Z:Z) -> 0.0190 | AB67: -3.105625 | AC67: 6644300 | AD67: =AC67/C67 -> 44295.33333 | AE67: =AD67*100/SUM(AD:AD) -> 0.0067 | AF67: -0.3843155 | AG67: 170430000 | AH67: =AG67/C67 -> 1136200.00 | AI67: =AH67*100/SUM(AH:AH) -> 0.0115 | AJ67: -0.6306038 | AK67: 142730000 | AL67: =AK67/C67 -> 951533.33 | AM67: =AL67*100/SUM(AL:AL) -> 0.0105 | AN67: -0.8157444 | AO67: 96304000 | AP67: =AO67/C67 -> 642026.67 | AQ67: =AP67*100/SUM(AP:AP) -> 0.0081 | AR67: -1.562019 | AS67: 24191000 | AT67: =AS67/C67 -> 161273.33 | AU67: =AT67*100/SUM(AT:AT) -> 0.0035 | AV67: -2.048405 | AW67: 2814300 | AX67: =AW67/C67 -> 18762.00 | AY67: =AX67*100/SUM(AX:AX) -> 0.0050 | AZ67: -2.297983 | BA67: 16425000 | BB67: =BA67/C67 -> 109500.00 | BC67: =BB67*100/SUM(BB:BB) -> 0.0036 | BD67: -1.368225 | BE67: 17627000 | BF67: =BE67/C67 -> 117513.33 | BG67: =BF67*100/SUM(BF:BF) -> 0.0050 | BH67: -1.849251 | BI67: 12225000 | BJ67: =BI67/C67 -> 81500.00 | BK67: =BJ67*100/SUM(BJ:BJ) -> 0.0033 | BL67: -1.742437 | BM67: 11585000 | BN67: =BM67/C67 -> 77233.33 | BO67: =BN67*100/SUM(BN:BN) -> 0.0030 | BP67: -1.557274 | BQ67: 76152000 | BR67: =BQ67/C67 -> 507680.00 | BS67: =BR67*100/SUM(BR:BR) -> 0.0063 | BT67: -0.5943108 | BU67: 80502000 | BV67: =BU67/C67 -> 536680.00 | BW67: =BV67*100/SUM(BV:BV) -> 0.0097 | BX67: -0.771656 | BY67: 85580000 | BZ67: =BY67/C67 -> 570533.33 | CA67: =BZ67*100/SUM(BZ:BZ) -> 0.0089 | CB67: -1.745161 | CC67: 117800000 | CD67: =CC67/C67 -> 785333.33 | CE67: =CD67*100/SUM(CD:CD) -> 0.0097 | CF67: -1.756571 | CG67: 72373000 | CH67: =CG67/C67 -> 482486.67 | CI67: =CH67*100/SUM(CH:CH) -> 0.0141 | CJ67: -2.38747 | CK67: 53378000 | CL67: =CK67/C67 -> 355853.33 | CM67: =CL67*100/SUM(CL:CL) -> 0.0146 | CO67: 6 | CP67: 6 | CQ67: 5 | CR67: 61.3 | CS67: 61.3 | CT67: 56.7 | CU67: 15.443 | CV67: 0 | CW67: 23.926 | CX67: 1030100000 | CY67: 76 | CZ67: 74 | DA67: 6 | DB67: 6 | DC67: 5 | DD67: 1 | DE67: 3 | DF67: 3 | DG67: 2 | DH67: 6 | DI67: 6 | DJ67: 4 | DK67: 2 | DL67: 2 | DM67: 2 | DN67: 3 | DO67: 2 | DP67: 2 | DQ67: 6 | DR67: 4 | DS67: 6 | DT67: 3 | DU67: 4 | DV67: 3 | DW67: 3 | DX67: 3 | DY67: 2 | DZ67: 6 | EA67: 6 | EB67: 4 | EC67: 2 | ED67: 2 | EE67: 2 | EF67: 3 | EG67: 2 | EH67: 2 | EI67: 6 | EJ67: 4 | EK67: 6 | EL67: 3 | EM67: 4 | EN67: 3 | EO67: 3 | EP67: 3 | EQ67: 2 | ER67: 5 | ES67: 5 | ET67: 4 | EU67: 2 | EV67: 2 | EW67: 2 | EX67: 3 | EY67: 2 | EZ67: 2 | FA67: 5 | FB67: 4 | FC67: 5 | FD67: 3 | FE67: 4 | FF67: 3 | FG67: 150 | FH67: 150 | FI67: 1 | FJ67: 101 | FK67: 34 | FL67: 34 | FM67: 15.3 | FN67: 61.3 | FO67: 61.3 | FP67: 49.3 | FQ67: 27.3 | FR67: 27.3 | FS67: 27.3 | FT67: 34 | FU67: 15.3 | FV67: 27.3 | FW67: 61.3 | FX67: 49.3 | FY67: 61.3 | FZ67: 34 | GA67: 41.3 | GB67: 34 | GC67: 2 | GD67: 2 | GE67: 2 | GF67: 8 | GG67: 6 | GH67: 4 | GI67: 4 | GJ67: 4 | GK67: 4 | GL67: 4 | GM67: 2 | GN67: 2 | GO67: 2 | GP67: 6 | GQ67: 5 | GR67: 5 | GS67: 9 | GT67: 5 | GU67: 0.376423913 | GV67: -0.2606914553 | GW67: 0.2921258604 | GX67: 0.3562063058 | GY67: 0.6560265781 | GZ67: -0.206392246 | HA67: 0.7902417795 | HB67: -0.07648362755 | HC67: AX24.00107_Cytochrome | HD67: By MS/MS | HE67: By MS/MS | HF67: By MS/MS | HG67: By MS/MS | HH67: By MS/MS | HI67: By MS/MS | HJ67: By MS/MS | HK67: By MS/MS | HL67: By MS/MS | HM67: By MS/MS | HN67: By MS/MS | HO67: By MS/MS | HP67: By MS/MS | HQ67: By MS/MS | HR67: By MS/MS | HS67: By MS/MS | HT67: By MS/MS | HU67: By MS/MS
A68: ALC24_0108_ATP-dependent DNA helicase Rep | B68: MTSLNPRQREAVLYADGPLLVLAGAGSGKTSVITRKIAWLIQERGVPARRIAAVTFTNKAAREMKERVQNLVQGGQSRGLIVSTFHNLGLRILKSELKACGLRSGFSILDQTDSREILKEILLQGESERDLNAVEAVHKCLSDWKNELVSPEEAVSQAQTEEEVRAAMAYSGYNRMLRACNAVDFDDLIMMPVQLFREQPRILEKWRHRLQYLLVDEYQDTNGAQYELVRMLTLPEGRFTVVGDDDQSIYAWRGARPENLDQLQQDWPALKVVKLEQNYRSTGRILKAANTAIANNPHVFEKSLWSDYGYGEPIRVAALRDEDGETDWIAGDLFHRRLQRGLHWKDFAILYRGNFQSRILEMKLQSLSIPYKVSGGTSFFSRSEIKDLMCYLRLLVNPDDDNAFLRIINTPRREVGPATLEKLAAWAGRRDQGLYHVCGDLGLSEAMPPKAAEKLREFKQWLDGKREHCFRHNSLQAVKELITEMDYEGWVMQNASSPRIGEKRIENVWQLVRNIERMLEKQEEEDDGSSDLEAVIGKLVLMDMLEQQDEEDDSDRVQLMTLHASKGLEFPHVYMMGVEEELLPHRASIEDDNIVEERRLMYVGITRARETLTLTQARTRKQYGEKVDTTPSRFIDELPQDDLEYIGEGAPRNEERDSEMAEASLANLKALLE | C68: 673 | D68: 0.0010 | E68: 0.632376368 | F68: -0.5682626168 | H68: 0.0002 | I68: 0.9047093258 | J68: -0.8944014311 | L68: 0.0000 | M68: 1.147374969 | N68: -0.9929937124 | P68: 0.0003 | Q68: 1.879435915 | R68: -1.607938727 | T68: -3.751403 | U68: 5648600.00 | V68: 8393.16 | W68: 0.0009 | X68: -3.379872 | Y68: 0 | Z68: 0.00 | AA68: 0.0000 | AB68: -3.858707 | AC68: 9386200 | AD68: 13946.80535 | AE68: 0.0021 | AF68: -3.636044 | AG68: 15340000 | AH68: 22793.46 | AI68: 0.0002 | AJ68: -4.860137 | AK68: 16652000 | AL68: 24742.94 | AM68: 0.0003 | AN68: -3.472218 | AO68: 3242400 | AP68: 4817.83 | AQ68: 0.0001 | AR68: -3.494223 | AS68: 0 | AT68: 0.00 | AU68: 0.0000 | AV68: -4.366885 | AW68: 0 | AX68: 0.00 | AY68: 0.0000 | AZ68: -4.403066 | BA68: 1644800 | BB68: 2443.98 | BC68: 0.0001 | BD68: -5.412102 | BE68: 2200800 | BF68: 3270.13 | BG68: 0.0001 | BH68: -4.190106 | BI68: 5998000 | BJ68: 8912.33 | BK68: 0.0004 | BL68: -4.506802 | BM68: 6026600 | BN68: 8954.83 | BO68: 0.0003 | BP68: -2.032421 | BQ68: 41637000 | BR68: 61867.76 | BS68: 0.0008 | BT68: -2.950018 | BU68: 17485000 | BV68: 25980.68 | BW68: 0.0005 | BX68: -2.721159 | BY68: 23976000 | BZ68: 35625.56 | CA68: 0.0006 | CB68: -3.181216 | CC68: 0 | CD68: 0.00 | CE68: 0.0000 | CF68: -3.605505 | CG68: 0 | CH68: 0.00 | CI68: 0.0000 | CJ68: -4.080068 | CK68: 0 | CL68: 0.00 | CM68: 0.0000 | CO68: 10 | CP68: 10 | CQ68: 10 | CR68: 18.4 | CS68: 18.4 | CT68: 18.4 | CU68: 77.06 | CV68: 0 | CW68: 8.3882 | CX68: 149240000 | CY68: 17 | CZ68: 75 | DA68: 10 | DB68: 10 | DC68: 10 | DD68: 1 | DE68: 1 | DF68: 0 | DG68: 1 | DH68: 2 | DI68: 1 | DJ68: 1 | DK68: 0 | DL68: 0 | DM68: 1 | DN68: 1 | DO68: 1 | DP68: 1 | DQ68: 7 | DR68: 6 | DS68: 7 | DT68: 1 | DU68: 0 | DV68: 0 | DW68: 1 | DX68: 0 | DY68: 1 | DZ68: 2 | EA68: 1 | EB68: 1 | EC68: 0 | ED68: 0 | EE68: 1 | EF68: 1 | EG68: 1 | EH68: 1 | EI68: 7 | EJ68: 6 | EK68: 7 | EL68: 1 | EM68: 0 | EN68: 0 | EO68: 1 | EP68: 0 | EQ68: 1 | ER68: 2 | ES68: 1 | ET68: 1 | EU68: 0 | EV68: 0 | EW68: 1 | EX68: 1 | EY68: 1 | EZ68: 1 | FA68: 7 | FB68: 6 | FC68: 7 | FD68: 1 | FE68: 0 | FF68: 0 | FG68: 673 | FH68: 673 | FI68: 1 | FJ68: 35 | FK68: 3.1 | FL68: 0 | FM68: 3.1 | FN68: 4.2 | FO68: 1.9 | FP68: 1.9 | FQ68: 0 | FR68: 0 | FS68: 1.6 | FT68: 3.1 | FU68: 3.1 | FV68: 3.1 | FW68: 12.2 | FX68: 10.3 | FY68: 12.2 | FZ68: 1.9 | GA68: 0 | GB68: 0 | GC68: 0 | GD68: 0 | GE68: 0 | GF68: 0 | GG68: 0 | GH68: 0 | GI68: 0 | GJ68: 0 | GK68: 1 | GL68: 0 | GM68: 0 | GN68: 1 | GO68: 8 | GP68: 3 | GQ68: 3 | GR68: 1 | GS68: 0 | GT68: 0 | GU68: 0.4160151229 | GV68: -0.2333303918 | GW68: 0.2918940137 | GX68: -0.3559649686 | GY68: 0.434862254 | GZ68: -0.402452934 | HA68: 0.1844929577 | HB68: -0.6463038279 | HC68: AX24.00108_ATP-dependent | HD68: By matching | HF68: By matching | HG68: By matching | HH68: By matching | HI68: By matching | HL68: By MS/MS | HM68: By matching | HN68: By matching | HO68: By MS/MS | HP68: By MS/MS | HQ68: By MS/MS | HR68: By MS/MS | HS68: By MS/MS
A69: ALC24_0109_Ribosomal small subunit pseudouridine synthase A | B69: MRLDYFVAHATGLTRKQVKTLIRSGAIQVFDGAGGAVPVKPDRRLETDMRVVWEGRPLRLEGHRYLMLHKPMGVVCSTEDPGHRTVLDLLPGDQRAGLHAAGRLDLDTTGLVLLTSDGQWSHRITSPQHHCAKRYRVTTAEPVTRAQVDALSAGVVLRDDSRPTREAQVEVVAPLCLRLTISEGRYHQVKRMLAAVGNRVVALHREAVGDVVLDPALTPGEWRPLTDAERHRLGPPD | C69: 237 | D69: 0.0000 | E69: 1.241203121 | F69: 0.5132088661 | H69: 0.0003 | I69: 1.150174292 | J69: -0.3895412286 | L69: 0.0005 | M69: 0.1749258159 | N69: -0.2035590808 | P69: 0.0007 | Q69: 0.3126138111 | R69: -0.2878831228 | T69: -3.199604 | U69: 0.00 | V69: 0.00 | W69: 0.0000 | X69: -3.808875 | Y69: 0 | Z69: 0.00 | AA69: 0.0000 | AB69: -3.81062 | AC69: 0 | AD69: 0 | AE69: 0.0000 | AF69: -4.514452 | AG69: 12164000 | AH69: 51324.89 | AI69: 0.0005 | AJ69: -4.537212 | AK69: 7291500 | AL69: 30765.82 | AM69: 0.0003 | AN69: -4.475685 | AO69: 1758300 | AP69: 7418.99 | AQ69: 0.0001 | AR69: -4.049122 | AS69: 10145000 | AT69: 42805.91 | AU69: 0.0009 | AV69: -3.381835 | AW69: 232620 | AX69: 981.52 | AY69: 0.0003 | AZ69: -5.538446 | BA69: 1837200 | BB69: 7751.90 | BC69: 0.0003 | BD69: -3.735939 | BE69: 2056300 | BF69: 8676.37 | BG69: 0.0004 | BH69: -4.032269 | BI69: 6556200 | BJ69: 27663.29 | BK69: 0.0011 | BL69: -5.454166 | BM69: 4367400 | BN69: 18427.85 | BO69: 0.0007 | BP69: -3.964041 | BQ69: 8105200 | BR69: 34199.16 | BS69: 0.0004 | BT69: -3.603069 | BU69: 8189500 | BV69: 34554.85 | BW69: 0.0006 | BX69: -4.262526 | BY69: 8140300 | BZ69: 34347.26 | CA69: 0.0005 | CB69: -4.316332 | CC69: 0 | CD69: 0.00 | CE69: 0.0000 | CF69: -4.11056 | CG69: 0 | CH69: 0.00 | CI69: 0.0000 | CJ69: -4.460922 | CK69: 0 | CL69: 0.00 | CM69: 0.0000 | CO69: 5 | CP69: 5 | CQ69: 5 | CR69: 33.8 | CS69: 33.8 | CT69: 33.8 | CU69: 26.204 | CV69: 0.00036751 | CW69: 3.7866 | CX69: 70843000 | CY69: 6 | CZ69: 76 | DA69: 5 | DB69: 5 | DC69: 5 | DD69: 1 | DE69: 0 | DF69: 0 | DG69: 0 | DH69: 3 | DI69: 2 | DJ69: 1 | DK69: 3 | DL69: 1 | DM69: 1 | DN69: 1 | DO69: 3 | DP69: 3 | DQ69: 2 | DR69: 2 | DS69: 3 | DT69: 0 | DU69: 0 | DV69: 0 | DW69: 0 | DX69: 0 | DY69: 0 | DZ69: 3 | EA69: 2 | EB69: 1 | EC69: 3 | ED69: 1 | EE69: 1 | EF69: 1 | EG69: 3 | EH69: 3 | EI69: 2 | EJ69: 2 | EK69: 3 | EL69: 0 | EM69: 0 | EN69: 0 | EO69: 0 | EP69: 0 | EQ69: 0 | ER69: 3 | ES69: 2 | ET69: 1 | EU69: 3 | EV69: 1 | EW69: 1 | EX69: 1 | EY69: 3 | EZ69: 3 | FA69: 2 | FB69: 2 | FC69: 3 | FD69: 0 | FE69: 0 | FF69: 0 | FG69: 237 | FH69: 237 | FI69: 1 | FJ69: 25 | FK69: 0 | FL69: 0 | FM69: 0 | FN69: 18.6 | FO69: 10.1 | FP69: 4.6 | FQ69: 20.7 | FR69: 5.5 | FS69: 5.5 | FT69: 5.5 | FU69: 20.7 | FV69: 20.7 | FW69: 10.1 | FX69: 13.9 | FY69: 18.6 | FZ69: 0 | GA69: 0 | GB69: 0 | GC69: 0 | GD69: 0 | GE69: 0 | GF69: 0 | GG69: 0 | GH69: 0 | GI69: 1 | GJ69: 0 | GK69: 0 | GL69: 0 | GM69: 0 | GN69: 1 | GO69: 2 | GP69: 1 | GQ69: 1 | GR69: 0 | GS69: 0 | GT69: 0 | GU69: 0.417230578 | GV69: 0.2305547191 | GW69: 0.5245829493 | GX69: -0.178446167 | GY69: 0.842830641 | GZ69: -0.08289896578 | HA69: 0.6994831585 | HB69: -0.1203399965 | HC69: AX24.00109_Ribosomal | HG69: By matching | HH69: By matching | HI69: By matching | HJ69: By MS/MS | HK69: By matching | HL69: By matching | HM69: By matching | HN69: By matching | HO69: By MS/MS | HP69: By MS/MS | HQ69: By MS/MS | HR69: By MS/MS
A70: ALC24_0111_Gluconate 5-dehydrogenase | B70: MFDITNKRILITGASSGFGARFAEVLAEHGADLVLAARRVDKLEATAEKVRALGRDARVVAMDVSDHANVERAFENMPALDVVVNNAGITREGATDTLSEEDWNAVVDTNLNGVWAVSKFAIQQWRRDERPGNIINIASILGLRVGAMLSPYTVAKAGVVQLTKSIALDYARYNIRCNAICPGYIETDINRDFFQGPHGGKLIKRIPYHRLGQIDELVGPLLLLASDASSYMSGAAIPVDGGHLCNTL | C70: 248 | D70: 0.1001 | E70: 1.580097787 | F70: -0.4233268102 | H70: 0.0896 | I70: 2.588793896 | J70: 0.7070767085 | L70: 0.0932 | M70: 0.6592820795 | N70: 0.2482709885 | P70: 0.0932 | Q70: 1.73197706 | R70: 0.4994351069 | T70: 2.092379 | U70: 225110000.00 | V70: 907701.61 | W70: 0.1017 | X70: 2.03367 | Y70: 192720000 | Z70: 777096.77 | AA70: 0.0834 | AB70: 2.15694 | AC70: 189860000 | AD70: 765564.5161 | AE70: 0.1151 | AF70: 3.237955 | AG70: 2241700000 | AH70: 9039112.90 | AI70: 0.0918 | AJ70: 3.108572 | AK70: 1785400000 | AL70: 7199193.55 | AM70: 0.0797 | AN70: 3.327673 | AO70: 1922300000 | AP70: 7751209.68 | AQ70: 0.0974 | AR70: 3.051708 | AS70: 1211900000 | AT70: 4886693.55 | AU70: 0.1073 | AV70: 2.481304 | AW70: 76889000 | AX70: 310036.29 | AY70: 0.0827 | AZ70: 2.764771 | BA70: 673830000 | BB70: 2717056.45 | BC70: 0.0895 | BD70: 3.192337 | BE70: 600860000 | BF70: 2422822.58 | BG70: 0.1025 | BH70: 2.835011 | BI70: 516580000 | BJ70: 2082983.87 | BK70: 0.0841 | BL70: 3.023928 | BM70: 592730000 | BN70: 2390040.32 | BO70: 0.0931 | BP70: 2.434435 | BQ70: 1063200000 | BR70: 4287096.77 | BS70: 0.0535 | BT70: 2.780214 | BU70: 996820000 | BV70: 4019435.48 | BW70: 0.0726 | BX70: 2.77607 | BY70: 1154600000 | BZ70: 4655645.16 | CA70: 0.0729 | CB70: 2.591295 | CC70: 1852000000 | CD70: 7467741.94 | CE70: 0.0920 | CF70: 2.388887 | CG70: 739020000 | CH70: 2979919.35 | CI70: 0.0871 | CJ70: 2.135038 | CK70: 566760000 | CL70: 2285322.58 | CM70: 0.0938 | CO70: 20 | CP70: 20 | CQ70: 20 | CR70: 79.8 | CS70: 79.8 | CT70: 79.8 | CU70: 26.874 | CV70: 0 | CW70: 323.31 | CX70: 16602000000 | CY70: 536 | CZ70: 77 | DA70: 20 | DB70: 20 | DC70: 20 | DD70: 1 | DE70: 11 | DF70: 13 | DG70: 11 | DH70: 19 | DI70: 15 | DJ70: 18 | DK70: 16 | DL70: 15 | DM70: 15 | DN70: 15 | DO70: 14 | DP70: 14 | DQ70: 14 | DR70: 17 | DS70: 15 | DT70: 14 | DU70: 12 | DV70: 13 | DW70: 11 | DX70: 13 | DY70: 11 | DZ70: 19 | EA70: 15 | EB70: 18 | EC70: 16 | ED70: 15 | EE70: 15 | EF70: 15 | EG70: 14 | EH70: 14 | EI70: 14 | EJ70: 17 | EK70: 15 | EL70: 14 | EM70: 12 | EN70: 13 | EO70: 11 | EP70: 13 | EQ70: 11 | ER70: 19 | ES70: 15 | ET70: 18 | EU70: 16 | EV70: 15 | EW70: 15 | EX70: 15 | EY70: 14 | EZ70: 14 | FA70: 14 | FB70: 17 | FC70: 15 | FD70: 14 | FE70: 12 | FF70: 13 | FG70: 248 | FH70: 248 | FI70: 1 | FJ70: 616 | FK70: 51.6 | FL70: 54.4 | FM70: 51.6 | FN70: 68.5 | FO70: 64.5 | FP70: 67.3 | FQ70: 78.6 | FR70: 75.8 | FS70: 75.8 | FT70: 75.8 | FU70: 72.6 | FV70: 72.6 | FW70: 61.7 | FX70: 67.3 | FY70: 67.3 | FZ70: 75.8 | GA70: 62.9 | GB70: 64.5 | GC70: 30 | GD70: 25 | GE70: 32 | GF70: 29 | GG70: 29 | GH70: 38 | GI70: 34 | GJ70: 27 | GK70: 26 | GL70: 30 | GM70: 29 | GN70: 30 | GO70: 23 | GP70: 30 | GQ70: 29 | GR70: 40 | GS70: 28 | GT70: 27 | GU70: 0.4659018613 | GV70: -0.1968169943 | GW70: 0.3174738739 | GX70: 0.3281465206 | GY70: 0.7801016166 | GZ70: 0.1136798302 | HA70: 0.5188539683 | HB70: 0.2308295884 | HC70: AX24.00111_Gluconate | HD70: By MS/MS | HE70: By MS/MS | HF70: By MS/MS | HG70: By MS/MS | HH70: By MS/MS | HI70: By MS/MS | HJ70: By MS/MS | HK70: By MS/MS | HL70: By MS/MS | HM70: By MS/MS | HN70: By MS/MS | HO70: By MS/MS | HP70: By MS/MS | HQ70: By MS/MS | HR70: By MS/MS | HS70: By MS/MS | HT70: By MS/MS | HU70: By MS/MS
A71: ALC24_0113_HTH-type transcriptional repressor of iron proteins A | B71: MTAPHYLPLPDFTALPSPVYFRYDEFPAGSESLEHHHDWGQLNYTTQGIMHLRVEGKRFLSPPQYAVWIPPGAAHGSYNPNAVIYRSVYIDSTLCEDLPTQACTVAITDILKAILVDFARRGVHEPEHESDRRLARVMLDQLSLSAQGVPYFLPYTDHPVLSGVLEALRENPADNRTQVQWARRANMTERTLARLCHRELGMPLGEWRQRLRYLLALEALEEEHSVHAIAYDLGYSNPSAFIAMFRRLAGTTPEQYRRQAGRG | C71: 263 | D71: 0.0000 | E71: 0.709766148 | F71: 0.7744684617 | H71: 0.0000 | I71: 0.6907530682 | J71: 0.764827768 | L71: 0.0000 | M71: 0.3791360708 | N71: 0.5253358285 | P71: 0.0000 | Q71: 0.5036775852 | R71: 0.7283339898 | T71: -4.493676 | U71: 0.00 | V71: 0.00 | W71: 0.0000 | X71: -4.701039 | Y71: 0 | Z71: 0.00 | AA71: 0.0000 | AB71: -3.702301 | AC71: 0 | AD71: 0 | AE71: 0.0000 | AF71: -4.342961 | AG71: 290840 | AH71: 1105.86 | AI71: 0.0000 | AJ71: -3.729523 | AK71: 336920 | AL71: 1281.06 | AM71: 0.0000 | AN71: -4.853453 | AO71: 200160 | AP71: 761.06 | AQ71: 0.0000 | AR71: -4.781589 | AS71: 0 | AT71: 0.00 | AU71: 0.0000 | AV71: -5.323816 | AW71: 0 | AX71: 0.00 | AY71: 0.0000 | AZ71: -3.539009 | BA71: 0 | BB71: 0.00 | BC71: 0.0000 | BD71: -3.824043 | BE71: 0 | BF71: 0.00 | BG71: 0.0000 | BH71: -3.520234 | BI71: 0 | BJ71: 0.00 | BK71: 0.0000 | BL71: -5.691142 | BM71: 0 | BN71: 0.00 | BO71: 0.0000 | BP71: -5.801727 | BQ71: 4370900 | BR71: 16619.39 | BS71: 0.0002 | BT71: -5.633282 | BU71: 3640700 | BV71: 13842.97 | BW71: 0.0002 | BX71: -5.487741 | BY71: 934160 | BZ71: 3551.94 | CA71: 0.0001 | CB71: -3.494345 | CC71: 0 | CD71: 0.00 | CE71: 0.0000 | CF71: -5.110806 | CG71: 0 | CH71: 0.00 | CI71: 0.0000 | CJ71: -4.912941 | CK71: 0 | CL71: 0.00 | CM71: 0.0000 | CO71: 2 | CP71: 2 | CQ71: 2 | CR71: 12.5 | CS71: 12.5 | CT71: 12.5 | CU71: 29.967 | CV71: 0.0003635 | CW71: 3.3538 | CX71: 9773600 | CY71: 7 | CZ71: 78 | DA71: 2 | DB71: 2 | DC71: 2 | DD71: 1 | DE71: 0 | DF71: 0 | DG71: 0 | DH71: 1 | DI71: 1 | DJ71: 1 | DK71: 0 | DL71: 0 | DM71: 0 | DN71: 0 | DO71: 0 | DP71: 0 | DQ71: 2 | DR71: 2 | DS71: 1 | DT71: 0 | DU71: 0 | DV71: 0 | DW71: 0 | DX71: 0 | DY71: 0 | DZ71: 1 | EA71: 1 | EB71: 1 | EC71: 0 | ED71: 0 | EE71: 0 | EF71: 0 | EG71: 0 | EH71: 0 | EI71: 2 | EJ71: 2 | EK71: 1 | EL71: 0 | EM71: 0 | EN71: 0 | EO71: 0 | EP71: 0 | EQ71: 0 | ER71: 1 | ES71: 1 | ET71: 1 | EU71: 0 | EV71: 0 | EW71: 0 | EX71: 0 | EY71: 0 | EZ71: 0 | FA71: 2 | FB71: 2 | FC71: 1 | FD71: 0 | FE71: 0 | FF71: 0 | FG71: 263 | FH71: 263 | FI71: 1 | FJ71: 11 | FK71: 0 | FL71: 0 | FM71: 0 | FN71: 4.6 | FO71: 4.6 | FP71: 4.6 | FQ71: 0 | FR71: 0 | FS71: 0 | FT71: 0 | FU71: 0 | FV71: 0 | FW71: 12.5 | FX71: 12.5 | FY71: 4.6 | FZ71: 0 | GA71: 0 | GB71: 0 | GC71: 0 | GD71: 0 | GE71: 0 | GF71: 0 | GG71: 0 | GH71: 0 | GI71: 0 | GJ71: 0 | GK71: 0 | GL71: 0 | GM71: 0 | GN71: 0 | GO71: 2 | GP71: 3 | GQ71: 2 | GR71: 0 | GS71: 0 | GT71: 0 | GU71: 0.3450179445 | GV71: 0.3048346645 | GW71: 0.3425218107 | GX71: 0.3004351936 | GY71: 0.6597082658 | GZ71: 0.2012723041 | HA71: 0.4633977695 | HB71: 0.2727010176 | HC71: AX24.00113_HTH-type | HG71: By matching | HH71: By matching | HI71: By matching | HP71: By MS/MS | HQ71: By MS/MS | HR71: By MS/MS
A72: ALC24_0116_HTH-type transcriptional regulator GbpR | B72: MNLRRLEQLVALAEERSFVKAAERTHLSQPALTRGIQNLEHELGIRLFDRTSQGVVPTAAGQQLINRARRVLFEARGLRRDADLIRNHEMGEVRFGAGSYPSAILLPDVLGTLMSEHPHLRIKVEVNDWATLLRKVESEELDFAVVERRTVPHDSALESQPLSKEAAGWYVRRGHPLTDGRPVATRDLGDYPLVSVPLPETARNRLKRRLGQSPGEALALSLECNDLVTLREVVTRTDAVLSATPSVCRSQEAAGRLVRLNIQDSHQEVELAVARLANRTLSPAAQKALSLIQAWADQH | C72: 299 | D72: 0.0000 | E72: 0.2497903446 | F72: 0.4032034079 | H72: 0.0004 | I72: 0.7440152642 | J72: -0.8524841468 | L72: 0.0001 | M72: 1.080193447 | N72: -1.231893142 | P72: 0.0000 | Q72: 1.269330395 | R72: -1.302426895 | T72: -4.007837 | U72: 0.00 | V72: 0.00 | W72: 0.0000 | X72: -3.422437 | Y72: 0 | Z72: 0.00 | AA72: 0.0000 | AB72: -2.140608 | AC72: 0 | AD72: 0 | AE72: 0.0000 | AF72: -4.741728 | AG72: 9100500 | AH72: 30436.45 | AI72: 0.0003 | AJ72: -4.545402 | AK72: 11066000 | AL72: 37010.03 | AM72: 0.0004 | AN72: -4.050815 | AO72: 11270000 | AP72: 37692.31 | AQ72: 0.0005 | AR72: -5.468704 | AS72: 4041800 | AT72: 13517.73 | AU72: 0.0003 | AV72: -4.152885 | AW72: 0 | AX72: 0.00 | AY72: 0.0000 | AZ72: -4.854583 | BA72: 0 | BB72: 0.00 | BC72: 0.0000 | BD72: -5.142075 | BE72: 0 | BF72: 0.00 | BG72: 0.0000 | BH72: -4.778538 | BI72: 0 | BJ72: 0.00 | BK72: 0.0000 | BL72: -4.76716 | BM72: 784090 | BN72: 2622.37 | BO72: 0.0001 | BP72: -2.785278 | BQ72: 30071000 | BR72: 100571.91 | BS72: 0.0013 | BT72: -2.822618 | BU72: 10954000 | BV72: 36635.45 | BW72: 0.0007 | BX72: -2.630831 | BY72: 25945000 | BZ72: 86772.58 | CA72: 0.0014 | CB72: -4.365926 | CC72: 1454300 | CD72: 4863.88 | CE72: 0.0001 | CF72: -4.432912 | CG72: 0 | CH72: 0.00 | CI72: 0.0000 | CJ72: -4.523419 | CK72: 0 | CL72: 0.00 | CM72: 0.0000 | CO72: 7 | CP72: 7 | CQ72: 7 | CR72: 35.8 | CS72: 35.8 | CT72: 35.8 | CU72: 33.269 | CV72: 0 | CW72: 11.198 | CX72: 104690000 | CY72: 9 | CZ72: 79 | DA72: 7 | DB72: 7 | DC72: 7 | DD72: 1 | DE72: 0 | DF72: 0 | DG72: 0 | DH72: 2 | DI72: 2 | DJ72: 3 | DK72: 2 | DL72: 0 | DM72: 0 | DN72: 0 | DO72: 0 | DP72: 1 | DQ72: 5 | DR72: 4 | DS72: 5 | DT72: 2 | DU72: 0 | DV72: 0 | DW72: 0 | DX72: 0 | DY72: 0 | DZ72: 2 | EA72: 2 | EB72: 3 | EC72: 2 | ED72: 0 | EE72: 0 | EF72: 0 | EG72: 0 | EH72: 1 | EI72: 5 | EJ72: 4 | EK72: 5 | EL72: 2 | EM72: 0 | EN72: 0 | EO72: 0 | EP72: 0 | EQ72: 0 | ER72: 2 | ES72: 2 | ET72: 3 | EU72: 2 | EV72: 0 | EW72: 0 | EX72: 0 | EY72: 0 | EZ72: 1 | FA72: 5 | FB72: 4 | FC72: 5 | FD72: 2 | FE72: 0 | FF72: 0 | FG72: 299 | FH72: 299 | FI72: 1 | FJ72: 26 | FK72: 0 | FL72: 0 | FM72: 0 | FN72: 8 | FO72: 13 | FP72: 17.1 | FQ72: 7.4 | FR72: 0 | FS72: 0 | FT72: 0 | FU72: 0 | FV72: 4 | FW72: 27.4 | FX72: 18.4 | FY72: 27.4 | FZ72: 9.7 | GA72: 0 | GB72: 0 | GC72: 0 | GD72: 0 | GE72: 0 | GF72: 0 | GG72: 0 | GH72: 0 | GI72: 1 | GJ72: 0 | GK72: 0 | GL72: 0 | GM72: 0 | GN72: 0 | GO72: 3 | GP72: 1 | GQ72: 2 | GR72: 2 | GS72: 0 | GT72: 0 | GU72: 0.5477856049 | GV72: 0.1513777602 | GW72: 0.3142851953 | GX72: -0.3313422699 | GY72: 0.3711152074 | GZ72: -0.4720131712 | HA72: 0.2755585586 | HB72: -0.5082455262 | HC72: AX24.00116_HTH-type | HG72: By matching | HH72: By matching | HI72: By matching | HJ72: By MS/MS | HO72: By matching | HP72: By MS/MS | HQ72: By MS/MS | HR72: By MS/MS | HS72: By MS/MS
A73: ALC24_0117_Metallo-beta-lactamase superfamily protein | B73: MCDQSKPAQPATIACNHGWRDRLPFEDRTDFENARRGFIATFDGDEVRREDGRVVWDFRAYDFQESEEAPDTVNPSLWRLARLNNHTGLFQVCERIYQVRGFDLSNMNIIEGDSGLIIMDPLVSAEVAKAGLEVYYQHRPHRPVVAVIYTHSHVDHFGGVKGVISEEEVQSGQVRVYAPEGFMEETVSENVYAGPAMRRRAQYMYGGLLPKGPRGQVDAGLGKGTSRGTVTLIAPTNEISEAFETHTIDGVEIEFQLTPGTEAPAEMNLYFPQWRALCVAENACQCMHNILTIRGALVRDPRIWSYYLGQTLARYGDRSDVLFAQHHWPTWGADNIREYLADQRDMYAFLNDETLRLLNHGLTPLDIAEHIKSLPRPLAQRWHARDYYGSVSHNVRAVYQRYMGFYDANPAHLNPLPPVDSARRTIEWMGGADAVLEKARAEFERGEYRWVAEIVNQVVFADPDNAEAKALQADTLEQLGYQCENTTWRNAYLTGAQELRKGVKRVPSGQAPDLVRALTPAFFFSLLAIRLDSEKAASQPMTLNWHFPDLGQDFALTVRNGVLTYLEGHRHDEADASVTMGKPDLDQVGLGKVTLPQCMQDGRLAVAGDQAKVAALFGMLDQFQSSFNIVTPATLG | C73: 636 | D73: 0.0000 | E73: -4.34E-08 | F73: 0 | H73: 0.0014 | I73: 2.544277835 | J73: 3.012596488 | K73: + | L73: 0.0002 | M73: 0.7932441372 | N73: 1.11664776 | P73: 0.0002 | Q73: 1.507267514 | R73: 1.464823604 | T73: -4.385417 | U73: 0.00 | V73: 0.00 | W73: 0.0000 | X73: -3.181924 | Y73: 661380 | Z73: 1039.91 | AA73: 0.0001 | AB73: -3.410408 | AC73: 0 | AD73: 0 | AE73: 0.0000 | AF73: -1.782194 | AG73: 79278000 | AH73: 124650.94 | AI73: 0.0013 | AJ73: -3.038012 | AK73: 42148000 | AL73: 66270.44 | AM73: 0.0007 | AN73: -0.2606983 | AO73: 108580000 | AP73: 170723.27 | AQ73: 0.0021 | AR73: -4.344845 | AS73: 4579800 | AT73: 7200.94 | AU73: 0.0002 | AV73: -1.834435 | AW73: 579940 | AX73: 911.86 | AY73: 0.0002 | AZ73: -4.58947 | BA73: 4204900 | BB73: 6611.48 | BC73: 0.0002 | BD73: -4.19628 | BE73: 1937200 | BF73: 3045.91 | BG73: 0.0001 | BH73: -2.35717 | BI73: 3887000 | BJ73: 6111.64 | BK73: 0.0002 | BL73: -3.170773 | BM73: 1498500 | BN73: 2356.13 | BO73: 0.0001 | BP73: -4.859134 | BQ73: 8093400 | BR73: 12725.47 | BS73: 0.0002 | BT73: -5.112501 | BU73: 0 | BV73: 0.00 | BW73: 0.0000 | BX73: -5.297088 | BY73: 9041700 | BZ73: 14216.51 | CA73: 0.0002 | CB73: -5.188902 | CC73: 14980000 | CD73: 23553.46 | CE73: 0.0003 | CF73: -3.471421 | CG73: 0 | CH73: 0.00 | CI73: 0.0000 | CJ73: -4.308341 | CK73: 0 | CL73: 0.00 | CM73: 0.0000 | CN73: PESu_Succ | CO73: 9 | CP73: 9 | CQ73: 9 | CR73: 19.2 | CS73: 19.2 | CT73: 19.2 | CU73: 71.441 | CV73: 0 | CW73: 22.672 | CX73: 279470000 | CY73: 17 | CZ73: 80 | DA73: 9 | DB73: 9 | DC73: 9 | DD73: 1 | DE73: 0 | DF73: 1 | DG73: 0 | DH73: 7 | DI73: 6 | DJ73: 8 | DK73: 2 | DL73: 2 | DM73: 2 | DN73: 1 | DO73: 2 | DP73: 1 | DQ73: 1 | DR73: 0 | DS73: 2 | DT73: 1 | DU73: 0 | DV73: 0 | DW73: 0 | DX73: 1 | DY73: 0 | DZ73: 7 | EA73: 6 | EB73: 8 | EC73: 2 | ED73: 2 | EE73: 2 | EF73: 1 | EG73: 2 | EH73: 1 | EI73: 1 | EJ73: 0 | EK73: 2 | EL73: 1 | EM73: 0 | EN73: 0 | EO73: 0 | EP73: 1 | EQ73: 0 | ER73: 7 | ES73: 6 | ET73: 8 | EU73: 2 | EV73: 2 | EW73: 2 | EX73: 1 | EY73: 2 | EZ73: 1 | FA73: 1 | FB73: 0 | FC73: 2 | FD73: 1 | FE73: 0 | FF73: 0 | FG73: 636 | FH73: 636 | FI73: 1 | FJ73: 39 | FK73: 0 | FL73: 1.4 | FM73: 0 | FN73: 15.3 | FO73: 13.4 | FP73: 17.1 | FQ73: 4.2 | FR73: 4.7 | FS73: 4.2 | FT73: 2.2 | FU73: 3.6 | FV73: 2.2 | FW73: 1.4 | FX73: 0 | FY73: 3.9 | FZ73: 1.7 | GA73: 0 | GB73: 0 | GC73: 0 | GD73: 0 | GE73: 0 | GF73: 2 | GG73: 1 | GH73: 7 | GI73: 1 | GJ73: 1 | GK73: 1 | GL73: 1 | GM73: 1 | GN73: 1 | GO73: 1 | GP73: 0 | GQ73: 0 | GR73: 0 | GS73: 0 | GT73: 0 | GU73: 1 | GV73: 0 | GW73: 0.01773195876 | GX73: 1.127470688 | GY73: 0.4239704797 | GZ73: 0.411689096 | HA73: 0.2332917847 | HB73: 0.5756598488 | HC73: AX24.00117_Metallo-beta-lactamase | HE73: By matching | HG73: By MS/MS | HH73: By MS/MS | HI73: By MS/MS | HJ73: By MS/MS | HK73: By MS/MS | HL73: By MS/MS | HM73: By MS/MS | HN73: By MS/MS | HO73: By MS/MS | HP73: By MS/MS | HR73: By matching | HS73: By matching
A74: ALC24_0119_Nitrogen regulatory protein P-II 2 | B74: MKLVTAIIKPFKLDDVREALSEIGVQGITVTEVKGFGRQKGHTELYRGAEYVVDFLPKVKIEVAIADGSLDQVIEAVTKAANTGKIGDGKIFVTNLEQAIRIRTGETGEDAV | C74: 112 | D74: 0.0746 | E74: 2.364979195 | F74: -1.489746094 | H74: 0.3490 | I74: 1.133026851 | J74: 1.347966512 | L74: 0.1545 | M74: 0.1481771468 | N74: 0.1372432709 | P74: 0.1167 | Q74: 0.01475354843 | R74: 0.01544888814 | T74: 0.8592949 | U74: 76172000.00 | V74: 680107.14 | W74: 0.0762 | X74: 0.9957294 | Y74: 80483000 | Z74: 718598.21 | AA74: 0.0771 | AB74: 0.6726112 | AC74: 52501000 | AD74: 468758.9286 | AE74: 0.0705 | AF74: 2.775885 | AG74: 1543300000 | AH74: 13779464.29 | AI74: 0.1399 | AJ74: 2.954762 | AK74: 1730000000 | AL74: 15446428.57 | AM74: 0.1710 | AN74: 5.310127 | AO74: 6556900000 | AP74: 58543750.00 | AQ74: 0.7360 | AR74: 2.420624 | AS74: 790920000 | AT74: 7061785.71 | AU74: 0.1551 | AV74: 2.568287 | AW74: 73783000 | AX74: 658776.79 | AY74: 0.1757 | AZ74: 2.419693 | BA74: 451400000 | BB74: 4030357.14 | BC74: 0.1328 | BD74: 2.297901 | BE74: 302710000 | BF74: 2702767.86 | BG74: 0.1143 | BH74: 2.283302 | BI74: 322340000 | BJ74: 2878035.71 | BK74: 0.1163 | BL74: 2.462017 | BM74: 343580000 | BN74: 3067678.57 | BO74: 0.1195 | BP74: 1.930817 | BQ74: 807040000 | BR74: 7205714.29 | BS74: 0.0900 | BT74: 3.370003 | BU74: 1181400000 | BV74: 10548214.29 | BW74: 0.1905 | BX74: 2.645477 | BY74: 921180000 | BZ74: 8224821.43 | CA74: 0.1289 | CB74: 2.115084 | CC74: 1508200000 | CD74: 13466071.43 | CE74: 0.1660 | CF74: 2.193539 | CG74: 631110000 | CH74: 5634910.71 | CI74: 0.1647 | CJ74: 1.738829 | CK74: 325150000 | CL74: 2903125.00 | CM74: 0.1192 | CO74: 15 | CP74: 15 | CQ74: 15 | CR74: 94.6 | CS74: 94.6 | CT74: 94.6 | CU74: 12.101 | CV74: 0 | CW74: 228.16 | CX74: 17698000000 | CY74: 323 | CZ74: 81 | DA74: 15 | DB74: 15 | DC74: 15 | DD74: 1 | DE74: 10 | DF74: 8 | DG74: 10 | DH74: 15 | DI74: 15 | DJ74: 15 | DK74: 13 | DL74: 11 | DM74: 12 | DN74: 13 | DO74: 13 | DP74: 13 | DQ74: 13 | DR74: 14 | DS74: 13 | DT74: 13 | DU74: 11 | DV74: 11 | DW74: 10 | DX74: 8 | DY74: 10 | DZ74: 15 | EA74: 15 | EB74: 15 | EC74: 13 | ED74: 11 | EE74: 12 | EF74: 13 | EG74: 13 | EH74: 13 | EI74: 13 | EJ74: 14 | EK74: 13 | EL74: 13 | EM74: 11 | EN74: 11 | EO74: 10 | EP74: 8 | EQ74: 10 | ER74: 15 | ES74: 15 | ET74: 15 | EU74: 13 | EV74: 11 | EW74: 12 | EX74: 13 | EY74: 13 | EZ74: 13 | FA74: 13 | FB74: 14 | FC74: 13 | FD74: 13 | FE74: 11 | FF74: 11 | FG74: 112 | FH74: 112 | FI74: 1 | FJ74: 452 | FK74: 87.5 | FL74: 87.5 | FM74: 87.5 | FN74: 94.6 | FO74: 94.6 | FP74: 94.6 | FQ74: 94.6 | FR74: 89.3 | FS74: 91.1 | FT74: 94.6 | FU74: 94.6 | FV74: 94.6 | FW74: 94.6 | FX74: 94.6 | FY74: 94.6 | FZ74: 94.6 | GA74: 89.3 | GB74: 89.3 | GC74: 9 | GD74: 10 | GE74: 12 | GF74: 18 | GG74: 18 | GH74: 33 | GI74: 22 | GJ74: 16 | GK74: 18 | GL74: 17 | GM74: 17 | GN74: 19 | GO74: 18 | GP74: 22 | GQ74: 23 | GR74: 19 | GS74: 17 | GT74: 15 | GU74: 0.1913081761 | GV74: -0.6314352517 | GW74: 0.1880840065 | GX74: 0.5103664762 | GY74: 0.8899866285 | GZ74: 0.0582649108 | HA74: 0.9836003172 | HB74: 0.006557215862 | HC74: AX24.00119_Nitrogen | HD74: By MS/MS | HE74: By MS/MS | HF74: By MS/MS | HG74: By MS/MS | HH74: By MS/MS | HI74: By MS/MS | HJ74: By MS/MS | HK74: By MS/MS | HL74: By MS/MS | HM74: By MS/MS | HN74: By MS/MS | HO74: By MS/MS | HP74: By MS/MS | HQ74: By MS/MS | HR74: By MS/MS | HS74: By MS/MS | HT74: By MS/MS | HU74: By MS/MS
A75: ALC24_0121_putative oxidoreductase | B75: MPHRKTILITGASSGLGMGMARRFAAMGRDLALCARRLDKLEALKNELEQAHPNITVAIQPLDVNNYEQVFEVFRAFKAELGQLDRVIVNAGIGKGQPLGTGHFHANRQTAETNFVAALAQCEAAMEIFREQNSGHLVVVSSMSALRGLRKNINTYSATKAGVAALAEGLRMEMLGKPIKVSTIYPGYIRTDINAQVKNAPFIVDLETGCQQLVNAIEKESAKAYVPRWPWAPLGFAMKVLPLAVVKRMT | C75: 250 | D75: 0.0046 | E75: 1.084118025 | F75: -0.3531071345 | H75: 0.0067 | I75: 0.3544082921 | J75: -0.10049661 | L75: 0.0040 | M75: 1.38799884 | N75: -0.407432874 | P75: 0.0027 | Q75: 1.675964111 | R75: -0.4021075567 | T75: -0.865797 | U75: 10681000.00 | V75: 42724.00 | W75: 0.0048 | X75: -1.486385 | Y75: 7541200 | Z75: 30164.80 | AA75: 0.0032 | AB75: -0.9750729 | AC75: 9532800 | AD75: 38131.2 | AE75: 0.0057 | AF75: -0.8045521 | AG75: 164680000 | AH75: 658720.00 | AI75: 0.0067 | AJ75: -0.9232788 | AK75: 146320000 | AL75: 585280.00 | AM75: 0.0065 | AN75: -0.8415928 | AO75: 136870000 | AP75: 547480.00 | AQ75: 0.0069 | AR75: -1.087654 | AS75: 41159000 | AT75: 164636.00 | AU75: 0.0036 | AV75: -1.481615 | AW75: 3664100 | AX75: 14656.40 | AY75: 0.0039 | AZ75: -0.9209633 | BA75: 33088000 | BB75: 132352.00 | BC75: 0.0044 | BD75: -0.9834709 | BE75: 18258000 | BF75: 73032.00 | BG75: 0.0031 | BH75: -1.30364 | BI75: 16263000 | BJ75: 65052.00 | BK75: 0.0026 | BL75: -1.187145 | BM75: 16042000 | BN75: 64168.00 | BO75: 0.0025 | BP75: -0.8569794 | BQ75: 116140000 | BR75: 464560.00 | BS75: 0.0058 | BT75: -0.495779 | BU75: 107710000 | BV75: 430840.00 | BW75: 0.0078 | BX75: -0.7968025 | BY75: 120030000 | BZ75: 480120.00 | CA75: 0.0075 | CB75: -0.8589973 | CC75: 108350000 | CD75: 433400.00 | CE75: 0.0053 | CF75: -0.5234051 | CG75: 77739000 | CH75: 310956.00 | CI75: 0.0091 | CJ75: -1.003904 | CK75: 38642000 | CL75: 154568.00 | CM75: 0.0063 | CO75: 15 | CP75: 15 | CQ75: 15 | CR75: 62 | CS75: 62 | CT75: 62 | CU75: 27.33 | CV75: 0 | CW75: 123.54 | CX75: 1172700000 | CY75: 85 | CZ75: 83 | DA75: 15 | DB75: 15 | DC75: 15 | DD75: 1 | DE75: 2 | DF75: 3 | DG75: 3 | DH75: 11 | DI75: 11 | DJ75: 11 | DK75: 7 | DL75: 6 | DM75: 6 | DN75: 6 | DO75: 5 | DP75: 5 | DQ75: 10 | DR75: 14 | DS75: 12 | DT75: 4 | DU75: 5 | DV75: 5 | DW75: 2 | DX75: 3 | DY75: 3 | DZ75: 11 | EA75: 11 | EB75: 11 | EC75: 7 | ED75: 6 | EE75: 6 | EF75: 6 | EG75: 5 | EH75: 5 | EI75: 10 | EJ75: 14 | EK75: 12 | EL75: 4 | EM75: 5 | EN75: 5 | EO75: 2 | EP75: 3 | EQ75: 3 | ER75: 11 | ES75: 11 | ET75: 11 | EU75: 7 | EV75: 6 | EW75: 6 | EX75: 6 | EY75: 5 | EZ75: 5 | FA75: 10 | FB75: 14 | FC75: 12 | FD75: 4 | FE75: 5 | FF75: 5 | FG75: 250 | FH75: 250 | FI75: 1 | FJ75: 154 | FK75: 15.2 | FL75: 13.2 | FM75: 18.8 | FN75: 46 | FO75: 46 | FP75: 46 | FQ75: 25.2 | FR75: 27.2 | FS75: 31.2 | FT75: 22.8 | FU75: 22.8 | FV75: 22.8 | FW75: 41.6 | FX75: 61.6 | FY75: 57.2 | FZ75: 23.2 | GA75: 30 | GB75: 30.8 | GC75: 3 | GD75: 3 | GE75: 2 | GF75: 4 | GG75: 6 | GH75: 8 | GI75: 6 | GJ75: 2 | GK75: 4 | GL75: 4 | GM75: 4 | GN75: 4 | GO75: 6 | GP75: 11 | GQ75: 6 | GR75: 2 | GS75: 5 | GT75: 5 | GU75: 0.52506875 | GV75: -0.1624016141 | GW75: 0.8398633646 | GX75: -0.04732856785 | GY75: 0.6703363914 | GZ75: -0.1883733048 | HA75: 0.589707989 | HB75: -0.1882683748 | HC75: AX24.00121_putative | HD75: By MS/MS | HE75: By MS/MS | HF75: By MS/MS | HG75: By MS/MS | HH75: By MS/MS | HI75: By MS/MS | HJ75: By MS/MS | HK75: By MS/MS | HL75: By MS/MS | HM75: By MS/MS | HN75: By MS/MS | HO75: By MS/MS | HP75: By MS/MS | HQ75: By MS/MS | HR75: By MS/MS | HS75: By MS/MS | HT75: By MS/MS | HU75: By MS/MS
A76: ALC24_0123_HTH-type transcriptional regulator LeuO | B76: MHVSRFDLNLFVVFDAIYTEGSLTRAARVLNLTQPAVSHALARLRERLEDPLFVRQGARMVPTSRARAMVTPVRHALGGLQRCLSHEGGFDLGEAERTFVLGLRDGLEGCLLPPLISALVDEAPGIRLQSMTVPRRQLATELASGRLDLATDILLPLPESVQHRRVMQGPLVVMMRAGHPLAGNLDLPAYLAAQHVLVSSRREGPGMEDFGLSRLGYRRHIRLRCQHHQAALSTVMGSDLLLTLPELLARRLAPKGAHTEPLPVDIPGLELHLYWHRDQSADPGHSWLRQKVMAVMEQLSAHS | C76: 303 | D76: 0.0020 | E76: 1.211708335 | F76: -1.386352698 | H76: 0.0030 | I76: 0.2304191539 | J76: -0.3202199936 | L76: 0.0017 | M76: 0.7550470208 | N76: -0.8561518987 | P76: 0.0022 | Q76: 0.01829324384 | R76: -0.03087647756 | T76: -3.372028 | U76: 1220800.00 | V76: 4029.04 | W76: 0.0005 | X76: -2.198654 | Y76: 10206000 | Z76: 33683.17 | AA76: 0.0036 | AB76: -2.130802 | AC76: 3829500 | AD76: 12638.61386 | AE76: 0.0019 | AF76: -1.483299 | AG76: 100390000 | AH76: 331320.13 | AI76: 0.0034 | AJ76: -1.522438 | AK76: 85920000 | AL76: 283564.36 | AM76: 0.0031 | AN76: -1.497349 | AO76: 61239000 | AP76: 202108.91 | AQ76: 0.0025 | AR76: -1.839895 | AS76: 32864000 | AT76: 108462.05 | AU76: 0.0024 | AV76: -2.085262 | AW76: 1267500 | AX76: 4183.17 | AY76: 0.0011 | AZ76: -2.185724 | BA76: 16016000 | BB76: 52858.09 | BC76: 0.0017 | BD76: -1.050562 | BE76: 16499000 | BF76: 54452.15 | BG76: 0.0023 | BH76: -1.021854 | BI76: 16948000 | BJ76: 55933.99 | BK76: 0.0023 | BL76: -1.562639 | BM76: 14862000 | BN76: 49049.50 | BO76: 0.0019 | BP76: -0.2238331 | BQ76: 162890000 | BR76: 537590.76 | BS76: 0.0067 | BT76: -0.4046555 | BU76: 106320000 | BV76: 350891.09 | BW76: 0.0063 | BX76: -0.3404999 | BY76: 136060000 | BZ76: 449042.90 | CA76: 0.0070 | CB76: -2.104553 | CC76: 58796000 | CD76: 194046.20 | CE76: 0.0024 | CF76: -1.899511 | CG76: 28225000 | CH76: 93151.82 | CI76: 0.0027 | CJ76: -2.111799 | CK76: 9821600 | CL76: 32414.52 | CM76: 0.0013 | CO76: 14 | CP76: 14 | CQ76: 14 | CR76: 51.8 | CS76: 51.8 | CT76: 51.8 | CU76: 33.55 | CV76: 0 | CW76: 42.606 | CX76: 863370000 | CY76: 65 | CZ76: 84 | DA76: 14 | DB76: 14 | DC76: 14 | DD76: 1 | DE76: 1 | DF76: 5 | DG76: 3 | DH76: 10 | DI76: 9 | DJ76: 9 | DK76: 5 | DL76: 4 | DM76: 4 | DN76: 3 | DO76: 3 | DP76: 4 | DQ76: 12 | DR76: 13 | DS76: 14 | DT76: 5 | DU76: 3 | DV76: 3 | DW76: 1 | DX76: 5 | DY76: 3 | DZ76: 10 | EA76: 9 | EB76: 9 | EC76: 5 | ED76: 4 | EE76: 4 | EF76: 3 | EG76: 3 | EH76: 4 | EI76: 12 | EJ76: 13 | EK76: 14 | EL76: 5 | EM76: 3 | EN76: 3 | EO76: 1 | EP76: 5 | EQ76: 3 | ER76: 10 | ES76: 9 | ET76: 9 | EU76: 5 | EV76: 4 | EW76: 4 | EX76: 3 | EY76: 3 | EZ76: 4 | FA76: 12 | FB76: 13 | FC76: 14 | FD76: 5 | FE76: 3 | FF76: 3 | FG76: 303 | FH76: 303 | FI76: 1 | FJ76: 131 | FK76: 2.6 | FL76: 19.1 | FM76: 10.2 | FN76: 37.6 | FO76: 35.3 | FP76: 34.7 | FQ76: 15.2 | FR76: 17.8 | FS76: 14.2 | FT76: 10.2 | FU76: 10.2 | FV76: 12.5 | FW76: 44.6 | FX76: 51.2 | FY76: 51.8 | FZ76: 17.8 | GA76: 10.2 | GB76: 9.2 | GC76: 1 | GD76: 3 | GE76: 3 | GF76: 6 | GG76: 3 | GH76: 2 | GI76: 3 | GJ76: 1 | GK76: 2 | GL76: 3 | GM76: 3 | GN76: 4 | GO76: 7 | GP76: 8 | GQ76: 6 | GR76: 4 | GS76: 5 | GT76: 1 | GU76: 0.2333553719 | GV76: -0.5285240396 | GW76: 0.6269622166 | GX76: -0.1248650304 | GY76: 0.4878611482 | GZ76: -0.3333314739 | HA76: 0.9670237234 | HB76: -0.01198585913 | HC76: AX24.00123_HTH-type | HD76: By MS/MS | HE76: By MS/MS | HF76: By MS/MS | HG76: By MS/MS | HH76: By MS/MS | HI76: By MS/MS | HJ76: By MS/MS | HK76: By MS/MS | HL76: By MS/MS | HM76: By MS/MS | HN76: By MS/MS | HO76: By MS/MS | HP76: By MS/MS | HQ76: By MS/MS | HR76: By MS/MS | HS76: By MS/MS | HT76: By MS/MS | HU76: By MS/MS
A77: ALC24_0125_hypothetical protein | B77: MNVLKRKDFARWQAGEKLSDAALCKAVLEMESGLIDADLGGHLYKKRVARPGAGKSGGYRTLLSARVGHRYVFLHGFPKSDKANITRDEKKALQYAGKVFLELSAKELVKALQTGVLLEVCCDEQNH | C77: 127 | D77: 0.0000 | E77: 0.159558487 | F77: 0.2298793793 | H77: 0.0024 | I77: 2.032812537 | J77: 1.596029917 | L77: 0.0019 | M77: 2.128426324 | N77: 1.902868271 | P77: 0.0013 | Q77: 1.01991308 | R77: 0.9764105479 | T77: -5.531896 | U77: 0.00 | V77: 0.00 | W77: 0.0000 | X77: -4.449265 | Y77: 0 | Z77: 0.00 | AA77: 0.0000 | AB77: -3.37644 | AC77: 0 | AD77: 0 | AE77: 0.0000 | AF77: -3.087029 | AG77: 51035000 | AH77: 401850.39 | AI77: 0.0041 | AJ77: -3.714195 | AK77: 14657000 | AL77: 115409.45 | AM77: 0.0013 | AN77: -2.457926 | AO77: 17808000 | AP77: 140220.47 | AQ77: 0.0018 | AR77: -2.928785 | AS77: 10385000 | AT77: 81771.65 | AU77: 0.0018 | AV77: -1.811899 | AW77: 934450 | AX77: 7357.87 | AY77: 0.0020 | AZ77: -3.59795 | BA77: 7592100 | BB77: 59780.31 | BC77: 0.0020 | BD77: -4.539007 | BE77: 2402000 | BF77: 18913.39 | BG77: 0.0008 | BH77: -3.802673 | BI77: 3934500 | BJ77: 30980.31 | BK77: 0.0013 | BL77: -2.776327 | BM77: 5731500 | BN77: 45129.92 | BO77: 0.0018 | BP77: -5.140584 | BQ77: 5028900 | BR77: 39597.64 | BS77: 0.0005 | BT77: -3.831675 | BU77: 6312100 | BV77: 49701.57 | BW77: 0.0009 | BX77: -4.823622 | BY77: 4438500 | BZ77: 34948.82 | CA77: 0.0005 | CB77: -3.928801 | CC77: 34643000 | CD77: 272779.53 | CE77: 0.0034 | CF77: -5.235068 | CG77: 0 | CH77: 0.00 | CI77: 0.0000 | CJ77: -5.134729 | CK77: 9172400 | CL77: 72223.62 | CM77: 0.0030 | CO77: 3 | CP77: 3 | CQ77: 3 | CR77: 28.3 | CS77: 28.3 | CT77: 28.3 | CU77: 14.045 | CV77: 0 | CW77: 6.0916 | CX77: 174070000 | CY77: 16 | CZ77: 85 | DA77: 3 | DB77: 3 | DC77: 3 | DD77: 1 | DE77: 0 | DF77: 0 | DG77: 0 | DH77: 3 | DI77: 3 | DJ77: 2 | DK77: 2 | DL77: 2 | DM77: 2 | DN77: 2 | DO77: 2 | DP77: 2 | DQ77: 1 | DR77: 2 | DS77: 2 | DT77: 1 | DU77: 0 | DV77: 1 | DW77: 0 | DX77: 0 | DY77: 0 | DZ77: 3 | EA77: 3 | EB77: 2 | EC77: 2 | ED77: 2 | EE77: 2 | EF77: 2 | EG77: 2 | EH77: 2 | EI77: 1 | EJ77: 2 | EK77: 2 | EL77: 1 | EM77: 0 | EN77: 1 | EO77: 0 | EP77: 0 | EQ77: 0 | ER77: 3 | ES77: 3 | ET77: 2 | EU77: 2 | EV77: 2 | EW77: 2 | EX77: 2 | EY77: 2 | EZ77: 2 | FA77: 1 | FB77: 2 | FC77: 2 | FD77: 1 | FE77: 0 | FF77: 1 | FG77: 127 | FH77: 127 | FI77: 1 | FJ77: 29 | FK77: 0 | FL77: 0 | FM77: 0 | FN77: 28.3 | FO77: 28.3 | FP77: 12.6 | FQ77: 22 | FR77: 22 | FS77: 22 | FT77: 12.6 | FU77: 22 | FV77: 22 | FW77: 6.3 | FX77: 12.6 | FY77: 12.6 | FZ77: 15.7 | GA77: 0 | GB77: 15.7 | GC77: 0 | GD77: 0 | GE77: 0 | GF77: 2 | GG77: 1 | GH77: 2 | GI77: 1 | GJ77: 0 | GK77: 1 | GL77: 0 | GM77: 1 | GN77: 2 | GO77: 1 | GP77: 2 | GQ77: 1 | GR77: 2 | GS77: 0 | GT77: 0 | GU77: 0.6849729242 | GV77: 0.08987700507 | GW77: 0.1216863753 | GX77: 0.6517436646 | GY77: 0.165689441 | GZ77: 0.7577229274 | HA77: 0.3523847242 | HB77: 0.3894691261 | HC77: AX24.00125_hypothetical | HG77: By MS/MS | HH77: By MS/MS | HI77: By MS/MS | HJ77: By MS/MS | HK77: By matching | HL77: By MS/MS | HM77: By matching | HN77: By MS/MS | HO77: By MS/MS | HP77: By MS/MS | HQ77: By MS/MS | HR77: By MS/MS | HS77: By MS/MS | HU77: By matching
A78: ALC24_0126_Antitoxin igA-2 | B78: VTSKIIESLRGDLAALHDAGAINKVTMRQFDEICPPPVREFSAGDIKRLREALHFSQPVFAHHLHTSASTVRKWEQGETRPAGPALKLLNVIADKGLQAII | C78: 101 | D78: 0.0010 | E78: 0.4264519476 | F78: -0.6310713291 | H78: 0.0111 | I78: 2.09607827 | J78: 2.3397216 | L78: 0.0021 | M78: 0.3560603497 | N78: 0.5241266092 | P78: 0.0031 | Q78: 0.7807989585 | R78: 0.9912846088 | T78: -4.509314 | U78: 0.00 | V78: 0.00 | W78: 0.0000 | X78: -3.431218 | Y78: 0 | Z78: 0.00 | AA78: 0.0000 | AB78: -4.187403 | AC78: 2005400 | AD78: 19855.44554 | AE78: 0.0030 | AF78: -1.351154 | AG78: 103220000 | AH78: 1021980.20 | AI78: 0.0104 | AJ78: -0.9318886 | AK78: 99029000 | AL78: 980485.15 | AM78: 0.0109 | AN78: -0.9325123 | AO78: 96513000 | AP78: 955574.26 | AQ78: 0.0120 | AR78: -2.828901 | AS78: 16218000 | AT78: 160574.26 | AU78: 0.0035 | AV78: -2.634544 | AW78: 585050 | AX78: 5792.57 | AY78: 0.0015 | AZ78: -3.198895 | BA78: 4089200 | BB78: 40487.13 | BC78: 0.0013 | BD78: -2.224684 | BE78: 7405000 | BF78: 73316.83 | BG78: 0.0031 | BH78: -2.295986 | BI78: 8659800 | BJ78: 85740.59 | BK78: 0.0035 | BL78: -2.740196 | BM78: 6868400 | BN78: 68003.96 | BO78: 0.0026 | BP78: -3.233582 | BQ78: 26006000 | BR78: 257485.15 | BS78: 0.0032 | BT78: -2.012356 | BU78: 24216000 | BV78: 239762.38 | BW78: 0.0043 | BX78: -2.543646 | BY78: 17452000 | BZ78: 172792.08 | CA78: 0.0027 | CB78: -3.710739 | CC78: 18553000 | CD78: 183693.07 | CE78: 0.0023 | CF78: -4.008492 | CG78: 10433000 | CH78: 103297.03 | CI78: 0.0030 | CJ78: -4.960625 | CK78: 828600 | CL78: 8203.96 | CM78: 0.0003 | CO78: 7 | CP78: 7 | CQ78: 7 | CR78: 92.1 | CS78: 92.1 | CT78: 92.1 | CU78: 11.136 | CV78: 0 | CW78: 14.779 | CX78: 442080000 | CY78: 28 | CZ78: 86 | DA78: 7 | DB78: 7 | DC78: 7 | DD78: 1 | DE78: 0 | DF78: 0 | DG78: 1 | DH78: 6 | DI78: 5 | DJ78: 6 | DK78: 4 | DL78: 2 | DM78: 2 | DN78: 3 | DO78: 3 | DP78: 3 | DQ78: 3 | DR78: 4 | DS78: 2 | DT78: 2 | DU78: 2 | DV78: 1 | DW78: 0 | DX78: 0 | DY78: 1 | DZ78: 6 | EA78: 5 | EB78: 6 | EC78: 4 | ED78: 2 | EE78: 2 | EF78: 3 | EG78: 3 | EH78: 3 | EI78: 3 | EJ78: 4 | EK78: 2 | EL78: 2 | EM78: 2 | EN78: 1 | EO78: 0 | EP78: 0 | EQ78: 1 | ER78: 6 | ES78: 5 | ET78: 6 | EU78: 4 | EV78: 2 | EW78: 2 | EX78: 3 | EY78: 3 | EZ78: 3 | FA78: 3 | FB78: 4 | FC78: 2 | FD78: 2 | FE78: 2 | FF78: 1 | FG78: 101 | FH78: 101 | FI78: 1 | FJ78: 57 | FK78: 0 | FL78: 0 | FM78: 18.8 | FN78: 81.2 | FO78: 81.2 | FP78: 81.2 | FQ78: 57.4 | FR78: 28.7 | FS78: 28.7 | FT78: 48.5 | FU78: 48.5 | FV78: 48.5 | FW78: 37.6 | FX78: 51.5 | FY78: 28.7 | FZ78: 23.8 | GA78: 33.7 | GB78: 8.9 | GC78: 0 | GD78: 0 | GE78: 0 | GF78: 3 | GG78: 3 | GH78: 3 | GI78: 2 | GJ78: 0 | GK78: 1 | GL78: 3 | GM78: 1 | GN78: 1 | GO78: 1 | GP78: 5 | GQ78: 2 | GR78: 2 | GS78: 1 | GT78: 0 | GU78: 0.4103888183 | GV78: -0.2367540069 | GW78: 0.05230601093 | GX78: 0.886806646 | GY78: 0.6628983187 | GZ78: 0.1984567289 | HA78: 0.3637894737 | HB78: 0.3754087321 | HC78: AX24.00126_Antitoxin | HF78: By matching | HG78: By MS/MS | HH78: By MS/MS | HI78: By MS/MS | HJ78: By MS/MS | HK78: By matching | HL78: By MS/MS | HM78: By MS/MS | HN78: By MS/MS | HO78: By MS/MS | HP78: By MS/MS | HQ78: By MS/MS | HR78: By MS/MS | HS78: By MS/MS | HT78: By MS/MS | HU78: By matching
A79: ALC24_0127_Protein of unknown function (Hypoth_ymh) | B79: VASQIAPFSSQHLEAACRVLADTAQGLTGTQIGRLLQEIQVADPSPDMTKWKRLFNALAGAQNRHQVGNHLIMFINRAMNPVSYASDSGTFAWRRDELNVVLAFSGFYVREDGKVGYADKAHTLDEARARAGRLKAALESRAVHAEVLNYCRAELMEENYFHAVFEATKGVAERIRQLSGLSGDGADLVNKAFGGQQPVLILKALNTESEKSEQKGFVNLLVGLFGAVRNPLAHAAKTHWPMSEQDALDILTLVSLIHRKLDGVTRLAAVSA | C79: 272 | D79: 0.0020 | E79: 0.6496783865 | F79: -2.024255435 | H79: 0.0049 | I79: 0.151470423 | J79: 0.5864502589 | L79: 0.0011 | M79: 0.3377049882 | N79: -1.175088565 | P79: 0.0026 | Q79: 0.08157309349 | R79: -0.3346586227 | T79: -3.894978 | U79: 1978300.00 | V79: 7273.16 | W79: 0.0008 | X79: -3.867832 | Y79: 2862100 | Z79: 10522.43 | AA79: 0.0011 | AB79: -2.549068 | AC79: 7491000 | AD79: 27540.44118 | AE79: 0.0041 | AF79: -0.8854122 | AG79: 132590000 | AH79: 487463.24 | AI79: 0.0049 | AJ79: -0.7590714 | AK79: 118590000 | AL79: 435992.65 | AM79: 0.0048 | AN79: -0.8352776 | AO79: 106950000 | AP79: 393198.53 | AQ79: 0.0049 | AR79: -2.701826 | AS79: 11649000 | AT79: 42827.21 | AU79: 0.0009 | AV79: -3.0214 | AW79: 980630 | AX79: 3605.26 | AY79: 0.0010 | AZ79: -2.041151 | BA79: 11537000 | BB79: 42415.44 | BC79: 0.0014 | BD79: -1.800014 | BE79: 16559000 | BF79: 60878.68 | BG79: 0.0026 | BH79: -1.850704 | BI79: 14845000 | BJ79: 54577.21 | BK79: 0.0022 | BL79: -1.592369 | BM79: 20315000 | BN79: 74687.50 | BO79: 0.0029 | BP79: 0.7975407 | BQ79: 221310000 | BR79: 813639.71 | BS79: 0.0102 | BT79: 0.7298317 | BU79: 174490000 | BV79: 641507.35 | BW79: 0.0116 | BX79: 0.7142715 | BY79: 212090000 | BZ79: 779742.65 | CA79: 0.0122 | CB79: -2.163034 | CC79: 214790000 | CD79: 789669.12 | CE79: 0.0097 | CF79: -4.473682 | CG79: 9496900 | CH79: 34915.07 | CI79: 0.0010 | CJ79: -4.083151 | CK79: 3452100 | CL79: 12691.54 | CM79: 0.0005 | CO79: 19 | CP79: 19 | CQ79: 19 | CR79: 77.9 | CS79: 77.9 | CT79: 77.9 | CU79: 29.722 | CV79: 0 | CW79: 98 | CX79: 1282000000 | CY79: 85 | CZ79: 87 | DA79: 19 | DB79: 19 | DC79: 19 | DD79: 1 | DE79: 3 | DF79: 2 | DG79: 4 | DH79: 12 | DI79: 11 | DJ79: 11 | DK79: 2 | DL79: 2 | DM79: 3 | DN79: 7 | DO79: 5 | DP79: 6 | DQ79: 12 | DR79: 15 | DS79: 14 | DT79: 10 | DU79: 3 | DV79: 3 | DW79: 3 | DX79: 2 | DY79: 4 | DZ79: 12 | EA79: 11 | EB79: 11 | EC79: 2 | ED79: 2 | EE79: 3 | EF79: 7 | EG79: 5 | EH79: 6 | EI79: 12 | EJ79: 15 | EK79: 14 | EL79: 10 | EM79: 3 | EN79: 3 | EO79: 3 | EP79: 2 | EQ79: 4 | ER79: 12 | ES79: 11 | ET79: 11 | EU79: 2 | EV79: 2 | EW79: 3 | EX79: 7 | EY79: 5 | EZ79: 6 | FA79: 12 | FB79: 15 | FC79: 14 | FD79: 10 | FE79: 3 | FF79: 3 | FG79: 272 | FH79: 272 | FI79: 1 | FJ79: 143 | FK79: 13.2 | FL79: 11.8 | FM79: 19.1 | FN79: 52.9 | FO79: 50 | FP79: 50 | FQ79: 8.8 | FR79: 8.8 | FS79: 14.3 | FT79: 30.5 | FU79: 21.3 | FV79: 27.2 | FW79: 50 | FX79: 67.6 | FY79: 60.7 | FZ79: 47.8 | GA79: 14 | GB79: 14 | GC79: 1 | GD79: 0 | GE79: 2 | GF79: 7 | GG79: 10 | GH79: 8 | GI79: 2 | GJ79: 0 | GK79: 4 | GL79: 3 | GM79: 2 | GN79: 2 | GO79: 9 | GP79: 14 | GQ79: 12 | GR79: 8 | GS79: 0 | GT79: 1 | GU79: 0.2198883249 | GV79: -0.5754503718 | GW79: 0.5439147026 | GX79: 0.1680486001 | GY79: 0.4860782726 | GZ79: -0.3355949868 | HA79: 0.7457748209 | HB79: -0.09587781168 | HC79: AX24.00127_Protein | HD79: By MS/MS | HE79: By matching | HF79: By MS/MS | HG79: By MS/MS | HH79: By MS/MS | HI79: By MS/MS | HJ79: By MS/MS | HK79: By matching | HL79: By MS/MS | HM79: By MS/MS | HN79: By MS/MS | HO79: By MS/MS | HP79: By MS/MS | HQ79: By MS/MS | HR79: By MS/MS | HS79: By MS/MS | HT79: By matching | HU79: By MS/MS
A80: ALC24_0128_hypothetical protein | B80: MDEAIVVFSRKGIFQTTIAARDVRSREHARKLWPLVSSDGSRQMVTWVSPSFEHGKLRRRSHFRVLPTQHIFKPKEHFDDEEANRWRAVQESPEHRRAKELVAEELTRRLHAGLAMPWAFKDVDASDYPLEGNLLLGADQVATEHPLETPFGSQFRLDVAVLGPPVQAEPMVLGGVEIELGHAFDGRKALIGKSLGFPLISIDITEMTLPELTPEWARQVLTATTRSHEQGRRQTYIYLHDLLYPLYAQLPAFLDDEQRHQFLVFADDKTLNKLVRWMNLLADKLEYPKGTVSVALVNGKNDQARKMLERAGQVVGSDWKDFNSQKCLRLTLPRPKGPADLQAHRFHMTMARILLSHTDALVGYKYCNGVDNNHPEDDVWVAKRWIADEKTFSQHRVLPKRLAEPVNRLIAVVSDLKHNHTAAHHEV | C80: 427 | D80: 0.0010 | E80: 2.142436538 | F80: -1.494573196 | H80: 0.0042 | I80: 1.336952618 | J80: 0.7903715769 | L80: 0.0018 | M80: 0.8522673048 | N80: -0.5632152557 | P80: 0.0019 | Q80: 0.7726789888 | R80: -0.553764979 | T80: -3.09113 | U80: 839330.00 | V80: 1965.64 | W80: 0.0002 | X80: -1.906324 | Y80: 4332600 | Z80: 10146.60 | AA80: 0.0011 | AB80: -2.761307 | AC80: 4805000 | AD80: 11252.9274 | AE80: 0.0017 | AF80: -0.213398 | AG80: 176930000 | AH80: 414355.97 | AI80: 0.0042 | AJ80: -0.3363953 | AK80: 162720000 | AL80: 381077.28 | AM80: 0.0042 | AN80: -0.3541336 | AO80: 144430000 | AP80: 338243.56 | AQ80: 0.0043 | AR80: -1.831043 | AS80: 32944000 | AT80: 77152.22 | AU80: 0.0017 | AV80: -1.768333 | AW80: 2115200 | AX80: 4953.63 | AY80: 0.0013 | AZ80: -1.365311 | BA80: 29892000 | BB80: 70004.68 | BC80: 0.0023 | BD80: -1.482119 | BE80: 18254000 | BF80: 42749.41 | BG80: 0.0018 | BH80: -2.11619 | BI80: 17456000 | BJ80: 40880.56 | BK80: 0.0017 | BL80: -1.338028 | BM80: 24791000 | BN80: 58058.55 | BO80: 0.0023 | BP80: -0.6163769 | BQ80: 141260000 | BR80: 330819.67 | BS80: 0.0041 | BT80: -0.3776283 | BU80: 88739000 | BV80: 207819.67 | BW80: 0.0038 | BX80: -0.9197884 | BY80: 102750000 | BZ80: 240632.32 | CA80: 0.0038 | CB80: -1.352785 | CC80: 88080000 | CD80: 206276.35 | CE80: 0.0025 | CF80: -1.497169 | CG80: 46038000 | CH80: 107817.33 | CI80: 0.0032 | CJ80: -1.786335 | CK80: 16677000 | CL80: 39056.21 | CM80: 0.0016 | CO80: 17 | CP80: 17 | CQ80: 17 | CR80: 48.9 | CS80: 48.9 | CT80: 48.9 | CU80: 48.794 | CV80: 0 | CW80: 60.605 | CX80: 1103000000 | CY80: 83 | CZ80: 88 | DA80: 17 | DB80: 17 | DC80: 17 | DD80: 1 | DE80: 1 | DF80: 3 | DG80: 4 | DH80: 13 | DI80: 14 | DJ80: 14 | DK80: 6 | DL80: 6 | DM80: 11 | DN80: 8 | DO80: 9 | DP80: 9 | DQ80: 12 | DR80: 13 | DS80: 14 | DT80: 7 | DU80: 5 | DV80: 5 | DW80: 1 | DX80: 3 | DY80: 4 | DZ80: 13 | EA80: 14 | EB80: 14 | EC80: 6 | ED80: 6 | EE80: 11 | EF80: 8 | EG80: 9 | EH80: 9 | EI80: 12 | EJ80: 13 | EK80: 14 | EL80: 7 | EM80: 5 | EN80: 5 | EO80: 1 | EP80: 3 | EQ80: 4 | ER80: 13 | ES80: 14 | ET80: 14 | EU80: 6 | EV80: 6 | EW80: 11 | EX80: 8 | EY80: 9 | EZ80: 9 | FA80: 12 | FB80: 13 | FC80: 14 | FD80: 7 | FE80: 5 | FF80: 5 | FG80: 427 | FH80: 427 | FI80: 1 | FJ80: 190 | FK80: 1.9 | FL80: 7 | FM80: 14.5 | FN80: 34 | FO80: 36.8 | FP80: 44.5 | FQ80: 14.3 | FR80: 14.8 | FS80: 27.2 | FT80: 19 | FU80: 22.7 | FV80: 21.3 | FW80: 33.3 | FX80: 37.5 | FY80: 43.1 | FZ80: 19.9 | GA80: 19.7 | GB80: 12.6 | GC80: 1 | GD80: 1 | GE80: 2 | GF80: 9 | GG80: 12 | GH80: 8 | GI80: 3 | GJ80: 2 | GK80: 4 | GL80: 2 | GM80: 2 | GN80: 2 | GO80: 7 | GP80: 9 | GQ80: 4 | GR80: 9 | GS80: 3 | GT80: 3 | GU80: 0.1984643963 | GV80: -0.6230098911 | GW80: 0.3071476636 | GX80: 0.3397289236 | GY80: 0.6085061846 | GZ80: -0.240800404 | HA80: 0.5181918699 | HB80: -0.2345589797 | HC80: AX24.00128_hypothetical | HD80: By MS/MS | HE80: By MS/MS | HF80: By MS/MS | HG80: By MS/MS | HH80: By MS/MS | HI80: By MS/MS | HJ80: By MS/MS | HK80: By MS/MS | HL80: By MS/MS | HM80: By MS/MS | HN80: By MS/MS | HO80: By MS/MS | HP80: By MS/MS | HQ80: By MS/MS | HR80: By MS/MS | HS80: By MS/MS | HT80: By MS/MS | HU80: By MS/MS
A81: ALC24_0130_hypothetical protein | B81: MNSKKCLESLIDGLGKSANIRETIGQLDISGQVSPEQSDSFKLAYDDFLNELSDEWSISIRDGEFSEISIDYITNEDVTLVVKKPVGGRVFFATMAGFSSALDNKSLTLSRELLVLGSFTGFKTQGFSVLPWDGIPLSGLTYSDPSPDAIDPRKGIVRDLTGITVPADPYRWILLGDKGSGEPWEVWKGKATRKLATLFVSDVWEGDKPKISLNGSRKRTFILGDECQDNKAYEKVCQAAEWLLVKQDTEARHEVLVRRLSAIVRDSDTNTDWLTVLPEALQEALDGARLDHRAYVRSKSAETVKAMADLRKAVGEDVSRIVERVHRLSTGFVVGLAALATGLGVRLTLLTSQKNTWPAVGIIFCLVVLAITWASIILQRHVSSKSLVNELQNMRRWHKNVHTALTRSDYRELALRPVLDAVRLYKKTAKFTNKGMIYASIIFLASFVVIPLFHSAEKPLATSIERDQTPPAGAASTKATPTLEDVIQKPEVLSEDASISTQTARTENDNKTESAGLLEDEQPGSSE | C81: 527 | D81: 0.0099 | E81: 0.3575152546 | F81: 0.09589672089 | H81: 0.0039 | I81: 0.7716109077 | J81: -0.1626348495 | L81: 0.0083 | M81: 0.6867711305 | N81: 0.2336854935 | P81: 0.0048 | Q81: 0.04137715553 | R81: 0.01290098826 | T81: 0.4422054 | U81: 54116000.00 | V81: 102686.91 | W81: 0.0115 | X81: 0.2075691 | Y81: 50418000 | Z81: 95669.83 | AA81: 0.0103 | AB81: 0.1112652 | AC81: 28058000 | AD81: 53240.98672 | AE81: 0.0080 | AF81: 0.01467514 | AG81: 205350000 | AH81: 389658.44 | AI81: 0.0040 | AJ81: 0.09427261 | AK81: 214640000 | AL81: 407286.53 | AM81: 0.0045 | AN81: -0.1235027 | AO81: 137330000 | AP81: 260588.24 | AQ81: 0.0033 | AR81: 0.1686211 | AS81: 153740000 | AT81: 291726.76 | AU81: 0.0064 | AV81: 0.1986904 | AW81: 15216000 | AX81: 28872.87 | AY81: 0.0077 | AZ81: 0.8070946 | BA81: 174600000 | BB81: 331309.30 | BC81: 0.0109 | BD81: 0.1001282 | BE81: 64511000 | BF81: 122411.76 | BG81: 0.0052 | BH81: 0.09284782 | BI81: 57486000 | BJ81: 109081.59 | BK81: 0.0044 | BL81: 0.3190765 | BM81: 66770000 | BN81: 126698.29 | BO81: 0.0049 | BP81: 0.104805 | BQ81: 238780000 | BR81: 453092.98 | BS81: 0.0057 | BT81: 0.1433125 | BU81: 156200000 | BV81: 296394.69 | BW81: 0.0054 | BX81: 0.2085114 | BY81: 207540000 | BZ81: 393814.04 | CA81: 0.0062 | CB81: -0.1268406 | CC81: 261070000 | CD81: 495388.99 | CE81: 0.0061 | CF81: 0.282711 | CG81: 185830000 | CH81: 352618.60 | CI81: 0.0103 | CJ81: 0.3341999 | CK81: 142200000 | CL81: 269829.22 | CM81: 0.0111 | CO81: 27 | CP81: 27 | CQ81: 27 | CR81: 58.1 | CS81: 58.1 | CT81: 58.1 | CU81: 58.125 | CV81: 0 | CW81: 95.862 | CX81: 2413800000 | CY81: 200 | CZ81: 89 | DA81: 27 | DB81: 27 | DC81: 27 | DD81: 1 | DE81: 13 | DF81: 12 | DG81: 9 | DH81: 17 | DI81: 16 | DJ81: 15 | DK81: 16 | DL81: 16 | DM81: 17 | DN81: 16 | DO81: 16 | DP81: 14 | DQ81: 20 | DR81: 20 | DS81: 18 | DT81: 11 | DU81: 14 | DV81: 15 | DW81: 13 | DX81: 12 | DY81: 9 | DZ81: 17 | EA81: 16 | EB81: 15 | EC81: 16 | ED81: 16 | EE81: 17 | EF81: 16 | EG81: 16 | EH81: 14 | EI81: 20 | EJ81: 20 | EK81: 18 | EL81: 11 | EM81: 14 | EN81: 15 | EO81: 13 | EP81: 12 | EQ81: 9 | ER81: 17 | ES81: 16 | ET81: 15 | EU81: 16 | EV81: 16 | EW81: 17 | EX81: 16 | EY81: 16 | EZ81: 14 | FA81: 20 | FB81: 20 | FC81: 18 | FD81: 11 | FE81: 14 | FF81: 15 | FG81: 527 | FH81: 527 | FI81: 1 | FJ81: 356 | FK81: 35.5 | FL81: 30.9 | FM81: 23.9 | FN81: 40.4 | FO81: 37.2 | FP81: 34.3 | FQ81: 41.7 | FR81: 42.1 | FS81: 39.1 | FT81: 38.5 | FU81: 39.5 | FV81: 38.1 | FW81: 45.5 | FX81: 49.5 | FY81: 43.6 | FZ81: 24.5 | GA81: 38.1 | GB81: 41.6 | GC81: 8 | GD81: 8 | GE81: 6 | GF81: 11 | GG81: 9 | GH81: 8 | GI81: 10 | GJ81: 6 | GK81: 14 | GL81: 9 | GM81: 14 | GN81: 12 | GO81: 18 | GP81: 17 | GQ81: 15 | GR81: 9 | GS81: 15 | GT81: 11 | GU81: 0.8274854492 | GV81: 0.04530079572 | GW81: 0.7472794918 | GX81: -0.07722068532 | GY81: 0.7910384615 | GZ81: 0.1078121902 | HA81: 0.984199446 | HB81: 0.006117061284 | HC81: AX24.00130_hypothetical | HD81: By MS/MS | HE81: By MS/MS | HF81: By MS/MS | HG81: By MS/MS | HH81: By MS/MS | HI81: By MS/MS | HJ81: By MS/MS | HK81: By MS/MS | HL81: By MS/MS | HM81: By MS/MS | HN81: By MS/MS | HO81: By MS/MS | HP81: By MS/MS | HQ81: By MS/MS | HR81: By MS/MS | HS81: By MS/MS | HT81: By MS/MS | HU81: By MS/MS
A82: ALC24_0131_37-kD nucleoid-associated bacterial protein | B82: MSFLSETEVENLTIERMIFHVVDPASESPTFLAEVKPPQCVDFFVERVKETLRGAAYEFLPGAGVPDLLYRALPTSDGDDEFIQVSHDLADRFKDKVKQDKRLAPGVLMLFALKTTGNVQLVAVIKYEHQQVVSYSYIKDENGAPVLDTDGNPVPDLQTLVETFTKDRKAMQKSAVIRFQDYRKSAKHKTPQSSVVVIDHSSGRYRDATQHFANFLDIKRTLEPIELTKRLEDAAVESIKANKSEVPPEVAKAPKRFVRTAISRLDGFDFEKPEEFLSAVLQGVSPEAKILKTFKSKLANKNISTEAFKFEGATPPAAEYRRVVTNEGITLLFSAGHEENKNVEIKDEDNGGVEITIRSTGLERDDELEKMPRIPD | C82: 376 | D82: 0.0798 | E82: 3.14558208 | F82: -0.1941677729 | H82: 0.0221 | I82: 2.500876764 | J82: -0.7749713262 | L82: 0.0555 | M82: 0.4567322788 | N82: -0.1099131902 | P82: 0.0395 | Q82: 3.789278955 | R82: -0.2658077876 | T82: 2.605093 | U82: 283330000.00 | V82: 753537.23 | W82: 0.0844 | X82: 2.612457 | Y82: 272940000 | Z82: 725904.26 | AA82: 0.0779 | AB82: 2.596922 | AC82: 192420000 | AD82: 511755.3191 | AE82: 0.0770 | AF82: 2.152016 | AG82: 957070000 | AH82: 2545398.94 | AI82: 0.0258 | AJ82: 2.403706 | AK82: 889740000 | AL82: 2366329.79 | AM82: 0.0262 | AN82: 1.51634 | AO82: 428730000 | AP82: 1140239.36 | AQ82: 0.0143 | AR82: 2.751427 | AS82: 938200000 | AT82: 2495212.77 | AU82: 0.0548 | AV82: 2.387362 | AW82: 69333000 | AX82: 184396.28 | AY82: 0.0492 | AZ82: 2.928448 | BA82: 713780000 | BB82: 1898351.06 | BC82: 0.0625 | BD82: 2.49238 | BE82: 336660000 | BF82: 895372.34 | BG82: 0.0379 | BH82: 2.55994 | BI82: 375580000 | BJ82: 998882.98 | BK82: 0.0403 | BL82: 2.547232 | BM82: 389120000 | BN82: 1034893.62 | BO82: 0.0403 | BP82: 2.886158 | BQ82: 1568900000 | BR82: 4172606.38 | BS82: 0.0521 | BT82: 2.773451 | BU82: 940030000 | BV82: 2500079.79 | BW82: 0.0451 | BX82: 2.733007 | BY82: 963490000 | BZ82: 2562473.40 | CA82: 0.0402 | CB82: 2.835665 | CC82: 2479800000 | CD82: 6595212.77 | CE82: 0.0813 | CF82: 2.81023 | CG82: 1089800000 | CH82: 2898404.26 | CI82: 0.0847 | CJ82: 2.75544 | CK82: 677160000 | CL82: 1800957.45 | CM82: 0.0739 | CO82: 28 | CP82: 28 | CQ82: 28 | CR82: 63.6 | CS82: 63.6 | CT82: 63.6 | CU82: 42.189 | CV82: 0 | CW82: 302.86 | CX82: 13566000000 | CY82: 592 | CZ82: 90 | DA82: 28 | DB82: 28 | DC82: 28 | DD82: 1 | DE82: 18 | DF82: 19 | DG82: 18 | DH82: 22 | DI82: 22 | DJ82: 21 | DK82: 23 | DL82: 18 | DM82: 21 | DN82: 21 | DO82: 22 | DP82: 22 | DQ82: 21 | DR82: 21 | DS82: 22 | DT82: 23 | DU82: 21 | DV82: 19 | DW82: 18 | DX82: 19 | DY82: 18 | DZ82: 22 | EA82: 22 | EB82: 21 | EC82: 23 | ED82: 18 | EE82: 21 | EF82: 21 | EG82: 22 | EH82: 22 | EI82: 21 | EJ82: 21 | EK82: 22 | EL82: 23 | EM82: 21 | EN82: 19 | EO82: 18 | EP82: 19 | EQ82: 18 | ER82: 22 | ES82: 22 | ET82: 21 | EU82: 23 | EV82: 18 | EW82: 21 | EX82: 21 | EY82: 22 | EZ82: 22 | FA82: 21 | FB82: 21 | FC82: 22 | FD82: 23 | FE82: 21 | FF82: 19 | FG82: 376 | FH82: 376 | FI82: 1 | FJ82: 741 | FK82: 58 | FL82: 51.3 | FM82: 50.5 | FN82: 60.4 | FO82: 62.8 | FP82: 56.6 | FQ82: 62.8 | FR82: 57.4 | FS82: 62.8 | FT82: 61.7 | FU82: 62.8 | FV82: 61.7 | FW82: 63.6 | FX82: 58 | FY82: 61.4 | FZ82: 61.2 | GA82: 59.3 | GB82: 58 | GC82: 33 | GD82: 40 | GE82: 31 | GF82: 28 | GG82: 24 | GH82: 21 | GI82: 42 | GJ82: 20 | GK82: 34 | GL82: 25 | GM82: 25 | GN82: 27 | GO82: 33 | GP82: 36 | GQ82: 41 | GR82: 52 | GS82: 41 | GT82: 39 | GU82: 0.6703021451 | GV82: -0.09546554177 | GW82: 0.2919607073 | GX82: -0.3561252909 | GY82: 0.8980651769 | GZ82: -0.05210127524 | HA82: 0.6881519862 | HB82: -0.1305282185 | HC82: AX24.00131_37-kD | HD82: By MS/MS | HE82: By MS/MS | HF82: By MS/MS | HG82: By MS/MS | HH82: By MS/MS | HI82: By MS/MS | HJ82: By MS/MS | HK82: By MS/MS | HL82: By MS/MS | HM82: By MS/MS | HN82: By MS/MS | HO82: By MS/MS | HP82: By MS/MS | HQ82: By MS/MS | HR82: By MS/MS | HS82: By MS/MS | HT82: By MS/MS | HU82: By MS/MS
A83: ALC24_0137_hypothetical protein | B83: VKLPLVDTFSPTYEIWEKRDPTLDEMLAAGNPHLRIPIRLEACISNAYDAATHMAKVGADNRLGNFIDDALDKSVAYRSWRQTMPSKTPDELSRYQKRYPHCNFEQVSAEIEAVGHVLSEGQCLFHAGLWPANGNRLLTDRPLSTSFCPQVALRNANHKGKGYDADRIDLFVLRATNPKTKVFAYRRKGTNLGHENEVVFAAGAELSLRSAVPVNTNYPAGKYGFPDKRILVRVLEIDIS | C83: 240 | D83: 0.0009 | E83: 1.022093009 | F83: -1.76867187 | H83: 0.0019 | I83: 0.2261248557 | J83: 0.4998128812 | L83: 0.0003 | M83: 0.2959582874 | N83: -0.6134419044 | P83: 0.0012 | Q83: 0.001492010906 | R83: -0.005151947339 | T83: -5.375983 | U83: 2042100.00 | V83: 8508.75 | W83: 0.0010 | X83: -3.877439 | Y83: 0 | Z83: 0.00 | AA83: 0.0000 | AB83: -4.846148 | AC83: 2678000 | AD83: 11158.33333 | AE83: 0.0017 | AF83: -1.795532 | AG83: 62753000 | AH83: 261470.83 | AI83: 0.0027 | AJ83: -2.805962 | AK83: 32220000 | AL83: 134250.00 | AM83: 0.0015 | AN83: -2.692621 | AO83: 31622000 | AP83: 131758.33 | AQ83: 0.0017 | AR83: -3.307388 | AS83: 5443400 | AT83: 22680.83 | AU83: 0.0005 | AV83: -3.560707 | AW83: 0 | AX83: 0.00 | AY83: 0.0000 | AZ83: -3.765784 | BA83: 2724900 | BB83: 11353.75 | BC83: 0.0004 | BD83: -1.655762 | BE83: 7827900 | BF83: 32616.25 | BG83: 0.0014 | BH83: -1.894678 | BI83: 8085000 | BJ83: 33687.50 | BK83: 0.0014 | BL83: -5.25857 | BM83: 5334900 | BN83: 22228.75 | BO83: 0.0009 | BP83: -2.017933 | BQ83: 53901000 | BR83: 224587.50 | BS83: 0.0028 | BT83: -1.762007 | BU83: 33379000 | BV83: 139079.17 | BW83: 0.0025 | BX83: -1.830229 | BY83: 38567000 | BZ83: 160695.83 | CA83: 0.0025 | CB83: -4.230754 | CC83: 7375000 | CD83: 30729.17 | CE83: 0.0004 | CF83: -2.506291 | CG83: 0 | CH83: 0.00 | CI83: 0.0000 | CJ83: -5.239893 | CK83: 0 | CL83: 0.00 | CM83: 0.0000 | CO83: 7 | CP83: 7 | CQ83: 7 | CR83: 42.5 | CS83: 42.5 | CT83: 42.5 | CU83: 26.915 | CV83: 0 | CW83: 14.727 | CX83: 293950000 | CY83: 24 | CZ83: 91 | DA83: 7 | DB83: 7 | DC83: 7 | DD83: 1 | DE83: 1 | DF83: 0 | DG83: 1 | DH83: 6 | DI83: 5 | DJ83: 4 | DK83: 2 | DL83: 0 | DM83: 2 | DN83: 2 | DO83: 3 | DP83: 2 | DQ83: 5 | DR83: 6 | DS83: 6 | DT83: 1 | DU83: 0 | DV83: 0 | DW83: 1 | DX83: 0 | DY83: 1 | DZ83: 6 | EA83: 5 | EB83: 4 | EC83: 2 | ED83: 0 | EE83: 2 | EF83: 2 | EG83: 3 | EH83: 2 | EI83: 5 | EJ83: 6 | EK83: 6 | EL83: 1 | EM83: 0 | EN83: 0 | EO83: 1 | EP83: 0 | EQ83: 1 | ER83: 6 | ES83: 5 | ET83: 4 | EU83: 2 | EV83: 0 | EW83: 2 | EX83: 2 | EY83: 3 | EZ83: 2 | FA83: 5 | FB83: 6 | FC83: 6 | FD83: 1 | FE83: 0 | FF83: 0 | FG83: 240 | FH83: 240 | FI83: 1 | FJ83: 46 | FK83: 7.5 | FL83: 0 | FM83: 7.5 | FN83: 37.1 | FO83: 28.3 | FP83: 22.9 | FQ83: 10 | FR83: 0 | FS83: 10 | FT83: 14.6 | FU83: 17.5 | FV83: 10 | FW83: 30 | FX83: 35 | FY83: 35 | FZ83: 2.9 | GA83: 0 | GB83: 0 | GC83: 0 | GD83: 0 | GE83: 0 | GF83: 5 | GG83: 3 | GH83: 3 | GI83: 0 | GJ83: 0 | GK83: 0 | GL83: 0 | GM83: 0 | GN83: 0 | GO83: 4 | GP83: 5 | GQ83: 4 | GR83: 0 | GS83: 0 | GT83: 0 | GU83: 0.2063372093 | GV83: -0.606371877 | GW83: 0.5360545765 | GX83: 0.1726203597 | GY83: 0.6463549488 | GZ83: -0.2133730269 | HA83: 0.9946526151 | HB83: -0.00163208367 | HC83: AX24.00137_hypothetical | HD83: By matching | HF83: By matching | HG83: By MS/MS | HH83: By MS/MS | HI83: By MS/MS | HJ83: By matching | HL83: By matching | HM83: By matching | HN83: By matching | HO83: By matching | HP83: By MS/MS | HQ83: By MS/MS | HR83: By MS/MS | HS83: By matching
A84: ALC24_0139_ATP-dependent DNA helicase PcrA | B84: MIAAGDWRPADGLTLEPNALRAARETERCLALTAGPGAGKTEMLAQRADFLLRTGTCRYPKRILAISFKVDACKNLKERVQRRCGFDLAARFDSYTFHAFAKRIIDRFRPVLTGRDALDVDYQIGDRRVTRRQIEFSDLVPLAIQILSTSVAARNAVRQTYSDVFLDEFQDCTDQQYALVKLAFQNTAIRLTAVGDTKQKIMGWAGALDGIFQTFAADFVAEPLNMYRNFRSKPRLLRMQNEIIKVMDSTSVMPDEQLAGEEGQIFAWQFPNSQEEAEHLADSIDTWINHEQLPPSEIAILVVRQPDLYGDHLIQALEQRRIPFRNEQQLQDISVEPAARLIVDYLSILYGQREPKAWIRLMAQLIPFADDDVQSSVRRDFQNFIADQRKSAVQSALLGEPFADWWDFVRAFLSKVGIETLSALSHDYESKARLVQVVNDTKTRVDELLKSEPNLPKALERFSDDQAVRILTIHKSKGLEFDTVVILAVEDQSFWGDEDAERCAFFVGISRAKQRLMLTVSDRRDTPPSNPRRWKENRTPHSEFLGYAMPFLNPDR | C84: 556 | D84: 0.0015 | E84: 0.9798979408 | F84: -1.105329514 | H84: 0.0026 | I84: 0.07298708328 | J84: -0.1216729482 | L84: 0.0016 | M84: 0.1554094181 | N84: -0.238852183 | P84: 0.0017 | Q84: 0.001146686768 | R84: 0.002019882202 | T84: -1.933107 | U84: 6567000.00 | V84: 11811.15 | W84: 0.0013 | X84: -2.132313 | Y84: 5899500 | Z84: 10610.61 | AA84: 0.0011 | AB84: -1.758615 | AC84: 7798100 | AD84: 14025.35971 | AE84: 0.0021 | AF84: -1.010197 | AG84: 139080000 | AH84: 250143.88 | AI84: 0.0025 | AJ84: -1.242554 | AK84: 120210000 | AL84: 216205.04 | AM84: 0.0024 | AN84: -0.6203156 | AO84: 123950000 | AP84: 222931.65 | AQ84: 0.0028 | AR84: -0.9923058 | AS84: 40656000 | AT84: 73122.30 | AU84: 0.0016 | AV84: -1.285097 | AW84: 2985500 | AX84: 5369.60 | AY84: 0.0014 | AZ84: -0.9472008 | BA84: 31683000 | BB84: 56983.81 | BC84: 0.0019 | BD84: -0.9233246 | BE84: 18308000 | BF84: 32928.06 | BG84: 0.0014 | BH84: -0.8066196 | BI84: 25344000 | BJ84: 45582.73 | BK84: 0.0018 | BL84: -0.7720432 | BM84: 25204000 | BN84: 45330.94 | BO84: 0.0018 | BP84: 0.1610451 | BQ84: 223280000 | BR84: 401582.73 | BS84: 0.0050 | BT84: -0.3396225 | BU84: 117990000 | BV84: 212212.23 | BW84: 0.0038 | BX84: 0.2649727 | BY84: 175690000 | BZ84: 315989.21 | CA84: 0.0050 | CB84: -2.023558 | CC84: 69501000 | CD84: 125001.80 | CE84: 0.0015 | CF84: -1.590425 | CG84: 19828000 | CH84: 35661.87 | CI84: 0.0010 | CJ84: -1.488506 | CK84: 35076000 | CL84: 63086.33 | CM84: 0.0026 | CO84: 18 | CP84: 18 | CQ84: 18 | CR84: 34.5 | CS84: 34.5 | CT84: 34.5 | CU84: 63.526 | CV84: 0 | CW84: 103.75 | CX84: 1189100000 | CY84: 87 | CZ84: 92 | DA84: 18 | DB84: 18 | DC84: 18 | DD84: 1 | DE84: 3 | DF84: 3 | DG84: 4 | DH84: 12 | DI84: 10 | DJ84: 12 | DK84: 7 | DL84: 5 | DM84: 6 | DN84: 6 | DO84: 8 | DP84: 9 | DQ84: 15 | DR84: 16 | DS84: 17 | DT84: 5 | DU84: 2 | DV84: 5 | DW84: 3 | DX84: 3 | DY84: 4 | DZ84: 12 | EA84: 10 | EB84: 12 | EC84: 7 | ED84: 5 | EE84: 6 | EF84: 6 | EG84: 8 | EH84: 9 | EI84: 15 | EJ84: 16 | EK84: 17 | EL84: 5 | EM84: 2 | EN84: 5 | EO84: 3 | EP84: 3 | EQ84: 4 | ER84: 12 | ES84: 10 | ET84: 12 | EU84: 7 | EV84: 5 | EW84: 6 | EX84: 6 | EY84: 8 | EZ84: 9 | FA84: 15 | FB84: 16 | FC84: 17 | FD84: 5 | FE84: 2 | FF84: 5 | FG84: 556 | FH84: 556 | FI84: 1 | FJ84: 166 | FK84: 7.2 | FL84: 9.5 | FM84: 11 | FN84: 27 | FO84: 26.8 | FP84: 28.8 | FQ84: 14.4 | FR84: 12.8 | FS84: 12.9 | FT84: 14.4 | FU84: 17.3 | FV84: 22.3 | FW84: 31.7 | FX84: 31.1 | FY84: 32.9 | FZ84: 15.6 | GA84: 5.8 | GB84: 14.2 | GC84: 0 | GD84: 0 | GE84: 2 | GF84: 5 | GG84: 4 | GH84: 5 | GI84: 5 | GJ84: 3 | GK84: 4 | GL84: 6 | GM84: 3 | GN84: 2 | GO84: 14 | GP84: 12 | GQ84: 15 | GR84: 2 | GS84: 3 | GT84: 2 | GU84: 0.2889050279 | GV84: -0.4262280134 | GW84: 0.8413117271 | GX84: -0.04678062359 | GY84: 0.8227748522 | GZ84: -0.09210979256 | HA84: 0.9978455538 | HB84: 0.0007799317529 | HC84: AX24.00139_ATP-dependent | HD84: By matching | HE84: By matching | HF84: By MS/MS | HG84: By MS/MS | HH84: By MS/MS | HI84: By MS/MS | HJ84: By MS/MS | HK84: By MS/MS | HL84: By MS/MS | HM84: By MS/MS | HN84: By MS/MS | HO84: By MS/MS | HP84: By MS/MS | HQ84: By MS/MS | HR84: By MS/MS | HS84: By MS/MS | HT84: By MS/MS | HU84: By MS/MS
